Workbook

Sheet Top Sheet
A1: Pacific Gas & Electric Company
A2: Gas Transmission Line 306 - Analysis of Alternatives (000s)
A4: Alternatives | C4: I. Status Quo | D4: II. Proposal | E4: III. Alternative
C5: Continue to Own and Operate | D5: Sell Line 306 | E5: Abandon in Place
A6: Net Present Value (NPV) Components (000s, 2018$)
B7: NPV of Net Book Value | C7: =SUM(' I. S.Q. Own and Operate'!M18:M19) -> -3388.66187 | E7: =+'III. Alt - Abandon in Place'!M19+'III. Alt - Abandon in Place'!M20 -> -325.272701
B8: NPV of Capex 2019-2028 | C8: =SUM(' I. S.Q. Own and Operate'!M8:M17) -> -2996.962164 | E8: =SUM('III. Alt - Abandon in Place'!M8:M18) -> -287.6740186
B9: NPV of Opex 2019-2028 | C9: =SUM(' I. S.Q. Own and Operate'!M56) -> -12372.81252 | D9: =+'II. Proposal - Sell '!M53 -> -1586.716477 | E9: =+'III. Alt - Abandon in Place'!M56 -> -25316.79285
B10: NPV of Net Sales Proceeds | D10: =+'II. Proposal - Sell '!M52 -> 13304.72355
A11: Total NPV | C11: =SUM(C7:C10) -> -18758.43656 | D11: =SUM(D7:D10) -> 11718.00707 | E11: =SUM(E7:E10) -> -25929.73957
A13: Description of Alternatives
A14: I. | B14: Status Quo: Own and Operate | C14: Continue to own and operate Line 306. 2019-2028 capex includes $564K (2018$) for atmospheric corrosion, $1.7M (2018$) for HPR sets, and $1.7M (2018$) for other capex. 2019-2028 opex includes $22.5M (2018$) for hydro strength tests, $86K(2018$) for HPR maintenance, $120K(2018$) for fault crossing studies and $250K(2018$) for other.
A17: II. | B17: Proposal: Sell Line 306 | C17: Sell Line 306 to SoCal Gas for $25M. Perform $2.3M of hydro strength testing in 2019. Net gain to customers after taxes represents 100% of pipeline and 67% of land.
A20: III. | B20: Alternative: Abandon in Place | C20: Abandon in place 63.1 miles (69.8-6.7 miles = 90.6%) of Line 306, just west of Avenal State prison. Abandon 63.1 miles of pipe in place for an abandonment cost of $31.7M. Write-off NBV of 90.6% of Line 306 pipe/land cost of $3.7M. Ongoing capital and maintenance costs represent 9.4% of cost of Status Quo to continue to serve customers in Avenal. SoCal Gas customers at Atascadero/Edelman tap and Morro Bay Intertie would have a supply constraint and need to upgrade their pipeline(s).
A24: Method of Comparison
B25: The Line 306 alternatives have been compared to determine which is in the best interest of customers using a net present value of cash flows (NPV). NPV measures the after-tax value created by a project. A project is economically attractive if its NPV is positive or greater than that of all other project alternatives. NPV is calculated by determining the expected cash inflows and outflows for a project and then discounting them to a present value. Under (perfect) cost-of-service-ratemaking, the NPV for an investment will always be zero, assuming returns equal to authorized. For purposes of this NPV analysis, revenues are ignored, to make the comparison meaningful.
A29: Recommendation
B30: A sale of Line 306 represents the lowest NPV to customers and avoids the ongoing cost of ownership or cost of abandonment

Sheet Summary
A1: ="Economic Evaluation Over "&sp&"-Year Study Period ($000)" -> Economic Evaluation Over 10-Year Study Period ($000)
A2: Sale of Line 306 and Alternatives
A4: =IF(AND(IF(ISERROR(' I. S.Q. Own and Operate'!F4),"",' I. S.Q. Own and Operate'!F4)="",IF(ISERROR('II. Proposal - Sell '!F4),"",'II. Proposal - Sell '!F4)="",IF(ISERROR('III. Alt - Abandon in Place'!F4),"",'III. Alt - Abandon in Place'!F4)="",IF(ISERROR(#REF!),"",#REF!)="",IF(ISERROR(#REF!),"",#REF!)="",IF(ISERROR(#REF!),"",#REF!)=""),"","*** Error! - One or more alternatives contain an error that must be corrected ***") -> 
A5: Study Period: | C5: 10 years | F5: First Year of Study: | G5: 2019
A6: Discount Rate: | C6: 0.07 | F6: Cost Estimate Year: | G6: 2019 | I6: EASOP 2018 | J6: ExtraCap | K6: Edition
A7: =IF(OR(i<1%,i>15%),"Error! Discount rate must be between 1% & 15%","") ->  | K7: =IF(OR(fy<1900,date<1900,fy>2100,date>2100),"Error! Years must be between 1900 & 2100","") -> 
G10: Cash Flow Measures | J10: B/C
A11: Alternatives (enter titles to see financial results) | G11: NPV | H11: ROE | I11: Payback | J11: Ratio | K11: PVRR
A12: Status Quo | C12: Own and Operate | G12: =IF(ISERROR(' I. S.Q. Own and Operate'!$M$59),0,' I. S.Q. Own and Operate'!$M$59) -> -18758.43656 | H12: ="- " -> - | I12: ="-" -> - | J12: ="-" -> - | K12: =IF(ISERROR(' I. S.Q. Own and Operate'!$M$59),0,IF(' I. S.Q. Own and Operate'!$BJ$48>0,"See Note",G12/(tr-1))) -> 26047.45108
A14: A. | B14: Sell Pipeline | G14: =IF(OR(TRIM(B14)="",ISERROR('II. Proposal - Sell '!A1)),"",'II. Proposal - Sell '!$M$59) -> 11718.00707 | H14: =IF(OR(TRIM(B14)="",ISERROR('II. Proposal - Sell '!A1)),"",V104) -> n/a | I14: =IF(OR(TRIM(B14)="",ISERROR('II. Proposal - Sell '!A1)),"",AJ$102) -> 0 | J14: =IF(OR(TRIM(B14)="",ISERROR('II. Proposal - Sell '!A1)),"",AJ$106) -> n/a | K14: =IF(OR(TRIM(B14)="",ISERROR('II. Proposal - Sell '!$A$1)),"",IF('II. Proposal - Sell '!$BJ$48>0,"See Note",G14/(tr-1))) -> -16271.30358
A15: B. | B15: Abandon in Place | G15: =IF(OR(TRIM(B15)="",ISERROR('III. Alt - Abandon in Place'!A1)),"",'III. Alt - Abandon in Place'!$M$59) -> -25929.73957 | H15: =IF(OR(TRIM(B15)="",ISERROR('III. Alt - Abandon in Place'!A1)),"",W104) -> n/a | I15: =IF(OR(TRIM(B15)="",ISERROR('III. Alt - Abandon in Place'!A1)),"",AK$102) -> never | J15: =IF(OR(TRIM(B15)="",ISERROR('III. Alt - Abandon in Place'!A1)),"",AK$106) -> n/a | K15: =IF(OR(TRIM(B15)="",ISERROR('III. Alt - Abandon in Place'!$A$1)),"",IF('III. Alt - Abandon in Place'!$BJ$48>0,"See Note",G15/(tr-1))) -> 36005.32597
A16: C. | G16: =IF(OR(TRIM(B16)="",ISERROR(#REF!)),"",#REF!) ->  | H16: =IF(OR(TRIM(B16)="",ISERROR(#REF!)),"",X104) ->  | I16: =IF(OR(TRIM(B16)="",ISERROR(#REF!)),"",AL$102) ->  | J16: =IF(OR(TRIM(B16)="",ISERROR(#REF!)),"",AL$106) ->  | K16: =IF(OR(TRIM(B16)="",ISERROR(#REF!)),"",IF(#REF!>0,"See Note",G16/(tr-1))) -> 
A17: D. | G17: =IF(OR(TRIM(B17)="",ISERROR(#REF!)),"",#REF!) ->  | H17: =IF(OR(TRIM(B17)="",ISERROR(#REF!)),"",Y104) ->  | I17: =IF(OR(TRIM(B17)="",ISERROR(#REF!)),"",AM$102) ->  | J17: =IF(OR(TRIM(B17)="",ISERROR(#REF!)),"",AM$106) ->  | K17: =IF(OR(TRIM(B17)="",ISERROR(#REF!)),"",IF(#REF!>0,"See Note",G17/(tr-1))) -> 
A18: E. | G18: =IF(OR(TRIM(B18)="",ISERROR(#REF!)),"",#REF!) ->  | H18: =IF(OR(TRIM(B18)="",ISERROR(#REF!)),"",Z104) ->  | I18: =IF(OR(TRIM(B18)="",ISERROR(#REF!)),"",AN$102) ->  | J18: =IF(OR(TRIM(B18)="",ISERROR(#REF!)),"",AN$106) ->  | K18: =IF(OR(TRIM(B18)="",ISERROR(#REF!)),"",IF(#REF!>0,"See Note",G18/(tr-1))) -> 
A20: Net present value and present value of revenue requirements are the primary financial measures. | J20: =IF(AND(IF(ISERROR(' I. S.Q. Own and Operate'!F58),"",' I. S.Q. Own and Operate'!F58)="",IF(ISERROR('II. Proposal - Sell '!F58),"",'II. Proposal - Sell '!F58)="",IF(ISERROR('III. Alt - Abandon in Place'!F58),"",'III. Alt - Abandon in Place'!F58)="",IF(ISERROR(#REF!),"",#REF!)="",IF(ISERROR(#REF!),"",#REF!)="",IF(ISERROR(#REF!),"",#REF!)=""),"","Warning: Results exclude") -> 
A21: =IF(COUNTIF(K12:K18,"=See Note"),"Present value of revenue requirements of ITC eligible investments must be calculated using Charge model.","") ->  | J21: =IF(AND(IF(ISERROR(' I. S.Q. Own and Operate'!$F$58),"",' I. S.Q. Own and Operate'!$F$58)="",IF(ISERROR('II. Proposal - Sell '!$F$58),"",'II. Proposal - Sell '!$F$58)="",IF(ISERROR('III. Alt - Abandon in Place'!$F$58),"",'III. Alt - Abandon in Place'!$F$58)="",IF(ISERROR(#REF!),"",#REF!)="",IF(ISERROR(#REF!),"",#REF!)="",IF(ISERROR(#REF!),"",#REF!)=""),"","cost data outside") -> 
A22: Return on equity, payback period, and benefit-cost ratio are measured relative to status quo. | J22: =IF(AND(IF(ISERROR(' I. S.Q. Own and Operate'!$F$58),"",' I. S.Q. Own and Operate'!$F$58)="",IF(ISERROR('II. Proposal - Sell '!$F$58),"",'II. Proposal - Sell '!$F$58)="",IF(ISERROR('III. Alt - Abandon in Place'!$F$58),"",'III. Alt - Abandon in Place'!$F$58)="",IF(ISERROR(#REF!),"",#REF!)="",IF(ISERROR(#REF!),"",#REF!)="",IF(ISERROR(#REF!),"",#REF!)=""),"","study period.") -> 
D48: Annual Cash Flow ($000) | N48: Cumulative NPV | V48: Annual Cash Flow Relative to SQ | AC48: Cumulative NPV Relative to SQ | AJ48: Find Discounted Payback Relative to SQ
B49: End of Year * | D49: S.Q. | E49: Alt A | F49: Alt B | G49: Alt C | H49: Alt D | I49: Alt E | N49: =D49 -> S.Q. | O49: Alt A | P49: Alt B | Q49: Alt C | R49: Alt D | S49: Alt E | T49: Proj | V49: =E49 -> Alt A | W49: =F49 -> Alt B | X49: =G49 -> Alt C | Y49: =H49 -> Alt D | Z49: =I49 -> Alt E | AA49: =T49 -> Proj | AC49: =E49 -> Alt A | AD49: =F49 -> Alt B | AE49: =G49 -> Alt C | AF49: =H49 -> Alt D | AG49: =I49 -> Alt E | AH49: =T49 -> Proj | AJ49: =E49 -> Alt A | AK49: =F49 -> Alt B | AL49: =G49 -> Alt C | AM49: =H49 -> Alt D | AN49: =I49 -> Alt E | AO49: =T49 -> Proj | AQ49: sp indx
A50: ="Initial Expenditures" -> Initial Expenditures | D50: =IF(ISERROR(' I. S.Q. Own and Operate'!$A$1),0,' I. S.Q. Own and Operate'!BG8) -> -4017.576658 | E50: =IF(ISERROR('II. Proposal - Sell '!$A$1),0,'II. Proposal - Sell '!BG8) -> 0 | F50: =IF(ISERROR('III. Alt - Abandon in Place'!$A$1),0,'III. Alt - Abandon in Place'!BG8) -> -385.6413124 | G50: =IF(ISERROR(#REF!),0,#REF!) -> 0 | H50: =IF(ISERROR(#REF!),0,#REF!) -> 0 | I50: =IF(ISERROR(#REF!),0,#REF!) -> 0 | N50: =D50 -> -4017.576658 | O50: 0 | P50: -385.6413124 | Q50: 0 | R50: 0 | S50: 0 | T50: =SUM(O50:S50) -> -385.6413124 | V50: =E50-$D50 -> 4017.576658 | W50: =F50-$D50 -> 3631.935345 | X50: =G50-$D50 -> 4017.576658 | Y50: =H50-$D50 -> 4017.576658 | Z50: =I50-$D50 -> 4017.576658 | AA50: =SUM(E50:I50)-$D50 -> 3631.935345 | AC50: =O50-$N50 -> 4017.576658 | AD50: 3631.935345 | AE50: 4017.576658 | AF50: 4017.576658 | AG50: 4017.576658 | AH50: 3631.935345 | AQ50: 1
B51: =fy -> 2019 | D51: =IF(ISERROR(' I. S.Q. Own and Operate'!$A$1),0,' I. S.Q. Own and Operate'!BG9) -> -3622.061176 | E51: =IF(ISERROR('II. Proposal - Sell '!$A$1),0,'II. Proposal - Sell '!BG9) -> -1697.78663 | F51: =IF(ISERROR('III. Alt - Abandon in Place'!$A$1),0,'III. Alt - Abandon in Place'!BG9) -> -3790.6776 | G51: =IF(ISERROR(#REF!),0,#REF!) -> 0 | H51: =IF(ISERROR(#REF!),0,#REF!) -> 0 | I51: =IF(ISERROR(#REF!),0,#REF!) -> 0 | N51: =N50+D51/(1+i)^($B51-fy+1) -> -7402.68056 | O51: =O50+E51/(1+i)^($B51-fy+1) -> -1586.716477 | P51: =P50+F51/(1+i)^($B51-fy+1) -> -3928.330658 | Q51: =Q50+G51/(1+i)^($B51-fy+1) -> 0 | R51: =R50+H51/(1+i)^($B51-fy+1) -> 0 | S51: =S50+I51/(1+i)^($B51-fy+1) -> 0 | T51: =SUM(O51:S51) -> -5515.047134 | V51: 1924.274546 | W51: -168.6164239 | X51: 3622.061176 | Y51: 3622.061176 | Z51: 3622.061176 | AA51: =SUM(E51:I51)-$D51 -> -1866.403054 | AC51: =O51-$N51 -> 5815.964084 | AD51: =P51-$N51 -> 3474.349902 | AE51: =Q51-$N51 -> 7402.68056 | AF51: =R51-$N51 -> 7402.68056 | AG51: =S51-$N51 -> 7402.68056 | AH51: =T51-$N51 -> 1887.633426 | AJ51: =IF(AND(AC50<=0,AC51>0,MIN(AC52:$AC$100)>=0),$B51-fy+1) -> FALSE | AK51: =IF(AND(AD50<=0,AD51>0,MIN(AD52:AD$100)>=0),$B51-fy+1) -> FALSE | AL51: =IF(AND(AE50<=0,AE51>0,MIN(AE52:AE$100)>=0),$B51-fy+1) -> FALSE | AM51: =IF(AND(AF50<=0,AF51>0,MIN(AF52:AF$100)>=0),$B51-fy+1) -> FALSE | AN51: =IF(AND(AG50<=0,AG51>0,MIN(AG52:AG$100)>=0),$B51-fy+1) -> FALSE | AO51: =IF(AND(AH50<=0,AH51>0,MIN(AH52:AH$100)>=0),$B51-fy+1) -> FALSE | AQ51: 50 years
B52: =B51+1 -> 2020 | D52: =IF(ISERROR(' I. S.Q. Own and Operate'!$A$1),0,' I. S.Q. Own and Operate'!BG10) -> -131.4559418 | E52: =IF(ISERROR('II. Proposal - Sell '!$A$1),0,'II. Proposal - Sell '!BG10) -> 15232.57799 | F52: =IF(ISERROR('III. Alt - Abandon in Place'!$A$1),0,'III. Alt - Abandon in Place'!BG10) -> -23952.45143 | G52: =IF(ISERROR(#REF!),0,#REF!) -> 0 | H52: =IF(ISERROR(#REF!),0,#REF!) -> 0 | I52: =IF(ISERROR(#REF!),0,#REF!) -> 0 | N52: -7517.499271 | O52: 11718.00707 | P52: -24849.32937 | Q52: 0 | R52: 0 | S52: 0 | T52: -13131.3223 | V52: 15364.03393 | W52: -23820.99549 | X52: 131.4559418 | Y52: 131.4559418 | Z52: 131.4559418 | AA52: -8588.4175 | AC52: 19235.50634 | AD52: -17331.8301 | AE52: 7517.499271 | AF52: 7517.499271 | AG52: 7517.499271 | AH52: -5613.823033 | AJ52: =IF(AND(AC51<=0,AC52>0,MIN(AC53:$AC$100)>=0),$B52-fy+1) -> FALSE | AK52: =IF(AND(AD51<=0,AD52>0,MIN(AD53:AD$100)>=0),$B52-fy+1) -> FALSE | AL52: =IF(AND(AE51<=0,AE52>0,MIN(AE53:AE$100)>=0),$B52-fy+1) -> FALSE | AM52: =IF(AND(AF51<=0,AF52>0,MIN(AF53:AF$100)>=0),$B52-fy+1) -> FALSE | AN52: =IF(AND(AG51<=0,AG52>0,MIN(AG53:AG$100)>=0),$B52-fy+1) -> FALSE | AO52: =IF(AND(AH51<=0,AH52>0,MIN(AH53:AH$100)>=0),$B52-fy+1) -> FALSE | AQ52: 49 years
B53: =B52+1 -> 2021 | D53: =IF(ISERROR(' I. S.Q. Own and Operate'!$A$1),0,' I. S.Q. Own and Operate'!BG11) -> -2447.688464 | E53: =IF(ISERROR('II. Proposal - Sell '!$A$1),0,'II. Proposal - Sell '!BG11) -> 0 | F53: =IF(ISERROR('III. Alt - Abandon in Place'!$A$1),0,'III. Alt - Abandon in Place'!BG11) -> -234.9500388 | G53: =IF(ISERROR(#REF!),0,#REF!) -> 0 | H53: =IF(ISERROR(#REF!),0,#REF!) -> 0 | I53: =IF(ISERROR(#REF!),0,#REF!) -> 0 | N53: -9515.542167 | O53: 11718.00707 | P53: -25041.11859 | Q53: 0 | R53: 0 | S53: 0 | T53: -13323.11152 | V53: 2447.688464 | W53: 2212.738425 | X53: 2447.688464 | Y53: 2447.688464 | Z53: 2447.688464 | AA53: 2212.738425 | AC53: 21233.54924 | AD53: -15525.57643 | AE53: 9515.542167 | AF53: 9515.542167 | AG53: 9515.542167 | AH53: -3807.569354 | AJ53: =IF(AND(AC52<=0,AC53>0,MIN(AC54:$AC$100)>=0),$B53-fy+1) -> FALSE | AK53: =IF(AND(AD52<=0,AD53>0,MIN(AD54:AD$100)>=0),$B53-fy+1) -> FALSE | AL53: =IF(AND(AE52<=0,AE53>0,MIN(AE54:AE$100)>=0),$B53-fy+1) -> FALSE | AM53: =IF(AND(AF52<=0,AF53>0,MIN(AF54:AF$100)>=0),$B53-fy+1) -> FALSE | AN53: =IF(AND(AG52<=0,AG53>0,MIN(AG54:AG$100)>=0),$B53-fy+1) -> FALSE | AO53: =IF(AND(AH52<=0,AH53>0,MIN(AH54:AH$100)>=0),$B53-fy+1) -> FALSE | AQ53: 48 years
B54: 2022 | D54: =IF(ISERROR(' I. S.Q. Own and Operate'!$A$1),0,' I. S.Q. Own and Operate'!BG12) -> -731.5779744 | E54: =IF(ISERROR('II. Proposal - Sell '!$A$1),0,'II. Proposal - Sell '!BG12) -> 0 | F54: =IF(ISERROR('III. Alt - Abandon in Place'!$A$1),0,'III. Alt - Abandon in Place'!BG12) -> -79.37955843 | G54: =IF(ISERROR(#REF!),0,#REF!) -> 0 | H54: =IF(ISERROR(#REF!),0,#REF!) -> 0 | I54: =IF(ISERROR(#REF!),0,#REF!) -> 0 | N54: -10073.6595 | O54: 11718.00707 | P54: -25101.67688 | Q54: 0 | R54: 0 | S54: 0 | T54: -13383.66981 | V54: 731.5779744 | W54: 652.1984159 | X54: 731.5779744 | Y54: 731.5779744 | Z54: 731.5779744 | AA54: 652.1984159 | AC54: 21791.66657 | AD54: -15028.01738 | AE54: 10073.6595 | AF54: 10073.6595 | AG54: 10073.6595 | AH54: -3310.010306 | AJ54: =IF(AND(AC53<=0,AC54>0,MIN(AC55:$AC$100)>=0),$B54-fy+1) -> FALSE | AK54: =IF(AND(AD53<=0,AD54>0,MIN(AD55:AD$100)>=0),$B54-fy+1) -> FALSE | AL54: =IF(AND(AE53<=0,AE54>0,MIN(AE55:AE$100)>=0),$B54-fy+1) -> FALSE | AM54: =IF(AND(AF53<=0,AF54>0,MIN(AF55:AF$100)>=0),$B54-fy+1) -> FALSE | AN54: =IF(AND(AG53<=0,AG54>0,MIN(AG55:AG$100)>=0),$B54-fy+1) -> FALSE | AO54: =IF(AND(AH53<=0,AH54>0,MIN(AH55:AH$100)>=0),$B54-fy+1) -> FALSE | AQ54: 47 years
B55: 2023 | D55: =IF(ISERROR(' I. S.Q. Own and Operate'!$A$1),0,' I. S.Q. Own and Operate'!BG13) -> -227.9479956 | E55: =IF(ISERROR('II. Proposal - Sell '!$A$1),0,'II. Proposal - Sell '!BG13) -> 0 | F55: =IF(ISERROR('III. Alt - Abandon in Place'!$A$1),0,'III. Alt - Abandon in Place'!BG13) -> -14.059254 | G55: =IF(ISERROR(#REF!),0,#REF!) -> 0 | H55: =IF(ISERROR(#REF!),0,#REF!) -> 0 | I55: =IF(ISERROR(#REF!),0,#REF!) -> 0 | N55: -10236.18327 | O55: 11718.00707 | P55: -25111.70093 | Q55: 0 | R55: 0 | S55: 0 | T55: -13393.69386 | V55: 227.9479956 | W55: 213.8887416 | X55: 227.9479956 | Y55: 227.9479956 | Z55: 227.9479956 | AA55: 213.8887416 | AC55: 21954.19034 | AD55: -14875.51766 | AE55: 10236.18327 | AF55: 10236.18327 | AG55: 10236.18327 | AH55: -3157.510589 | AJ55: =IF(AND(AC54<=0,AC55>0,MIN(AC56:$AC$100)>=0),$B55-fy+1) -> FALSE | AK55: =IF(AND(AD54<=0,AD55>0,MIN(AD56:AD$100)>=0),$B55-fy+1) -> FALSE | AL55: =IF(AND(AE54<=0,AE55>0,MIN(AE56:AE$100)>=0),$B55-fy+1) -> FALSE | AM55: =IF(AND(AF54<=0,AF55>0,MIN(AF56:AF$100)>=0),$B55-fy+1) -> FALSE | AN55: =IF(AND(AG54<=0,AG55>0,MIN(AG56:AG$100)>=0),$B55-fy+1) -> FALSE | AO55: =IF(AND(AH54<=0,AH55>0,MIN(AH56:AH$100)>=0),$B55-fy+1) -> FALSE | AQ55: 46 years
B56: 2024 | D56: =IF(ISERROR(' I. S.Q. Own and Operate'!$A$1),0,' I. S.Q. Own and Operate'!BG14) -> -151.9812658 | E56: =IF(ISERROR('II. Proposal - Sell '!$A$1),0,'II. Proposal - Sell '!BG14) -> 0 | F56: =IF(ISERROR('III. Alt - Abandon in Place'!$A$1),0,'III. Alt - Abandon in Place'!BG14) -> -14.58845961 | G56: =IF(ISERROR(#REF!),0,#REF!) -> 0 | H56: =IF(ISERROR(#REF!),0,#REF!) -> 0 | I56: =IF(ISERROR(#REF!),0,#REF!) -> 0 | N56: -10337.45481 | O56: 11718.00707 | P56: -25121.42184 | Q56: 0 | R56: 0 | S56: 0 | T56: -13403.41477 | V56: 151.9812658 | W56: 137.3928061 | X56: 151.9812658 | Y56: 151.9812658 | Z56: 151.9812658 | AA56: 137.3928061 | AC56: 22055.46188 | AD56: -14783.96703 | AE56: 10337.45481 | AF56: 10337.45481 | AG56: 10337.45481 | AH56: -3065.959961 | AJ56: =IF(AND(AC55<=0,AC56>0,MIN(AC57:$AC$100)>=0),$B56-fy+1) -> FALSE | AK56: =IF(AND(AD55<=0,AD56>0,MIN(AD57:AD$100)>=0),$B56-fy+1) -> FALSE | AL56: =IF(AND(AE55<=0,AE56>0,MIN(AE57:AE$100)>=0),$B56-fy+1) -> FALSE | AM56: =IF(AND(AF55<=0,AF56>0,MIN(AF57:AF$100)>=0),$B56-fy+1) -> FALSE | AN56: =IF(AND(AG55<=0,AG56>0,MIN(AG57:AG$100)>=0),$B56-fy+1) -> FALSE | AO56: =IF(AND(AH55<=0,AH56>0,MIN(AH57:AH$100)>=0),$B56-fy+1) -> FALSE | AQ56: 45 years
B57: 2025 | D57: =IF(ISERROR(' I. S.Q. Own and Operate'!$A$1),0,' I. S.Q. Own and Operate'!BG15) -> -163.3027027 | E57: =IF(ISERROR('II. Proposal - Sell '!$A$1),0,'II. Proposal - Sell '!BG15) -> 0 | F57: =IF(ISERROR('III. Alt - Abandon in Place'!$A$1),0,'III. Alt - Abandon in Place'!BG15) -> -15.6751878 | G57: =IF(ISERROR(#REF!),0,#REF!) -> 0 | H57: =IF(ISERROR(#REF!),0,#REF!) -> 0 | I57: =IF(ISERROR(#REF!),0,#REF!) -> 0 | N57: -10439.15152 | O57: 11718.00707 | P57: -25131.18356 | Q57: 0 | R57: 0 | S57: 0 | T57: -13413.17649 | V57: 163.3027027 | W57: 147.6275149 | X57: 163.3027027 | Y57: 163.3027027 | Z57: 163.3027027 | AA57: 147.6275149 | AC57: 22157.15859 | AD57: -14692.03204 | AE57: 10439.15152 | AF57: 10439.15152 | AG57: 10439.15152 | AH57: -2974.024964 | AJ57: =IF(AND(AC56<=0,AC57>0,MIN(AC58:$AC$100)>=0),$B57-fy+1) -> FALSE | AK57: =IF(AND(AD56<=0,AD57>0,MIN(AD58:AD$100)>=0),$B57-fy+1) -> FALSE | AL57: =IF(AND(AE56<=0,AE57>0,MIN(AE58:AE$100)>=0),$B57-fy+1) -> FALSE | AM57: =IF(AND(AF56<=0,AF57>0,MIN(AF58:AF$100)>=0),$B57-fy+1) -> FALSE | AN57: =IF(AND(AG56<=0,AG57>0,MIN(AG58:AG$100)>=0),$B57-fy+1) -> FALSE | AO57: =IF(AND(AH56<=0,AH57>0,MIN(AH58:AH$100)>=0),$B57-fy+1) -> FALSE | AQ57: 44 years
B58: 2026 | D58: =IF(ISERROR(' I. S.Q. Own and Operate'!$A$1),0,' I. S.Q. Own and Operate'!BG16) -> -12595.24487 | E58: =IF(ISERROR('II. Proposal - Sell '!$A$1),0,'II. Proposal - Sell '!BG16) -> 0 | F58: =IF(ISERROR('III. Alt - Abandon in Place'!$A$1),0,'III. Alt - Abandon in Place'!BG16) -> -1208.999149 | G58: =IF(ISERROR(#REF!),0,#REF!) -> 0 | H58: =IF(ISERROR(#REF!),0,#REF!) -> 0 | I58: =IF(ISERROR(#REF!),0,#REF!) -> 0 | N58: -17769.69871 | O58: 11718.00707 | P58: -25834.83207 | Q58: 0 | R58: 0 | S58: 0 | T58: -14116.825 | V58: 12595.24487 | W58: 11386.24572 | X58: 12595.24487 | Y58: 12595.24487 | Z58: 12595.24487 | AA58: 11386.24572 | AC58: 29487.70578 | AD58: -8065.133361 | AE58: 17769.69871 | AF58: 17769.69871 | AG58: 17769.69871 | AH58: 3652.87371 | AJ58: =IF(AND(AC57<=0,AC58>0,MIN(AC59:$AC$100)>=0),$B58-fy+1) -> FALSE | AK58: =IF(AND(AD57<=0,AD58>0,MIN(AD59:AD$100)>=0),$B58-fy+1) -> FALSE | AL58: =IF(AND(AE57<=0,AE58>0,MIN(AE59:AE$100)>=0),$B58-fy+1) -> FALSE | AM58: =IF(AND(AF57<=0,AF58>0,MIN(AF59:AF$100)>=0),$B58-fy+1) -> FALSE | AN58: =IF(AND(AG57<=0,AG58>0,MIN(AG59:AG$100)>=0),$B58-fy+1) -> FALSE | AO58: =IF(AND(AH57<=0,AH58>0,MIN(AH59:AH$100)>=0),$B58-fy+1) -> 8 | AQ58: 43 years
B59: 2027 | D59: =IF(ISERROR(' I. S.Q. Own and Operate'!$A$1),0,' I. S.Q. Own and Operate'!BG17) -> -176.6224546 | E59: =IF(ISERROR('II. Proposal - Sell '!$A$1),0,'II. Proposal - Sell '!BG17) -> 0 | F59: =IF(ISERROR('III. Alt - Abandon in Place'!$A$1),0,'III. Alt - Abandon in Place'!BG17) -> -16.95373132 | G59: =IF(ISERROR(#REF!),0,#REF!) -> 0 | H59: =IF(ISERROR(#REF!),0,#REF!) -> 0 | I59: =IF(ISERROR(#REF!),0,#REF!) -> 0 | N59: -17865.76962 | O59: 11718.00707 | P59: -25844.05378 | Q59: 0 | R59: 0 | S59: 0 | T59: -14126.04671 | V59: 176.6224546 | W59: 159.6687233 | X59: 176.6224546 | Y59: 176.6224546 | Z59: 176.6224546 | AA59: 159.6687233 | AC59: 29583.77669 | AD59: -7978.284155 | AE59: 17865.76962 | AF59: 17865.76962 | AG59: 17865.76962 | AH59: 3739.722916 | AJ59: =IF(AND(AC58<=0,AC59>0,MIN(AC60:$AC$100)>=0),$B59-fy+1) -> FALSE | AK59: =IF(AND(AD58<=0,AD59>0,MIN(AD60:AD$100)>=0),$B59-fy+1) -> FALSE | AL59: =IF(AND(AE58<=0,AE59>0,MIN(AE60:AE$100)>=0),$B59-fy+1) -> FALSE | AM59: =IF(AND(AF58<=0,AF59>0,MIN(AF60:AF$100)>=0),$B59-fy+1) -> FALSE | AN59: =IF(AND(AG58<=0,AG59>0,MIN(AG60:AG$100)>=0),$B59-fy+1) -> FALSE | AO59: =IF(AND(AH58<=0,AH59>0,MIN(AH60:AH$100)>=0),$B59-fy+1) -> FALSE | AQ59: 42 years
B60: 2028 | D60: =IF(ISERROR(' I. S.Q. Own and Operate'!$A$1),0,' I. S.Q. Own and Operate'!BG18) -> -1756.010976 | E60: =IF(ISERROR('II. Proposal - Sell '!$A$1),0,'II. Proposal - Sell '!BG18) -> 0 | F60: =IF(ISERROR('III. Alt - Abandon in Place'!$A$1),0,'III. Alt - Abandon in Place'!BG18) -> -168.5569275 | G60: =IF(ISERROR(#REF!),0,#REF!) -> 0 | H60: =IF(ISERROR(#REF!),0,#REF!) -> 0 | I60: =IF(ISERROR(#REF!),0,#REF!) -> 0 | N60: -18758.43656 | O60: 11718.00707 | P60: -25929.73957 | Q60: 0 | R60: 0 | S60: 0 | T60: -14211.7325 | V60: 1756.010976 | W60: 1587.454048 | X60: 1756.010976 | Y60: 1756.010976 | Z60: 1756.010976 | AA60: 1587.454048 | AC60: 30476.44363 | AD60: -7171.303013 | AE60: 18758.43656 | AF60: 18758.43656 | AG60: 18758.43656 | AH60: 4546.704058 | AJ60: =IF(AND(AC59<=0,AC60>0,MIN(AC61:$AC$100)>=0),$B60-fy+1) -> FALSE | AK60: =IF(AND(AD59<=0,AD60>0,MIN(AD61:AD$100)>=0),$B60-fy+1) -> FALSE | AL60: =IF(AND(AE59<=0,AE60>0,MIN(AE61:AE$100)>=0),$B60-fy+1) -> FALSE | AM60: =IF(AND(AF59<=0,AF60>0,MIN(AF61:AF$100)>=0),$B60-fy+1) -> FALSE | AN60: =IF(AND(AG59<=0,AG60>0,MIN(AG61:AG$100)>=0),$B60-fy+1) -> FALSE | AO60: =IF(AND(AH59<=0,AH60>0,MIN(AH61:AH$100)>=0),$B60-fy+1) -> FALSE | AQ60: 41 years
B61: 2029 | D61: =IF(ISERROR(' I. S.Q. Own and Operate'!$A$1),0,' I. S.Q. Own and Operate'!BG19) -> 0 | E61: =IF(ISERROR('II. Proposal - Sell '!$A$1),0,'II. Proposal - Sell '!BG19) -> 0 | F61: =IF(ISERROR('III. Alt - Abandon in Place'!$A$1),0,'III. Alt - Abandon in Place'!BG19) -> 0 | G61: =IF(ISERROR(#REF!),0,#REF!) -> 0 | H61: =IF(ISERROR(#REF!),0,#REF!) -> 0 | I61: =IF(ISERROR(#REF!),0,#REF!) -> 0 | N61: -18758.43656 | O61: 11718.00707 | P61: -25929.73957 | Q61: 0 | R61: 0 | S61: 0 | T61: -14211.7325 | V61: 0 | W61: 0 | X61: 0 | Y61: 0 | Z61: 0 | AA61: 0 | AC61: 30476.44363 | AD61: -7171.303013 | AE61: 18758.43656 | AF61: 18758.43656 | AG61: 18758.43656 | AH61: 4546.704058 | AJ61: =IF(AND(AC60<=0,AC61>0,MIN(AC62:$AC$100)>=0),$B61-fy+1) -> FALSE | AK61: =IF(AND(AD60<=0,AD61>0,MIN(AD62:AD$100)>=0),$B61-fy+1) -> FALSE | AL61: =IF(AND(AE60<=0,AE61>0,MIN(AE62:AE$100)>=0),$B61-fy+1) -> FALSE | AM61: =IF(AND(AF60<=0,AF61>0,MIN(AF62:AF$100)>=0),$B61-fy+1) -> FALSE | AN61: =IF(AND(AG60<=0,AG61>0,MIN(AG62:AG$100)>=0),$B61-fy+1) -> FALSE | AO61: =IF(AND(AH60<=0,AH61>0,MIN(AH62:AH$100)>=0),$B61-fy+1) -> FALSE | AQ61: 40 years
B62: 2030 | D62: =IF(ISERROR(' I. S.Q. Own and Operate'!$A$1),0,' I. S.Q. Own and Operate'!BG20) -> 0 | E62: =IF(ISERROR('II. Proposal - Sell '!$A$1),0,'II. Proposal - Sell '!BG20) -> 0 | F62: =IF(ISERROR('III. Alt - Abandon in Place'!$A$1),0,'III. Alt - Abandon in Place'!BG20) -> 0 | G62: =IF(ISERROR(#REF!),0,#REF!) -> 0 | H62: =IF(ISERROR(#REF!),0,#REF!) -> 0 | I62: =IF(ISERROR(#REF!),0,#REF!) -> 0 | N62: -18758.43656 | O62: 11718.00707 | P62: -25929.73957 | Q62: 0 | R62: 0 | S62: 0 | T62: -14211.7325 | V62: 0 | W62: 0 | X62: 0 | Y62: 0 | Z62: 0 | AA62: 0 | AC62: 30476.44363 | AD62: -7171.303013 | AE62: 18758.43656 | AF62: 18758.43656 | AG62: 18758.43656 | AH62: 4546.704058 | AJ62: =IF(AND(AC61<=0,AC62>0,MIN(AC63:$AC$100)>=0),$B62-fy+1) -> FALSE | AK62: =IF(AND(AD61<=0,AD62>0,MIN(AD63:AD$100)>=0),$B62-fy+1) -> FALSE | AL62: =IF(AND(AE61<=0,AE62>0,MIN(AE63:AE$100)>=0),$B62-fy+1) -> FALSE | AM62: =IF(AND(AF61<=0,AF62>0,MIN(AF63:AF$100)>=0),$B62-fy+1) -> FALSE | AN62: =IF(AND(AG61<=0,AG62>0,MIN(AG63:AG$100)>=0),$B62-fy+1) -> FALSE | AO62: =IF(AND(AH61<=0,AH62>0,MIN(AH63:AH$100)>=0),$B62-fy+1) -> FALSE | AQ62: 39 years
B63: 2031 | D63: =IF(ISERROR(' I. S.Q. Own and Operate'!$A$1),0,' I. S.Q. Own and Operate'!BG21) -> 0 | E63: =IF(ISERROR('II. Proposal - Sell '!$A$1),0,'II. Proposal - Sell '!BG21) -> 0 | F63: =IF(ISERROR('III. Alt - Abandon in Place'!$A$1),0,'III. Alt - Abandon in Place'!BG21) -> 0 | G63: =IF(ISERROR(#REF!),0,#REF!) -> 0 | H63: =IF(ISERROR(#REF!),0,#REF!) -> 0 | I63: =IF(ISERROR(#REF!),0,#REF!) -> 0 | N63: -18758.43656 | O63: 11718.00707 | P63: -25929.73957 | Q63: 0 | R63: 0 | S63: 0 | T63: -14211.7325 | V63: 0 | W63: 0 | X63: 0 | Y63: 0 | Z63: 0 | AA63: 0 | AC63: 30476.44363 | AD63: -7171.303013 | AE63: 18758.43656 | AF63: 18758.43656 | AG63: 18758.43656 | AH63: 4546.704058 | AJ63: =IF(AND(AC62<=0,AC63>0,MIN(AC64:$AC$100)>=0),$B63-fy+1) -> FALSE | AK63: =IF(AND(AD62<=0,AD63>0,MIN(AD64:AD$100)>=0),$B63-fy+1) -> FALSE | AL63: =IF(AND(AE62<=0,AE63>0,MIN(AE64:AE$100)>=0),$B63-fy+1) -> FALSE | AM63: =IF(AND(AF62<=0,AF63>0,MIN(AF64:AF$100)>=0),$B63-fy+1) -> FALSE | AN63: =IF(AND(AG62<=0,AG63>0,MIN(AG64:AG$100)>=0),$B63-fy+1) -> FALSE | AO63: =IF(AND(AH62<=0,AH63>0,MIN(AH64:AH$100)>=0),$B63-fy+1) -> FALSE | AQ63: 38 years
B64: 2032 | D64: =IF(ISERROR(' I. S.Q. Own and Operate'!$A$1),0,' I. S.Q. Own and Operate'!BG22) -> 0 | E64: =IF(ISERROR('II. Proposal - Sell '!$A$1),0,'II. Proposal - Sell '!BG22) -> 0 | F64: =IF(ISERROR('III. Alt - Abandon in Place'!$A$1),0,'III. Alt - Abandon in Place'!BG22) -> 0 | G64: =IF(ISERROR(#REF!),0,#REF!) -> 0 | H64: =IF(ISERROR(#REF!),0,#REF!) -> 0 | I64: =IF(ISERROR(#REF!),0,#REF!) -> 0 | N64: -18758.43656 | O64: 11718.00707 | P64: -25929.73957 | Q64: 0 | R64: 0 | S64: 0 | T64: -14211.7325 | V64: 0 | W64: 0 | X64: 0 | Y64: 0 | Z64: 0 | AA64: 0 | AC64: 30476.44363 | AD64: -7171.303013 | AE64: 18758.43656 | AF64: 18758.43656 | AG64: 18758.43656 | AH64: 4546.704058 | AJ64: =IF(AND(AC63<=0,AC64>0,MIN(AC65:$AC$100)>=0),$B64-fy+1) -> FALSE | AK64: =IF(AND(AD63<=0,AD64>0,MIN(AD65:AD$100)>=0),$B64-fy+1) -> FALSE | AL64: =IF(AND(AE63<=0,AE64>0,MIN(AE65:AE$100)>=0),$B64-fy+1) -> FALSE | AM64: =IF(AND(AF63<=0,AF64>0,MIN(AF65:AF$100)>=0),$B64-fy+1) -> FALSE | AN64: =IF(AND(AG63<=0,AG64>0,MIN(AG65:AG$100)>=0),$B64-fy+1) -> FALSE | AO64: =IF(AND(AH63<=0,AH64>0,MIN(AH65:AH$100)>=0),$B64-fy+1) -> FALSE | AQ64: 37 years
B65: 2033 | D65: =IF(ISERROR(' I. S.Q. Own and Operate'!$A$1),0,' I. S.Q. Own and Operate'!BG23) -> 0 | E65: =IF(ISERROR('II. Proposal - Sell '!$A$1),0,'II. Proposal - Sell '!BG23) -> 0 | F65: =IF(ISERROR('III. Alt - Abandon in Place'!$A$1),0,'III. Alt - Abandon in Place'!BG23) -> 0 | G65: =IF(ISERROR(#REF!),0,#REF!) -> 0 | H65: =IF(ISERROR(#REF!),0,#REF!) -> 0 | I65: =IF(ISERROR(#REF!),0,#REF!) -> 0 | N65: -18758.43656 | O65: 11718.00707 | P65: -25929.73957 | Q65: 0 | R65: 0 | S65: 0 | T65: -14211.7325 | V65: 0 | W65: 0 | X65: 0 | Y65: 0 | Z65: 0 | AA65: 0 | AC65: 30476.44363 | AD65: -7171.303013 | AE65: 18758.43656 | AF65: 18758.43656 | AG65: 18758.43656 | AH65: 4546.704058 | AJ65: =IF(AND(AC64<=0,AC65>0,MIN(AC66:$AC$100)>=0),$B65-fy+1) -> FALSE | AK65: =IF(AND(AD64<=0,AD65>0,MIN(AD66:AD$100)>=0),$B65-fy+1) -> FALSE | AL65: =IF(AND(AE64<=0,AE65>0,MIN(AE66:AE$100)>=0),$B65-fy+1) -> FALSE | AM65: =IF(AND(AF64<=0,AF65>0,MIN(AF66:AF$100)>=0),$B65-fy+1) -> FALSE | AN65: =IF(AND(AG64<=0,AG65>0,MIN(AG66:AG$100)>=0),$B65-fy+1) -> FALSE | AO65: =IF(AND(AH64<=0,AH65>0,MIN(AH66:AH$100)>=0),$B65-fy+1) -> FALSE | AQ65: 36 years
B66: 2034 | D66: =IF(ISERROR(' I. S.Q. Own and Operate'!$A$1),0,' I. S.Q. Own and Operate'!BG24) -> 0 | E66: =IF(ISERROR('II. Proposal - Sell '!$A$1),0,'II. Proposal - Sell '!BG24) -> 0 | F66: =IF(ISERROR('III. Alt - Abandon in Place'!$A$1),0,'III. Alt - Abandon in Place'!BG24) -> 0 | G66: =IF(ISERROR(#REF!),0,#REF!) -> 0 | H66: =IF(ISERROR(#REF!),0,#REF!) -> 0 | I66: =IF(ISERROR(#REF!),0,#REF!) -> 0 | N66: -18758.43656 | O66: 11718.00707 | P66: -25929.73957 | Q66: 0 | R66: 0 | S66: 0 | T66: -14211.7325 | V66: 0 | W66: 0 | X66: 0 | Y66: 0 | Z66: 0 | AA66: 0 | AC66: 30476.44363 | AD66: =P66-$N66 -> -7171.303013 | AE66: =Q66-$N66 -> 18758.43656 | AF66: =R66-$N66 -> 18758.43656 | AG66: =S66-$N66 -> 18758.43656 | AH66: 4546.704058 | AJ66: =IF(AND(AC65<=0,AC66>0,MIN(AC67:$AC$100)>=0),$B66-fy+1) -> FALSE | AK66: =IF(AND(AD65<=0,AD66>0,MIN(AD67:AD$100)>=0),$B66-fy+1) -> FALSE | AL66: =IF(AND(AE65<=0,AE66>0,MIN(AE67:AE$100)>=0),$B66-fy+1) -> FALSE | AM66: =IF(AND(AF65<=0,AF66>0,MIN(AF67:AF$100)>=0),$B66-fy+1) -> FALSE | AN66: =IF(AND(AG65<=0,AG66>0,MIN(AG67:AG$100)>=0),$B66-fy+1) -> FALSE | AO66: =IF(AND(AH65<=0,AH66>0,MIN(AH67:AH$100)>=0),$B66-fy+1) -> FALSE | AQ66: 35 years
B67: 2035 | D67: =IF(ISERROR(' I. S.Q. Own and Operate'!$A$1),0,' I. S.Q. Own and Operate'!BG25) -> 0 | E67: =IF(ISERROR('II. Proposal - Sell '!$A$1),0,'II. Proposal - Sell '!BG25) -> 0 | F67: =IF(ISERROR('III. Alt - Abandon in Place'!$A$1),0,'III. Alt - Abandon in Place'!BG25) -> 0 | G67: =IF(ISERROR(#REF!),0,#REF!) -> 0 | H67: =IF(ISERROR(#REF!),0,#REF!) -> 0 | I67: =IF(ISERROR(#REF!),0,#REF!) -> 0 | N67: -18758.43656 | O67: 11718.00707 | P67: -25929.73957 | Q67: 0 | R67: 0 | S67: 0 | T67: -14211.7325 | V67: 0 | W67: 0 | X67: 0 | Y67: 0 | Z67: 0 | AA67: 0 | AC67: 30476.44363 | AD67: -7171.303013 | AE67: 18758.43656 | AF67: 18758.43656 | AG67: 18758.43656 | AH67: 4546.704058 | AJ67: =IF(AND(AC66<=0,AC67>0,MIN(AC68:$AC$100)>=0),$B67-fy+1) -> FALSE | AK67: =IF(AND(AD66<=0,AD67>0,MIN(AD68:AD$100)>=0),$B67-fy+1) -> FALSE | AL67: =IF(AND(AE66<=0,AE67>0,MIN(AE68:AE$100)>=0),$B67-fy+1) -> FALSE | AM67: =IF(AND(AF66<=0,AF67>0,MIN(AF68:AF$100)>=0),$B67-fy+1) -> FALSE | AN67: =IF(AND(AG66<=0,AG67>0,MIN(AG68:AG$100)>=0),$B67-fy+1) -> FALSE | AO67: =IF(AND(AH66<=0,AH67>0,MIN(AH68:AH$100)>=0),$B67-fy+1) -> FALSE | AQ67: 34 years
B68: 2036 | D68: =IF(ISERROR(' I. S.Q. Own and Operate'!$A$1),0,' I. S.Q. Own and Operate'!BG26) -> 0 | E68: =IF(ISERROR('II. Proposal - Sell '!$A$1),0,'II. Proposal - Sell '!BG26) -> 0 | F68: =IF(ISERROR('III. Alt - Abandon in Place'!$A$1),0,'III. Alt - Abandon in Place'!BG26) -> 0 | G68: =IF(ISERROR(#REF!),0,#REF!) -> 0 | H68: =IF(ISERROR(#REF!),0,#REF!) -> 0 | I68: =IF(ISERROR(#REF!),0,#REF!) -> 0 | N68: -18758.43656 | O68: 11718.00707 | P68: -25929.73957 | Q68: 0 | R68: 0 | S68: 0 | T68: -14211.7325 | V68: 0 | W68: 0 | X68: 0 | Y68: 0 | Z68: 0 | AA68: 0 | AC68: 30476.44363 | AD68: -7171.303013 | AE68: 18758.43656 | AF68: 18758.43656 | AG68: 18758.43656 | AH68: 4546.704058 | AJ68: =IF(AND(AC67<=0,AC68>0,MIN(AC69:$AC$100)>=0),$B68-fy+1) -> FALSE | AK68: =IF(AND(AD67<=0,AD68>0,MIN(AD69:AD$100)>=0),$B68-fy+1) -> FALSE | AL68: =IF(AND(AE67<=0,AE68>0,MIN(AE69:AE$100)>=0),$B68-fy+1) -> FALSE | AM68: =IF(AND(AF67<=0,AF68>0,MIN(AF69:AF$100)>=0),$B68-fy+1) -> FALSE | AN68: =IF(AND(AG67<=0,AG68>0,MIN(AG69:AG$100)>=0),$B68-fy+1) -> FALSE | AO68: =IF(AND(AH67<=0,AH68>0,MIN(AH69:AH$100)>=0),$B68-fy+1) -> FALSE | AQ68: 33 years
B69: 2037 | D69: =IF(ISERROR(' I. S.Q. Own and Operate'!$A$1),0,' I. S.Q. Own and Operate'!BG27) -> 0 | E69: =IF(ISERROR('II. Proposal - Sell '!$A$1),0,'II. Proposal - Sell '!BG27) -> 0 | F69: =IF(ISERROR('III. Alt - Abandon in Place'!$A$1),0,'III. Alt - Abandon in Place'!BG27) -> 0 | G69: =IF(ISERROR(#REF!),0,#REF!) -> 0 | H69: =IF(ISERROR(#REF!),0,#REF!) -> 0 | I69: =IF(ISERROR(#REF!),0,#REF!) -> 0 | N69: -18758.43656 | O69: 11718.00707 | P69: -25929.73957 | Q69: 0 | R69: 0 | S69: 0 | T69: -14211.7325 | V69: 0 | W69: 0 | X69: 0 | Y69: 0 | Z69: 0 | AA69: 0 | AC69: 30476.44363 | AD69: -7171.303013 | AE69: 18758.43656 | AF69: 18758.43656 | AG69: 18758.43656 | AH69: 4546.704058 | AJ69: =IF(AND(AC68<=0,AC69>0,MIN(AC70:$AC$100)>=0),$B69-fy+1) -> FALSE | AK69: =IF(AND(AD68<=0,AD69>0,MIN(AD70:AD$100)>=0),$B69-fy+1) -> FALSE | AL69: =IF(AND(AE68<=0,AE69>0,MIN(AE70:AE$100)>=0),$B69-fy+1) -> FALSE | AM69: =IF(AND(AF68<=0,AF69>0,MIN(AF70:AF$100)>=0),$B69-fy+1) -> FALSE | AN69: =IF(AND(AG68<=0,AG69>0,MIN(AG70:AG$100)>=0),$B69-fy+1) -> FALSE | AO69: =IF(AND(AH68<=0,AH69>0,MIN(AH70:AH$100)>=0),$B69-fy+1) -> FALSE | AQ69: 32 years
B70: 2038 | D70: =IF(ISERROR(' I. S.Q. Own and Operate'!$A$1),0,' I. S.Q. Own and Operate'!BG28) -> 0 | E70: =IF(ISERROR('II. Proposal - Sell '!$A$1),0,'II. Proposal - Sell '!BG28) -> 0 | F70: =IF(ISERROR('III. Alt - Abandon in Place'!$A$1),0,'III. Alt - Abandon in Place'!BG28) -> 0 | G70: =IF(ISERROR(#REF!),0,#REF!) -> 0 | H70: =IF(ISERROR(#REF!),0,#REF!) -> 0 | I70: =IF(ISERROR(#REF!),0,#REF!) -> 0 | N70: -18758.43656 | O70: 11718.00707 | P70: -25929.73957 | Q70: 0 | R70: 0 | S70: 0 | T70: -14211.7325 | V70: 0 | W70: 0 | X70: 0 | Y70: 0 | Z70: 0 | AA70: 0 | AC70: 30476.44363 | AD70: -7171.303013 | AE70: 18758.43656 | AF70: 18758.43656 | AG70: 18758.43656 | AH70: 4546.704058 | AJ70: =IF(AND(AC69<=0,AC70>0,MIN(AC71:$AC$100)>=0),$B70-fy+1) -> FALSE | AK70: =IF(AND(AD69<=0,AD70>0,MIN(AD71:AD$100)>=0),$B70-fy+1) -> FALSE | AL70: =IF(AND(AE69<=0,AE70>0,MIN(AE71:AE$100)>=0),$B70-fy+1) -> FALSE | AM70: =IF(AND(AF69<=0,AF70>0,MIN(AF71:AF$100)>=0),$B70-fy+1) -> FALSE | AN70: =IF(AND(AG69<=0,AG70>0,MIN(AG71:AG$100)>=0),$B70-fy+1) -> FALSE | AO70: =IF(AND(AH69<=0,AH70>0,MIN(AH71:AH$100)>=0),$B70-fy+1) -> FALSE | AQ70: 31 years
B71: 2039 | D71: =IF(ISERROR(' I. S.Q. Own and Operate'!$A$1),0,' I. S.Q. Own and Operate'!BG29) -> 0 | E71: =IF(ISERROR('II. Proposal - Sell '!$A$1),0,'II. Proposal - Sell '!BG29) -> 0 | F71: =IF(ISERROR('III. Alt - Abandon in Place'!$A$1),0,'III. Alt - Abandon in Place'!BG29) -> 0 | G71: =IF(ISERROR(#REF!),0,#REF!) -> 0 | H71: =IF(ISERROR(#REF!),0,#REF!) -> 0 | I71: =IF(ISERROR(#REF!),0,#REF!) -> 0 | N71: -18758.43656 | O71: 11718.00707 | P71: -25929.73957 | Q71: 0 | R71: 0 | S71: 0 | T71: -14211.7325 | V71: 0 | W71: 0 | X71: 0 | Y71: 0 | Z71: 0 | AA71: 0 | AC71: 30476.44363 | AD71: -7171.303013 | AE71: 18758.43656 | AF71: 18758.43656 | AG71: 18758.43656 | AH71: 4546.704058 | AJ71: =IF(AND(AC70<=0,AC71>0,MIN(AC72:$AC$100)>=0),$B71-fy+1) -> FALSE | AK71: =IF(AND(AD70<=0,AD71>0,MIN(AD72:AD$100)>=0),$B71-fy+1) -> FALSE | AL71: =IF(AND(AE70<=0,AE71>0,MIN(AE72:AE$100)>=0),$B71-fy+1) -> FALSE | AM71: =IF(AND(AF70<=0,AF71>0,MIN(AF72:AF$100)>=0),$B71-fy+1) -> FALSE | AN71: =IF(AND(AG70<=0,AG71>0,MIN(AG72:AG$100)>=0),$B71-fy+1) -> FALSE | AO71: =IF(AND(AH70<=0,AH71>0,MIN(AH72:AH$100)>=0),$B71-fy+1) -> FALSE | AQ71: 30 years
B72: 2040 | D72: =IF(ISERROR(' I. S.Q. Own and Operate'!$A$1),0,' I. S.Q. Own and Operate'!BG30) -> 0 | E72: =IF(ISERROR('II. Proposal - Sell '!$A$1),0,'II. Proposal - Sell '!BG30) -> 0 | F72: =IF(ISERROR('III. Alt - Abandon in Place'!$A$1),0,'III. Alt - Abandon in Place'!BG30) -> 0 | G72: =IF(ISERROR(#REF!),0,#REF!) -> 0 | H72: =IF(ISERROR(#REF!),0,#REF!) -> 0 | I72: =IF(ISERROR(#REF!),0,#REF!) -> 0 | N72: -18758.43656 | O72: 11718.00707 | P72: -25929.73957 | Q72: 0 | R72: 0 | S72: 0 | T72: -14211.7325 | V72: 0 | W72: 0 | X72: 0 | Y72: 0 | Z72: 0 | AA72: 0 | AC72: 30476.44363 | AD72: -7171.303013 | AE72: 18758.43656 | AF72: 18758.43656 | AG72: 18758.43656 | AH72: 4546.704058 | AJ72: =IF(AND(AC71<=0,AC72>0,MIN(AC73:$AC$100)>=0),$B72-fy+1) -> FALSE | AK72: =IF(AND(AD71<=0,AD72>0,MIN(AD73:AD$100)>=0),$B72-fy+1) -> FALSE | AL72: =IF(AND(AE71<=0,AE72>0,MIN(AE73:AE$100)>=0),$B72-fy+1) -> FALSE | AM72: =IF(AND(AF71<=0,AF72>0,MIN(AF73:AF$100)>=0),$B72-fy+1) -> FALSE | AN72: =IF(AND(AG71<=0,AG72>0,MIN(AG73:AG$100)>=0),$B72-fy+1) -> FALSE | AO72: =IF(AND(AH71<=0,AH72>0,MIN(AH73:AH$100)>=0),$B72-fy+1) -> FALSE | AQ72: 29 years
B73: 2041 | D73: =IF(ISERROR(' I. S.Q. Own and Operate'!$A$1),0,' I. S.Q. Own and Operate'!BG31) -> 0 | E73: =IF(ISERROR('II. Proposal - Sell '!$A$1),0,'II. Proposal - Sell '!BG31) -> 0 | F73: =IF(ISERROR('III. Alt - Abandon in Place'!$A$1),0,'III. Alt - Abandon in Place'!BG31) -> 0 | G73: =IF(ISERROR(#REF!),0,#REF!) -> 0 | H73: =IF(ISERROR(#REF!),0,#REF!) -> 0 | I73: =IF(ISERROR(#REF!),0,#REF!) -> 0 | N73: -18758.43656 | O73: 11718.00707 | P73: -25929.73957 | Q73: 0 | R73: 0 | S73: 0 | T73: -14211.7325 | V73: 0 | W73: 0 | X73: 0 | Y73: 0 | Z73: 0 | AA73: 0 | AC73: 30476.44363 | AD73: -7171.303013 | AE73: 18758.43656 | AF73: 18758.43656 | AG73: 18758.43656 | AH73: 4546.704058 | AJ73: =IF(AND(AC72<=0,AC73>0,MIN(AC74:$AC$100)>=0),$B73-fy+1) -> FALSE | AK73: =IF(AND(AD72<=0,AD73>0,MIN(AD74:AD$100)>=0),$B73-fy+1) -> FALSE | AL73: =IF(AND(AE72<=0,AE73>0,MIN(AE74:AE$100)>=0),$B73-fy+1) -> FALSE | AM73: =IF(AND(AF72<=0,AF73>0,MIN(AF74:AF$100)>=0),$B73-fy+1) -> FALSE | AN73: =IF(AND(AG72<=0,AG73>0,MIN(AG74:AG$100)>=0),$B73-fy+1) -> FALSE | AO73: =IF(AND(AH72<=0,AH73>0,MIN(AH74:AH$100)>=0),$B73-fy+1) -> FALSE | AQ73: 28 years
B74: 2042 | D74: =IF(ISERROR(' I. S.Q. Own and Operate'!$A$1),0,' I. S.Q. Own and Operate'!BG32) -> 0 | E74: =IF(ISERROR('II. Proposal - Sell '!$A$1),0,'II. Proposal - Sell '!BG32) -> 0 | F74: =IF(ISERROR('III. Alt - Abandon in Place'!$A$1),0,'III. Alt - Abandon in Place'!BG32) -> 0 | G74: =IF(ISERROR(#REF!),0,#REF!) -> 0 | H74: =IF(ISERROR(#REF!),0,#REF!) -> 0 | I74: =IF(ISERROR(#REF!),0,#REF!) -> 0 | N74: -18758.43656 | O74: 11718.00707 | P74: -25929.73957 | Q74: 0 | R74: 0 | S74: 0 | T74: -14211.7325 | V74: 0 | W74: 0 | X74: 0 | Y74: 0 | Z74: 0 | AA74: 0 | AC74: 30476.44363 | AD74: -7171.303013 | AE74: 18758.43656 | AF74: 18758.43656 | AG74: 18758.43656 | AH74: 4546.704058 | AJ74: =IF(AND(AC73<=0,AC74>0,MIN(AC75:$AC$100)>=0),$B74-fy+1) -> FALSE | AK74: =IF(AND(AD73<=0,AD74>0,MIN(AD75:AD$100)>=0),$B74-fy+1) -> FALSE | AL74: =IF(AND(AE73<=0,AE74>0,MIN(AE75:AE$100)>=0),$B74-fy+1) -> FALSE | AM74: =IF(AND(AF73<=0,AF74>0,MIN(AF75:AF$100)>=0),$B74-fy+1) -> FALSE | AN74: =IF(AND(AG73<=0,AG74>0,MIN(AG75:AG$100)>=0),$B74-fy+1) -> FALSE | AO74: =IF(AND(AH73<=0,AH74>0,MIN(AH75:AH$100)>=0),$B74-fy+1) -> FALSE | AQ74: 27 years
B75: =B74+1 -> 2043 | D75: =IF(ISERROR(' I. S.Q. Own and Operate'!$A$1),0,' I. S.Q. Own and Operate'!BG33) -> 0 | E75: =IF(ISERROR('II. Proposal - Sell '!$A$1),0,'II. Proposal - Sell '!BG33) -> 0 | F75: =IF(ISERROR('III. Alt - Abandon in Place'!$A$1),0,'III. Alt - Abandon in Place'!BG33) -> 0 | G75: =IF(ISERROR(#REF!),0,#REF!) -> 0 | H75: =IF(ISERROR(#REF!),0,#REF!) -> 0 | I75: =IF(ISERROR(#REF!),0,#REF!) -> 0 | N75: -18758.43656 | O75: 11718.00707 | P75: -25929.73957 | Q75: 0 | R75: 0 | S75: 0 | T75: -14211.7325 | V75: 0 | W75: 0 | X75: 0 | Y75: 0 | Z75: 0 | AA75: 0 | AC75: 30476.44363 | AD75: -7171.303013 | AE75: 18758.43656 | AF75: 18758.43656 | AG75: 18758.43656 | AH75: 4546.704058 | AJ75: =IF(AND(AC74<=0,AC75>0,MIN(AC76:$AC$100)>=0),$B75-fy+1) -> FALSE | AK75: =IF(AND(AD74<=0,AD75>0,MIN(AD76:AD$100)>=0),$B75-fy+1) -> FALSE | AL75: =IF(AND(AE74<=0,AE75>0,MIN(AE76:AE$100)>=0),$B75-fy+1) -> FALSE | AM75: =IF(AND(AF74<=0,AF75>0,MIN(AF76:AF$100)>=0),$B75-fy+1) -> FALSE | AN75: =IF(AND(AG74<=0,AG75>0,MIN(AG76:AG$100)>=0),$B75-fy+1) -> FALSE | AO75: =IF(AND(AH74<=0,AH75>0,MIN(AH76:AH$100)>=0),$B75-fy+1) -> FALSE | AQ75: 26 years
B76: 2044 | D76: =IF(ISERROR(' I. S.Q. Own and Operate'!$A$1),0,' I. S.Q. Own and Operate'!BG34) -> 0 | E76: =IF(ISERROR('II. Proposal - Sell '!$A$1),0,'II. Proposal - Sell '!BG34) -> 0 | F76: =IF(ISERROR('III. Alt - Abandon in Place'!$A$1),0,'III. Alt - Abandon in Place'!BG34) -> 0 | G76: =IF(ISERROR(#REF!),0,#REF!) -> 0 | H76: =IF(ISERROR(#REF!),0,#REF!) -> 0 | I76: =IF(ISERROR(#REF!),0,#REF!) -> 0 | N76: -18758.43656 | O76: 11718.00707 | P76: -25929.73957 | Q76: 0 | R76: 0 | S76: 0 | T76: -14211.7325 | V76: 0 | W76: 0 | X76: 0 | Y76: 0 | Z76: 0 | AA76: 0 | AC76: 30476.44363 | AD76: -7171.303013 | AE76: 18758.43656 | AF76: 18758.43656 | AG76: 18758.43656 | AH76: 4546.704058 | AJ76: =IF(AND(AC75<=0,AC76>0,MIN(AC77:$AC$100)>=0),$B76-fy+1) -> FALSE | AK76: =IF(AND(AD75<=0,AD76>0,MIN(AD77:AD$100)>=0),$B76-fy+1) -> FALSE | AL76: =IF(AND(AE75<=0,AE76>0,MIN(AE77:AE$100)>=0),$B76-fy+1) -> FALSE | AM76: =IF(AND(AF75<=0,AF76>0,MIN(AF77:AF$100)>=0),$B76-fy+1) -> FALSE | AN76: =IF(AND(AG75<=0,AG76>0,MIN(AG77:AG$100)>=0),$B76-fy+1) -> FALSE | AO76: =IF(AND(AH75<=0,AH76>0,MIN(AH77:AH$100)>=0),$B76-fy+1) -> FALSE | AQ76: 25 years
B77: 2045 | D77: =IF(ISERROR(' I. S.Q. Own and Operate'!$A$1),0,' I. S.Q. Own and Operate'!BG35) -> 0 | E77: =IF(ISERROR('II. Proposal - Sell '!$A$1),0,'II. Proposal - Sell '!BG35) -> 0 | F77: =IF(ISERROR('III. Alt - Abandon in Place'!$A$1),0,'III. Alt - Abandon in Place'!BG35) -> 0 | G77: =IF(ISERROR(#REF!),0,#REF!) -> 0 | H77: =IF(ISERROR(#REF!),0,#REF!) -> 0 | I77: =IF(ISERROR(#REF!),0,#REF!) -> 0 | N77: -18758.43656 | O77: 11718.00707 | P77: -25929.73957 | Q77: 0 | R77: 0 | S77: 0 | T77: -14211.7325 | V77: 0 | W77: 0 | X77: 0 | Y77: 0 | Z77: 0 | AA77: 0 | AC77: 30476.44363 | AD77: -7171.303013 | AE77: 18758.43656 | AF77: 18758.43656 | AG77: 18758.43656 | AH77: 4546.704058 | AJ77: =IF(AND(AC76<=0,AC77>0,MIN(AC78:$AC$100)>=0),$B77-fy+1) -> FALSE | AK77: =IF(AND(AD76<=0,AD77>0,MIN(AD78:AD$100)>=0),$B77-fy+1) -> FALSE | AL77: =IF(AND(AE76<=0,AE77>0,MIN(AE78:AE$100)>=0),$B77-fy+1) -> FALSE | AM77: =IF(AND(AF76<=0,AF77>0,MIN(AF78:AF$100)>=0),$B77-fy+1) -> FALSE | AN77: =IF(AND(AG76<=0,AG77>0,MIN(AG78:AG$100)>=0),$B77-fy+1) -> FALSE | AO77: =IF(AND(AH76<=0,AH77>0,MIN(AH78:AH$100)>=0),$B77-fy+1) -> FALSE | AQ77: 24 years
B78: 2046 | D78: =IF(ISERROR(' I. S.Q. Own and Operate'!$A$1),0,' I. S.Q. Own and Operate'!BG36) -> 0 | E78: =IF(ISERROR('II. Proposal - Sell '!$A$1),0,'II. Proposal - Sell '!BG36) -> 0 | F78: =IF(ISERROR('III. Alt - Abandon in Place'!$A$1),0,'III. Alt - Abandon in Place'!BG36) -> 0 | G78: =IF(ISERROR(#REF!),0,#REF!) -> 0 | H78: =IF(ISERROR(#REF!),0,#REF!) -> 0 | I78: =IF(ISERROR(#REF!),0,#REF!) -> 0 | N78: -18758.43656 | O78: 11718.00707 | P78: -25929.73957 | Q78: 0 | R78: 0 | S78: 0 | T78: -14211.7325 | V78: 0 | W78: 0 | X78: 0 | Y78: 0 | Z78: 0 | AA78: 0 | AC78: 30476.44363 | AD78: -7171.303013 | AE78: 18758.43656 | AF78: 18758.43656 | AG78: 18758.43656 | AH78: 4546.704058 | AJ78: =IF(AND(AC77<=0,AC78>0,MIN(AC79:$AC$100)>=0),$B78-fy+1) -> FALSE | AK78: =IF(AND(AD77<=0,AD78>0,MIN(AD79:AD$100)>=0),$B78-fy+1) -> FALSE | AL78: =IF(AND(AE77<=0,AE78>0,MIN(AE79:AE$100)>=0),$B78-fy+1) -> FALSE | AM78: =IF(AND(AF77<=0,AF78>0,MIN(AF79:AF$100)>=0),$B78-fy+1) -> FALSE | AN78: =IF(AND(AG77<=0,AG78>0,MIN(AG79:AG$100)>=0),$B78-fy+1) -> FALSE | AO78: =IF(AND(AH77<=0,AH78>0,MIN(AH79:AH$100)>=0),$B78-fy+1) -> FALSE | AQ78: 23 years
B79: 2047 | D79: =IF(ISERROR(' I. S.Q. Own and Operate'!$A$1),0,' I. S.Q. Own and Operate'!BG37) -> 0 | E79: =IF(ISERROR('II. Proposal - Sell '!$A$1),0,'II. Proposal - Sell '!BG37) -> 0 | F79: =IF(ISERROR('III. Alt - Abandon in Place'!$A$1),0,'III. Alt - Abandon in Place'!BG37) -> 0 | G79: =IF(ISERROR(#REF!),0,#REF!) -> 0 | H79: =IF(ISERROR(#REF!),0,#REF!) -> 0 | I79: =IF(ISERROR(#REF!),0,#REF!) -> 0 | N79: -18758.43656 | O79: 11718.00707 | P79: -25929.73957 | Q79: 0 | R79: 0 | S79: 0 | T79: -14211.7325 | V79: 0 | W79: 0 | X79: 0 | Y79: 0 | Z79: 0 | AA79: 0 | AC79: 30476.44363 | AD79: -7171.303013 | AE79: 18758.43656 | AF79: 18758.43656 | AG79: 18758.43656 | AH79: 4546.704058 | AJ79: =IF(AND(AC78<=0,AC79>0,MIN(AC100:$AC$100)>=0),$B79-fy+1) -> FALSE | AK79: =IF(AND(AD78<=0,AD79>0,MIN(AD100:AD$100)>=0),$B79-fy+1) -> FALSE | AL79: =IF(AND(AE78<=0,AE79>0,MIN(AE100:AE$100)>=0),$B79-fy+1) -> FALSE | AM79: =IF(AND(AF78<=0,AF79>0,MIN(AF100:AF$100)>=0),$B79-fy+1) -> FALSE | AN79: =IF(AND(AG78<=0,AG79>0,MIN(AG100:AG$100)>=0),$B79-fy+1) -> FALSE | AO79: =IF(AND(AH78<=0,AH79>0,MIN(AH100:AH$100)>=0),$B79-fy+1) -> FALSE | AQ79: 22 years
B80: 2048 | D80: =IF(ISERROR(' I. S.Q. Own and Operate'!$A$1),0,' I. S.Q. Own and Operate'!BG38) -> 0 | E80: =IF(ISERROR('II. Proposal - Sell '!$A$1),0,'II. Proposal - Sell '!BG38) -> 0 | F80: =IF(ISERROR('III. Alt - Abandon in Place'!$A$1),0,'III. Alt - Abandon in Place'!BG38) -> 0 | G80: =IF(ISERROR(#REF!),0,#REF!) -> 0 | H80: =IF(ISERROR(#REF!),0,#REF!) -> 0 | I80: =IF(ISERROR(#REF!),0,#REF!) -> 0 | N80: =N79+D80/(1+i)^($B80-fy+1) -> -18758.43656 | O80: =O79+E80/(1+i)^($B80-fy+1) -> 11718.00707 | P80: =P79+F80/(1+i)^($B80-fy+1) -> -25929.73957 | Q80: =Q79+G80/(1+i)^($B80-fy+1) -> 0 | R80: =R79+H80/(1+i)^($B80-fy+1) -> 0 | S80: =S79+I80/(1+i)^($B80-fy+1) -> 0 | T80: =SUM(O80:S80) -> -14211.7325 | V80: =E80-$D80 -> 0 | W80: =F80-$D80 -> 0 | X80: =G80-$D80 -> 0 | Y80: =H80-$D80 -> 0 | Z80: =I80-$D80 -> 0 | AA80: =SUM(E80:I80)-$D80 -> 0 | AC80: =O80-$N80 -> 30476.44363 | AD80: =P80-$N80 -> -7171.303013 | AE80: =Q80-$N80 -> 18758.43656 | AF80: =R80-$N80 -> 18758.43656 | AG80: =S80-$N80 -> 18758.43656 | AH80: =T80-$N80 -> 4546.704058 | AJ80: =IF(AND(AC79<=0,AC80>0,MIN(AC$100:$AC101)>=0),$B80-fy+1) -> FALSE | AK80: =IF(AND(AD79<=0,AD80>0,MIN(AD$100:AD101)>=0),$B80-fy+1) -> FALSE | AL80: =IF(AND(AE79<=0,AE80>0,MIN(AE$100:AE101)>=0),$B80-fy+1) -> FALSE | AM80: =IF(AND(AF79<=0,AF80>0,MIN(AF$100:AF101)>=0),$B80-fy+1) -> FALSE | AN80: =IF(AND(AG79<=0,AG80>0,MIN(AG$100:AG101)>=0),$B80-fy+1) -> FALSE | AO80: =IF(AND(AH79<=0,AH80>0,MIN(AH$100:AH101)>=0),$B80-fy+1) -> FALSE | AQ80: 21 years
B81: 2049 | D81: =IF(ISERROR(' I. S.Q. Own and Operate'!$A$1),0,' I. S.Q. Own and Operate'!BG39) -> 0 | E81: =IF(ISERROR('II. Proposal - Sell '!$A$1),0,'II. Proposal - Sell '!BG39) -> 0 | F81: =IF(ISERROR('III. Alt - Abandon in Place'!$A$1),0,'III. Alt - Abandon in Place'!BG39) -> 0 | G81: =IF(ISERROR(#REF!),0,#REF!) -> 0 | H81: =IF(ISERROR(#REF!),0,#REF!) -> 0 | I81: =IF(ISERROR(#REF!),0,#REF!) -> 0 | N81: -18758.43656 | O81: 11718.00707 | P81: -25929.73957 | Q81: 0 | R81: 0 | S81: 0 | T81: -14211.7325 | V81: 0 | W81: 0 | X81: 0 | Y81: 0 | Z81: 0 | AA81: 0 | AC81: 30476.44363 | AD81: -7171.303013 | AE81: 18758.43656 | AF81: 18758.43656 | AG81: 18758.43656 | AH81: 4546.704058 | AJ81: =IF(AND(AC80<=0,AC81>0,MIN(AC$100:$AC102)>=0),$B81-fy+1) -> FALSE | AK81: =IF(AND(AD80<=0,AD81>0,MIN(AD$100:AD102)>=0),$B81-fy+1) -> FALSE | AL81: =IF(AND(AE80<=0,AE81>0,MIN(AE$100:AE102)>=0),$B81-fy+1) -> FALSE | AM81: =IF(AND(AF80<=0,AF81>0,MIN(AF$100:AF102)>=0),$B81-fy+1) -> FALSE | AN81: =IF(AND(AG80<=0,AG81>0,MIN(AG$100:AG102)>=0),$B81-fy+1) -> FALSE | AO81: =IF(AND(AH80<=0,AH81>0,MIN(AH$100:AH102)>=0),$B81-fy+1) -> FALSE | AQ81: 20 years
B82: 2050 | D82: =IF(ISERROR(' I. S.Q. Own and Operate'!$A$1),0,' I. S.Q. Own and Operate'!BG40) -> 0 | E82: =IF(ISERROR('II. Proposal - Sell '!$A$1),0,'II. Proposal - Sell '!BG40) -> 0 | F82: =IF(ISERROR('III. Alt - Abandon in Place'!$A$1),0,'III. Alt - Abandon in Place'!BG40) -> 0 | G82: =IF(ISERROR(#REF!),0,#REF!) -> 0 | H82: =IF(ISERROR(#REF!),0,#REF!) -> 0 | I82: =IF(ISERROR(#REF!),0,#REF!) -> 0 | N82: -18758.43656 | O82: 11718.00707 | P82: -25929.73957 | Q82: 0 | R82: 0 | S82: 0 | T82: -14211.7325 | V82: 0 | W82: 0 | X82: 0 | Y82: 0 | Z82: 0 | AA82: 0 | AC82: 30476.44363 | AD82: -7171.303013 | AE82: 18758.43656 | AF82: 18758.43656 | AG82: 18758.43656 | AH82: 4546.704058 | AJ82: =IF(AND(AC81<=0,AC82>0,MIN(AC$100:$AC103)>=0),$B82-fy+1) -> FALSE | AK82: =IF(AND(AD81<=0,AD82>0,MIN(AD$100:AD103)>=0),$B82-fy+1) -> FALSE | AL82: =IF(AND(AE81<=0,AE82>0,MIN(AE$100:AE103)>=0),$B82-fy+1) -> FALSE | AM82: =IF(AND(AF81<=0,AF82>0,MIN(AF$100:AF103)>=0),$B82-fy+1) -> FALSE | AN82: =IF(AND(AG81<=0,AG82>0,MIN(AG$100:AG103)>=0),$B82-fy+1) -> FALSE | AO82: =IF(AND(AH81<=0,AH82>0,MIN(AH$100:AH103)>=0),$B82-fy+1) -> FALSE | AQ82: 19 years
B83: 2051 | D83: =IF(ISERROR(' I. S.Q. Own and Operate'!$A$1),0,' I. S.Q. Own and Operate'!BG41) -> 0 | E83: =IF(ISERROR('II. Proposal - Sell '!$A$1),0,'II. Proposal - Sell '!BG41) -> 0 | F83: =IF(ISERROR('III. Alt - Abandon in Place'!$A$1),0,'III. Alt - Abandon in Place'!BG41) -> 0 | G83: =IF(ISERROR(#REF!),0,#REF!) -> 0 | H83: =IF(ISERROR(#REF!),0,#REF!) -> 0 | I83: =IF(ISERROR(#REF!),0,#REF!) -> 0 | N83: -18758.43656 | O83: 11718.00707 | P83: -25929.73957 | Q83: 0 | R83: 0 | S83: 0 | T83: -14211.7325 | V83: 0 | W83: 0 | X83: 0 | Y83: 0 | Z83: 0 | AA83: 0 | AC83: 30476.44363 | AD83: -7171.303013 | AE83: 18758.43656 | AF83: 18758.43656 | AG83: 18758.43656 | AH83: 4546.704058 | AJ83: =IF(AND(AC82<=0,AC83>0,MIN(AC$100:$AC104)>=0),$B83-fy+1) -> FALSE | AK83: =IF(AND(AD82<=0,AD83>0,MIN(AD$100:AD104)>=0),$B83-fy+1) -> FALSE | AL83: =IF(AND(AE82<=0,AE83>0,MIN(AE$100:AE104)>=0),$B83-fy+1) -> FALSE | AM83: =IF(AND(AF82<=0,AF83>0,MIN(AF$100:AF104)>=0),$B83-fy+1) -> FALSE | AN83: =IF(AND(AG82<=0,AG83>0,MIN(AG$100:AG104)>=0),$B83-fy+1) -> FALSE | AO83: =IF(AND(AH82<=0,AH83>0,MIN(AH$100:AH104)>=0),$B83-fy+1) -> FALSE | AQ83: 18 years
B84: 2052 | D84: =IF(ISERROR(' I. S.Q. Own and Operate'!$A$1),0,' I. S.Q. Own and Operate'!BG42) -> 0 | E84: =IF(ISERROR('II. Proposal - Sell '!$A$1),0,'II. Proposal - Sell '!BG42) -> 0 | F84: =IF(ISERROR('III. Alt - Abandon in Place'!$A$1),0,'III. Alt - Abandon in Place'!BG42) -> 0 | G84: =IF(ISERROR(#REF!),0,#REF!) -> 0 | H84: =IF(ISERROR(#REF!),0,#REF!) -> 0 | I84: =IF(ISERROR(#REF!),0,#REF!) -> 0 | N84: -18758.43656 | O84: 11718.00707 | P84: -25929.73957 | Q84: 0 | R84: 0 | S84: 0 | T84: -14211.7325 | V84: 0 | W84: 0 | X84: 0 | Y84: 0 | Z84: 0 | AA84: 0 | AC84: 30476.44363 | AD84: -7171.303013 | AE84: 18758.43656 | AF84: 18758.43656 | AG84: 18758.43656 | AH84: 4546.704058 | AJ84: =IF(AND(AC83<=0,AC84>0,MIN(AC$100:$AC105)>=0),$B84-fy+1) -> FALSE | AK84: =IF(AND(AD83<=0,AD84>0,MIN(AD$100:AD105)>=0),$B84-fy+1) -> FALSE | AL84: =IF(AND(AE83<=0,AE84>0,MIN(AE$100:AE105)>=0),$B84-fy+1) -> FALSE | AM84: =IF(AND(AF83<=0,AF84>0,MIN(AF$100:AF105)>=0),$B84-fy+1) -> FALSE | AN84: =IF(AND(AG83<=0,AG84>0,MIN(AG$100:AG105)>=0),$B84-fy+1) -> FALSE | AO84: =IF(AND(AH83<=0,AH84>0,MIN(AH$100:AH105)>=0),$B84-fy+1) -> FALSE | AQ84: 17 years
B85: 2053 | D85: =IF(ISERROR(' I. S.Q. Own and Operate'!$A$1),0,' I. S.Q. Own and Operate'!BG43) -> 0 | E85: =IF(ISERROR('II. Proposal - Sell '!$A$1),0,'II. Proposal - Sell '!BG43) -> 0 | F85: =IF(ISERROR('III. Alt - Abandon in Place'!$A$1),0,'III. Alt - Abandon in Place'!BG43) -> 0 | G85: =IF(ISERROR(#REF!),0,#REF!) -> 0 | H85: =IF(ISERROR(#REF!),0,#REF!) -> 0 | I85: =IF(ISERROR(#REF!),0,#REF!) -> 0 | N85: -18758.43656 | O85: 11718.00707 | P85: -25929.73957 | Q85: 0 | R85: 0 | S85: 0 | T85: -14211.7325 | V85: 0 | W85: 0 | X85: 0 | Y85: 0 | Z85: 0 | AA85: 0 | AC85: 30476.44363 | AD85: -7171.303013 | AE85: 18758.43656 | AF85: 18758.43656 | AG85: 18758.43656 | AH85: 4546.704058 | AJ85: =IF(AND(AC84<=0,AC85>0,MIN(AC$100:$AC106)>=0),$B85-fy+1) -> FALSE | AK85: =IF(AND(AD84<=0,AD85>0,MIN(AD$100:AD106)>=0),$B85-fy+1) -> FALSE | AL85: =IF(AND(AE84<=0,AE85>0,MIN(AE$100:AE106)>=0),$B85-fy+1) -> FALSE | AM85: =IF(AND(AF84<=0,AF85>0,MIN(AF$100:AF106)>=0),$B85-fy+1) -> FALSE | AN85: =IF(AND(AG84<=0,AG85>0,MIN(AG$100:AG106)>=0),$B85-fy+1) -> FALSE | AO85: =IF(AND(AH84<=0,AH85>0,MIN(AH$100:AH106)>=0),$B85-fy+1) -> FALSE | AQ85: 16 years
B86: 2054 | D86: =IF(ISERROR(' I. S.Q. Own and Operate'!$A$1),0,' I. S.Q. Own and Operate'!BG44) -> 0 | E86: =IF(ISERROR('II. Proposal - Sell '!$A$1),0,'II. Proposal - Sell '!BG44) -> 0 | F86: =IF(ISERROR('III. Alt - Abandon in Place'!$A$1),0,'III. Alt - Abandon in Place'!BG44) -> 0 | G86: =IF(ISERROR(#REF!),0,#REF!) -> 0 | H86: =IF(ISERROR(#REF!),0,#REF!) -> 0 | I86: =IF(ISERROR(#REF!),0,#REF!) -> 0 | N86: -18758.43656 | O86: 11718.00707 | P86: -25929.73957 | Q86: 0 | R86: 0 | S86: 0 | T86: -14211.7325 | V86: 0 | W86: 0 | X86: 0 | Y86: 0 | Z86: 0 | AA86: 0 | AC86: 30476.44363 | AD86: -7171.303013 | AE86: 18758.43656 | AF86: 18758.43656 | AG86: 18758.43656 | AH86: 4546.704058 | AJ86: =IF(AND(AC85<=0,AC86>0,MIN(AC$100:$AC107)>=0),$B86-fy+1) -> FALSE | AK86: =IF(AND(AD85<=0,AD86>0,MIN(AD$100:AD107)>=0),$B86-fy+1) -> FALSE | AL86: =IF(AND(AE85<=0,AE86>0,MIN(AE$100:AE107)>=0),$B86-fy+1) -> FALSE | AM86: =IF(AND(AF85<=0,AF86>0,MIN(AF$100:AF107)>=0),$B86-fy+1) -> FALSE | AN86: =IF(AND(AG85<=0,AG86>0,MIN(AG$100:AG107)>=0),$B86-fy+1) -> FALSE | AO86: =IF(AND(AH85<=0,AH86>0,MIN(AH$100:AH107)>=0),$B86-fy+1) -> FALSE | AQ86: 15 years
B87: 2055 | D87: =IF(ISERROR(' I. S.Q. Own and Operate'!$A$1),0,' I. S.Q. Own and Operate'!BG45) -> 0 | E87: =IF(ISERROR('II. Proposal - Sell '!$A$1),0,'II. Proposal - Sell '!BG45) -> 0 | F87: =IF(ISERROR('III. Alt - Abandon in Place'!$A$1),0,'III. Alt - Abandon in Place'!BG45) -> 0 | G87: =IF(ISERROR(#REF!),0,#REF!) -> 0 | H87: =IF(ISERROR(#REF!),0,#REF!) -> 0 | I87: =IF(ISERROR(#REF!),0,#REF!) -> 0 | N87: -18758.43656 | O87: 11718.00707 | P87: -25929.73957 | Q87: 0 | R87: 0 | S87: 0 | T87: -14211.7325 | V87: 0 | W87: 0 | X87: 0 | Y87: 0 | Z87: 0 | AA87: 0 | AC87: 30476.44363 | AD87: -7171.303013 | AE87: 18758.43656 | AF87: 18758.43656 | AG87: 18758.43656 | AH87: 4546.704058 | AJ87: =IF(AND(AC86<=0,AC87>0,MIN(AC$100:$AC108)>=0),$B87-fy+1) -> FALSE | AK87: =IF(AND(AD86<=0,AD87>0,MIN(AD$100:AD108)>=0),$B87-fy+1) -> FALSE | AL87: =IF(AND(AE86<=0,AE87>0,MIN(AE$100:AE108)>=0),$B87-fy+1) -> FALSE | AM87: =IF(AND(AF86<=0,AF87>0,MIN(AF$100:AF108)>=0),$B87-fy+1) -> FALSE | AN87: =IF(AND(AG86<=0,AG87>0,MIN(AG$100:AG108)>=0),$B87-fy+1) -> FALSE | AO87: =IF(AND(AH86<=0,AH87>0,MIN(AH$100:AH108)>=0),$B87-fy+1) -> FALSE | AQ87: 14 years
B88: 2056 | D88: =IF(ISERROR(' I. S.Q. Own and Operate'!$A$1),0,' I. S.Q. Own and Operate'!BG46) -> 0 | E88: =IF(ISERROR('II. Proposal - Sell '!$A$1),0,'II. Proposal - Sell '!BG46) -> 0 | F88: =IF(ISERROR('III. Alt - Abandon in Place'!$A$1),0,'III. Alt - Abandon in Place'!BG46) -> 0 | G88: =IF(ISERROR(#REF!),0,#REF!) -> 0 | H88: =IF(ISERROR(#REF!),0,#REF!) -> 0 | I88: =IF(ISERROR(#REF!),0,#REF!) -> 0 | N88: -18758.43656 | O88: 11718.00707 | P88: -25929.73957 | Q88: 0 | R88: 0 | S88: 0 | T88: -14211.7325 | V88: 0 | W88: 0 | X88: 0 | Y88: 0 | Z88: 0 | AA88: 0 | AC88: 30476.44363 | AD88: -7171.303013 | AE88: 18758.43656 | AF88: 18758.43656 | AG88: 18758.43656 | AH88: 4546.704058 | AJ88: =IF(AND(AC87<=0,AC88>0,MIN(AC$100:$AC109)>=0),$B88-fy+1) -> FALSE | AK88: =IF(AND(AD87<=0,AD88>0,MIN(AD$100:AD109)>=0),$B88-fy+1) -> FALSE | AL88: =IF(AND(AE87<=0,AE88>0,MIN(AE$100:AE109)>=0),$B88-fy+1) -> FALSE | AM88: =IF(AND(AF87<=0,AF88>0,MIN(AF$100:AF109)>=0),$B88-fy+1) -> FALSE | AN88: =IF(AND(AG87<=0,AG88>0,MIN(AG$100:AG109)>=0),$B88-fy+1) -> FALSE | AO88: =IF(AND(AH87<=0,AH88>0,MIN(AH$100:AH109)>=0),$B88-fy+1) -> FALSE | AQ88: 13 years
B89: 2057 | D89: =IF(ISERROR(' I. S.Q. Own and Operate'!$A$1),0,' I. S.Q. Own and Operate'!BG47) -> 0 | E89: =IF(ISERROR('II. Proposal - Sell '!$A$1),0,'II. Proposal - Sell '!BG47) -> 0 | F89: =IF(ISERROR('III. Alt - Abandon in Place'!$A$1),0,'III. Alt - Abandon in Place'!BG47) -> 0 | G89: =IF(ISERROR(#REF!),0,#REF!) -> 0 | H89: =IF(ISERROR(#REF!),0,#REF!) -> 0 | I89: =IF(ISERROR(#REF!),0,#REF!) -> 0 | N89: -18758.43656 | O89: 11718.00707 | P89: -25929.73957 | Q89: 0 | R89: 0 | S89: 0 | T89: -14211.7325 | V89: 0 | W89: 0 | X89: 0 | Y89: 0 | Z89: 0 | AA89: 0 | AC89: 30476.44363 | AD89: -7171.303013 | AE89: 18758.43656 | AF89: 18758.43656 | AG89: 18758.43656 | AH89: 4546.704058 | AJ89: =IF(AND(AC88<=0,AC89>0,MIN(AC$100:$AC110)>=0),$B89-fy+1) -> FALSE | AK89: =IF(AND(AD88<=0,AD89>0,MIN(AD$100:AD110)>=0),$B89-fy+1) -> FALSE | AL89: =IF(AND(AE88<=0,AE89>0,MIN(AE$100:AE110)>=0),$B89-fy+1) -> FALSE | AM89: =IF(AND(AF88<=0,AF89>0,MIN(AF$100:AF110)>=0),$B89-fy+1) -> FALSE | AN89: =IF(AND(AG88<=0,AG89>0,MIN(AG$100:AG110)>=0),$B89-fy+1) -> FALSE | AO89: =IF(AND(AH88<=0,AH89>0,MIN(AH$100:AH110)>=0),$B89-fy+1) -> FALSE | AQ89: 12 years
B90: 2058 | D90: =IF(ISERROR(' I. S.Q. Own and Operate'!$A$1),0,' I. S.Q. Own and Operate'!BG48) -> 0 | E90: =IF(ISERROR('II. Proposal - Sell '!$A$1),0,'II. Proposal - Sell '!BG48) -> 0 | F90: =IF(ISERROR('III. Alt - Abandon in Place'!$A$1),0,'III. Alt - Abandon in Place'!BG48) -> 0 | G90: =IF(ISERROR(#REF!),0,#REF!) -> 0 | H90: =IF(ISERROR(#REF!),0,#REF!) -> 0 | I90: =IF(ISERROR(#REF!),0,#REF!) -> 0 | N90: -18758.43656 | O90: 11718.00707 | P90: -25929.73957 | Q90: 0 | R90: 0 | S90: 0 | T90: -14211.7325 | V90: 0 | W90: 0 | X90: 0 | Y90: 0 | Z90: 0 | AA90: 0 | AC90: 30476.44363 | AD90: -7171.303013 | AE90: 18758.43656 | AF90: 18758.43656 | AG90: 18758.43656 | AH90: 4546.704058 | AJ90: =IF(AND(AC89<=0,AC90>0,MIN(AC$100:$AC111)>=0),$B90-fy+1) -> FALSE | AK90: =IF(AND(AD89<=0,AD90>0,MIN(AD$100:AD111)>=0),$B90-fy+1) -> FALSE | AL90: =IF(AND(AE89<=0,AE90>0,MIN(AE$100:AE111)>=0),$B90-fy+1) -> FALSE | AM90: =IF(AND(AF89<=0,AF90>0,MIN(AF$100:AF111)>=0),$B90-fy+1) -> FALSE | AN90: =IF(AND(AG89<=0,AG90>0,MIN(AG$100:AG111)>=0),$B90-fy+1) -> FALSE | AO90: =IF(AND(AH89<=0,AH90>0,MIN(AH$100:AH111)>=0),$B90-fy+1) -> FALSE | AQ90: 11 years
B91: 2059 | D91: =IF(ISERROR(' I. S.Q. Own and Operate'!$A$1),0,' I. S.Q. Own and Operate'!BG49) -> 0 | E91: =IF(ISERROR('II. Proposal - Sell '!$A$1),0,'II. Proposal - Sell '!BG49) -> 0 | F91: =IF(ISERROR('III. Alt - Abandon in Place'!$A$1),0,'III. Alt - Abandon in Place'!BG49) -> 0 | G91: =IF(ISERROR(#REF!),0,#REF!) -> 0 | H91: =IF(ISERROR(#REF!),0,#REF!) -> 0 | I91: =IF(ISERROR(#REF!),0,#REF!) -> 0 | N91: -18758.43656 | O91: 11718.00707 | P91: -25929.73957 | Q91: 0 | R91: 0 | S91: 0 | T91: -14211.7325 | V91: 0 | W91: 0 | X91: 0 | Y91: 0 | Z91: 0 | AA91: 0 | AC91: 30476.44363 | AD91: -7171.303013 | AE91: 18758.43656 | AF91: 18758.43656 | AG91: 18758.43656 | AH91: 4546.704058 | AJ91: =IF(AND(AC90<=0,AC91>0,MIN(AC$100:$AC112)>=0),$B91-fy+1) -> FALSE | AK91: =IF(AND(AD90<=0,AD91>0,MIN(AD$100:AD112)>=0),$B91-fy+1) -> FALSE | AL91: =IF(AND(AE90<=0,AE91>0,MIN(AE$100:AE112)>=0),$B91-fy+1) -> FALSE | AM91: =IF(AND(AF90<=0,AF91>0,MIN(AF$100:AF112)>=0),$B91-fy+1) -> FALSE | AN91: =IF(AND(AG90<=0,AG91>0,MIN(AG$100:AG112)>=0),$B91-fy+1) -> FALSE | AO91: =IF(AND(AH90<=0,AH91>0,MIN(AH$100:AH112)>=0),$B91-fy+1) -> FALSE | AQ91: 10 years
B92: 2060 | D92: =IF(ISERROR(' I. S.Q. Own and Operate'!$A$1),0,' I. S.Q. Own and Operate'!BG50) -> 0 | E92: =IF(ISERROR('II. Proposal - Sell '!$A$1),0,'II. Proposal - Sell '!BG50) -> 0 | F92: =IF(ISERROR('III. Alt - Abandon in Place'!$A$1),0,'III. Alt - Abandon in Place'!BG50) -> 0 | G92: =IF(ISERROR(#REF!),0,#REF!) -> 0 | H92: =IF(ISERROR(#REF!),0,#REF!) -> 0 | I92: =IF(ISERROR(#REF!),0,#REF!) -> 0 | N92: -18758.43656 | O92: 11718.00707 | P92: -25929.73957 | Q92: 0 | R92: 0 | S92: 0 | T92: -14211.7325 | V92: 0 | W92: 0 | X92: 0 | Y92: 0 | Z92: 0 | AA92: 0 | AC92: 30476.44363 | AD92: -7171.303013 | AE92: 18758.43656 | AF92: 18758.43656 | AG92: 18758.43656 | AH92: 4546.704058 | AJ92: =IF(AND(AC91<=0,AC92>0,MIN(AC$100:$AC113)>=0),$B92-fy+1) -> FALSE | AK92: =IF(AND(AD91<=0,AD92>0,MIN(AD$100:AD113)>=0),$B92-fy+1) -> FALSE | AL92: =IF(AND(AE91<=0,AE92>0,MIN(AE$100:AE113)>=0),$B92-fy+1) -> FALSE | AM92: =IF(AND(AF91<=0,AF92>0,MIN(AF$100:AF113)>=0),$B92-fy+1) -> FALSE | AN92: =IF(AND(AG91<=0,AG92>0,MIN(AG$100:AG113)>=0),$B92-fy+1) -> FALSE | AO92: =IF(AND(AH91<=0,AH92>0,MIN(AH$100:AH113)>=0),$B92-fy+1) -> FALSE | AQ92: 9 years
B93: 2061 | D93: =IF(ISERROR(' I. S.Q. Own and Operate'!$A$1),0,' I. S.Q. Own and Operate'!BG51) -> 0 | E93: =IF(ISERROR('II. Proposal - Sell '!$A$1),0,'II. Proposal - Sell '!BG51) -> 0 | F93: =IF(ISERROR('III. Alt - Abandon in Place'!$A$1),0,'III. Alt - Abandon in Place'!BG51) -> 0 | G93: =IF(ISERROR(#REF!),0,#REF!) -> 0 | H93: =IF(ISERROR(#REF!),0,#REF!) -> 0 | I93: =IF(ISERROR(#REF!),0,#REF!) -> 0 | N93: -18758.43656 | O93: 11718.00707 | P93: -25929.73957 | Q93: 0 | R93: 0 | S93: 0 | T93: -14211.7325 | V93: 0 | W93: 0 | X93: 0 | Y93: 0 | Z93: 0 | AA93: 0 | AC93: 30476.44363 | AD93: -7171.303013 | AE93: 18758.43656 | AF93: 18758.43656 | AG93: 18758.43656 | AH93: 4546.704058 | AJ93: =IF(AND(AC92<=0,AC93>0,MIN(AC$100:$AC114)>=0),$B93-fy+1) -> FALSE | AK93: =IF(AND(AD92<=0,AD93>0,MIN(AD$100:AD114)>=0),$B93-fy+1) -> FALSE | AL93: =IF(AND(AE92<=0,AE93>0,MIN(AE$100:AE114)>=0),$B93-fy+1) -> FALSE | AM93: =IF(AND(AF92<=0,AF93>0,MIN(AF$100:AF114)>=0),$B93-fy+1) -> FALSE | AN93: =IF(AND(AG92<=0,AG93>0,MIN(AG$100:AG114)>=0),$B93-fy+1) -> FALSE | AO93: =IF(AND(AH92<=0,AH93>0,MIN(AH$100:AH114)>=0),$B93-fy+1) -> FALSE | AQ93: 8 years
B94: 2062 | D94: =IF(ISERROR(' I. S.Q. Own and Operate'!$A$1),0,' I. S.Q. Own and Operate'!BG52) -> 0 | E94: =IF(ISERROR('II. Proposal - Sell '!$A$1),0,'II. Proposal - Sell '!BG52) -> 0 | F94: =IF(ISERROR('III. Alt - Abandon in Place'!$A$1),0,'III. Alt - Abandon in Place'!BG52) -> 0 | G94: =IF(ISERROR(#REF!),0,#REF!) -> 0 | H94: =IF(ISERROR(#REF!),0,#REF!) -> 0 | I94: =IF(ISERROR(#REF!),0,#REF!) -> 0 | N94: -18758.43656 | O94: 11718.00707 | P94: -25929.73957 | Q94: 0 | R94: 0 | S94: 0 | T94: -14211.7325 | V94: 0 | W94: 0 | X94: 0 | Y94: 0 | Z94: 0 | AA94: 0 | AC94: 30476.44363 | AD94: -7171.303013 | AE94: 18758.43656 | AF94: 18758.43656 | AG94: 18758.43656 | AH94: 4546.704058 | AJ94: =IF(AND(AC93<=0,AC94>0,MIN(AC$100:$AC115)>=0),$B94-fy+1) -> FALSE | AK94: =IF(AND(AD93<=0,AD94>0,MIN(AD$100:AD115)>=0),$B94-fy+1) -> FALSE | AL94: =IF(AND(AE93<=0,AE94>0,MIN(AE$100:AE115)>=0),$B94-fy+1) -> FALSE | AM94: =IF(AND(AF93<=0,AF94>0,MIN(AF$100:AF115)>=0),$B94-fy+1) -> FALSE | AN94: =IF(AND(AG93<=0,AG94>0,MIN(AG$100:AG115)>=0),$B94-fy+1) -> FALSE | AO94: =IF(AND(AH93<=0,AH94>0,MIN(AH$100:AH115)>=0),$B94-fy+1) -> FALSE | AQ94: 7 years
B95: 2063 | D95: =IF(ISERROR(' I. S.Q. Own and Operate'!$A$1),0,' I. S.Q. Own and Operate'!BG53) -> 0 | E95: =IF(ISERROR('II. Proposal - Sell '!$A$1),0,'II. Proposal - Sell '!BG53) -> 0 | F95: =IF(ISERROR('III. Alt - Abandon in Place'!$A$1),0,'III. Alt - Abandon in Place'!BG53) -> 0 | G95: =IF(ISERROR(#REF!),0,#REF!) -> 0 | H95: =IF(ISERROR(#REF!),0,#REF!) -> 0 | I95: =IF(ISERROR(#REF!),0,#REF!) -> 0 | N95: -18758.43656 | O95: 11718.00707 | P95: -25929.73957 | Q95: 0 | R95: 0 | S95: 0 | T95: -14211.7325 | V95: 0 | W95: 0 | X95: 0 | Y95: 0 | Z95: 0 | AA95: 0 | AC95: 30476.44363 | AD95: -7171.303013 | AE95: 18758.43656 | AF95: 18758.43656 | AG95: 18758.43656 | AH95: 4546.704058 | AJ95: =IF(AND(AC94<=0,AC95>0,MIN(AC$100:$AC116)>=0),$B95-fy+1) -> FALSE | AK95: =IF(AND(AD94<=0,AD95>0,MIN(AD$100:AD116)>=0),$B95-fy+1) -> FALSE | AL95: =IF(AND(AE94<=0,AE95>0,MIN(AE$100:AE116)>=0),$B95-fy+1) -> FALSE | AM95: =IF(AND(AF94<=0,AF95>0,MIN(AF$100:AF116)>=0),$B95-fy+1) -> FALSE | AN95: =IF(AND(AG94<=0,AG95>0,MIN(AG$100:AG116)>=0),$B95-fy+1) -> FALSE | AO95: =IF(AND(AH94<=0,AH95>0,MIN(AH$100:AH116)>=0),$B95-fy+1) -> FALSE | AQ95: 6 years
B96: 2064 | D96: =IF(ISERROR(' I. S.Q. Own and Operate'!$A$1),0,' I. S.Q. Own and Operate'!BG54) -> 0 | E96: =IF(ISERROR('II. Proposal - Sell '!$A$1),0,'II. Proposal - Sell '!BG54) -> 0 | F96: =IF(ISERROR('III. Alt - Abandon in Place'!$A$1),0,'III. Alt - Abandon in Place'!BG54) -> 0 | G96: =IF(ISERROR(#REF!),0,#REF!) -> 0 | H96: =IF(ISERROR(#REF!),0,#REF!) -> 0 | I96: =IF(ISERROR(#REF!),0,#REF!) -> 0 | N96: -18758.43656 | O96: 11718.00707 | P96: -25929.73957 | Q96: 0 | R96: 0 | S96: 0 | T96: -14211.7325 | V96: 0 | W96: 0 | X96: 0 | Y96: 0 | Z96: 0 | AA96: 0 | AC96: 30476.44363 | AD96: -7171.303013 | AE96: 18758.43656 | AF96: 18758.43656 | AG96: 18758.43656 | AH96: 4546.704058 | AJ96: =IF(AND(AC95<=0,AC96>0,MIN(AC$100:$AC117)>=0),$B96-fy+1) -> FALSE | AK96: =IF(AND(AD95<=0,AD96>0,MIN(AD$100:AD117)>=0),$B96-fy+1) -> FALSE | AL96: =IF(AND(AE95<=0,AE96>0,MIN(AE$100:AE117)>=0),$B96-fy+1) -> FALSE | AM96: =IF(AND(AF95<=0,AF96>0,MIN(AF$100:AF117)>=0),$B96-fy+1) -> FALSE | AN96: =IF(AND(AG95<=0,AG96>0,MIN(AG$100:AG117)>=0),$B96-fy+1) -> FALSE | AO96: =IF(AND(AH95<=0,AH96>0,MIN(AH$100:AH117)>=0),$B96-fy+1) -> FALSE | AQ96: 5 years
B97: 2065 | D97: =IF(ISERROR(' I. S.Q. Own and Operate'!$A$1),0,' I. S.Q. Own and Operate'!BG55) -> 0 | E97: =IF(ISERROR('II. Proposal - Sell '!$A$1),0,'II. Proposal - Sell '!BG55) -> 0 | F97: =IF(ISERROR('III. Alt - Abandon in Place'!$A$1),0,'III. Alt - Abandon in Place'!BG55) -> 0 | G97: =IF(ISERROR(#REF!),0,#REF!) -> 0 | H97: =IF(ISERROR(#REF!),0,#REF!) -> 0 | I97: =IF(ISERROR(#REF!),0,#REF!) -> 0 | N97: -18758.43656 | O97: 11718.00707 | P97: -25929.73957 | Q97: 0 | R97: 0 | S97: 0 | T97: -14211.7325 | V97: 0 | W97: 0 | X97: 0 | Y97: 0 | Z97: 0 | AA97: 0 | AC97: 30476.44363 | AD97: -7171.303013 | AE97: 18758.43656 | AF97: 18758.43656 | AG97: 18758.43656 | AH97: 4546.704058 | AJ97: =IF(AND(AC96<=0,AC97>0,MIN(AC$100:$AC118)>=0),$B97-fy+1) -> FALSE | AK97: =IF(AND(AD96<=0,AD97>0,MIN(AD$100:AD118)>=0),$B97-fy+1) -> FALSE | AL97: =IF(AND(AE96<=0,AE97>0,MIN(AE$100:AE118)>=0),$B97-fy+1) -> FALSE | AM97: =IF(AND(AF96<=0,AF97>0,MIN(AF$100:AF118)>=0),$B97-fy+1) -> FALSE | AN97: =IF(AND(AG96<=0,AG97>0,MIN(AG$100:AG118)>=0),$B97-fy+1) -> FALSE | AO97: =IF(AND(AH96<=0,AH97>0,MIN(AH$100:AH118)>=0),$B97-fy+1) -> FALSE | AQ97: 4 years
B98: 2066 | D98: =IF(ISERROR(' I. S.Q. Own and Operate'!$A$1),0,' I. S.Q. Own and Operate'!BG56) -> 0 | E98: =IF(ISERROR('II. Proposal - Sell '!$A$1),0,'II. Proposal - Sell '!BG56) -> 0 | F98: =IF(ISERROR('III. Alt - Abandon in Place'!$A$1),0,'III. Alt - Abandon in Place'!BG56) -> 0 | G98: =IF(ISERROR(#REF!),0,#REF!) -> 0 | H98: =IF(ISERROR(#REF!),0,#REF!) -> 0 | I98: =IF(ISERROR(#REF!),0,#REF!) -> 0 | N98: -18758.43656 | O98: 11718.00707 | P98: -25929.73957 | Q98: 0 | R98: 0 | S98: 0 | T98: -14211.7325 | V98: 0 | W98: 0 | X98: 0 | Y98: 0 | Z98: 0 | AA98: 0 | AC98: 30476.44363 | AD98: -7171.303013 | AE98: 18758.43656 | AF98: 18758.43656 | AG98: 18758.43656 | AH98: 4546.704058 | AJ98: =IF(AND(AC97<=0,AC98>0,MIN(AC$100:$AC119)>=0),$B98-fy+1) -> FALSE | AK98: =IF(AND(AD97<=0,AD98>0,MIN(AD$100:AD119)>=0),$B98-fy+1) -> FALSE | AL98: =IF(AND(AE97<=0,AE98>0,MIN(AE$100:AE119)>=0),$B98-fy+1) -> FALSE | AM98: =IF(AND(AF97<=0,AF98>0,MIN(AF$100:AF119)>=0),$B98-fy+1) -> FALSE | AN98: =IF(AND(AG97<=0,AG98>0,MIN(AG$100:AG119)>=0),$B98-fy+1) -> FALSE | AO98: =IF(AND(AH97<=0,AH98>0,MIN(AH$100:AH119)>=0),$B98-fy+1) -> FALSE | AQ98: 3 years
B99: 2067 | D99: =IF(ISERROR(' I. S.Q. Own and Operate'!$A$1),0,' I. S.Q. Own and Operate'!BG57) -> 0 | E99: =IF(ISERROR('II. Proposal - Sell '!$A$1),0,'II. Proposal - Sell '!BG57) -> 0 | F99: =IF(ISERROR('III. Alt - Abandon in Place'!$A$1),0,'III. Alt - Abandon in Place'!BG57) -> 0 | G99: =IF(ISERROR(#REF!),0,#REF!) -> 0 | H99: =IF(ISERROR(#REF!),0,#REF!) -> 0 | I99: =IF(ISERROR(#REF!),0,#REF!) -> 0 | N99: -18758.43656 | O99: 11718.00707 | P99: -25929.73957 | Q99: 0 | R99: 0 | S99: 0 | T99: -14211.7325 | V99: 0 | W99: 0 | X99: 0 | Y99: 0 | Z99: 0 | AA99: 0 | AC99: 30476.44363 | AD99: -7171.303013 | AE99: 18758.43656 | AF99: 18758.43656 | AG99: 18758.43656 | AH99: 4546.704058 | AJ99: =IF(AND(AC98<=0,AC99>0,MIN(AC$100:$AC120)>=0),$B99-fy+1) -> FALSE | AK99: =IF(AND(AD98<=0,AD99>0,MIN(AD$100:AD120)>=0),$B99-fy+1) -> FALSE | AL99: =IF(AND(AE98<=0,AE99>0,MIN(AE$100:AE120)>=0),$B99-fy+1) -> FALSE | AM99: =IF(AND(AF98<=0,AF99>0,MIN(AF$100:AF120)>=0),$B99-fy+1) -> FALSE | AN99: =IF(AND(AG98<=0,AG99>0,MIN(AG$100:AG120)>=0),$B99-fy+1) -> FALSE | AO99: =IF(AND(AH98<=0,AH99>0,MIN(AH$100:AH120)>=0),$B99-fy+1) -> FALSE | AQ99: 2 years
B100: 2068 | D100: =IF(ISERROR(' I. S.Q. Own and Operate'!$A$1),0,' I. S.Q. Own and Operate'!BG58) -> 0 | E100: =IF(ISERROR('II. Proposal - Sell '!$A$1),0,'II. Proposal - Sell '!BG58) -> 0 | F100: =IF(ISERROR('III. Alt - Abandon in Place'!$A$1),0,'III. Alt - Abandon in Place'!BG58) -> 0 | G100: =IF(ISERROR(#REF!),0,#REF!) -> 0 | H100: =IF(ISERROR(#REF!),0,#REF!) -> 0 | I100: =IF(ISERROR(#REF!),0,#REF!) -> 0 | N100: -18758.43656 | O100: 11718.00707 | P100: -25929.73957 | Q100: 0 | R100: 0 | S100: 0 | T100: -14211.7325 | V100: 0 | W100: 0 | X100: 0 | Y100: 0 | Z100: 0 | AA100: 0 | AC100: 30476.44363 | AD100: -7171.303013 | AE100: 18758.43656 | AF100: 18758.43656 | AG100: 18758.43656 | AH100: 4546.704058 | AJ100: =IF(AND(AC99<=0,AC100>0,MIN(AC$100:$AC121)>=0),$B100-fy+1) -> FALSE | AK100: =IF(AND(AD99<=0,AD100>0,MIN(AD$100:AD121)>=0),$B100-fy+1) -> FALSE | AL100: =IF(AND(AE99<=0,AE100>0,MIN(AE$100:AE121)>=0),$B100-fy+1) -> FALSE | AM100: =IF(AND(AF99<=0,AF100>0,MIN(AF$100:AF121)>=0),$B100-fy+1) -> FALSE | AN100: =IF(AND(AG99<=0,AG100>0,MIN(AG$100:AG121)>=0),$B100-fy+1) -> FALSE | AO100: =IF(AND(AH99<=0,AH100>0,MIN(AH$100:AH121)>=0),$B100-fy+1) -> FALSE | AQ100: 1 year
A102: * | B102: Project expenditures are assumed to occur beginning of year, so shown at end of the previous year. | U102: Sum | V102: =SUM(V50:V100) -> 39556.26183 | W102: -3860.462175 | X102: 26021.47047 | Y102: 26021.47047 | Z102: 26021.47047 | AA102: 9674.329184 | AI102: Payback | AJ102: =IF(SUM(AJ51:AJ100)=0,IF(AC100>0,0,"never"),MAX(AJ51:AJ100)) -> 0 | AK102: never | AL102: 0 | AM102: 0 | AN102: 0 | AO102: 8 | AQ102: =LEFT(sp_Input,LEN(sp_Input)-6) -> 10
B103: Annual operating expenses and revenues are assumed to occur at the end of the year. | U103: Trial ROE | V103: =(IRR(V50:V100)-bir*dr*(1-tr))/(1-dr) ->  | W103: -0.1108066384 | AA103: 0.5378780342
U104: ROE | V104: =IF(OR(ISERROR(V103),V102<AC100,AC100<0),"n/a ",IF(V103>1,">100%",V103)) -> n/a | W104: n/a | X104: n/a | Y104: n/a | Z104: n/a | AA104: 0.5378780342 | AI104: NPVcap | AJ104: =IF(ISERROR('II. Proposal - Sell '!M48),0,'II. Proposal - Sell '!M48) -> 0 | AK104: =IF(ISERROR('III. Alt - Abandon in Place'!M48),0,'III. Alt - Abandon in Place'!M48) -> -612.9467196 | AL104: =IF(ISERROR(#REF!),0,#REF!) -> 0 | AM104: =IF(ISERROR(#REF!),0,#REF!) -> 0 | AN104: =IF(ISERROR(#REF!),0,#REF!) -> 0 | AO104: =SUM(AJ104:AN104) -> -612.9467196
D105: Earnings Available for Common Stock ($000) * | AJ105: =IF(AND('II. Proposal - Sell '!$M$56-' I. S.Q. Own and Operate'!$M$56>0,' I. S.Q. Own and Operate'!$M$48-'II. Proposal - Sell '!$M$48>0),('II. Proposal - Sell '!$M$56-' I. S.Q. Own and Operate'!$M$56)/(' I. S.Q. Own and Operate'!$M$48-'II. Proposal - Sell '!$M$48),"n/a") -> n/a | AK105: =IF(AND('III. Alt - Abandon in Place'!$M$56-' I. S.Q. Own and Operate'!$M$56>0,' I. S.Q. Own and Operate'!$M$48-'III. Alt - Abandon in Place'!$M$48>0),('III. Alt - Abandon in Place'!$M$56-' I. S.Q. Own and Operate'!$M$56)/(' I. S.Q. Own and Operate'!$M$48-'III. Alt - Abandon in Place'!$M$48),"n/a") -> n/a | AL105: =IF(AND(#REF!-' I. S.Q. Own and Operate'!$M$56>0,' I. S.Q. Own and Operate'!$M$48-#REF!>0),(#REF!-' I. S.Q. Own and Operate'!$M$56)/(' I. S.Q. Own and Operate'!$M$48-#REF!),"n/a") ->  | AM105: =IF(AND(#REF!-' I. S.Q. Own and Operate'!$M$56>0,' I. S.Q. Own and Operate'!$M$48-#REF!>0),(#REF!-' I. S.Q. Own and Operate'!$M$56)/(' I. S.Q. Own and Operate'!$M$48-#REF!),"n/a") ->  | AN105: =IF(AND(#REF!-' I. S.Q. Own and Operate'!$M$56>0,' I. S.Q. Own and Operate'!$M$48-#REF!>0),(#REF!-' I. S.Q. Own and Operate'!$M$56)/(' I. S.Q. Own and Operate'!$M$48-#REF!),"n/a") -> 
B106: Calendar Year | D106: =D49 -> S.Q. | E106: Alt A | F106: Alt B | G106: Alt C | H106: Alt D | I106: Alt E | AI106: B/C Ratio | AJ106: =IF(ISERROR(AJ105),"n/a",AJ105) -> n/a | AK106: =IF(ISERROR(AK105),"n/a",AK105) -> n/a | AL106: =IF(ISERROR(AL105),"n/a",AL105) -> n/a | AM106: =IF(ISERROR(AM105),"n/a",AM105) -> n/a | AN106: =IF(ISERROR(AN105),"n/a",AN105) -> n/a
B107: =fy -> 2019 | D107: =IF(ISERROR(' I. S.Q. Own and Operate'!$A$1),0,' I. S.Q. Own and Operate'!BG66) -> -1716.240833 | E107: =IF(ISERROR('II. Proposal - Sell '!$A$1),0,'II. Proposal - Sell '!BG66) -> -1697.78663 | F107: =IF(ISERROR('III. Alt - Abandon in Place'!$A$1),0,'III. Alt - Abandon in Place'!BG66) -> -3607.74069 | G107: =IF(ISERROR(#REF!),0,#REF!) -> 0 | H107: =IF(ISERROR(#REF!),0,#REF!) -> 0 | I107: =IF(ISERROR(#REF!),0,#REF!) -> 0
B108: =B107+1 -> 2020 | D108: =IF(ISERROR(' I. S.Q. Own and Operate'!$A$1),0,' I. S.Q. Own and Operate'!BG67) -> -26.17913167 | E108: =IF(ISERROR('II. Proposal - Sell '!$A$1),0,'II. Proposal - Sell '!BG67) -> 15232.57799 | F108: =IF(ISERROR('III. Alt - Abandon in Place'!$A$1),0,'III. Alt - Abandon in Place'!BG67) -> -23942.34606 | G108: =IF(ISERROR(#REF!),0,#REF!) -> 0 | H108: =IF(ISERROR(#REF!),0,#REF!) -> 0 | I108: =IF(ISERROR(#REF!),0,#REF!) -> 0
B109: =B108+1 -> 2021 | D109: =IF(ISERROR(' I. S.Q. Own and Operate'!$A$1),0,' I. S.Q. Own and Operate'!BG68) -> -2353.44719 | E109: =IF(ISERROR('II. Proposal - Sell '!$A$1),0,'II. Proposal - Sell '!BG68) -> 0 | F109: =IF(ISERROR('III. Alt - Abandon in Place'!$A$1),0,'III. Alt - Abandon in Place'!BG68) -> -225.9039566 | G109: =IF(ISERROR(#REF!),0,#REF!) -> 0 | H109: =IF(ISERROR(#REF!),0,#REF!) -> 0 | I109: =IF(ISERROR(#REF!),0,#REF!) -> 0
B110: =B109+1 -> 2022 | D110: =IF(ISERROR(' I. S.Q. Own and Operate'!$A$1),0,' I. S.Q. Own and Operate'!BG69) -> -27.50445021 | E110: =IF(ISERROR('II. Proposal - Sell '!$A$1),0,'II. Proposal - Sell '!BG69) -> 0 | F110: =IF(ISERROR('III. Alt - Abandon in Place'!$A$1),0,'III. Alt - Abandon in Place'!BG69) -> -11.79656973 | G110: =IF(ISERROR(#REF!),0,#REF!) -> 0 | H110: =IF(ISERROR(#REF!),0,#REF!) -> 0 | I110: =IF(ISERROR(#REF!),0,#REF!) -> 0
B111: =B110+1 -> 2023 | D111: =IF(ISERROR(' I. S.Q. Own and Operate'!$A$1),0,' I. S.Q. Own and Operate'!BG70) -> -109.6720079 | E111: =IF(ISERROR('II. Proposal - Sell '!$A$1),0,'II. Proposal - Sell '!BG70) -> 0 | F111: =IF(ISERROR('III. Alt - Abandon in Place'!$A$1),0,'III. Alt - Abandon in Place'!BG70) -> -2.706114782 | G111: =IF(ISERROR(#REF!),0,#REF!) -> 0 | H111: =IF(ISERROR(#REF!),0,#REF!) -> 0 | I111: =IF(ISERROR(#REF!),0,#REF!) -> 0
A113: * | B113: Earnings are estimated using simplified accounting assumptions and no cost recovery.
B114: Earnings estimates for projects over $100 million should be reviewed by Economic and Project Analysis.

Sheet Big Project (hidden)
A1: ="Economic Evaluation Over "&sp&"-Year Study Period ($000)" -> Economic Evaluation Over 10-Year Study Period ($000)
A2: =IF(ISBLANK(Summary!A2),"",Summary!A2) -> Sale of Line 306 and Alternatives
A3: =IF(ISBLANK(Summary!A3),"",Summary!A3) -> 
A4: =Summary!A4 -> 
A5: Study Period: | C5: =sp&" years" -> 10 years | F5: First Year of Study: | G5: =fy -> 2019 | I5: =IF(ISBLANK(Summary!I5),"",Summary!I5) -> 
A6: Discount Rate: | C6: =i -> 0.07 | F6: Cost Estimate Year: | G6: =date -> 2019 | K6: =Summary!K6 -> Edition
A7: =Summary!A7 ->  | K7: =Summary!K7 -> 
G10: Cash Flow Measures | J10: B/C
A11: Alternatives | G11: NPV | H11: ROE | I11: Payback | J11: Ratio | K11: PVRR
A12: Status Quo | C12: =IF(ISBLANK(Summary!C12),"",Summary!C12) -> Own and Operate | G12: =IF(ISERROR(' I. S.Q. Own and Operate'!$M$59),0,' I. S.Q. Own and Operate'!$M$59) -> -18758.43656 | H12: ="- " -> - | I12: ="-" -> - | J12: ="-" -> - | K12: =IF(ISERROR(' I. S.Q. Own and Operate'!$M$59),0,IF(' I. S.Q. Own and Operate'!$BJ$48>0,"See Note",G12/(tr-1))) -> 26047.45108
A13: Proposed Project
A14: A. | B14: =IF(ISBLANK(Summary!B14),"",Summary!B14) -> Sell Pipeline | G14: =IF(ISERROR('II. Proposal - Sell '!$M$59),0,'II. Proposal - Sell '!$M$59) -> 11718.00707 | H14: =IF(OR(TRIM(Summary!B14)="",ISERROR('II. Proposal - Sell '!A1)),"",Summary!V104) -> n/a | I14: =IF(OR(TRIM(Summary!B14)="",ISERROR('II. Proposal - Sell '!A1)),"",Summary!AJ$102) -> 0 | J14: =IF(OR(TRIM(Summary!B14)="",ISERROR('II. Proposal - Sell '!A1)),"",Summary!AJ$106) -> n/a | K14: =IF(ISERROR('II. Proposal - Sell '!$M$59),0,IF('II. Proposal - Sell '!$BJ$48>0,"See Note",G14/(tr-1))) -> -16271.30358
A15: B. | B15: =IF(ISBLANK(Summary!B15),"",Summary!B15) -> Abandon in Place | G15: =IF(ISERROR('III. Alt - Abandon in Place'!$M$59),0,'III. Alt - Abandon in Place'!$M$59) -> -25929.73957 | H15: =IF(OR(TRIM(Summary!B15)="",ISERROR('III. Alt - Abandon in Place'!A1)),"",Summary!W104) -> n/a | I15: =IF(OR(TRIM(Summary!B15)="",ISERROR('III. Alt - Abandon in Place'!A1)),"",Summary!AK$102) -> never | J15: =IF(OR(TRIM(Summary!B15)="",ISERROR('III. Alt - Abandon in Place'!A1)),"",Summary!AK$106) -> n/a | K15: =IF(ISERROR('III. Alt - Abandon in Place'!$M$59),0,IF('III. Alt - Abandon in Place'!$BJ$48>0,"See Note",G15/(tr-1))) -> 36005.32597
A16: C. | B16: =IF(ISBLANK(Summary!B16),"",Summary!B16) ->  | G16: =IF(ISERROR(#REF!),0,#REF!) -> 0 | H16: =IF(OR(TRIM(Summary!B16)="",ISERROR(#REF!)),"",Summary!X104) ->  | I16: =IF(OR(TRIM(Summary!B16)="",ISERROR(#REF!)),"",Summary!AL$102) ->  | J16: =IF(OR(TRIM(Summary!B16)="",ISERROR(#REF!)),"",Summary!AL$106) ->  | K16: =IF(ISERROR(#REF!),0,IF(#REF!>0,"See Note",G16/(tr-1))) -> 0
A17: D. | B17: =IF(ISBLANK(Summary!B17),"",Summary!B17) ->  | G17: =IF(ISERROR(#REF!),0,#REF!) -> 0 | H17: =IF(OR(TRIM(Summary!B17)="",ISERROR(#REF!)),"",Summary!Y104) ->  | I17: =IF(OR(TRIM(Summary!B17)="",ISERROR(#REF!)),"",Summary!AM$102) ->  | J17: =IF(OR(TRIM(Summary!B17)="",ISERROR(#REF!)),"",Summary!AM$106) ->  | K17: =IF(ISERROR(#REF!),0,IF(#REF!>0,"See Note",G17/(tr-1))) -> 0
A18: E. | B18: =IF(ISBLANK(Summary!B18),"",Summary!B18) ->  | G18: =IF(ISERROR(#REF!),0,#REF!) -> 0 | H18: =IF(OR(TRIM(Summary!B18)="",ISERROR(#REF!)),"",Summary!Z104) ->  | I18: =IF(OR(TRIM(Summary!B18)="",ISERROR(#REF!)),"",Summary!AN$102) ->  | J18: =IF(OR(TRIM(Summary!B18)="",ISERROR(#REF!)),"",Summary!AN$106) ->  | K18: =IF(ISERROR(#REF!),0,IF(#REF!>0,"See Note",G18/(tr-1))) -> 0
A19: Total for Project | G19: =SUM(G14:G18) -> -14211.7325 | H19: =Summary!AA104 -> 0.5378780342 | I19: =Summary!AO102 -> 8 | J19: =IF(AND(G19-NPVcap-' I. S.Q. Own and Operate'!$M$56>0,' I. S.Q. Own and Operate'!$M$48-NPVcap>0),(G19-NPVcap-' I. S.Q. Own and Operate'!$M$56)/(' I. S.Q. Own and Operate'!$M$48-NPVcap),"n/a") -> n/a | K19: =SUM(K14:K18) -> 19734.02239
A20: Net present value and present value of revenue requirements are the primary financial measures.
A21: =IF(COUNTIF(K12:K18,"=See Note"),"Present value of revenue requirements of ITC eligible investments must be calculated using Charge model.","") -> 
A22: Return on equity, payback period, and benefit-cost ratio are measured relative to status quo.
D48: Annual Cash Flow ($000)
B49: End of Year * | D49: S.Q. | E49: Alt A | F49: Alt B | G49: Alt C | H49: Alt D | I49: Alt E | J49: Project
A50: ="Initial Expenditures" -> Initial Expenditures | D50: =IF(ISERROR(' I. S.Q. Own and Operate'!$A$1),0,' I. S.Q. Own and Operate'!BG8) -> -4017.576658 | E50: =IF(ISERROR('II. Proposal - Sell '!$A$1),0,'II. Proposal - Sell '!BG8) -> 0 | F50: =IF(ISERROR('III. Alt - Abandon in Place'!$A$1),0,'III. Alt - Abandon in Place'!BG8) -> -385.6413124 | G50: =IF(ISERROR(#REF!),0,#REF!) -> 0 | H50: =IF(ISERROR(#REF!),0,#REF!) -> 0 | I50: =IF(ISERROR(#REF!),0,#REF!) -> 0 | J50: =SUM(E50:I50) -> -385.6413124
B51: =fy -> 2019 | D51: =IF(ISERROR(' I. S.Q. Own and Operate'!$A$1),0,' I. S.Q. Own and Operate'!BG9) -> -3622.061176 | E51: =IF(ISERROR('II. Proposal - Sell '!$A$1),0,'II. Proposal - Sell '!BG9) -> -1697.78663 | F51: =IF(ISERROR('III. Alt - Abandon in Place'!$A$1),0,'III. Alt - Abandon in Place'!BG9) -> -3790.6776 | G51: =IF(ISERROR(#REF!),0,#REF!) -> 0 | H51: =IF(ISERROR(#REF!),0,#REF!) -> 0 | I51: =IF(ISERROR(#REF!),0,#REF!) -> 0 | J51: -5488.46423
B52: =B51+1 -> 2020 | D52: =IF(ISERROR(' I. S.Q. Own and Operate'!$A$1),0,' I. S.Q. Own and Operate'!BG10) -> -131.4559418 | E52: =IF(ISERROR('II. Proposal - Sell '!$A$1),0,'II. Proposal - Sell '!BG10) -> 15232.57799 | F52: =IF(ISERROR('III. Alt - Abandon in Place'!$A$1),0,'III. Alt - Abandon in Place'!BG10) -> -23952.45143 | G52: =IF(ISERROR(#REF!),0,#REF!) -> 0 | H52: =IF(ISERROR(#REF!),0,#REF!) -> 0 | I52: =IF(ISERROR(#REF!),0,#REF!) -> 0 | J52: -8719.873441
B53: 2021 | D53: =IF(ISERROR(' I. S.Q. Own and Operate'!$A$1),0,' I. S.Q. Own and Operate'!BG11) -> -2447.688464 | E53: =IF(ISERROR('II. Proposal - Sell '!$A$1),0,'II. Proposal - Sell '!BG11) -> 0 | F53: =IF(ISERROR('III. Alt - Abandon in Place'!$A$1),0,'III. Alt - Abandon in Place'!BG11) -> -234.9500388 | G53: =IF(ISERROR(#REF!),0,#REF!) -> 0 | H53: =IF(ISERROR(#REF!),0,#REF!) -> 0 | I53: =IF(ISERROR(#REF!),0,#REF!) -> 0 | J53: -234.9500388
B54: 2022 | D54: =IF(ISERROR(' I. S.Q. Own and Operate'!$A$1),0,' I. S.Q. Own and Operate'!BG12) -> -731.5779744 | E54: =IF(ISERROR('II. Proposal - Sell '!$A$1),0,'II. Proposal - Sell '!BG12) -> 0 | F54: =IF(ISERROR('III. Alt - Abandon in Place'!$A$1),0,'III. Alt - Abandon in Place'!BG12) -> -79.37955843 | G54: =IF(ISERROR(#REF!),0,#REF!) -> 0 | H54: =IF(ISERROR(#REF!),0,#REF!) -> 0 | I54: =IF(ISERROR(#REF!),0,#REF!) -> 0 | J54: -79.37955843
B55: 2023 | D55: =IF(ISERROR(' I. S.Q. Own and Operate'!$A$1),0,' I. S.Q. Own and Operate'!BG13) -> -227.9479956 | E55: =IF(ISERROR('II. Proposal - Sell '!$A$1),0,'II. Proposal - Sell '!BG13) -> 0 | F55: =IF(ISERROR('III. Alt - Abandon in Place'!$A$1),0,'III. Alt - Abandon in Place'!BG13) -> -14.059254 | G55: =IF(ISERROR(#REF!),0,#REF!) -> 0 | H55: =IF(ISERROR(#REF!),0,#REF!) -> 0 | I55: =IF(ISERROR(#REF!),0,#REF!) -> 0 | J55: -14.059254
B56: 2024 | D56: =IF(ISERROR(' I. S.Q. Own and Operate'!$A$1),0,' I. S.Q. Own and Operate'!BG14) -> -151.9812658 | E56: =IF(ISERROR('II. Proposal - Sell '!$A$1),0,'II. Proposal - Sell '!BG14) -> 0 | F56: =IF(ISERROR('III. Alt - Abandon in Place'!$A$1),0,'III. Alt - Abandon in Place'!BG14) -> -14.58845961 | G56: =IF(ISERROR(#REF!),0,#REF!) -> 0 | H56: =IF(ISERROR(#REF!),0,#REF!) -> 0 | I56: =IF(ISERROR(#REF!),0,#REF!) -> 0 | J56: -14.58845961
B57: 2025 | D57: =IF(ISERROR(' I. S.Q. Own and Operate'!$A$1),0,' I. S.Q. Own and Operate'!BG15) -> -163.3027027 | E57: =IF(ISERROR('II. Proposal - Sell '!$A$1),0,'II. Proposal - Sell '!BG15) -> 0 | F57: =IF(ISERROR('III. Alt - Abandon in Place'!$A$1),0,'III. Alt - Abandon in Place'!BG15) -> -15.6751878 | G57: =IF(ISERROR(#REF!),0,#REF!) -> 0 | H57: =IF(ISERROR(#REF!),0,#REF!) -> 0 | I57: =IF(ISERROR(#REF!),0,#REF!) -> 0 | J57: -15.6751878
B58: 2026 | D58: =IF(ISERROR(' I. S.Q. Own and Operate'!$A$1),0,' I. S.Q. Own and Operate'!BG16) -> -12595.24487 | E58: =IF(ISERROR('II. Proposal - Sell '!$A$1),0,'II. Proposal - Sell '!BG16) -> 0 | F58: =IF(ISERROR('III. Alt - Abandon in Place'!$A$1),0,'III. Alt - Abandon in Place'!BG16) -> -1208.999149 | G58: =IF(ISERROR(#REF!),0,#REF!) -> 0 | H58: =IF(ISERROR(#REF!),0,#REF!) -> 0 | I58: =IF(ISERROR(#REF!),0,#REF!) -> 0 | J58: -1208.999149
B59: 2027 | D59: =IF(ISERROR(' I. S.Q. Own and Operate'!$A$1),0,' I. S.Q. Own and Operate'!BG17) -> -176.6224546 | E59: =IF(ISERROR('II. Proposal - Sell '!$A$1),0,'II. Proposal - Sell '!BG17) -> 0 | F59: =IF(ISERROR('III. Alt - Abandon in Place'!$A$1),0,'III. Alt - Abandon in Place'!BG17) -> -16.95373132 | G59: =IF(ISERROR(#REF!),0,#REF!) -> 0 | H59: =IF(ISERROR(#REF!),0,#REF!) -> 0 | I59: =IF(ISERROR(#REF!),0,#REF!) -> 0 | J59: -16.95373132
B60: 2028 | D60: =IF(ISERROR(' I. S.Q. Own and Operate'!$A$1),0,' I. S.Q. Own and Operate'!BG18) -> -1756.010976 | E60: =IF(ISERROR('II. Proposal - Sell '!$A$1),0,'II. Proposal - Sell '!BG18) -> 0 | F60: =IF(ISERROR('III. Alt - Abandon in Place'!$A$1),0,'III. Alt - Abandon in Place'!BG18) -> -168.5569275 | G60: =IF(ISERROR(#REF!),0,#REF!) -> 0 | H60: =IF(ISERROR(#REF!),0,#REF!) -> 0 | I60: =IF(ISERROR(#REF!),0,#REF!) -> 0 | J60: -168.5569275
B61: 2029 | D61: =IF(ISERROR(' I. S.Q. Own and Operate'!$A$1),0,' I. S.Q. Own and Operate'!BG19) -> 0 | E61: =IF(ISERROR('II. Proposal - Sell '!$A$1),0,'II. Proposal - Sell '!BG19) -> 0 | F61: =IF(ISERROR('III. Alt - Abandon in Place'!$A$1),0,'III. Alt - Abandon in Place'!BG19) -> 0 | G61: =IF(ISERROR(#REF!),0,#REF!) -> 0 | H61: =IF(ISERROR(#REF!),0,#REF!) -> 0 | I61: =IF(ISERROR(#REF!),0,#REF!) -> 0 | J61: 0
B62: 2030 | D62: =IF(ISERROR(' I. S.Q. Own and Operate'!$A$1),0,' I. S.Q. Own and Operate'!BG20) -> 0 | E62: =IF(ISERROR('II. Proposal - Sell '!$A$1),0,'II. Proposal - Sell '!BG20) -> 0 | F62: =IF(ISERROR('III. Alt - Abandon in Place'!$A$1),0,'III. Alt - Abandon in Place'!BG20) -> 0 | G62: =IF(ISERROR(#REF!),0,#REF!) -> 0 | H62: =IF(ISERROR(#REF!),0,#REF!) -> 0 | I62: =IF(ISERROR(#REF!),0,#REF!) -> 0 | J62: 0
B63: 2031 | D63: =IF(ISERROR(' I. S.Q. Own and Operate'!$A$1),0,' I. S.Q. Own and Operate'!BG21) -> 0 | E63: =IF(ISERROR('II. Proposal - Sell '!$A$1),0,'II. Proposal - Sell '!BG21) -> 0 | F63: =IF(ISERROR('III. Alt - Abandon in Place'!$A$1),0,'III. Alt - Abandon in Place'!BG21) -> 0 | G63: =IF(ISERROR(#REF!),0,#REF!) -> 0 | H63: =IF(ISERROR(#REF!),0,#REF!) -> 0 | I63: =IF(ISERROR(#REF!),0,#REF!) -> 0 | J63: 0
B64: 2032 | D64: =IF(ISERROR(' I. S.Q. Own and Operate'!$A$1),0,' I. S.Q. Own and Operate'!BG22) -> 0 | E64: =IF(ISERROR('II. Proposal - Sell '!$A$1),0,'II. Proposal - Sell '!BG22) -> 0 | F64: =IF(ISERROR('III. Alt - Abandon in Place'!$A$1),0,'III. Alt - Abandon in Place'!BG22) -> 0 | G64: =IF(ISERROR(#REF!),0,#REF!) -> 0 | H64: =IF(ISERROR(#REF!),0,#REF!) -> 0 | I64: =IF(ISERROR(#REF!),0,#REF!) -> 0 | J64: 0
B65: 2033 | D65: =IF(ISERROR(' I. S.Q. Own and Operate'!$A$1),0,' I. S.Q. Own and Operate'!BG23) -> 0 | E65: =IF(ISERROR('II. Proposal - Sell '!$A$1),0,'II. Proposal - Sell '!BG23) -> 0 | F65: =IF(ISERROR('III. Alt - Abandon in Place'!$A$1),0,'III. Alt - Abandon in Place'!BG23) -> 0 | G65: =IF(ISERROR(#REF!),0,#REF!) -> 0 | H65: =IF(ISERROR(#REF!),0,#REF!) -> 0 | I65: =IF(ISERROR(#REF!),0,#REF!) -> 0 | J65: 0
B66: 2034 | D66: =IF(ISERROR(' I. S.Q. Own and Operate'!$A$1),0,' I. S.Q. Own and Operate'!BG24) -> 0 | E66: =IF(ISERROR('II. Proposal - Sell '!$A$1),0,'II. Proposal - Sell '!BG24) -> 0 | F66: =IF(ISERROR('III. Alt - Abandon in Place'!$A$1),0,'III. Alt - Abandon in Place'!BG24) -> 0 | G66: =IF(ISERROR(#REF!),0,#REF!) -> 0 | H66: =IF(ISERROR(#REF!),0,#REF!) -> 0 | I66: =IF(ISERROR(#REF!),0,#REF!) -> 0 | J66: 0
B67: 2035 | D67: =IF(ISERROR(' I. S.Q. Own and Operate'!$A$1),0,' I. S.Q. Own and Operate'!BG25) -> 0 | E67: =IF(ISERROR('II. Proposal - Sell '!$A$1),0,'II. Proposal - Sell '!BG25) -> 0 | F67: =IF(ISERROR('III. Alt - Abandon in Place'!$A$1),0,'III. Alt - Abandon in Place'!BG25) -> 0 | G67: =IF(ISERROR(#REF!),0,#REF!) -> 0 | H67: =IF(ISERROR(#REF!),0,#REF!) -> 0 | I67: =IF(ISERROR(#REF!),0,#REF!) -> 0 | J67: 0
B68: 2036 | D68: =IF(ISERROR(' I. S.Q. Own and Operate'!$A$1),0,' I. S.Q. Own and Operate'!BG26) -> 0 | E68: =IF(ISERROR('II. Proposal - Sell '!$A$1),0,'II. Proposal - Sell '!BG26) -> 0 | F68: =IF(ISERROR('III. Alt - Abandon in Place'!$A$1),0,'III. Alt - Abandon in Place'!BG26) -> 0 | G68: =IF(ISERROR(#REF!),0,#REF!) -> 0 | H68: =IF(ISERROR(#REF!),0,#REF!) -> 0 | I68: =IF(ISERROR(#REF!),0,#REF!) -> 0 | J68: 0
B69: 2037 | D69: =IF(ISERROR(' I. S.Q. Own and Operate'!$A$1),0,' I. S.Q. Own and Operate'!BG27) -> 0 | E69: =IF(ISERROR('II. Proposal - Sell '!$A$1),0,'II. Proposal - Sell '!BG27) -> 0 | F69: =IF(ISERROR('III. Alt - Abandon in Place'!$A$1),0,'III. Alt - Abandon in Place'!BG27) -> 0 | G69: =IF(ISERROR(#REF!),0,#REF!) -> 0 | H69: =IF(ISERROR(#REF!),0,#REF!) -> 0 | I69: =IF(ISERROR(#REF!),0,#REF!) -> 0 | J69: 0
B70: 2038 | D70: =IF(ISERROR(' I. S.Q. Own and Operate'!$A$1),0,' I. S.Q. Own and Operate'!BG28) -> 0 | E70: =IF(ISERROR('II. Proposal - Sell '!$A$1),0,'II. Proposal - Sell '!BG28) -> 0 | F70: =IF(ISERROR('III. Alt - Abandon in Place'!$A$1),0,'III. Alt - Abandon in Place'!BG28) -> 0 | G70: =IF(ISERROR(#REF!),0,#REF!) -> 0 | H70: =IF(ISERROR(#REF!),0,#REF!) -> 0 | I70: =IF(ISERROR(#REF!),0,#REF!) -> 0 | J70: 0
B71: 2039 | D71: =IF(ISERROR(' I. S.Q. Own and Operate'!$A$1),0,' I. S.Q. Own and Operate'!BG29) -> 0 | E71: =IF(ISERROR('II. Proposal - Sell '!$A$1),0,'II. Proposal - Sell '!BG29) -> 0 | F71: =IF(ISERROR('III. Alt - Abandon in Place'!$A$1),0,'III. Alt - Abandon in Place'!BG29) -> 0 | G71: =IF(ISERROR(#REF!),0,#REF!) -> 0 | H71: =IF(ISERROR(#REF!),0,#REF!) -> 0 | I71: =IF(ISERROR(#REF!),0,#REF!) -> 0 | J71: 0
B72: 2040 | D72: =IF(ISERROR(' I. S.Q. Own and Operate'!$A$1),0,' I. S.Q. Own and Operate'!BG30) -> 0 | E72: =IF(ISERROR('II. Proposal - Sell '!$A$1),0,'II. Proposal - Sell '!BG30) -> 0 | F72: =IF(ISERROR('III. Alt - Abandon in Place'!$A$1),0,'III. Alt - Abandon in Place'!BG30) -> 0 | G72: =IF(ISERROR(#REF!),0,#REF!) -> 0 | H72: =IF(ISERROR(#REF!),0,#REF!) -> 0 | I72: =IF(ISERROR(#REF!),0,#REF!) -> 0 | J72: 0
B73: 2041 | D73: =IF(ISERROR(' I. S.Q. Own and Operate'!$A$1),0,' I. S.Q. Own and Operate'!BG31) -> 0 | E73: =IF(ISERROR('II. Proposal - Sell '!$A$1),0,'II. Proposal - Sell '!BG31) -> 0 | F73: =IF(ISERROR('III. Alt - Abandon in Place'!$A$1),0,'III. Alt - Abandon in Place'!BG31) -> 0 | G73: =IF(ISERROR(#REF!),0,#REF!) -> 0 | H73: =IF(ISERROR(#REF!),0,#REF!) -> 0 | I73: =IF(ISERROR(#REF!),0,#REF!) -> 0 | J73: 0
B74: 2042 | D74: =IF(ISERROR(' I. S.Q. Own and Operate'!$A$1),0,' I. S.Q. Own and Operate'!BG32) -> 0 | E74: =IF(ISERROR('II. Proposal - Sell '!$A$1),0,'II. Proposal - Sell '!BG32) -> 0 | F74: =IF(ISERROR('III. Alt - Abandon in Place'!$A$1),0,'III. Alt - Abandon in Place'!BG32) -> 0 | G74: =IF(ISERROR(#REF!),0,#REF!) -> 0 | H74: =IF(ISERROR(#REF!),0,#REF!) -> 0 | I74: =IF(ISERROR(#REF!),0,#REF!) -> 0 | J74: 0
B75: 2043 | D75: =IF(ISERROR(' I. S.Q. Own and Operate'!$A$1),0,' I. S.Q. Own and Operate'!BG33) -> 0 | E75: =IF(ISERROR('II. Proposal - Sell '!$A$1),0,'II. Proposal - Sell '!BG33) -> 0 | F75: =IF(ISERROR('III. Alt - Abandon in Place'!$A$1),0,'III. Alt - Abandon in Place'!BG33) -> 0 | G75: =IF(ISERROR(#REF!),0,#REF!) -> 0 | H75: =IF(ISERROR(#REF!),0,#REF!) -> 0 | I75: =IF(ISERROR(#REF!),0,#REF!) -> 0 | J75: 0
B76: 2044 | D76: =IF(ISERROR(' I. S.Q. Own and Operate'!$A$1),0,' I. S.Q. Own and Operate'!BG34) -> 0 | E76: =IF(ISERROR('II. Proposal - Sell '!$A$1),0,'II. Proposal - Sell '!BG34) -> 0 | F76: =IF(ISERROR('III. Alt - Abandon in Place'!$A$1),0,'III. Alt - Abandon in Place'!BG34) -> 0 | G76: =IF(ISERROR(#REF!),0,#REF!) -> 0 | H76: =IF(ISERROR(#REF!),0,#REF!) -> 0 | I76: =IF(ISERROR(#REF!),0,#REF!) -> 0 | J76: 0
B77: 2045 | D77: =IF(ISERROR(' I. S.Q. Own and Operate'!$A$1),0,' I. S.Q. Own and Operate'!BG35) -> 0 | E77: =IF(ISERROR('II. Proposal - Sell '!$A$1),0,'II. Proposal - Sell '!BG35) -> 0 | F77: =IF(ISERROR('III. Alt - Abandon in Place'!$A$1),0,'III. Alt - Abandon in Place'!BG35) -> 0 | G77: =IF(ISERROR(#REF!),0,#REF!) -> 0 | H77: =IF(ISERROR(#REF!),0,#REF!) -> 0 | I77: =IF(ISERROR(#REF!),0,#REF!) -> 0 | J77: 0
B78: 2046 | D78: =IF(ISERROR(' I. S.Q. Own and Operate'!$A$1),0,' I. S.Q. Own and Operate'!BG36) -> 0 | E78: =IF(ISERROR('II. Proposal - Sell '!$A$1),0,'II. Proposal - Sell '!BG36) -> 0 | F78: =IF(ISERROR('III. Alt - Abandon in Place'!$A$1),0,'III. Alt - Abandon in Place'!BG36) -> 0 | G78: =IF(ISERROR(#REF!),0,#REF!) -> 0 | H78: =IF(ISERROR(#REF!),0,#REF!) -> 0 | I78: =IF(ISERROR(#REF!),0,#REF!) -> 0 | J78: 0
B79: 2047 | D79: =IF(ISERROR(' I. S.Q. Own and Operate'!$A$1),0,' I. S.Q. Own and Operate'!BG37) -> 0 | E79: =IF(ISERROR('II. Proposal - Sell '!$A$1),0,'II. Proposal - Sell '!BG37) -> 0 | F79: =IF(ISERROR('III. Alt - Abandon in Place'!$A$1),0,'III. Alt - Abandon in Place'!BG37) -> 0 | G79: =IF(ISERROR(#REF!),0,#REF!) -> 0 | H79: =IF(ISERROR(#REF!),0,#REF!) -> 0 | I79: =IF(ISERROR(#REF!),0,#REF!) -> 0 | J79: 0
B80: 2048 | D80: =IF(ISERROR(' I. S.Q. Own and Operate'!$A$1),0,' I. S.Q. Own and Operate'!BG38) -> 0 | E80: =IF(ISERROR('II. Proposal - Sell '!$A$1),0,'II. Proposal - Sell '!BG38) -> 0 | F80: =IF(ISERROR('III. Alt - Abandon in Place'!$A$1),0,'III. Alt - Abandon in Place'!BG38) -> 0 | G80: =IF(ISERROR(#REF!),0,#REF!) -> 0 | H80: =IF(ISERROR(#REF!),0,#REF!) -> 0 | I80: =IF(ISERROR(#REF!),0,#REF!) -> 0 | J80: =SUM(E80:I80) -> 0
B81: 2049 | D81: =IF(ISERROR(' I. S.Q. Own and Operate'!$A$1),0,' I. S.Q. Own and Operate'!BG39) -> 0 | E81: =IF(ISERROR('II. Proposal - Sell '!$A$1),0,'II. Proposal - Sell '!BG39) -> 0 | F81: =IF(ISERROR('III. Alt - Abandon in Place'!$A$1),0,'III. Alt - Abandon in Place'!BG39) -> 0 | G81: =IF(ISERROR(#REF!),0,#REF!) -> 0 | H81: =IF(ISERROR(#REF!),0,#REF!) -> 0 | I81: =IF(ISERROR(#REF!),0,#REF!) -> 0 | J81: 0
B82: 2050 | D82: =IF(ISERROR(' I. S.Q. Own and Operate'!$A$1),0,' I. S.Q. Own and Operate'!BG40) -> 0 | E82: =IF(ISERROR('II. Proposal - Sell '!$A$1),0,'II. Proposal - Sell '!BG40) -> 0 | F82: =IF(ISERROR('III. Alt - Abandon in Place'!$A$1),0,'III. Alt - Abandon in Place'!BG40) -> 0 | G82: =IF(ISERROR(#REF!),0,#REF!) -> 0 | H82: =IF(ISERROR(#REF!),0,#REF!) -> 0 | I82: =IF(ISERROR(#REF!),0,#REF!) -> 0 | J82: 0
B83: 2051 | D83: =IF(ISERROR(' I. S.Q. Own and Operate'!$A$1),0,' I. S.Q. Own and Operate'!BG41) -> 0 | E83: =IF(ISERROR('II. Proposal - Sell '!$A$1),0,'II. Proposal - Sell '!BG41) -> 0 | F83: =IF(ISERROR('III. Alt - Abandon in Place'!$A$1),0,'III. Alt - Abandon in Place'!BG41) -> 0 | G83: =IF(ISERROR(#REF!),0,#REF!) -> 0 | H83: =IF(ISERROR(#REF!),0,#REF!) -> 0 | I83: =IF(ISERROR(#REF!),0,#REF!) -> 0 | J83: 0
B84: 2052 | D84: =IF(ISERROR(' I. S.Q. Own and Operate'!$A$1),0,' I. S.Q. Own and Operate'!BG42) -> 0 | E84: =IF(ISERROR('II. Proposal - Sell '!$A$1),0,'II. Proposal - Sell '!BG42) -> 0 | F84: =IF(ISERROR('III. Alt - Abandon in Place'!$A$1),0,'III. Alt - Abandon in Place'!BG42) -> 0 | G84: =IF(ISERROR(#REF!),0,#REF!) -> 0 | H84: =IF(ISERROR(#REF!),0,#REF!) -> 0 | I84: =IF(ISERROR(#REF!),0,#REF!) -> 0 | J84: 0
B85: 2053 | D85: =IF(ISERROR(' I. S.Q. Own and Operate'!$A$1),0,' I. S.Q. Own and Operate'!BG43) -> 0 | E85: =IF(ISERROR('II. Proposal - Sell '!$A$1),0,'II. Proposal - Sell '!BG43) -> 0 | F85: =IF(ISERROR('III. Alt - Abandon in Place'!$A$1),0,'III. Alt - Abandon in Place'!BG43) -> 0 | G85: =IF(ISERROR(#REF!),0,#REF!) -> 0 | H85: =IF(ISERROR(#REF!),0,#REF!) -> 0 | I85: =IF(ISERROR(#REF!),0,#REF!) -> 0 | J85: 0
B86: 2054 | D86: =IF(ISERROR(' I. S.Q. Own and Operate'!$A$1),0,' I. S.Q. Own and Operate'!BG44) -> 0 | E86: =IF(ISERROR('II. Proposal - Sell '!$A$1),0,'II. Proposal - Sell '!BG44) -> 0 | F86: =IF(ISERROR('III. Alt - Abandon in Place'!$A$1),0,'III. Alt - Abandon in Place'!BG44) -> 0 | G86: =IF(ISERROR(#REF!),0,#REF!) -> 0 | H86: =IF(ISERROR(#REF!),0,#REF!) -> 0 | I86: =IF(ISERROR(#REF!),0,#REF!) -> 0 | J86: 0
B87: 2055 | D87: =IF(ISERROR(' I. S.Q. Own and Operate'!$A$1),0,' I. S.Q. Own and Operate'!BG45) -> 0 | E87: =IF(ISERROR('II. Proposal - Sell '!$A$1),0,'II. Proposal - Sell '!BG45) -> 0 | F87: =IF(ISERROR('III. Alt - Abandon in Place'!$A$1),0,'III. Alt - Abandon in Place'!BG45) -> 0 | G87: =IF(ISERROR(#REF!),0,#REF!) -> 0 | H87: =IF(ISERROR(#REF!),0,#REF!) -> 0 | I87: =IF(ISERROR(#REF!),0,#REF!) -> 0 | J87: 0
B88: 2056 | D88: =IF(ISERROR(' I. S.Q. Own and Operate'!$A$1),0,' I. S.Q. Own and Operate'!BG46) -> 0 | E88: =IF(ISERROR('II. Proposal - Sell '!$A$1),0,'II. Proposal - Sell '!BG46) -> 0 | F88: =IF(ISERROR('III. Alt - Abandon in Place'!$A$1),0,'III. Alt - Abandon in Place'!BG46) -> 0 | G88: =IF(ISERROR(#REF!),0,#REF!) -> 0 | H88: =IF(ISERROR(#REF!),0,#REF!) -> 0 | I88: =IF(ISERROR(#REF!),0,#REF!) -> 0 | J88: 0
B89: 2057 | D89: =IF(ISERROR(' I. S.Q. Own and Operate'!$A$1),0,' I. S.Q. Own and Operate'!BG47) -> 0 | E89: =IF(ISERROR('II. Proposal - Sell '!$A$1),0,'II. Proposal - Sell '!BG47) -> 0 | F89: =IF(ISERROR('III. Alt - Abandon in Place'!$A$1),0,'III. Alt - Abandon in Place'!BG47) -> 0 | G89: =IF(ISERROR(#REF!),0,#REF!) -> 0 | H89: =IF(ISERROR(#REF!),0,#REF!) -> 0 | I89: =IF(ISERROR(#REF!),0,#REF!) -> 0 | J89: 0
B90: 2058 | D90: =IF(ISERROR(' I. S.Q. Own and Operate'!$A$1),0,' I. S.Q. Own and Operate'!BG48) -> 0 | E90: =IF(ISERROR('II. Proposal - Sell '!$A$1),0,'II. Proposal - Sell '!BG48) -> 0 | F90: =IF(ISERROR('III. Alt - Abandon in Place'!$A$1),0,'III. Alt - Abandon in Place'!BG48) -> 0 | G90: =IF(ISERROR(#REF!),0,#REF!) -> 0 | H90: =IF(ISERROR(#REF!),0,#REF!) -> 0 | I90: =IF(ISERROR(#REF!),0,#REF!) -> 0 | J90: 0
B91: 2059 | D91: =IF(ISERROR(' I. S.Q. Own and Operate'!$A$1),0,' I. S.Q. Own and Operate'!BG49) -> 0 | E91: =IF(ISERROR('II. Proposal - Sell '!$A$1),0,'II. Proposal - Sell '!BG49) -> 0 | F91: =IF(ISERROR('III. Alt - Abandon in Place'!$A$1),0,'III. Alt - Abandon in Place'!BG49) -> 0 | G91: =IF(ISERROR(#REF!),0,#REF!) -> 0 | H91: =IF(ISERROR(#REF!),0,#REF!) -> 0 | I91: =IF(ISERROR(#REF!),0,#REF!) -> 0 | J91: 0
B92: 2060 | D92: =IF(ISERROR(' I. S.Q. Own and Operate'!$A$1),0,' I. S.Q. Own and Operate'!BG50) -> 0 | E92: =IF(ISERROR('II. Proposal - Sell '!$A$1),0,'II. Proposal - Sell '!BG50) -> 0 | F92: =IF(ISERROR('III. Alt - Abandon in Place'!$A$1),0,'III. Alt - Abandon in Place'!BG50) -> 0 | G92: =IF(ISERROR(#REF!),0,#REF!) -> 0 | H92: =IF(ISERROR(#REF!),0,#REF!) -> 0 | I92: =IF(ISERROR(#REF!),0,#REF!) -> 0 | J92: 0
B93: 2061 | D93: =IF(ISERROR(' I. S.Q. Own and Operate'!$A$1),0,' I. S.Q. Own and Operate'!BG51) -> 0 | E93: =IF(ISERROR('II. Proposal - Sell '!$A$1),0,'II. Proposal - Sell '!BG51) -> 0 | F93: =IF(ISERROR('III. Alt - Abandon in Place'!$A$1),0,'III. Alt - Abandon in Place'!BG51) -> 0 | G93: =IF(ISERROR(#REF!),0,#REF!) -> 0 | H93: =IF(ISERROR(#REF!),0,#REF!) -> 0 | I93: =IF(ISERROR(#REF!),0,#REF!) -> 0 | J93: 0
B94: 2062 | D94: =IF(ISERROR(' I. S.Q. Own and Operate'!$A$1),0,' I. S.Q. Own and Operate'!BG52) -> 0 | E94: =IF(ISERROR('II. Proposal - Sell '!$A$1),0,'II. Proposal - Sell '!BG52) -> 0 | F94: =IF(ISERROR('III. Alt - Abandon in Place'!$A$1),0,'III. Alt - Abandon in Place'!BG52) -> 0 | G94: =IF(ISERROR(#REF!),0,#REF!) -> 0 | H94: =IF(ISERROR(#REF!),0,#REF!) -> 0 | I94: =IF(ISERROR(#REF!),0,#REF!) -> 0 | J94: 0
B95: 2063 | D95: =IF(ISERROR(' I. S.Q. Own and Operate'!$A$1),0,' I. S.Q. Own and Operate'!BG53) -> 0 | E95: =IF(ISERROR('II. Proposal - Sell '!$A$1),0,'II. Proposal - Sell '!BG53) -> 0 | F95: =IF(ISERROR('III. Alt - Abandon in Place'!$A$1),0,'III. Alt - Abandon in Place'!BG53) -> 0 | G95: =IF(ISERROR(#REF!),0,#REF!) -> 0 | H95: =IF(ISERROR(#REF!),0,#REF!) -> 0 | I95: =IF(ISERROR(#REF!),0,#REF!) -> 0 | J95: 0
B96: 2064 | D96: =IF(ISERROR(' I. S.Q. Own and Operate'!$A$1),0,' I. S.Q. Own and Operate'!BG54) -> 0 | E96: =IF(ISERROR('II. Proposal - Sell '!$A$1),0,'II. Proposal - Sell '!BG54) -> 0 | F96: =IF(ISERROR('III. Alt - Abandon in Place'!$A$1),0,'III. Alt - Abandon in Place'!BG54) -> 0 | G96: =IF(ISERROR(#REF!),0,#REF!) -> 0 | H96: =IF(ISERROR(#REF!),0,#REF!) -> 0 | I96: =IF(ISERROR(#REF!),0,#REF!) -> 0 | J96: 0
B97: 2065 | D97: =IF(ISERROR(' I. S.Q. Own and Operate'!$A$1),0,' I. S.Q. Own and Operate'!BG55) -> 0 | E97: =IF(ISERROR('II. Proposal - Sell '!$A$1),0,'II. Proposal - Sell '!BG55) -> 0 | F97: =IF(ISERROR('III. Alt - Abandon in Place'!$A$1),0,'III. Alt - Abandon in Place'!BG55) -> 0 | G97: =IF(ISERROR(#REF!),0,#REF!) -> 0 | H97: =IF(ISERROR(#REF!),0,#REF!) -> 0 | I97: =IF(ISERROR(#REF!),0,#REF!) -> 0 | J97: 0
B98: 2066 | D98: =IF(ISERROR(' I. S.Q. Own and Operate'!$A$1),0,' I. S.Q. Own and Operate'!BG56) -> 0 | E98: =IF(ISERROR('II. Proposal - Sell '!$A$1),0,'II. Proposal - Sell '!BG56) -> 0 | F98: =IF(ISERROR('III. Alt - Abandon in Place'!$A$1),0,'III. Alt - Abandon in Place'!BG56) -> 0 | G98: =IF(ISERROR(#REF!),0,#REF!) -> 0 | H98: =IF(ISERROR(#REF!),0,#REF!) -> 0 | I98: =IF(ISERROR(#REF!),0,#REF!) -> 0 | J98: 0
B99: 2067 | D99: =IF(ISERROR(' I. S.Q. Own and Operate'!$A$1),0,' I. S.Q. Own and Operate'!BG57) -> 0 | E99: =IF(ISERROR('II. Proposal - Sell '!$A$1),0,'II. Proposal - Sell '!BG57) -> 0 | F99: =IF(ISERROR('III. Alt - Abandon in Place'!$A$1),0,'III. Alt - Abandon in Place'!BG57) -> 0 | G99: =IF(ISERROR(#REF!),0,#REF!) -> 0 | H99: =IF(ISERROR(#REF!),0,#REF!) -> 0 | I99: =IF(ISERROR(#REF!),0,#REF!) -> 0 | J99: 0
B100: 2068 | D100: =IF(ISERROR(' I. S.Q. Own and Operate'!$A$1),0,' I. S.Q. Own and Operate'!BG58) -> 0 | E100: =IF(ISERROR('II. Proposal - Sell '!$A$1),0,'II. Proposal - Sell '!BG58) -> 0 | F100: =IF(ISERROR('III. Alt - Abandon in Place'!$A$1),0,'III. Alt - Abandon in Place'!BG58) -> 0 | G100: =IF(ISERROR(#REF!),0,#REF!) -> 0 | H100: =IF(ISERROR(#REF!),0,#REF!) -> 0 | I100: =IF(ISERROR(#REF!),0,#REF!) -> 0 | J100: 0
A102: * | B102: Project expenditures are assumed to occur beginning of year, so shown at end of the previous year.
B103: Annual operating expenses and revenues are assumed to occur at the end of the year.
D105: Earnings Available for Common Stock ($000) *
B106: Calendar Year | D106: =D49 -> S.Q. | E106: Alt A | F106: Alt B | G106: Alt C | H106: Alt D | I106: Alt E | J106: Project
B107: =fy -> 2019 | D107: =IF(ISERROR(' I. S.Q. Own and Operate'!$A$1),0,' I. S.Q. Own and Operate'!BG66) -> -1716.240833 | E107: =IF(ISERROR('II. Proposal - Sell '!$A$1),0,'II. Proposal - Sell '!BG66) -> -1697.78663 | F107: =IF(ISERROR('III. Alt - Abandon in Place'!$A$1),0,'III. Alt - Abandon in Place'!BG66) -> -3607.74069 | G107: =IF(ISERROR(#REF!),0,#REF!) -> 0 | H107: =IF(ISERROR(#REF!),0,#REF!) -> 0 | I107: =IF(ISERROR(#REF!),0,#REF!) -> 0 | J107: =SUM(E107:I107) -> -5305.52732
B108: =B107+1 -> 2020 | D108: =IF(ISERROR(' I. S.Q. Own and Operate'!$A$1),0,' I. S.Q. Own and Operate'!BG67) -> -26.17913167 | E108: =IF(ISERROR('II. Proposal - Sell '!$A$1),0,'II. Proposal - Sell '!BG67) -> 15232.57799 | F108: =IF(ISERROR('III. Alt - Abandon in Place'!$A$1),0,'III. Alt - Abandon in Place'!BG67) -> -23942.34606 | G108: =IF(ISERROR(#REF!),0,#REF!) -> 0 | H108: =IF(ISERROR(#REF!),0,#REF!) -> 0 | I108: =IF(ISERROR(#REF!),0,#REF!) -> 0 | J108: =SUM(E108:I108) -> -8709.768074
B109: =B108+1 -> 2021 | D109: =IF(ISERROR(' I. S.Q. Own and Operate'!$A$1),0,' I. S.Q. Own and Operate'!BG68) -> -2353.44719 | E109: =IF(ISERROR('II. Proposal - Sell '!$A$1),0,'II. Proposal - Sell '!BG68) -> 0 | F109: =IF(ISERROR('III. Alt - Abandon in Place'!$A$1),0,'III. Alt - Abandon in Place'!BG68) -> -225.9039566 | G109: =IF(ISERROR(#REF!),0,#REF!) -> 0 | H109: =IF(ISERROR(#REF!),0,#REF!) -> 0 | I109: =IF(ISERROR(#REF!),0,#REF!) -> 0 | J109: =SUM(E109:I109) -> -225.9039566
B110: =B109+1 -> 2022 | D110: =IF(ISERROR(' I. S.Q. Own and Operate'!$A$1),0,' I. S.Q. Own and Operate'!BG69) -> -27.50445021 | E110: =IF(ISERROR('II. Proposal - Sell '!$A$1),0,'II. Proposal - Sell '!BG69) -> 0 | F110: =IF(ISERROR('III. Alt - Abandon in Place'!$A$1),0,'III. Alt - Abandon in Place'!BG69) -> -11.79656973 | G110: =IF(ISERROR(#REF!),0,#REF!) -> 0 | H110: =IF(ISERROR(#REF!),0,#REF!) -> 0 | I110: =IF(ISERROR(#REF!),0,#REF!) -> 0 | J110: =SUM(E110:I110) -> -11.79656973
B111: =B110+1 -> 2023 | D111: =IF(ISERROR(' I. S.Q. Own and Operate'!$A$1),0,' I. S.Q. Own and Operate'!BG70) -> -109.6720079 | E111: =IF(ISERROR('II. Proposal - Sell '!$A$1),0,'II. Proposal - Sell '!BG70) -> 0 | F111: =IF(ISERROR('III. Alt - Abandon in Place'!$A$1),0,'III. Alt - Abandon in Place'!BG70) -> -2.706114782 | G111: =IF(ISERROR(#REF!),0,#REF!) -> 0 | H111: =IF(ISERROR(#REF!),0,#REF!) -> 0 | I111: =IF(ISERROR(#REF!),0,#REF!) -> 0 | J111: =SUM(E111:I111) -> -2.706114782
A113: * | B113: Earnings are estimated using simplified accounting assumptions and no cost recovery.
B114: Earnings estimates for projects over $100 million should be reviewed by Economic and Project Analysis.

Sheet I. S.Q. Own and Operate
F1: =""&Summary!A2 -> Sale of Line 306 and Alternatives | L1: =IF($N$62>0,"Warning - Excludes","") -> 
F2: =""&Summary!A3 ->  | L2: =IF($N$62>0,"cost data outside","") -> 
F3: ="Status Quo "&Summary!C12 -> Status Quo Own and Operate | L3: =IF($N$62>0,"study period.","") -> 
F4: =IF(COUNT(A8:A47)=COUNT(E8:E47),IF(NOT(ISNA(M48)),IF(BH48=0,IF(BI48=0,IF(NOT(ISERROR(M59)),"","*** Error! - Check for invalid data entry ***"),"*** Error! - Salvage values must be zero or greater than 1 or less than negative 1 ***"),"*** Error! - A service life must be entered for each capital expenditure ***"),"*** Error! - NPV error value may be caused by invalid expenditure type ***"),"*** Error! - Some project expenditures are missing data for year or cost ***") -> 
A6: ="Project Expenditures Over "&sp&" Years ("&fy&"-"&fy+sp-1&") in $000 *" -> Project Expenditures Over 10 Years (2019-2028) in $000 * | I6: Salvage% | L6: Escalated | BH6: life | BI6: salvage | BJ6: ITC | BK6: BD
A7: Year | C7: Description | E7: Cost | F7: Esc% | G7: Type | H7: Life | I7: Input | J7: Calcd | L7: Cost | M7: NPV | N7: boy | O7: cap1 | P7: cap2 | Q7: cap3 | R7: cap4 | S7: cap5 | T7: cap6 | U7: cap7 | V7: cap8 | W7: cap9 | X7: cap10 | Y7: cap11 | Z7: cap12 | AA7: cap13 | AB7: cap14 | AC7: cap15 | AD7: cap16 | AE7: cap17 | AF7: cap18 | AG7: cap19 | AH7: cap20 | AI7: cap21 | AJ7: cap22 | AK7: cap23 | AL7: cap24 | AM7: cap25 | AN7: cap26 | AO7: cap27 | AP7: cap28 | AQ7: cap29 | AR7: cap30 | AS7: cap31 | AT7: cap32 | AU7: cap33 | AV7: cap34 | AW7: cap35 | AX7: cap36 | AY7: cap37 | AZ7: cap38 | BA7: cap39 | BB7: cap40 | BC7: exp a | BD7: exp b | BE7: exp c | BF7: exp d | BG7: total acf | BH7: error | BI7: error | BJ7: Check | BK7: Error
A8: 2019 | B8: Capital Expenditures | E8: =+'I. Own Operate Detail'!E$14 -> 172.2151 | F8: 2.5 | G8: gast | H8: 45 | I8: 0 | J8: =IF(OR(H8=0,G8="exp",G8="atx"),"",IF(TRIM(I8)="",IF(OR(A8<fy,A8>=fy+sp),0,IF(OR(G8="land",G8="gasc"),100,ROUND(100*MAX(0,A8+H8-fy-sp)/H8,0))),"")) ->  | K8: =IF(TRIM(I8)="",J8,I8) -> 0 | L8: =IF(OR(A8<fy,A8>=fy+sp),0,E8*(1+F8%)^(A8-date)) -> 172.2151 | M8: =NPV(i,O9:O58)+O8 -> -151.7583301 | N8: =fy -> 2019 | O8: =IF(OR($A$8<fy,$A$8>fy+sp),0,IF($G$8="exp",IF($A$8=$N8,$L$8*(tr-1),0),IF($G$8="atx",IF($A$8=$N8,-$L$8,0),IF($N8<$A$8,0,IF($N8=MIN($A$8+$H$8,fy+sp),$L$8/100*OFFSET(Data!$A$6,$N8-$A$8,MATCH($G$8,Data!$A$4:$CG$4,0))+$L$8*$K$8%*(1-tr),IF($N8>MIN($A$8+$H$8,fy+sp),0,$L$8/100*OFFSET(Data!$A$6,$N8-$A$8,MATCH($G$8,Data!$A$4:$CG$4,0)-1))))))) -> -172.2151 | P8: =IF(OR($A$9<fy,$A$9>fy+sp),0,IF($G$9="exp",IF($A$9=$N8,$L$9*(tr-1),0),IF($G$9="atx",IF($A$9=$N8,-$L$9,0),IF($N8<$A$9,0,IF($N8=MIN($A$9+$H$9,fy+sp),$L$9/100*OFFSET(Data!$A$6,$N8-$A$9,MATCH($G$9,Data!$A$4:$CG$4,0))+$L$9*$K$9%*(1-tr),IF($N8>MIN($A$9+$H$9,fy+sp),0,$L$9/100*OFFSET(Data!$A$6,$N8-$A$9,MATCH($G$9,Data!$A$4:$CG$4,0)-1))))))) -> 0 | Q8: =IF(OR($A$10<fy,$A$10>fy+sp),0,IF($G$10="exp",IF($A$10=$N8,$L$10*(tr-1),0),IF($G$10="atx",IF($A$10=$N8,-$L$10,0),IF($N8<$A$10,0,IF($N8=MIN($A$10+$H$10,fy+sp),$L$10/100*OFFSET(Data!$A$6,$N8-$A$10,MATCH($G$10,Data!$A$4:$CG$4,0))+$L$10*$K$10%*(1-tr),IF($N8>MIN($A$10+$H$10,fy+sp),0,$L$10/100*OFFSET(Data!$A$6,$N8-$A$10,MATCH($G$10,Data!$A$4:$CG$4,0)-1))))))) -> 0 | R8: =IF(OR($A$11<fy,$A$11>fy+sp),0,IF($G$11="exp",IF($A$11=$N8,$L$11*(tr-1),0),IF($G$11="atx",IF($A$11=$N8,-$L$11,0),IF($N8<$A$11,0,IF($N8=MIN($A$11+$H$11,fy+sp),$L$11/100*OFFSET(Data!$A$6,$N8-$A$11,MATCH($G$11,Data!$A$4:$CG$4,0))+$L$11*$K$11%*(1-tr),IF($N8>MIN($A$11+$H$11,fy+sp),0,$L$11/100*OFFSET(Data!$A$6,$N8-$A$11,MATCH($G$11,Data!$A$4:$CG$4,0)-1))))))) -> 0 | S8: =IF(OR($A$12<fy,$A$12>fy+sp),0,IF($G$12="exp",IF($A$12=$N8,$L$12*(tr-1),0),IF($G$12="atx",IF($A$12=$N8,-$L$12,0),IF($N8<$A$12,0,IF($N8=MIN($A$12+$H$12,fy+sp),$L$12/100*OFFSET(Data!$A$6,$N8-$A$12,MATCH($G$12,Data!$A$4:$CG$4,0))+$L$12*$K$12%*(1-tr),IF($N8>MIN($A$12+$H$12,fy+sp),0,$L$12/100*OFFSET(Data!$A$6,$N8-$A$12,MATCH($G$12,Data!$A$4:$CG$4,0)-1))))))) -> 0 | T8: =IF(OR($A$13<fy,$A$13>fy+sp),0,IF($G$13="exp",IF($A$13=$N8,$L$13*(tr-1),0),IF($G$13="atx",IF($A$13=$N8,-$L$13,0),IF($N8<$A$13,0,IF($N8=MIN($A$13+$H$13,fy+sp),$L$13/100*OFFSET(Data!$A$6,$N8-$A$13,MATCH($G$13,Data!$A$4:$CG$4,0))+$L$13*$K$13%*(1-tr),IF($N8>MIN($A$13+$H$13,fy+sp),0,$L$13/100*OFFSET(Data!$A$6,$N8-$A$13,MATCH($G$13,Data!$A$4:$CG$4,0)-1))))))) -> 0 | U8: =IF(OR($A$14<fy,$A$14>fy+sp),0,IF($G$14="exp",IF($A$14=$N8,$L$14*(tr-1),0),IF($G$14="atx",IF($A$14=$N8,-$L$14,0),IF($N8<$A$14,0,IF($N8=MIN($A$14+$H$14,fy+sp),$L$14/100*OFFSET(Data!$A$6,$N8-$A$14,MATCH($G$14,Data!$A$4:$CG$4,0))+$L$14*$K$14%*(1-tr),IF($N8>MIN($A$14+$H$14,fy+sp),0,$L$14/100*OFFSET(Data!$A$6,$N8-$A$14,MATCH($G$14,Data!$A$4:$CG$4,0)-1))))))) -> 0 | V8: =IF(OR($A$15<fy,$A$15>fy+sp),0,IF($G$15="exp",IF($A$15=$N8,$L$15*(tr-1),0),IF($G$15="atx",IF($A$15=$N8,-$L$15,0),IF($N8<$A$15,0,IF($N8=MIN($A$15+$H$15,fy+sp),$L$15/100*OFFSET(Data!$A$6,$N8-$A$15,MATCH($G$15,Data!$A$4:$CG$4,0))+$L$15*$K$15%*(1-tr),IF($N8>MIN($A$15+$H$15,fy+sp),0,$L$15/100*OFFSET(Data!$A$6,$N8-$A$15,MATCH($G$15,Data!$A$4:$CG$4,0)-1))))))) -> 0 | W8: =IF(OR($A$16<fy,$A$16>fy+sp),0,IF($G$16="exp",IF($A$16=$N8,$L$16*(tr-1),0),IF($G$16="atx",IF($A$16=$N8,-$L$16,0),IF($N8<$A$16,0,IF($N8=MIN($A$16+$H$16,fy+sp),$L$16/100*OFFSET(Data!$A$6,$N8-$A$16,MATCH($G$16,Data!$A$4:$CG$4,0))+$L$16*$K$16%*(1-tr),IF($N8>MIN($A$16+$H$16,fy+sp),0,$L$16/100*OFFSET(Data!$A$6,$N8-$A$16,MATCH($G$16,Data!$A$4:$CG$4,0)-1))))))) -> 0 | X8: =IF(OR($A$17<fy,$A$17>fy+sp),0,IF($G$17="exp",IF($A$17=$N8,$L$17*(tr-1),0),IF($G$17="atx",IF($A$17=$N8,-$L$17,0),IF($N8<$A$17,0,IF($N8=MIN($A$17+$H$17,fy+sp),$L$17/100*OFFSET(Data!$A$6,$N8-$A$17,MATCH($G$17,Data!$A$4:$CG$4,0))+$L$17*$K$17%*(1-tr),IF($N8>MIN($A$17+$H$17,fy+sp),0,$L$17/100*OFFSET(Data!$A$6,$N8-$A$17,MATCH($G$17,Data!$A$4:$CG$4,0)-1))))))) -> 0 | Y8: =IF(OR($A$18<fy,$A$18>fy+sp),0,IF($G$18="exp",IF($A$18=$N8,$L$18*(tr-1),0),IF($G$18="atx",IF($A$18=$N8,-$L$18,0),IF($N8<$A$18,0,IF($N8=MIN($A$18+$H$18,fy+sp),$L$18/100*OFFSET(Data!$A$6,$N8-$A$18,MATCH($G$18,Data!$A$4:$CG$4,0))+$L$18*$K$18%*(1-tr),IF($N8>MIN($A$18+$H$18,fy+sp),0,$L$18/100*OFFSET(Data!$A$6,$N8-$A$18,MATCH($G$18,Data!$A$4:$CG$4,0)-1))))))) -> -3843.563532 | Z8: =IF(OR($A$19<fy,$A$19>fy+sp),0,IF($G$19="exp",IF($A$19=$N8,$L$19*(tr-1),0),IF($G$19="atx",IF($A$19=$N8,-$L$19,0),IF($N8<$A$19,0,IF($N8=MIN($A$19+$H$19,fy+sp),$L$19/100*OFFSET(Data!$A$6,$N8-$A$19,MATCH($G$19,Data!$A$4:$CG$4,0))+$L$19*$K$19%*(1-tr),IF($N8>MIN($A$19+$H$19,fy+sp),0,$L$19/100*OFFSET(Data!$A$6,$N8-$A$19,MATCH($G$19,Data!$A$4:$CG$4,0)-1))))))) -> -1.798025557 | AA8: =IF(OR($A$20<fy,$A$20>fy+sp),0,IF($G$20="exp",IF($A$20=$N8,$L$20*(tr-1),0),IF($G$20="atx",IF($A$20=$N8,-$L$20,0),IF($N8<$A$20,0,IF($N8=MIN($A$20+$H$20,fy+sp),$L$20/100*OFFSET(Data!$A$6,$N8-$A$20,MATCH($G$20,Data!$A$4:$CG$4,0))+$L$20*$K$20%*(1-tr),IF($N8>MIN($A$20+$H$20,fy+sp),0,$L$20/100*OFFSET(Data!$A$6,$N8-$A$20,MATCH($G$20,Data!$A$4:$CG$4,0)-1))))))) -> 0 | AB8: =IF(OR($A$21<fy,$A$21>fy+sp),0,IF($G$21="exp",IF($A$21=$N8,$L$21*(tr-1),0),IF($G$21="atx",IF($A$21=$N8,-$L$21,0),IF($N8<$A$21,0,IF($N8=MIN($A$21+$H$21,fy+sp),$L$21/100*OFFSET(Data!$A$6,$N8-$A$21,MATCH($G$21,Data!$A$4:$CG$4,0))+$L$21*$K$21%*(1-tr),IF($N8>MIN($A$21+$H$21,fy+sp),0,$L$21/100*OFFSET(Data!$A$6,$N8-$A$21,MATCH($G$21,Data!$A$4:$CG$4,0)-1))))))) -> 0 | AC8: =IF(OR($A$22<fy,$A$22>fy+sp),0,IF($G$22="exp",IF($A$22=$N8,$L$22*(tr-1),0),IF($G$22="atx",IF($A$22=$N8,-$L$22,0),IF($N8<$A$22,0,IF($N8=MIN($A$22+$H$22,fy+sp),$L$22/100*OFFSET(Data!$A$6,$N8-$A$22,MATCH($G$22,Data!$A$4:$CG$4,0))+$L$22*$K$22%*(1-tr),IF($N8>MIN($A$22+$H$22,fy+sp),0,$L$22/100*OFFSET(Data!$A$6,$N8-$A$22,MATCH($G$22,Data!$A$4:$CG$4,0)-1))))))) -> 0 | AD8: =IF(OR($A$23<fy,$A$23>fy+sp),0,IF($G$23="exp",IF($A$23=$N8,$L$23*(tr-1),0),IF($G$23="atx",IF($A$23=$N8,-$L$23,0),IF($N8<$A$23,0,IF($N8=MIN($A$23+$H$23,fy+sp),$L$23/100*OFFSET(Data!$A$6,$N8-$A$23,MATCH($G$23,Data!$A$4:$CG$4,0))+$L$23*$K$23%*(1-tr),IF($N8>MIN($A$23+$H$23,fy+sp),0,$L$23/100*OFFSET(Data!$A$6,$N8-$A$23,MATCH($G$23,Data!$A$4:$CG$4,0)-1))))))) -> 0 | AE8: =IF(OR($A$24<fy,$A$24>fy+sp),0,IF($G$24="exp",IF($A$24=$N8,$L$24*(tr-1),0),IF($G$24="atx",IF($A$24=$N8,-$L$24,0),IF($N8<$A$24,0,IF($N8=MIN($A$24+$H$24,fy+sp),$L$24/100*OFFSET(Data!$A$6,$N8-$A$24,MATCH($G$24,Data!$A$4:$CG$4,0))+$L$24*$K$24%*(1-tr),IF($N8>MIN($A$24+$H$24,fy+sp),0,$L$24/100*OFFSET(Data!$A$6,$N8-$A$24,MATCH($G$24,Data!$A$4:$CG$4,0)-1))))))) -> 0 | AF8: =IF(OR($A$25<fy,$A$25>fy+sp),0,IF($G$25="exp",IF($A$25=$N8,$L$25*(tr-1),0),IF($G$25="atx",IF($A$25=$N8,-$L$25,0),IF($N8<$A$25,0,IF($N8=MIN($A$25+$H$25,fy+sp),$L$25/100*OFFSET(Data!$A$6,$N8-$A$25,MATCH($G$25,Data!$A$4:$CG$4,0))+$L$25*$K$25%*(1-tr),IF($N8>MIN($A$25+$H$25,fy+sp),0,$L$25/100*OFFSET(Data!$A$6,$N8-$A$25,MATCH($G$25,Data!$A$4:$CG$4,0)-1))))))) -> 0 | AG8: =IF(OR($A$26<fy,$A$26>fy+sp),0,IF($G$26="exp",IF($A$26=$N8,$L$26*(tr-1),0),IF($G$26="atx",IF($A$26=$N8,-$L$26,0),IF($N8<$A$26,0,IF($N8=MIN($A$26+$H$26,fy+sp),$L$26/100*OFFSET(Data!$A$6,$N8-$A$26,MATCH($G$26,Data!$A$4:$CG$4,0))+$L$26*$K$26%*(1-tr),IF($N8>MIN($A$26+$H$26,fy+sp),0,$L$26/100*OFFSET(Data!$A$6,$N8-$A$26,MATCH($G$26,Data!$A$4:$CG$4,0)-1))))))) -> 0 | AH8: =IF(OR($A$27<fy,$A$27>fy+sp),0,IF($G$27="exp",IF($A$27=$N8,$L$27*(tr-1),0),IF($G$27="atx",IF($A$27=$N8,-$L$27,0),IF($N8<$A$27,0,IF($N8=MIN($A$27+$H$27,fy+sp),$L$27/100*OFFSET(Data!$A$6,$N8-$A$27,MATCH($G$27,Data!$A$4:$CG$4,0))+$L$27*$K$27%*(1-tr),IF($N8>MIN($A$27+$H$27,fy+sp),0,$L$27/100*OFFSET(Data!$A$6,$N8-$A$27,MATCH($G$27,Data!$A$4:$CG$4,0)-1))))))) -> 0 | AI8: =IF(OR($A$28<fy,$A$28>fy+sp),0,IF($G$28="exp",IF($A$28=$N8,$L$28*(tr-1),0),IF($G$28="atx",IF($A$28=$N8,-$L$28,0),IF($N8<$A$28,0,IF($N8=MIN($A$28+$H$28,fy+sp),$L$28/100*OFFSET(Data!$A$6,$N8-$A$28,MATCH($G$28,Data!$A$4:$CG$4,0))+$L$28*$K$28%*(1-tr),IF($N8>MIN($A$28+$H$28,fy+sp),0,$L$28/100*OFFSET(Data!$A$6,$N8-$A$28,MATCH($G$28,Data!$A$4:$CG$4,0)-1))))))) -> 0 | AJ8: =IF(OR($A$29<fy,$A$29>fy+sp),0,IF($G$29="exp",IF($A$29=$N8,$L$29*(tr-1),0),IF($G$29="atx",IF($A$29=$N8,-$L$29,0),IF($N8<$A$29,0,IF($N8=MIN($A$29+$H$29,fy+sp),$L$29/100*OFFSET(Data!$A$6,$N8-$A$29,MATCH($G$29,Data!$A$4:$CG$4,0))+$L$29*$K$29%*(1-tr),IF($N8>MIN($A$29+$H$29,fy+sp),0,$L$29/100*OFFSET(Data!$A$6,$N8-$A$29,MATCH($G$29,Data!$A$4:$CG$4,0)-1))))))) -> 0 | AK8: =IF(OR($A$30<fy,$A$30>fy+sp),0,IF($G$30="exp",IF($A$30=$N8,$L$30*(tr-1),0),IF($G$30="atx",IF($A$30=$N8,-$L$30,0),IF($N8<$A$30,0,IF($N8=MIN($A$30+$H$30,fy+sp),$L$30/100*OFFSET(Data!$A$6,$N8-$A$30,MATCH($G$30,Data!$A$4:$CG$4,0))+$L$30*$K$30%*(1-tr),IF($N8>MIN($A$30+$H$30,fy+sp),0,$L$30/100*OFFSET(Data!$A$6,$N8-$A$30,MATCH($G$30,Data!$A$4:$CG$4,0)-1))))))) -> 0 | AL8: =IF(OR($A$31<fy,$A$31>fy+sp),0,IF($G$31="exp",IF($A$31=$N8,$L$31*(tr-1),0),IF($G$31="atx",IF($A$31=$N8,-$L$31,0),IF($N8<$A$31,0,IF($N8=MIN($A$31+$H$31,fy+sp),$L$31/100*OFFSET(Data!$A$6,$N8-$A$31,MATCH($G$31,Data!$A$4:$CG$4,0))+$L$31*$K$31%*(1-tr),IF($N8>MIN($A$31+$H$31,fy+sp),0,$L$31/100*OFFSET(Data!$A$6,$N8-$A$31,MATCH($G$31,Data!$A$4:$CG$4,0)-1))))))) -> 0 | AM8: =IF(OR($A$32<fy,$A$32>fy+sp),0,IF($G$32="exp",IF($A$32=$N8,$L$32*(tr-1),0),IF($G$32="atx",IF($A$32=$N8,-$L$32,0),IF($N8<$A$32,0,IF($N8=MIN($A$32+$H$32,fy+sp),$L$32/100*OFFSET(Data!$A$6,$N8-$A$32,MATCH($G$32,Data!$A$4:$CG$4,0))+$L$32*$K$32%*(1-tr),IF($N8>MIN($A$32+$H$32,fy+sp),0,$L$32/100*OFFSET(Data!$A$6,$N8-$A$32,MATCH($G$32,Data!$A$4:$CG$4,0)-1))))))) -> 0 | AN8: =IF(OR($A$33<fy,$A$33>fy+sp),0,IF($G$33="exp",IF($A$33=$N8,$L$33*(tr-1),0),IF($G$33="atx",IF($A$33=$N8,-$L$33,0),IF($N8<$A$33,0,IF($N8=MIN($A$33+$H$33,fy+sp),$L$33/100*OFFSET(Data!$A$6,$N8-$A$33,MATCH($G$33,Data!$A$4:$CG$4,0))+$L$33*$K$33%*(1-tr),IF($N8>MIN($A$33+$H$33,fy+sp),0,$L$33/100*OFFSET(Data!$A$6,$N8-$A$33,MATCH($G$33,Data!$A$4:$CG$4,0)-1))))))) -> 0 | AO8: =IF(OR($A$34<fy,$A$34>fy+sp),0,IF($G$34="exp",IF($A$34=$N8,$L$34*(tr-1),0),IF($G$34="atx",IF($A$34=$N8,-$L$34,0),IF($N8<$A$34,0,IF($N8=MIN($A$34+$H$34,fy+sp),$L$34/100*OFFSET(Data!$A$6,$N8-$A$34,MATCH($G$34,Data!$A$4:$CG$4,0))+$L$34*$K$34%*(1-tr),IF($N8>MIN($A$34+$H$34,fy+sp),0,$L$34/100*OFFSET(Data!$A$6,$N8-$A$34,MATCH($G$34,Data!$A$4:$CG$4,0)-1))))))) -> 0 | AP8: =IF(OR($A$35<fy,$A$35>fy+sp),0,IF($G$35="exp",IF($A$35=$N8,$L$35*(tr-1),0),IF($G$35="atx",IF($A$35=$N8,-$L$35,0),IF($N8<$A$35,0,IF($N8=MIN($A$35+$H$35,fy+sp),$L$35/100*OFFSET(Data!$A$6,$N8-$A$35,MATCH($G$35,Data!$A$4:$CG$4,0))+$L$35*$K$35%*(1-tr),IF($N8>MIN($A$35+$H$35,fy+sp),0,$L$35/100*OFFSET(Data!$A$6,$N8-$A$35,MATCH($G$35,Data!$A$4:$CG$4,0)-1))))))) -> 0 | AQ8: =IF(OR($A$36<fy,$A$36>fy+sp),0,IF($G$36="exp",IF($A$36=$N8,$L$36*(tr-1),0),IF($G$36="atx",IF($A$36=$N8,-$L$36,0),IF($N8<$A$36,0,IF($N8=MIN($A$36+$H$36,fy+sp),$L$36/100*OFFSET(Data!$A$6,$N8-$A$36,MATCH($G$36,Data!$A$4:$CG$4,0))+$L$36*$K$36%*(1-tr),IF($N8>MIN($A$36+$H$36,fy+sp),0,$L$36/100*OFFSET(Data!$A$6,$N8-$A$36,MATCH($G$36,Data!$A$4:$CG$4,0)-1))))))) -> 0 | AR8: =IF(OR($A$37<fy,$A$37>fy+sp),0,IF($G$37="exp",IF($A$37=$N8,$L$37*(tr-1),0),IF($G$37="atx",IF($A$37=$N8,-$L$37,0),IF($N8<$A$37,0,IF($N8=MIN($A$37+$H$37,fy+sp),$L$37/100*OFFSET(Data!$A$6,$N8-$A$37,MATCH($G$37,Data!$A$4:$CG$4,0))+$L$37*$K$37%*(1-tr),IF($N8>MIN($A$37+$H$37,fy+sp),0,$L$37/100*OFFSET(Data!$A$6,$N8-$A$37,MATCH($G$37,Data!$A$4:$CG$4,0)-1))))))) -> 0 | AS8: =IF(OR($A$38<fy,$A$38>fy+sp),0,IF($G$38="exp",IF($A$38=$N8,$L$38*(tr-1),0),IF($G$38="atx",IF($A$38=$N8,-$L$38,0),IF($N8<$A$38,0,IF($N8=MIN($A$38+$H$38,fy+sp),$L$38/100*OFFSET(Data!$A$6,$N8-$A$38,MATCH($G$38,Data!$A$4:$CG$4,0))+$L$38*$K$38%*(1-tr),IF($N8>MIN($A$38+$H$38,fy+sp),0,$L$38/100*OFFSET(Data!$A$6,$N8-$A$38,MATCH($G$38,Data!$A$4:$CG$4,0)-1))))))) -> 0 | AT8: =IF(OR($A$39<fy,$A$39>fy+sp),0,IF($G$39="exp",IF($A$39=$N8,$L$39*(tr-1),0),IF($G$39="atx",IF($A$39=$N8,-$L$39,0),IF($N8<$A$39,0,IF($N8=MIN($A$39+$H$39,fy+sp),$L$39/100*OFFSET(Data!$A$6,$N8-$A$39,MATCH($G$39,Data!$A$4:$CG$4,0))+$L$39*$K$39%*(1-tr),IF($N8>MIN($A$39+$H$39,fy+sp),0,$L$39/100*OFFSET(Data!$A$6,$N8-$A$39,MATCH($G$39,Data!$A$4:$CG$4,0)-1))))))) -> 0 | AU8: =IF(OR($A$40<fy,$A$40>fy+sp),0,IF($G$40="exp",IF($A$40=$N8,$L$40*(tr-1),0),IF($G$40="atx",IF($A$40=$N8,-$L$40,0),IF($N8<$A$40,0,IF($N8=MIN($A$40+$H$40,fy+sp),$L$40/100*OFFSET(Data!$A$6,$N8-$A$40,MATCH($G$40,Data!$A$4:$CG$4,0))+$L$40*$K$40%*(1-tr),IF($N8>MIN($A$40+$H$40,fy+sp),0,$L$40/100*OFFSET(Data!$A$6,$N8-$A$40,MATCH($G$40,Data!$A$4:$CG$4,0)-1))))))) -> 0 | AV8: =IF(OR($A$41<fy,$A$41>fy+sp),0,IF($G$41="exp",IF($A$41=$N8,$L$41*(tr-1),0),IF($G$41="atx",IF($A$41=$N8,-$L$41,0),IF($N8<$A$41,0,IF($N8=MIN($A$41+$H$41,fy+sp),$L$41/100*OFFSET(Data!$A$6,$N8-$A$41,MATCH($G$41,Data!$A$4:$CG$4,0))+$L$41*$K$41%*(1-tr),IF($N8>MIN($A$41+$H$41,fy+sp),0,$L$41/100*OFFSET(Data!$A$6,$N8-$A$41,MATCH($G$41,Data!$A$4:$CG$4,0)-1))))))) -> 0 | AW8: =IF(OR($A$42<fy,$A$42>fy+sp),0,IF($G$42="exp",IF($A$42=$N8,$L$42*(tr-1),0),IF($G$42="atx",IF($A$42=$N8,-$L$42,0),IF($N8<$A$42,0,IF($N8=MIN($A$42+$H$42,fy+sp),$L$42/100*OFFSET(Data!$A$6,$N8-$A$42,MATCH($G$42,Data!$A$4:$CG$4,0))+$L$42*$K$42%*(1-tr),IF($N8>MIN($A$42+$H$42,fy+sp),0,$L$42/100*OFFSET(Data!$A$6,$N8-$A$42,MATCH($G$42,Data!$A$4:$CG$4,0)-1))))))) -> 0 | AX8: =IF(OR($A$43<fy,$A$43>fy+sp),0,IF($G$43="exp",IF($A$43=$N8,$L$43*(tr-1),0),IF($G$43="atx",IF($A$43=$N8,-$L$43,0),IF($N8<$A$43,0,IF($N8=MIN($A$43+$H$43,fy+sp),$L$43/100*OFFSET(Data!$A$6,$N8-$A$43,MATCH($G$43,Data!$A$4:$CG$4,0))+$L$43*$K$43%*(1-tr),IF($N8>MIN($A$43+$H$43,fy+sp),0,$L$43/100*OFFSET(Data!$A$6,$N8-$A$43,MATCH($G$43,Data!$A$4:$CG$4,0)-1))))))) -> 0 | AY8: =IF(OR($A$44<fy,$A$44>fy+sp),0,IF($G$44="exp",IF($A$44=$N8,$L$44*(tr-1),0),IF($G$44="atx",IF($A$44=$N8,-$L$44,0),IF($N8<$A$44,0,IF($N8=MIN($A$44+$H$44,fy+sp),$L$44/100*OFFSET(Data!$A$6,$N8-$A$44,MATCH($G$44,Data!$A$4:$CG$4,0))+$L$44*$K$44%*(1-tr),IF($N8>MIN($A$44+$H$44,fy+sp),0,$L$44/100*OFFSET(Data!$A$6,$N8-$A$44,MATCH($G$44,Data!$A$4:$CG$4,0)-1))))))) -> 0 | AZ8: =IF(OR($A$45<fy,$A$45>fy+sp),0,IF($G$45="exp",IF($A$45=$N8,$L$45*(tr-1),0),IF($G$45="atx",IF($A$45=$N8,-$L$45,0),IF($N8<$A$45,0,IF($N8=MIN($A$45+$H$45,fy+sp),$L$45/100*OFFSET(Data!$A$6,$N8-$A$45,MATCH($G$45,Data!$A$4:$CG$4,0))+$L$45*$K$45%*(1-tr),IF($N8>MIN($A$45+$H$45,fy+sp),0,$L$45/100*OFFSET(Data!$A$6,$N8-$A$45,MATCH($G$45,Data!$A$4:$CG$4,0)-1))))))) -> 0 | BA8: =IF(OR($A$46<fy,$A$46>fy+sp),0,IF($G$46="exp",IF($A$46=$N8,$L$46*(tr-1),0),IF($G$46="atx",IF($A$46=$N8,-$L$46,0),IF($N8<$A$46,0,IF($N8=MIN($A$46+$H$46,fy+sp),$L$46/100*OFFSET(Data!$A$6,$N8-$A$46,MATCH($G$46,Data!$A$4:$CG$4,0))+$L$46*$K$46%*(1-tr),IF($N8>MIN($A$46+$H$46,fy+sp),0,$L$46/100*OFFSET(Data!$A$6,$N8-$A$46,MATCH($G$46,Data!$A$4:$CG$4,0)-1))))))) -> 0 | BB8: =IF(OR($A$47<fy,$A$47>fy+sp),0,IF($G$47="exp",IF($A$47=$N8,$L$47*(tr-1),0),IF($G$47="atx",IF($A$47=$N8,-$L$47,0),IF($N8<$A$47,0,IF($N8=MIN($A$47+$H$47,fy+sp),$L$47/100*OFFSET(Data!$A$6,$N8-$A$47,MATCH($G$47,Data!$A$4:$CG$4,0))+$L$47*$K$47%*(1-tr),IF($N8>MIN($A$47+$H$47,fy+sp),0,$L$47/100*OFFSET(Data!$A$6,$N8-$A$47,MATCH($G$47,Data!$A$4:$CG$4,0)-1))))))) -> 0 | BC8: =0 -> 0 | BD8: =0 -> 0 | BE8: =0 -> 0 | BF8: =0 -> 0 | BG8: =SUM(O8:BF8) -> -4017.576658 | BH8: =IF(AND(NOT(TRIM(G8)=""),NOT(G8=0),NOT(G8="exp"),NOT(G8="atx"),OR(H8=0,ISTEXT(H8))),1,0) -> 0 | BI8: =IF(OR(K8=0,K8>1,K8<-1),0,1) -> 0 | BJ8: =IF(OR(ISNUMBER(FIND("pv",G8,1)), LEFT(G8,2)="st", G8="geo", G8="wnd18", G8="wnd19"),1,0) -> 0 | BK8: 0
A9: 2020 | B9: HPR Sets,Atmospheric Corrosion | E9: =+'I. Own Operate Detail'!F$14 -> 1876.2151 | F9: 2.5 | G9: gast | H9: 45 | I9: 0 | K9: =IF(TRIM(I9)="",J9,I9) -> 0 | L9: =IF(OR(A9<fy,A9>=fy+sp),0,E9*(1+F9%)^(A9-date)) -> 1923.120477 | M9: =NPV(i,P9:P58)+P8 -> -1569.458746 | N9: =N8+1 -> 2020 | O9: =IF(OR($A$8<fy,$A$8>fy+sp),0,IF($G$8="exp",IF($A$8=$N9,$L$8*(tr-1),0),IF($G$8="atx",IF($A$8=$N9,-$L$8,0),IF($N9<$A$8,0,IF($N9=MIN($A$8+$H$8,fy+sp),$L$8/100*OFFSET(Data!$A$6,$N9-$A$8,MATCH($G$8,Data!$A$4:$CG$4,0))+$L$8*$K$8%*(1-tr),IF($N9>MIN($A$8+$H$8,fy+sp),0,$L$8/100*OFFSET(Data!$A$6,$N9-$A$8,MATCH($G$8,Data!$A$4:$CG$4,0)-1))))))) -> 0.7426314025 | P9: =IF(OR($A$9<fy,$A$9>fy+sp),0,IF($G$9="exp",IF($A$9=$N9,$L$9*(tr-1),0),IF($G$9="atx",IF($A$9=$N9,-$L$9,0),IF($N9<$A$9,0,IF($N9=MIN($A$9+$H$9,fy+sp),$L$9/100*OFFSET(Data!$A$6,$N9-$A$9,MATCH($G$9,Data!$A$4:$CG$4,0))+$L$9*$K$9%*(1-tr),IF($N9>MIN($A$9+$H$9,fy+sp),0,$L$9/100*OFFSET(Data!$A$6,$N9-$A$9,MATCH($G$9,Data!$A$4:$CG$4,0)-1))))))) -> -1923.120477 | Q9: =IF(OR($A$10<fy,$A$10>fy+sp),0,IF($G$10="exp",IF($A$10=$N9,$L$10*(tr-1),0),IF($G$10="atx",IF($A$10=$N9,-$L$10,0),IF($N9<$A$10,0,IF($N9=MIN($A$10+$H$10,fy+sp),$L$10/100*OFFSET(Data!$A$6,$N9-$A$10,MATCH($G$10,Data!$A$4:$CG$4,0))+$L$10*$K$10%*(1-tr),IF($N9>MIN($A$10+$H$10,fy+sp),0,$L$10/100*OFFSET(Data!$A$6,$N9-$A$10,MATCH($G$10,Data!$A$4:$CG$4,0)-1))))))) -> 0 | R9: =IF(OR($A$11<fy,$A$11>fy+sp),0,IF($G$11="exp",IF($A$11=$N9,$L$11*(tr-1),0),IF($G$11="atx",IF($A$11=$N9,-$L$11,0),IF($N9<$A$11,0,IF($N9=MIN($A$11+$H$11,fy+sp),$L$11/100*OFFSET(Data!$A$6,$N9-$A$11,MATCH($G$11,Data!$A$4:$CG$4,0))+$L$11*$K$11%*(1-tr),IF($N9>MIN($A$11+$H$11,fy+sp),0,$L$11/100*OFFSET(Data!$A$6,$N9-$A$11,MATCH($G$11,Data!$A$4:$CG$4,0)-1))))))) -> 0 | S9: =IF(OR($A$12<fy,$A$12>fy+sp),0,IF($G$12="exp",IF($A$12=$N9,$L$12*(tr-1),0),IF($G$12="atx",IF($A$12=$N9,-$L$12,0),IF($N9<$A$12,0,IF($N9=MIN($A$12+$H$12,fy+sp),$L$12/100*OFFSET(Data!$A$6,$N9-$A$12,MATCH($G$12,Data!$A$4:$CG$4,0))+$L$12*$K$12%*(1-tr),IF($N9>MIN($A$12+$H$12,fy+sp),0,$L$12/100*OFFSET(Data!$A$6,$N9-$A$12,MATCH($G$12,Data!$A$4:$CG$4,0)-1))))))) -> 0 | T9: =IF(OR($A$13<fy,$A$13>fy+sp),0,IF($G$13="exp",IF($A$13=$N9,$L$13*(tr-1),0),IF($G$13="atx",IF($A$13=$N9,-$L$13,0),IF($N9<$A$13,0,IF($N9=MIN($A$13+$H$13,fy+sp),$L$13/100*OFFSET(Data!$A$6,$N9-$A$13,MATCH($G$13,Data!$A$4:$CG$4,0))+$L$13*$K$13%*(1-tr),IF($N9>MIN($A$13+$H$13,fy+sp),0,$L$13/100*OFFSET(Data!$A$6,$N9-$A$13,MATCH($G$13,Data!$A$4:$CG$4,0)-1))))))) -> 0 | U9: =IF(OR($A$14<fy,$A$14>fy+sp),0,IF($G$14="exp",IF($A$14=$N9,$L$14*(tr-1),0),IF($G$14="atx",IF($A$14=$N9,-$L$14,0),IF($N9<$A$14,0,IF($N9=MIN($A$14+$H$14,fy+sp),$L$14/100*OFFSET(Data!$A$6,$N9-$A$14,MATCH($G$14,Data!$A$4:$CG$4,0))+$L$14*$K$14%*(1-tr),IF($N9>MIN($A$14+$H$14,fy+sp),0,$L$14/100*OFFSET(Data!$A$6,$N9-$A$14,MATCH($G$14,Data!$A$4:$CG$4,0)-1))))))) -> 0 | V9: =IF(OR($A$15<fy,$A$15>fy+sp),0,IF($G$15="exp",IF($A$15=$N9,$L$15*(tr-1),0),IF($G$15="atx",IF($A$15=$N9,-$L$15,0),IF($N9<$A$15,0,IF($N9=MIN($A$15+$H$15,fy+sp),$L$15/100*OFFSET(Data!$A$6,$N9-$A$15,MATCH($G$15,Data!$A$4:$CG$4,0))+$L$15*$K$15%*(1-tr),IF($N9>MIN($A$15+$H$15,fy+sp),0,$L$15/100*OFFSET(Data!$A$6,$N9-$A$15,MATCH($G$15,Data!$A$4:$CG$4,0)-1))))))) -> 0 | W9: =IF(OR($A$16<fy,$A$16>fy+sp),0,IF($G$16="exp",IF($A$16=$N9,$L$16*(tr-1),0),IF($G$16="atx",IF($A$16=$N9,-$L$16,0),IF($N9<$A$16,0,IF($N9=MIN($A$16+$H$16,fy+sp),$L$16/100*OFFSET(Data!$A$6,$N9-$A$16,MATCH($G$16,Data!$A$4:$CG$4,0))+$L$16*$K$16%*(1-tr),IF($N9>MIN($A$16+$H$16,fy+sp),0,$L$16/100*OFFSET(Data!$A$6,$N9-$A$16,MATCH($G$16,Data!$A$4:$CG$4,0)-1))))))) -> 0 | X9: =IF(OR($A$17<fy,$A$17>fy+sp),0,IF($G$17="exp",IF($A$17=$N9,$L$17*(tr-1),0),IF($G$17="atx",IF($A$17=$N9,-$L$17,0),IF($N9<$A$17,0,IF($N9=MIN($A$17+$H$17,fy+sp),$L$17/100*OFFSET(Data!$A$6,$N9-$A$17,MATCH($G$17,Data!$A$4:$CG$4,0))+$L$17*$K$17%*(1-tr),IF($N9>MIN($A$17+$H$17,fy+sp),0,$L$17/100*OFFSET(Data!$A$6,$N9-$A$17,MATCH($G$17,Data!$A$4:$CG$4,0)-1))))))) -> 0 | Y9: =IF(OR($A$18<fy,$A$18>fy+sp),0,IF($G$18="exp",IF($A$18=$N9,$L$18*(tr-1),0),IF($G$18="atx",IF($A$18=$N9,-$L$18,0),IF($N9<$A$18,0,IF($N9=MIN($A$18+$H$18,fy+sp),$L$18/100*OFFSET(Data!$A$6,$N9-$A$18,MATCH($G$18,Data!$A$4:$CG$4,0))+$L$18*$K$18%*(1-tr),IF($N9>MIN($A$18+$H$18,fy+sp),0,$L$18/100*OFFSET(Data!$A$6,$N9-$A$18,MATCH($G$18,Data!$A$4:$CG$4,0)-1))))))) -> 16.57433626 | Z9: =IF(OR($A$19<fy,$A$19>fy+sp),0,IF($G$19="exp",IF($A$19=$N9,$L$19*(tr-1),0),IF($G$19="atx",IF($A$19=$N9,-$L$19,0),IF($N9<$A$19,0,IF($N9=MIN($A$19+$H$19,fy+sp),$L$19/100*OFFSET(Data!$A$6,$N9-$A$19,MATCH($G$19,Data!$A$4:$CG$4,0))+$L$19*$K$19%*(1-tr),IF($N9>MIN($A$19+$H$19,fy+sp),0,$L$19/100*OFFSET(Data!$A$6,$N9-$A$19,MATCH($G$19,Data!$A$4:$CG$4,0)-1))))))) -> -0.01683335261 | AA9: =IF(OR($A$20<fy,$A$20>fy+sp),0,IF($G$20="exp",IF($A$20=$N9,$L$20*(tr-1),0),IF($G$20="atx",IF($A$20=$N9,-$L$20,0),IF($N9<$A$20,0,IF($N9=MIN($A$20+$H$20,fy+sp),$L$20/100*OFFSET(Data!$A$6,$N9-$A$20,MATCH($G$20,Data!$A$4:$CG$4,0))+$L$20*$K$20%*(1-tr),IF($N9>MIN($A$20+$H$20,fy+sp),0,$L$20/100*OFFSET(Data!$A$6,$N9-$A$20,MATCH($G$20,Data!$A$4:$CG$4,0)-1))))))) -> 0 | AB9: =IF(OR($A$21<fy,$A$21>fy+sp),0,IF($G$21="exp",IF($A$21=$N9,$L$21*(tr-1),0),IF($G$21="atx",IF($A$21=$N9,-$L$21,0),IF($N9<$A$21,0,IF($N9=MIN($A$21+$H$21,fy+sp),$L$21/100*OFFSET(Data!$A$6,$N9-$A$21,MATCH($G$21,Data!$A$4:$CG$4,0))+$L$21*$K$21%*(1-tr),IF($N9>MIN($A$21+$H$21,fy+sp),0,$L$21/100*OFFSET(Data!$A$6,$N9-$A$21,MATCH($G$21,Data!$A$4:$CG$4,0)-1))))))) -> 0 | AC9: =IF(OR($A$22<fy,$A$22>fy+sp),0,IF($G$22="exp",IF($A$22=$N9,$L$22*(tr-1),0),IF($G$22="atx",IF($A$22=$N9,-$L$22,0),IF($N9<$A$22,0,IF($N9=MIN($A$22+$H$22,fy+sp),$L$22/100*OFFSET(Data!$A$6,$N9-$A$22,MATCH($G$22,Data!$A$4:$CG$4,0))+$L$22*$K$22%*(1-tr),IF($N9>MIN($A$22+$H$22,fy+sp),0,$L$22/100*OFFSET(Data!$A$6,$N9-$A$22,MATCH($G$22,Data!$A$4:$CG$4,0)-1))))))) -> 0 | AD9: =IF(OR($A$23<fy,$A$23>fy+sp),0,IF($G$23="exp",IF($A$23=$N9,$L$23*(tr-1),0),IF($G$23="atx",IF($A$23=$N9,-$L$23,0),IF($N9<$A$23,0,IF($N9=MIN($A$23+$H$23,fy+sp),$L$23/100*OFFSET(Data!$A$6,$N9-$A$23,MATCH($G$23,Data!$A$4:$CG$4,0))+$L$23*$K$23%*(1-tr),IF($N9>MIN($A$23+$H$23,fy+sp),0,$L$23/100*OFFSET(Data!$A$6,$N9-$A$23,MATCH($G$23,Data!$A$4:$CG$4,0)-1))))))) -> 0 | AE9: =IF(OR($A$24<fy,$A$24>fy+sp),0,IF($G$24="exp",IF($A$24=$N9,$L$24*(tr-1),0),IF($G$24="atx",IF($A$24=$N9,-$L$24,0),IF($N9<$A$24,0,IF($N9=MIN($A$24+$H$24,fy+sp),$L$24/100*OFFSET(Data!$A$6,$N9-$A$24,MATCH($G$24,Data!$A$4:$CG$4,0))+$L$24*$K$24%*(1-tr),IF($N9>MIN($A$24+$H$24,fy+sp),0,$L$24/100*OFFSET(Data!$A$6,$N9-$A$24,MATCH($G$24,Data!$A$4:$CG$4,0)-1))))))) -> 0 | AF9: =IF(OR($A$25<fy,$A$25>fy+sp),0,IF($G$25="exp",IF($A$25=$N9,$L$25*(tr-1),0),IF($G$25="atx",IF($A$25=$N9,-$L$25,0),IF($N9<$A$25,0,IF($N9=MIN($A$25+$H$25,fy+sp),$L$25/100*OFFSET(Data!$A$6,$N9-$A$25,MATCH($G$25,Data!$A$4:$CG$4,0))+$L$25*$K$25%*(1-tr),IF($N9>MIN($A$25+$H$25,fy+sp),0,$L$25/100*OFFSET(Data!$A$6,$N9-$A$25,MATCH($G$25,Data!$A$4:$CG$4,0)-1))))))) -> 0 | AG9: =IF(OR($A$26<fy,$A$26>fy+sp),0,IF($G$26="exp",IF($A$26=$N9,$L$26*(tr-1),0),IF($G$26="atx",IF($A$26=$N9,-$L$26,0),IF($N9<$A$26,0,IF($N9=MIN($A$26+$H$26,fy+sp),$L$26/100*OFFSET(Data!$A$6,$N9-$A$26,MATCH($G$26,Data!$A$4:$CG$4,0))+$L$26*$K$26%*(1-tr),IF($N9>MIN($A$26+$H$26,fy+sp),0,$L$26/100*OFFSET(Data!$A$6,$N9-$A$26,MATCH($G$26,Data!$A$4:$CG$4,0)-1))))))) -> 0 | AH9: =IF(OR($A$27<fy,$A$27>fy+sp),0,IF($G$27="exp",IF($A$27=$N9,$L$27*(tr-1),0),IF($G$27="atx",IF($A$27=$N9,-$L$27,0),IF($N9<$A$27,0,IF($N9=MIN($A$27+$H$27,fy+sp),$L$27/100*OFFSET(Data!$A$6,$N9-$A$27,MATCH($G$27,Data!$A$4:$CG$4,0))+$L$27*$K$27%*(1-tr),IF($N9>MIN($A$27+$H$27,fy+sp),0,$L$27/100*OFFSET(Data!$A$6,$N9-$A$27,MATCH($G$27,Data!$A$4:$CG$4,0)-1))))))) -> 0 | AI9: =IF(OR($A$28<fy,$A$28>fy+sp),0,IF($G$28="exp",IF($A$28=$N9,$L$28*(tr-1),0),IF($G$28="atx",IF($A$28=$N9,-$L$28,0),IF($N9<$A$28,0,IF($N9=MIN($A$28+$H$28,fy+sp),$L$28/100*OFFSET(Data!$A$6,$N9-$A$28,MATCH($G$28,Data!$A$4:$CG$4,0))+$L$28*$K$28%*(1-tr),IF($N9>MIN($A$28+$H$28,fy+sp),0,$L$28/100*OFFSET(Data!$A$6,$N9-$A$28,MATCH($G$28,Data!$A$4:$CG$4,0)-1))))))) -> 0 | AJ9: =IF(OR($A$29<fy,$A$29>fy+sp),0,IF($G$29="exp",IF($A$29=$N9,$L$29*(tr-1),0),IF($G$29="atx",IF($A$29=$N9,-$L$29,0),IF($N9<$A$29,0,IF($N9=MIN($A$29+$H$29,fy+sp),$L$29/100*OFFSET(Data!$A$6,$N9-$A$29,MATCH($G$29,Data!$A$4:$CG$4,0))+$L$29*$K$29%*(1-tr),IF($N9>MIN($A$29+$H$29,fy+sp),0,$L$29/100*OFFSET(Data!$A$6,$N9-$A$29,MATCH($G$29,Data!$A$4:$CG$4,0)-1))))))) -> 0 | AK9: =IF(OR($A$30<fy,$A$30>fy+sp),0,IF($G$30="exp",IF($A$30=$N9,$L$30*(tr-1),0),IF($G$30="atx",IF($A$30=$N9,-$L$30,0),IF($N9<$A$30,0,IF($N9=MIN($A$30+$H$30,fy+sp),$L$30/100*OFFSET(Data!$A$6,$N9-$A$30,MATCH($G$30,Data!$A$4:$CG$4,0))+$L$30*$K$30%*(1-tr),IF($N9>MIN($A$30+$H$30,fy+sp),0,$L$30/100*OFFSET(Data!$A$6,$N9-$A$30,MATCH($G$30,Data!$A$4:$CG$4,0)-1))))))) -> 0 | AL9: =IF(OR($A$31<fy,$A$31>fy+sp),0,IF($G$31="exp",IF($A$31=$N9,$L$31*(tr-1),0),IF($G$31="atx",IF($A$31=$N9,-$L$31,0),IF($N9<$A$31,0,IF($N9=MIN($A$31+$H$31,fy+sp),$L$31/100*OFFSET(Data!$A$6,$N9-$A$31,MATCH($G$31,Data!$A$4:$CG$4,0))+$L$31*$K$31%*(1-tr),IF($N9>MIN($A$31+$H$31,fy+sp),0,$L$31/100*OFFSET(Data!$A$6,$N9-$A$31,MATCH($G$31,Data!$A$4:$CG$4,0)-1))))))) -> 0 | AM9: =IF(OR($A$32<fy,$A$32>fy+sp),0,IF($G$32="exp",IF($A$32=$N9,$L$32*(tr-1),0),IF($G$32="atx",IF($A$32=$N9,-$L$32,0),IF($N9<$A$32,0,IF($N9=MIN($A$32+$H$32,fy+sp),$L$32/100*OFFSET(Data!$A$6,$N9-$A$32,MATCH($G$32,Data!$A$4:$CG$4,0))+$L$32*$K$32%*(1-tr),IF($N9>MIN($A$32+$H$32,fy+sp),0,$L$32/100*OFFSET(Data!$A$6,$N9-$A$32,MATCH($G$32,Data!$A$4:$CG$4,0)-1))))))) -> 0 | AN9: =IF(OR($A$33<fy,$A$33>fy+sp),0,IF($G$33="exp",IF($A$33=$N9,$L$33*(tr-1),0),IF($G$33="atx",IF($A$33=$N9,-$L$33,0),IF($N9<$A$33,0,IF($N9=MIN($A$33+$H$33,fy+sp),$L$33/100*OFFSET(Data!$A$6,$N9-$A$33,MATCH($G$33,Data!$A$4:$CG$4,0))+$L$33*$K$33%*(1-tr),IF($N9>MIN($A$33+$H$33,fy+sp),0,$L$33/100*OFFSET(Data!$A$6,$N9-$A$33,MATCH($G$33,Data!$A$4:$CG$4,0)-1))))))) -> 0 | AO9: =IF(OR($A$34<fy,$A$34>fy+sp),0,IF($G$34="exp",IF($A$34=$N9,$L$34*(tr-1),0),IF($G$34="atx",IF($A$34=$N9,-$L$34,0),IF($N9<$A$34,0,IF($N9=MIN($A$34+$H$34,fy+sp),$L$34/100*OFFSET(Data!$A$6,$N9-$A$34,MATCH($G$34,Data!$A$4:$CG$4,0))+$L$34*$K$34%*(1-tr),IF($N9>MIN($A$34+$H$34,fy+sp),0,$L$34/100*OFFSET(Data!$A$6,$N9-$A$34,MATCH($G$34,Data!$A$4:$CG$4,0)-1))))))) -> 0 | AP9: =IF(OR($A$35<fy,$A$35>fy+sp),0,IF($G$35="exp",IF($A$35=$N9,$L$35*(tr-1),0),IF($G$35="atx",IF($A$35=$N9,-$L$35,0),IF($N9<$A$35,0,IF($N9=MIN($A$35+$H$35,fy+sp),$L$35/100*OFFSET(Data!$A$6,$N9-$A$35,MATCH($G$35,Data!$A$4:$CG$4,0))+$L$35*$K$35%*(1-tr),IF($N9>MIN($A$35+$H$35,fy+sp),0,$L$35/100*OFFSET(Data!$A$6,$N9-$A$35,MATCH($G$35,Data!$A$4:$CG$4,0)-1))))))) -> 0 | AQ9: =IF(OR($A$36<fy,$A$36>fy+sp),0,IF($G$36="exp",IF($A$36=$N9,$L$36*(tr-1),0),IF($G$36="atx",IF($A$36=$N9,-$L$36,0),IF($N9<$A$36,0,IF($N9=MIN($A$36+$H$36,fy+sp),$L$36/100*OFFSET(Data!$A$6,$N9-$A$36,MATCH($G$36,Data!$A$4:$CG$4,0))+$L$36*$K$36%*(1-tr),IF($N9>MIN($A$36+$H$36,fy+sp),0,$L$36/100*OFFSET(Data!$A$6,$N9-$A$36,MATCH($G$36,Data!$A$4:$CG$4,0)-1))))))) -> 0 | AR9: =IF(OR($A$37<fy,$A$37>fy+sp),0,IF($G$37="exp",IF($A$37=$N9,$L$37*(tr-1),0),IF($G$37="atx",IF($A$37=$N9,-$L$37,0),IF($N9<$A$37,0,IF($N9=MIN($A$37+$H$37,fy+sp),$L$37/100*OFFSET(Data!$A$6,$N9-$A$37,MATCH($G$37,Data!$A$4:$CG$4,0))+$L$37*$K$37%*(1-tr),IF($N9>MIN($A$37+$H$37,fy+sp),0,$L$37/100*OFFSET(Data!$A$6,$N9-$A$37,MATCH($G$37,Data!$A$4:$CG$4,0)-1))))))) -> 0 | AS9: =IF(OR($A$38<fy,$A$38>fy+sp),0,IF($G$38="exp",IF($A$38=$N9,$L$38*(tr-1),0),IF($G$38="atx",IF($A$38=$N9,-$L$38,0),IF($N9<$A$38,0,IF($N9=MIN($A$38+$H$38,fy+sp),$L$38/100*OFFSET(Data!$A$6,$N9-$A$38,MATCH($G$38,Data!$A$4:$CG$4,0))+$L$38*$K$38%*(1-tr),IF($N9>MIN($A$38+$H$38,fy+sp),0,$L$38/100*OFFSET(Data!$A$6,$N9-$A$38,MATCH($G$38,Data!$A$4:$CG$4,0)-1))))))) -> 0 | AT9: =IF(OR($A$39<fy,$A$39>fy+sp),0,IF($G$39="exp",IF($A$39=$N9,$L$39*(tr-1),0),IF($G$39="atx",IF($A$39=$N9,-$L$39,0),IF($N9<$A$39,0,IF($N9=MIN($A$39+$H$39,fy+sp),$L$39/100*OFFSET(Data!$A$6,$N9-$A$39,MATCH($G$39,Data!$A$4:$CG$4,0))+$L$39*$K$39%*(1-tr),IF($N9>MIN($A$39+$H$39,fy+sp),0,$L$39/100*OFFSET(Data!$A$6,$N9-$A$39,MATCH($G$39,Data!$A$4:$CG$4,0)-1))))))) -> 0 | AU9: =IF(OR($A$40<fy,$A$40>fy+sp),0,IF($G$40="exp",IF($A$40=$N9,$L$40*(tr-1),0),IF($G$40="atx",IF($A$40=$N9,-$L$40,0),IF($N9<$A$40,0,IF($N9=MIN($A$40+$H$40,fy+sp),$L$40/100*OFFSET(Data!$A$6,$N9-$A$40,MATCH($G$40,Data!$A$4:$CG$4,0))+$L$40*$K$40%*(1-tr),IF($N9>MIN($A$40+$H$40,fy+sp),0,$L$40/100*OFFSET(Data!$A$6,$N9-$A$40,MATCH($G$40,Data!$A$4:$CG$4,0)-1))))))) -> 0 | AV9: =IF(OR($A$41<fy,$A$41>fy+sp),0,IF($G$41="exp",IF($A$41=$N9,$L$41*(tr-1),0),IF($G$41="atx",IF($A$41=$N9,-$L$41,0),IF($N9<$A$41,0,IF($N9=MIN($A$41+$H$41,fy+sp),$L$41/100*OFFSET(Data!$A$6,$N9-$A$41,MATCH($G$41,Data!$A$4:$CG$4,0))+$L$41*$K$41%*(1-tr),IF($N9>MIN($A$41+$H$41,fy+sp),0,$L$41/100*OFFSET(Data!$A$6,$N9-$A$41,MATCH($G$41,Data!$A$4:$CG$4,0)-1))))))) -> 0 | AW9: =IF(OR($A$42<fy,$A$42>fy+sp),0,IF($G$42="exp",IF($A$42=$N9,$L$42*(tr-1),0),IF($G$42="atx",IF($A$42=$N9,-$L$42,0),IF($N9<$A$42,0,IF($N9=MIN($A$42+$H$42,fy+sp),$L$42/100*OFFSET(Data!$A$6,$N9-$A$42,MATCH($G$42,Data!$A$4:$CG$4,0))+$L$42*$K$42%*(1-tr),IF($N9>MIN($A$42+$H$42,fy+sp),0,$L$42/100*OFFSET(Data!$A$6,$N9-$A$42,MATCH($G$42,Data!$A$4:$CG$4,0)-1))))))) -> 0 | AX9: =IF(OR($A$43<fy,$A$43>fy+sp),0,IF($G$43="exp",IF($A$43=$N9,$L$43*(tr-1),0),IF($G$43="atx",IF($A$43=$N9,-$L$43,0),IF($N9<$A$43,0,IF($N9=MIN($A$43+$H$43,fy+sp),$L$43/100*OFFSET(Data!$A$6,$N9-$A$43,MATCH($G$43,Data!$A$4:$CG$4,0))+$L$43*$K$43%*(1-tr),IF($N9>MIN($A$43+$H$43,fy+sp),0,$L$43/100*OFFSET(Data!$A$6,$N9-$A$43,MATCH($G$43,Data!$A$4:$CG$4,0)-1))))))) -> 0 | AY9: =IF(OR($A$44<fy,$A$44>fy+sp),0,IF($G$44="exp",IF($A$44=$N9,$L$44*(tr-1),0),IF($G$44="atx",IF($A$44=$N9,-$L$44,0),IF($N9<$A$44,0,IF($N9=MIN($A$44+$H$44,fy+sp),$L$44/100*OFFSET(Data!$A$6,$N9-$A$44,MATCH($G$44,Data!$A$4:$CG$4,0))+$L$44*$K$44%*(1-tr),IF($N9>MIN($A$44+$H$44,fy+sp),0,$L$44/100*OFFSET(Data!$A$6,$N9-$A$44,MATCH($G$44,Data!$A$4:$CG$4,0)-1))))))) -> 0 | AZ9: =IF(OR($A$45<fy,$A$45>fy+sp),0,IF($G$45="exp",IF($A$45=$N9,$L$45*(tr-1),0),IF($G$45="atx",IF($A$45=$N9,-$L$45,0),IF($N9<$A$45,0,IF($N9=MIN($A$45+$H$45,fy+sp),$L$45/100*OFFSET(Data!$A$6,$N9-$A$45,MATCH($G$45,Data!$A$4:$CG$4,0))+$L$45*$K$45%*(1-tr),IF($N9>MIN($A$45+$H$45,fy+sp),0,$L$45/100*OFFSET(Data!$A$6,$N9-$A$45,MATCH($G$45,Data!$A$4:$CG$4,0)-1))))))) -> 0 | BA9: =IF(OR($A$46<fy,$A$46>fy+sp),0,IF($G$46="exp",IF($A$46=$N9,$L$46*(tr-1),0),IF($G$46="atx",IF($A$46=$N9,-$L$46,0),IF($N9<$A$46,0,IF($N9=MIN($A$46+$H$46,fy+sp),$L$46/100*OFFSET(Data!$A$6,$N9-$A$46,MATCH($G$46,Data!$A$4:$CG$4,0))+$L$46*$K$46%*(1-tr),IF($N9>MIN($A$46+$H$46,fy+sp),0,$L$46/100*OFFSET(Data!$A$6,$N9-$A$46,MATCH($G$46,Data!$A$4:$CG$4,0)-1))))))) -> 0 | BB9: =IF(OR($A$47<fy,$A$47>fy+sp),0,IF($G$47="exp",IF($A$47=$N9,$L$47*(tr-1),0),IF($G$47="atx",IF($A$47=$N9,-$L$47,0),IF($N9<$A$47,0,IF($N9=MIN($A$47+$H$47,fy+sp),$L$47/100*OFFSET(Data!$A$6,$N9-$A$47,MATCH($G$47,Data!$A$4:$CG$4,0))+$L$47*$K$47%*(1-tr),IF($N9>MIN($A$47+$H$47,fy+sp),0,$L$47/100*OFFSET(Data!$A$6,$N9-$A$47,MATCH($G$47,Data!$A$4:$CG$4,0)-1))))))) -> 0 | BC9: =IF($N8<fy+sp,IF(ISTEXT(B52),0,B52)*(tr-1)*(1+$L$52%)^($N9-date),0) -> 0 | BD9: =IF($N8<fy+sp,IF(ISTEXT(C52),0,C52)*(tr-1)*(1+$L$53%)^($N9-date),0) -> -1697.78663 | BE9: =IF($N8<fy+sp,IF(ISTEXT(D52),0,D52)*(tr-1)*(1+$L$54%)^($N9-date),0) -> 0 | BF9: =IF($N8<fy+sp,IF(ISTEXT(E52),0,E52)*(tr-1)*(1+$L$55%)^($N9-date),0) -> -18.4542025 | BG9: =SUM(O9:BF9) -> -3622.061176 | BH9: =IF(AND(NOT(TRIM(G9)=""),NOT(G9=0),NOT(G9="exp"),NOT(G9="atx"),OR(H9=0,ISTEXT(H9))),1,0) -> 0 | BI9: 0 | BJ9: =IF(OR(ISNUMBER(FIND("pv",G9,1)), LEFT(G9,2)="st", G9="geo", G9="wnd18", G9="wnd19"),1,0) -> 0 | BK9: 0
A10: 2021 | B10: Capital Expenditures | E10: =+'I. Own Operate Detail'!G$14 -> 172.2151 | F10: 2.5 | G10: gast | H10: 45 | I10: 0 | K10: 0 | L10: 180.9334894 | M10: =NPV(i,Q9:Q58)+Q8 -> -136.539456 | N10: =N9+1 -> 2021 | O10: =IF(OR($A$8<fy,$A$8>fy+sp),0,IF($G$8="exp",IF($A$8=$N10,$L$8*(tr-1),0),IF($G$8="atx",IF($A$8=$N10,-$L$8,0),IF($N10<$A$8,0,IF($N10=MIN($A$8+$H$8,fy+sp),$L$8/100*OFFSET(Data!$A$6,$N10-$A$8,MATCH($G$8,Data!$A$4:$CG$4,0))+$L$8*$K$8%*(1-tr),IF($N10>MIN($A$8+$H$8,fy+sp),0,$L$8/100*OFFSET(Data!$A$6,$N10-$A$8,MATCH($G$8,Data!$A$4:$CG$4,0)-1))))))) -> 2.889589529 | P10: =IF(OR($A$9<fy,$A$9>fy+sp),0,IF($G$9="exp",IF($A$9=$N10,$L$9*(tr-1),0),IF($G$9="atx",IF($A$9=$N10,-$L$9,0),IF($N10<$A$9,0,IF($N10=MIN($A$9+$H$9,fy+sp),$L$9/100*OFFSET(Data!$A$6,$N10-$A$9,MATCH($G$9,Data!$A$4:$CG$4,0))+$L$9*$K$9%*(1-tr),IF($N10>MIN($A$9+$H$9,fy+sp),0,$L$9/100*OFFSET(Data!$A$6,$N10-$A$9,MATCH($G$9,Data!$A$4:$CG$4,0)-1))))))) -> 8.292940964 | Q10: =IF(OR($A$10<fy,$A$10>fy+sp),0,IF($G$10="exp",IF($A$10=$N10,$L$10*(tr-1),0),IF($G$10="atx",IF($A$10=$N10,-$L$10,0),IF($N10<$A$10,0,IF($N10=MIN($A$10+$H$10,fy+sp),$L$10/100*OFFSET(Data!$A$6,$N10-$A$10,MATCH($G$10,Data!$A$4:$CG$4,0))+$L$10*$K$10%*(1-tr),IF($N10>MIN($A$10+$H$10,fy+sp),0,$L$10/100*OFFSET(Data!$A$6,$N10-$A$10,MATCH($G$10,Data!$A$4:$CG$4,0)-1))))))) -> -180.9334894 | R10: =IF(OR($A$11<fy,$A$11>fy+sp),0,IF($G$11="exp",IF($A$11=$N10,$L$11*(tr-1),0),IF($G$11="atx",IF($A$11=$N10,-$L$11,0),IF($N10<$A$11,0,IF($N10=MIN($A$11+$H$11,fy+sp),$L$11/100*OFFSET(Data!$A$6,$N10-$A$11,MATCH($G$11,Data!$A$4:$CG$4,0))+$L$11*$K$11%*(1-tr),IF($N10>MIN($A$11+$H$11,fy+sp),0,$L$11/100*OFFSET(Data!$A$6,$N10-$A$11,MATCH($G$11,Data!$A$4:$CG$4,0)-1))))))) -> 0 | S10: =IF(OR($A$12<fy,$A$12>fy+sp),0,IF($G$12="exp",IF($A$12=$N10,$L$12*(tr-1),0),IF($G$12="atx",IF($A$12=$N10,-$L$12,0),IF($N10<$A$12,0,IF($N10=MIN($A$12+$H$12,fy+sp),$L$12/100*OFFSET(Data!$A$6,$N10-$A$12,MATCH($G$12,Data!$A$4:$CG$4,0))+$L$12*$K$12%*(1-tr),IF($N10>MIN($A$12+$H$12,fy+sp),0,$L$12/100*OFFSET(Data!$A$6,$N10-$A$12,MATCH($G$12,Data!$A$4:$CG$4,0)-1))))))) -> 0 | T10: =IF(OR($A$13<fy,$A$13>fy+sp),0,IF($G$13="exp",IF($A$13=$N10,$L$13*(tr-1),0),IF($G$13="atx",IF($A$13=$N10,-$L$13,0),IF($N10<$A$13,0,IF($N10=MIN($A$13+$H$13,fy+sp),$L$13/100*OFFSET(Data!$A$6,$N10-$A$13,MATCH($G$13,Data!$A$4:$CG$4,0))+$L$13*$K$13%*(1-tr),IF($N10>MIN($A$13+$H$13,fy+sp),0,$L$13/100*OFFSET(Data!$A$6,$N10-$A$13,MATCH($G$13,Data!$A$4:$CG$4,0)-1))))))) -> 0 | U10: =IF(OR($A$14<fy,$A$14>fy+sp),0,IF($G$14="exp",IF($A$14=$N10,$L$14*(tr-1),0),IF($G$14="atx",IF($A$14=$N10,-$L$14,0),IF($N10<$A$14,0,IF($N10=MIN($A$14+$H$14,fy+sp),$L$14/100*OFFSET(Data!$A$6,$N10-$A$14,MATCH($G$14,Data!$A$4:$CG$4,0))+$L$14*$K$14%*(1-tr),IF($N10>MIN($A$14+$H$14,fy+sp),0,$L$14/100*OFFSET(Data!$A$6,$N10-$A$14,MATCH($G$14,Data!$A$4:$CG$4,0)-1))))))) -> 0 | V10: =IF(OR($A$15<fy,$A$15>fy+sp),0,IF($G$15="exp",IF($A$15=$N10,$L$15*(tr-1),0),IF($G$15="atx",IF($A$15=$N10,-$L$15,0),IF($N10<$A$15,0,IF($N10=MIN($A$15+$H$15,fy+sp),$L$15/100*OFFSET(Data!$A$6,$N10-$A$15,MATCH($G$15,Data!$A$4:$CG$4,0))+$L$15*$K$15%*(1-tr),IF($N10>MIN($A$15+$H$15,fy+sp),0,$L$15/100*OFFSET(Data!$A$6,$N10-$A$15,MATCH($G$15,Data!$A$4:$CG$4,0)-1))))))) -> 0 | W10: =IF(OR($A$16<fy,$A$16>fy+sp),0,IF($G$16="exp",IF($A$16=$N10,$L$16*(tr-1),0),IF($G$16="atx",IF($A$16=$N10,-$L$16,0),IF($N10<$A$16,0,IF($N10=MIN($A$16+$H$16,fy+sp),$L$16/100*OFFSET(Data!$A$6,$N10-$A$16,MATCH($G$16,Data!$A$4:$CG$4,0))+$L$16*$K$16%*(1-tr),IF($N10>MIN($A$16+$H$16,fy+sp),0,$L$16/100*OFFSET(Data!$A$6,$N10-$A$16,MATCH($G$16,Data!$A$4:$CG$4,0)-1))))))) -> 0 | X10: =IF(OR($A$17<fy,$A$17>fy+sp),0,IF($G$17="exp",IF($A$17=$N10,$L$17*(tr-1),0),IF($G$17="atx",IF($A$17=$N10,-$L$17,0),IF($N10<$A$17,0,IF($N10=MIN($A$17+$H$17,fy+sp),$L$17/100*OFFSET(Data!$A$6,$N10-$A$17,MATCH($G$17,Data!$A$4:$CG$4,0))+$L$17*$K$17%*(1-tr),IF($N10>MIN($A$17+$H$17,fy+sp),0,$L$17/100*OFFSET(Data!$A$6,$N10-$A$17,MATCH($G$17,Data!$A$4:$CG$4,0)-1))))))) -> 0 | Y10: =IF(OR($A$18<fy,$A$18>fy+sp),0,IF($G$18="exp",IF($A$18=$N10,$L$18*(tr-1),0),IF($G$18="atx",IF($A$18=$N10,-$L$18,0),IF($N10<$A$18,0,IF($N10=MIN($A$18+$H$18,fy+sp),$L$18/100*OFFSET(Data!$A$6,$N10-$A$18,MATCH($G$18,Data!$A$4:$CG$4,0))+$L$18*$K$18%*(1-tr),IF($N10>MIN($A$18+$H$18,fy+sp),0,$L$18/100*OFFSET(Data!$A$6,$N10-$A$18,MATCH($G$18,Data!$A$4:$CG$4,0)-1))))))) -> 64.49098212 | Z10: =IF(OR($A$19<fy,$A$19>fy+sp),0,IF($G$19="exp",IF($A$19=$N10,$L$19*(tr-1),0),IF($G$19="atx",IF($A$19=$N10,-$L$19,0),IF($N10<$A$19,0,IF($N10=MIN($A$19+$H$19,fy+sp),$L$19/100*OFFSET(Data!$A$6,$N10-$A$19,MATCH($G$19,Data!$A$4:$CG$4,0))+$L$19*$K$19%*(1-tr),IF($N10>MIN($A$19+$H$19,fy+sp),0,$L$19/100*OFFSET(Data!$A$6,$N10-$A$19,MATCH($G$19,Data!$A$4:$CG$4,0)-1))))))) -> -0.01683335261 | AA10: =IF(OR($A$20<fy,$A$20>fy+sp),0,IF($G$20="exp",IF($A$20=$N10,$L$20*(tr-1),0),IF($G$20="atx",IF($A$20=$N10,-$L$20,0),IF($N10<$A$20,0,IF($N10=MIN($A$20+$H$20,fy+sp),$L$20/100*OFFSET(Data!$A$6,$N10-$A$20,MATCH($G$20,Data!$A$4:$CG$4,0))+$L$20*$K$20%*(1-tr),IF($N10>MIN($A$20+$H$20,fy+sp),0,$L$20/100*OFFSET(Data!$A$6,$N10-$A$20,MATCH($G$20,Data!$A$4:$CG$4,0)-1))))))) -> 0 | AB10: =IF(OR($A$21<fy,$A$21>fy+sp),0,IF($G$21="exp",IF($A$21=$N10,$L$21*(tr-1),0),IF($G$21="atx",IF($A$21=$N10,-$L$21,0),IF($N10<$A$21,0,IF($N10=MIN($A$21+$H$21,fy+sp),$L$21/100*OFFSET(Data!$A$6,$N10-$A$21,MATCH($G$21,Data!$A$4:$CG$4,0))+$L$21*$K$21%*(1-tr),IF($N10>MIN($A$21+$H$21,fy+sp),0,$L$21/100*OFFSET(Data!$A$6,$N10-$A$21,MATCH($G$21,Data!$A$4:$CG$4,0)-1))))))) -> 0 | AC10: =IF(OR($A$22<fy,$A$22>fy+sp),0,IF($G$22="exp",IF($A$22=$N10,$L$22*(tr-1),0),IF($G$22="atx",IF($A$22=$N10,-$L$22,0),IF($N10<$A$22,0,IF($N10=MIN($A$22+$H$22,fy+sp),$L$22/100*OFFSET(Data!$A$6,$N10-$A$22,MATCH($G$22,Data!$A$4:$CG$4,0))+$L$22*$K$22%*(1-tr),IF($N10>MIN($A$22+$H$22,fy+sp),0,$L$22/100*OFFSET(Data!$A$6,$N10-$A$22,MATCH($G$22,Data!$A$4:$CG$4,0)-1))))))) -> 0 | AD10: =IF(OR($A$23<fy,$A$23>fy+sp),0,IF($G$23="exp",IF($A$23=$N10,$L$23*(tr-1),0),IF($G$23="atx",IF($A$23=$N10,-$L$23,0),IF($N10<$A$23,0,IF($N10=MIN($A$23+$H$23,fy+sp),$L$23/100*OFFSET(Data!$A$6,$N10-$A$23,MATCH($G$23,Data!$A$4:$CG$4,0))+$L$23*$K$23%*(1-tr),IF($N10>MIN($A$23+$H$23,fy+sp),0,$L$23/100*OFFSET(Data!$A$6,$N10-$A$23,MATCH($G$23,Data!$A$4:$CG$4,0)-1))))))) -> 0 | AE10: =IF(OR($A$24<fy,$A$24>fy+sp),0,IF($G$24="exp",IF($A$24=$N10,$L$24*(tr-1),0),IF($G$24="atx",IF($A$24=$N10,-$L$24,0),IF($N10<$A$24,0,IF($N10=MIN($A$24+$H$24,fy+sp),$L$24/100*OFFSET(Data!$A$6,$N10-$A$24,MATCH($G$24,Data!$A$4:$CG$4,0))+$L$24*$K$24%*(1-tr),IF($N10>MIN($A$24+$H$24,fy+sp),0,$L$24/100*OFFSET(Data!$A$6,$N10-$A$24,MATCH($G$24,Data!$A$4:$CG$4,0)-1))))))) -> 0 | AF10: =IF(OR($A$25<fy,$A$25>fy+sp),0,IF($G$25="exp",IF($A$25=$N10,$L$25*(tr-1),0),IF($G$25="atx",IF($A$25=$N10,-$L$25,0),IF($N10<$A$25,0,IF($N10=MIN($A$25+$H$25,fy+sp),$L$25/100*OFFSET(Data!$A$6,$N10-$A$25,MATCH($G$25,Data!$A$4:$CG$4,0))+$L$25*$K$25%*(1-tr),IF($N10>MIN($A$25+$H$25,fy+sp),0,$L$25/100*OFFSET(Data!$A$6,$N10-$A$25,MATCH($G$25,Data!$A$4:$CG$4,0)-1))))))) -> 0 | AG10: =IF(OR($A$26<fy,$A$26>fy+sp),0,IF($G$26="exp",IF($A$26=$N10,$L$26*(tr-1),0),IF($G$26="atx",IF($A$26=$N10,-$L$26,0),IF($N10<$A$26,0,IF($N10=MIN($A$26+$H$26,fy+sp),$L$26/100*OFFSET(Data!$A$6,$N10-$A$26,MATCH($G$26,Data!$A$4:$CG$4,0))+$L$26*$K$26%*(1-tr),IF($N10>MIN($A$26+$H$26,fy+sp),0,$L$26/100*OFFSET(Data!$A$6,$N10-$A$26,MATCH($G$26,Data!$A$4:$CG$4,0)-1))))))) -> 0 | AH10: =IF(OR($A$27<fy,$A$27>fy+sp),0,IF($G$27="exp",IF($A$27=$N10,$L$27*(tr-1),0),IF($G$27="atx",IF($A$27=$N10,-$L$27,0),IF($N10<$A$27,0,IF($N10=MIN($A$27+$H$27,fy+sp),$L$27/100*OFFSET(Data!$A$6,$N10-$A$27,MATCH($G$27,Data!$A$4:$CG$4,0))+$L$27*$K$27%*(1-tr),IF($N10>MIN($A$27+$H$27,fy+sp),0,$L$27/100*OFFSET(Data!$A$6,$N10-$A$27,MATCH($G$27,Data!$A$4:$CG$4,0)-1))))))) -> 0 | AI10: =IF(OR($A$28<fy,$A$28>fy+sp),0,IF($G$28="exp",IF($A$28=$N10,$L$28*(tr-1),0),IF($G$28="atx",IF($A$28=$N10,-$L$28,0),IF($N10<$A$28,0,IF($N10=MIN($A$28+$H$28,fy+sp),$L$28/100*OFFSET(Data!$A$6,$N10-$A$28,MATCH($G$28,Data!$A$4:$CG$4,0))+$L$28*$K$28%*(1-tr),IF($N10>MIN($A$28+$H$28,fy+sp),0,$L$28/100*OFFSET(Data!$A$6,$N10-$A$28,MATCH($G$28,Data!$A$4:$CG$4,0)-1))))))) -> 0 | AJ10: =IF(OR($A$29<fy,$A$29>fy+sp),0,IF($G$29="exp",IF($A$29=$N10,$L$29*(tr-1),0),IF($G$29="atx",IF($A$29=$N10,-$L$29,0),IF($N10<$A$29,0,IF($N10=MIN($A$29+$H$29,fy+sp),$L$29/100*OFFSET(Data!$A$6,$N10-$A$29,MATCH($G$29,Data!$A$4:$CG$4,0))+$L$29*$K$29%*(1-tr),IF($N10>MIN($A$29+$H$29,fy+sp),0,$L$29/100*OFFSET(Data!$A$6,$N10-$A$29,MATCH($G$29,Data!$A$4:$CG$4,0)-1))))))) -> 0 | AK10: =IF(OR($A$30<fy,$A$30>fy+sp),0,IF($G$30="exp",IF($A$30=$N10,$L$30*(tr-1),0),IF($G$30="atx",IF($A$30=$N10,-$L$30,0),IF($N10<$A$30,0,IF($N10=MIN($A$30+$H$30,fy+sp),$L$30/100*OFFSET(Data!$A$6,$N10-$A$30,MATCH($G$30,Data!$A$4:$CG$4,0))+$L$30*$K$30%*(1-tr),IF($N10>MIN($A$30+$H$30,fy+sp),0,$L$30/100*OFFSET(Data!$A$6,$N10-$A$30,MATCH($G$30,Data!$A$4:$CG$4,0)-1))))))) -> 0 | AL10: =IF(OR($A$31<fy,$A$31>fy+sp),0,IF($G$31="exp",IF($A$31=$N10,$L$31*(tr-1),0),IF($G$31="atx",IF($A$31=$N10,-$L$31,0),IF($N10<$A$31,0,IF($N10=MIN($A$31+$H$31,fy+sp),$L$31/100*OFFSET(Data!$A$6,$N10-$A$31,MATCH($G$31,Data!$A$4:$CG$4,0))+$L$31*$K$31%*(1-tr),IF($N10>MIN($A$31+$H$31,fy+sp),0,$L$31/100*OFFSET(Data!$A$6,$N10-$A$31,MATCH($G$31,Data!$A$4:$CG$4,0)-1))))))) -> 0 | AM10: =IF(OR($A$32<fy,$A$32>fy+sp),0,IF($G$32="exp",IF($A$32=$N10,$L$32*(tr-1),0),IF($G$32="atx",IF($A$32=$N10,-$L$32,0),IF($N10<$A$32,0,IF($N10=MIN($A$32+$H$32,fy+sp),$L$32/100*OFFSET(Data!$A$6,$N10-$A$32,MATCH($G$32,Data!$A$4:$CG$4,0))+$L$32*$K$32%*(1-tr),IF($N10>MIN($A$32+$H$32,fy+sp),0,$L$32/100*OFFSET(Data!$A$6,$N10-$A$32,MATCH($G$32,Data!$A$4:$CG$4,0)-1))))))) -> 0 | AN10: =IF(OR($A$33<fy,$A$33>fy+sp),0,IF($G$33="exp",IF($A$33=$N10,$L$33*(tr-1),0),IF($G$33="atx",IF($A$33=$N10,-$L$33,0),IF($N10<$A$33,0,IF($N10=MIN($A$33+$H$33,fy+sp),$L$33/100*OFFSET(Data!$A$6,$N10-$A$33,MATCH($G$33,Data!$A$4:$CG$4,0))+$L$33*$K$33%*(1-tr),IF($N10>MIN($A$33+$H$33,fy+sp),0,$L$33/100*OFFSET(Data!$A$6,$N10-$A$33,MATCH($G$33,Data!$A$4:$CG$4,0)-1))))))) -> 0 | AO10: =IF(OR($A$34<fy,$A$34>fy+sp),0,IF($G$34="exp",IF($A$34=$N10,$L$34*(tr-1),0),IF($G$34="atx",IF($A$34=$N10,-$L$34,0),IF($N10<$A$34,0,IF($N10=MIN($A$34+$H$34,fy+sp),$L$34/100*OFFSET(Data!$A$6,$N10-$A$34,MATCH($G$34,Data!$A$4:$CG$4,0))+$L$34*$K$34%*(1-tr),IF($N10>MIN($A$34+$H$34,fy+sp),0,$L$34/100*OFFSET(Data!$A$6,$N10-$A$34,MATCH($G$34,Data!$A$4:$CG$4,0)-1))))))) -> 0 | AP10: =IF(OR($A$35<fy,$A$35>fy+sp),0,IF($G$35="exp",IF($A$35=$N10,$L$35*(tr-1),0),IF($G$35="atx",IF($A$35=$N10,-$L$35,0),IF($N10<$A$35,0,IF($N10=MIN($A$35+$H$35,fy+sp),$L$35/100*OFFSET(Data!$A$6,$N10-$A$35,MATCH($G$35,Data!$A$4:$CG$4,0))+$L$35*$K$35%*(1-tr),IF($N10>MIN($A$35+$H$35,fy+sp),0,$L$35/100*OFFSET(Data!$A$6,$N10-$A$35,MATCH($G$35,Data!$A$4:$CG$4,0)-1))))))) -> 0 | AQ10: =IF(OR($A$36<fy,$A$36>fy+sp),0,IF($G$36="exp",IF($A$36=$N10,$L$36*(tr-1),0),IF($G$36="atx",IF($A$36=$N10,-$L$36,0),IF($N10<$A$36,0,IF($N10=MIN($A$36+$H$36,fy+sp),$L$36/100*OFFSET(Data!$A$6,$N10-$A$36,MATCH($G$36,Data!$A$4:$CG$4,0))+$L$36*$K$36%*(1-tr),IF($N10>MIN($A$36+$H$36,fy+sp),0,$L$36/100*OFFSET(Data!$A$6,$N10-$A$36,MATCH($G$36,Data!$A$4:$CG$4,0)-1))))))) -> 0 | AR10: =IF(OR($A$37<fy,$A$37>fy+sp),0,IF($G$37="exp",IF($A$37=$N10,$L$37*(tr-1),0),IF($G$37="atx",IF($A$37=$N10,-$L$37,0),IF($N10<$A$37,0,IF($N10=MIN($A$37+$H$37,fy+sp),$L$37/100*OFFSET(Data!$A$6,$N10-$A$37,MATCH($G$37,Data!$A$4:$CG$4,0))+$L$37*$K$37%*(1-tr),IF($N10>MIN($A$37+$H$37,fy+sp),0,$L$37/100*OFFSET(Data!$A$6,$N10-$A$37,MATCH($G$37,Data!$A$4:$CG$4,0)-1))))))) -> 0 | AS10: =IF(OR($A$38<fy,$A$38>fy+sp),0,IF($G$38="exp",IF($A$38=$N10,$L$38*(tr-1),0),IF($G$38="atx",IF($A$38=$N10,-$L$38,0),IF($N10<$A$38,0,IF($N10=MIN($A$38+$H$38,fy+sp),$L$38/100*OFFSET(Data!$A$6,$N10-$A$38,MATCH($G$38,Data!$A$4:$CG$4,0))+$L$38*$K$38%*(1-tr),IF($N10>MIN($A$38+$H$38,fy+sp),0,$L$38/100*OFFSET(Data!$A$6,$N10-$A$38,MATCH($G$38,Data!$A$4:$CG$4,0)-1))))))) -> 0 | AT10: =IF(OR($A$39<fy,$A$39>fy+sp),0,IF($G$39="exp",IF($A$39=$N10,$L$39*(tr-1),0),IF($G$39="atx",IF($A$39=$N10,-$L$39,0),IF($N10<$A$39,0,IF($N10=MIN($A$39+$H$39,fy+sp),$L$39/100*OFFSET(Data!$A$6,$N10-$A$39,MATCH($G$39,Data!$A$4:$CG$4,0))+$L$39*$K$39%*(1-tr),IF($N10>MIN($A$39+$H$39,fy+sp),0,$L$39/100*OFFSET(Data!$A$6,$N10-$A$39,MATCH($G$39,Data!$A$4:$CG$4,0)-1))))))) -> 0 | AU10: =IF(OR($A$40<fy,$A$40>fy+sp),0,IF($G$40="exp",IF($A$40=$N10,$L$40*(tr-1),0),IF($G$40="atx",IF($A$40=$N10,-$L$40,0),IF($N10<$A$40,0,IF($N10=MIN($A$40+$H$40,fy+sp),$L$40/100*OFFSET(Data!$A$6,$N10-$A$40,MATCH($G$40,Data!$A$4:$CG$4,0))+$L$40*$K$40%*(1-tr),IF($N10>MIN($A$40+$H$40,fy+sp),0,$L$40/100*OFFSET(Data!$A$6,$N10-$A$40,MATCH($G$40,Data!$A$4:$CG$4,0)-1))))))) -> 0 | AV10: =IF(OR($A$41<fy,$A$41>fy+sp),0,IF($G$41="exp",IF($A$41=$N10,$L$41*(tr-1),0),IF($G$41="atx",IF($A$41=$N10,-$L$41,0),IF($N10<$A$41,0,IF($N10=MIN($A$41+$H$41,fy+sp),$L$41/100*OFFSET(Data!$A$6,$N10-$A$41,MATCH($G$41,Data!$A$4:$CG$4,0))+$L$41*$K$41%*(1-tr),IF($N10>MIN($A$41+$H$41,fy+sp),0,$L$41/100*OFFSET(Data!$A$6,$N10-$A$41,MATCH($G$41,Data!$A$4:$CG$4,0)-1))))))) -> 0 | AW10: =IF(OR($A$42<fy,$A$42>fy+sp),0,IF($G$42="exp",IF($A$42=$N10,$L$42*(tr-1),0),IF($G$42="atx",IF($A$42=$N10,-$L$42,0),IF($N10<$A$42,0,IF($N10=MIN($A$42+$H$42,fy+sp),$L$42/100*OFFSET(Data!$A$6,$N10-$A$42,MATCH($G$42,Data!$A$4:$CG$4,0))+$L$42*$K$42%*(1-tr),IF($N10>MIN($A$42+$H$42,fy+sp),0,$L$42/100*OFFSET(Data!$A$6,$N10-$A$42,MATCH($G$42,Data!$A$4:$CG$4,0)-1))))))) -> 0 | AX10: =IF(OR($A$43<fy,$A$43>fy+sp),0,IF($G$43="exp",IF($A$43=$N10,$L$43*(tr-1),0),IF($G$43="atx",IF($A$43=$N10,-$L$43,0),IF($N10<$A$43,0,IF($N10=MIN($A$43+$H$43,fy+sp),$L$43/100*OFFSET(Data!$A$6,$N10-$A$43,MATCH($G$43,Data!$A$4:$CG$4,0))+$L$43*$K$43%*(1-tr),IF($N10>MIN($A$43+$H$43,fy+sp),0,$L$43/100*OFFSET(Data!$A$6,$N10-$A$43,MATCH($G$43,Data!$A$4:$CG$4,0)-1))))))) -> 0 | AY10: =IF(OR($A$44<fy,$A$44>fy+sp),0,IF($G$44="exp",IF($A$44=$N10,$L$44*(tr-1),0),IF($G$44="atx",IF($A$44=$N10,-$L$44,0),IF($N10<$A$44,0,IF($N10=MIN($A$44+$H$44,fy+sp),$L$44/100*OFFSET(Data!$A$6,$N10-$A$44,MATCH($G$44,Data!$A$4:$CG$4,0))+$L$44*$K$44%*(1-tr),IF($N10>MIN($A$44+$H$44,fy+sp),0,$L$44/100*OFFSET(Data!$A$6,$N10-$A$44,MATCH($G$44,Data!$A$4:$CG$4,0)-1))))))) -> 0 | AZ10: =IF(OR($A$45<fy,$A$45>fy+sp),0,IF($G$45="exp",IF($A$45=$N10,$L$45*(tr-1),0),IF($G$45="atx",IF($A$45=$N10,-$L$45,0),IF($N10<$A$45,0,IF($N10=MIN($A$45+$H$45,fy+sp),$L$45/100*OFFSET(Data!$A$6,$N10-$A$45,MATCH($G$45,Data!$A$4:$CG$4,0))+$L$45*$K$45%*(1-tr),IF($N10>MIN($A$45+$H$45,fy+sp),0,$L$45/100*OFFSET(Data!$A$6,$N10-$A$45,MATCH($G$45,Data!$A$4:$CG$4,0)-1))))))) -> 0 | BA10: =IF(OR($A$46<fy,$A$46>fy+sp),0,IF($G$46="exp",IF($A$46=$N10,$L$46*(tr-1),0),IF($G$46="atx",IF($A$46=$N10,-$L$46,0),IF($N10<$A$46,0,IF($N10=MIN($A$46+$H$46,fy+sp),$L$46/100*OFFSET(Data!$A$6,$N10-$A$46,MATCH($G$46,Data!$A$4:$CG$4,0))+$L$46*$K$46%*(1-tr),IF($N10>MIN($A$46+$H$46,fy+sp),0,$L$46/100*OFFSET(Data!$A$6,$N10-$A$46,MATCH($G$46,Data!$A$4:$CG$4,0)-1))))))) -> 0 | BB10: =IF(OR($A$47<fy,$A$47>fy+sp),0,IF($G$47="exp",IF($A$47=$N10,$L$47*(tr-1),0),IF($G$47="atx",IF($A$47=$N10,-$L$47,0),IF($N10<$A$47,0,IF($N10=MIN($A$47+$H$47,fy+sp),$L$47/100*OFFSET(Data!$A$6,$N10-$A$47,MATCH($G$47,Data!$A$4:$CG$4,0))+$L$47*$K$47%*(1-tr),IF($N10>MIN($A$47+$H$47,fy+sp),0,$L$47/100*OFFSET(Data!$A$6,$N10-$A$47,MATCH($G$47,Data!$A$4:$CG$4,0)-1))))))) -> 0 | BC10: -7.263574104 | BD10: 0 | BE10: 0 | BF10: =IF($N9<fy+sp,IF(ISTEXT(E53),0,E53)*(tr-1)*(1+$L$55%)^($N10-date),0) -> -18.91555756 | BG10: -131.4559418 | BH10: 0 | BI10: 0 | BJ10: 0 | BK10: 0
A11: 2022 | B11: Capital Expenditures | E11: =+'I. Own Operate Detail'!H$14 -> 172.2151 | F11: 2.5 | G11: gast | H11: 45 | I11: 0 | K11: 0 | L11: 185.4568267 | M11: =NPV(i,R9:R58)+R8 -> -129.1859538 | N11: 2022 | O11: =IF(OR($A$8<fy,$A$8>fy+sp),0,IF($G$8="exp",IF($A$8=$N11,$L$8*(tr-1),0),IF($G$8="atx",IF($A$8=$N11,-$L$8,0),IF($N11<$A$8,0,IF($N11=MIN($A$8+$H$8,fy+sp),$L$8/100*OFFSET(Data!$A$6,$N11-$A$8,MATCH($G$8,Data!$A$4:$CG$4,0))+$L$8*$K$8%*(1-tr),IF($N11>MIN($A$8+$H$8,fy+sp),0,$L$8/100*OFFSET(Data!$A$6,$N11-$A$8,MATCH($G$8,Data!$A$4:$CG$4,0)-1))))))) -> 2.495206971 | P11: =IF(OR($A$9<fy,$A$9>fy+sp),0,IF($G$9="exp",IF($A$9=$N11,$L$9*(tr-1),0),IF($G$9="atx",IF($A$9=$N11,-$L$9,0),IF($N11<$A$9,0,IF($N11=MIN($A$9+$H$9,fy+sp),$L$9/100*OFFSET(Data!$A$6,$N11-$A$9,MATCH($G$9,Data!$A$4:$CG$4,0))+$L$9*$K$9%*(1-tr),IF($N11>MIN($A$9+$H$9,fy+sp),0,$L$9/100*OFFSET(Data!$A$6,$N11-$A$9,MATCH($G$9,Data!$A$4:$CG$4,0)-1))))))) -> 32.26795324 | Q11: =IF(OR($A$10<fy,$A$10>fy+sp),0,IF($G$10="exp",IF($A$10=$N11,$L$10*(tr-1),0),IF($G$10="atx",IF($A$10=$N11,-$L$10,0),IF($N11<$A$10,0,IF($N11=MIN($A$10+$H$10,fy+sp),$L$10/100*OFFSET(Data!$A$6,$N11-$A$10,MATCH($G$10,Data!$A$4:$CG$4,0))+$L$10*$K$10%*(1-tr),IF($N11>MIN($A$10+$H$10,fy+sp),0,$L$10/100*OFFSET(Data!$A$6,$N11-$A$10,MATCH($G$10,Data!$A$4:$CG$4,0)-1))))))) -> 0.7802271172 | R11: =IF(OR($A$11<fy,$A$11>fy+sp),0,IF($G$11="exp",IF($A$11=$N11,$L$11*(tr-1),0),IF($G$11="atx",IF($A$11=$N11,-$L$11,0),IF($N11<$A$11,0,IF($N11=MIN($A$11+$H$11,fy+sp),$L$11/100*OFFSET(Data!$A$6,$N11-$A$11,MATCH($G$11,Data!$A$4:$CG$4,0))+$L$11*$K$11%*(1-tr),IF($N11>MIN($A$11+$H$11,fy+sp),0,$L$11/100*OFFSET(Data!$A$6,$N11-$A$11,MATCH($G$11,Data!$A$4:$CG$4,0)-1))))))) -> -185.4568267 | S11: =IF(OR($A$12<fy,$A$12>fy+sp),0,IF($G$12="exp",IF($A$12=$N11,$L$12*(tr-1),0),IF($G$12="atx",IF($A$12=$N11,-$L$12,0),IF($N11<$A$12,0,IF($N11=MIN($A$12+$H$12,fy+sp),$L$12/100*OFFSET(Data!$A$6,$N11-$A$12,MATCH($G$12,Data!$A$4:$CG$4,0))+$L$12*$K$12%*(1-tr),IF($N11>MIN($A$12+$H$12,fy+sp),0,$L$12/100*OFFSET(Data!$A$6,$N11-$A$12,MATCH($G$12,Data!$A$4:$CG$4,0)-1))))))) -> 0 | T11: =IF(OR($A$13<fy,$A$13>fy+sp),0,IF($G$13="exp",IF($A$13=$N11,$L$13*(tr-1),0),IF($G$13="atx",IF($A$13=$N11,-$L$13,0),IF($N11<$A$13,0,IF($N11=MIN($A$13+$H$13,fy+sp),$L$13/100*OFFSET(Data!$A$6,$N11-$A$13,MATCH($G$13,Data!$A$4:$CG$4,0))+$L$13*$K$13%*(1-tr),IF($N11>MIN($A$13+$H$13,fy+sp),0,$L$13/100*OFFSET(Data!$A$6,$N11-$A$13,MATCH($G$13,Data!$A$4:$CG$4,0)-1))))))) -> 0 | U11: =IF(OR($A$14<fy,$A$14>fy+sp),0,IF($G$14="exp",IF($A$14=$N11,$L$14*(tr-1),0),IF($G$14="atx",IF($A$14=$N11,-$L$14,0),IF($N11<$A$14,0,IF($N11=MIN($A$14+$H$14,fy+sp),$L$14/100*OFFSET(Data!$A$6,$N11-$A$14,MATCH($G$14,Data!$A$4:$CG$4,0))+$L$14*$K$14%*(1-tr),IF($N11>MIN($A$14+$H$14,fy+sp),0,$L$14/100*OFFSET(Data!$A$6,$N11-$A$14,MATCH($G$14,Data!$A$4:$CG$4,0)-1))))))) -> 0 | V11: =IF(OR($A$15<fy,$A$15>fy+sp),0,IF($G$15="exp",IF($A$15=$N11,$L$15*(tr-1),0),IF($G$15="atx",IF($A$15=$N11,-$L$15,0),IF($N11<$A$15,0,IF($N11=MIN($A$15+$H$15,fy+sp),$L$15/100*OFFSET(Data!$A$6,$N11-$A$15,MATCH($G$15,Data!$A$4:$CG$4,0))+$L$15*$K$15%*(1-tr),IF($N11>MIN($A$15+$H$15,fy+sp),0,$L$15/100*OFFSET(Data!$A$6,$N11-$A$15,MATCH($G$15,Data!$A$4:$CG$4,0)-1))))))) -> 0 | W11: =IF(OR($A$16<fy,$A$16>fy+sp),0,IF($G$16="exp",IF($A$16=$N11,$L$16*(tr-1),0),IF($G$16="atx",IF($A$16=$N11,-$L$16,0),IF($N11<$A$16,0,IF($N11=MIN($A$16+$H$16,fy+sp),$L$16/100*OFFSET(Data!$A$6,$N11-$A$16,MATCH($G$16,Data!$A$4:$CG$4,0))+$L$16*$K$16%*(1-tr),IF($N11>MIN($A$16+$H$16,fy+sp),0,$L$16/100*OFFSET(Data!$A$6,$N11-$A$16,MATCH($G$16,Data!$A$4:$CG$4,0)-1))))))) -> 0 | X11: =IF(OR($A$17<fy,$A$17>fy+sp),0,IF($G$17="exp",IF($A$17=$N11,$L$17*(tr-1),0),IF($G$17="atx",IF($A$17=$N11,-$L$17,0),IF($N11<$A$17,0,IF($N11=MIN($A$17+$H$17,fy+sp),$L$17/100*OFFSET(Data!$A$6,$N11-$A$17,MATCH($G$17,Data!$A$4:$CG$4,0))+$L$17*$K$17%*(1-tr),IF($N11>MIN($A$17+$H$17,fy+sp),0,$L$17/100*OFFSET(Data!$A$6,$N11-$A$17,MATCH($G$17,Data!$A$4:$CG$4,0)-1))))))) -> 0 | Y11: =IF(OR($A$18<fy,$A$18>fy+sp),0,IF($G$18="exp",IF($A$18=$N11,$L$18*(tr-1),0),IF($G$18="atx",IF($A$18=$N11,-$L$18,0),IF($N11<$A$18,0,IF($N11=MIN($A$18+$H$18,fy+sp),$L$18/100*OFFSET(Data!$A$6,$N11-$A$18,MATCH($G$18,Data!$A$4:$CG$4,0))+$L$18*$K$18%*(1-tr),IF($N11>MIN($A$18+$H$18,fy+sp),0,$L$18/100*OFFSET(Data!$A$6,$N11-$A$18,MATCH($G$18,Data!$A$4:$CG$4,0)-1))))))) -> 55.68899892 | Z11: =IF(OR($A$19<fy,$A$19>fy+sp),0,IF($G$19="exp",IF($A$19=$N11,$L$19*(tr-1),0),IF($G$19="atx",IF($A$19=$N11,-$L$19,0),IF($N11<$A$19,0,IF($N11=MIN($A$19+$H$19,fy+sp),$L$19/100*OFFSET(Data!$A$6,$N11-$A$19,MATCH($G$19,Data!$A$4:$CG$4,0))+$L$19*$K$19%*(1-tr),IF($N11>MIN($A$19+$H$19,fy+sp),0,$L$19/100*OFFSET(Data!$A$6,$N11-$A$19,MATCH($G$19,Data!$A$4:$CG$4,0)-1))))))) -> -0.01683335261 | AA11: =IF(OR($A$20<fy,$A$20>fy+sp),0,IF($G$20="exp",IF($A$20=$N11,$L$20*(tr-1),0),IF($G$20="atx",IF($A$20=$N11,-$L$20,0),IF($N11<$A$20,0,IF($N11=MIN($A$20+$H$20,fy+sp),$L$20/100*OFFSET(Data!$A$6,$N11-$A$20,MATCH($G$20,Data!$A$4:$CG$4,0))+$L$20*$K$20%*(1-tr),IF($N11>MIN($A$20+$H$20,fy+sp),0,$L$20/100*OFFSET(Data!$A$6,$N11-$A$20,MATCH($G$20,Data!$A$4:$CG$4,0)-1))))))) -> 0 | AB11: =IF(OR($A$21<fy,$A$21>fy+sp),0,IF($G$21="exp",IF($A$21=$N11,$L$21*(tr-1),0),IF($G$21="atx",IF($A$21=$N11,-$L$21,0),IF($N11<$A$21,0,IF($N11=MIN($A$21+$H$21,fy+sp),$L$21/100*OFFSET(Data!$A$6,$N11-$A$21,MATCH($G$21,Data!$A$4:$CG$4,0))+$L$21*$K$21%*(1-tr),IF($N11>MIN($A$21+$H$21,fy+sp),0,$L$21/100*OFFSET(Data!$A$6,$N11-$A$21,MATCH($G$21,Data!$A$4:$CG$4,0)-1))))))) -> 0 | AC11: =IF(OR($A$22<fy,$A$22>fy+sp),0,IF($G$22="exp",IF($A$22=$N11,$L$22*(tr-1),0),IF($G$22="atx",IF($A$22=$N11,-$L$22,0),IF($N11<$A$22,0,IF($N11=MIN($A$22+$H$22,fy+sp),$L$22/100*OFFSET(Data!$A$6,$N11-$A$22,MATCH($G$22,Data!$A$4:$CG$4,0))+$L$22*$K$22%*(1-tr),IF($N11>MIN($A$22+$H$22,fy+sp),0,$L$22/100*OFFSET(Data!$A$6,$N11-$A$22,MATCH($G$22,Data!$A$4:$CG$4,0)-1))))))) -> 0 | AD11: =IF(OR($A$23<fy,$A$23>fy+sp),0,IF($G$23="exp",IF($A$23=$N11,$L$23*(tr-1),0),IF($G$23="atx",IF($A$23=$N11,-$L$23,0),IF($N11<$A$23,0,IF($N11=MIN($A$23+$H$23,fy+sp),$L$23/100*OFFSET(Data!$A$6,$N11-$A$23,MATCH($G$23,Data!$A$4:$CG$4,0))+$L$23*$K$23%*(1-tr),IF($N11>MIN($A$23+$H$23,fy+sp),0,$L$23/100*OFFSET(Data!$A$6,$N11-$A$23,MATCH($G$23,Data!$A$4:$CG$4,0)-1))))))) -> 0 | AE11: =IF(OR($A$24<fy,$A$24>fy+sp),0,IF($G$24="exp",IF($A$24=$N11,$L$24*(tr-1),0),IF($G$24="atx",IF($A$24=$N11,-$L$24,0),IF($N11<$A$24,0,IF($N11=MIN($A$24+$H$24,fy+sp),$L$24/100*OFFSET(Data!$A$6,$N11-$A$24,MATCH($G$24,Data!$A$4:$CG$4,0))+$L$24*$K$24%*(1-tr),IF($N11>MIN($A$24+$H$24,fy+sp),0,$L$24/100*OFFSET(Data!$A$6,$N11-$A$24,MATCH($G$24,Data!$A$4:$CG$4,0)-1))))))) -> 0 | AF11: =IF(OR($A$25<fy,$A$25>fy+sp),0,IF($G$25="exp",IF($A$25=$N11,$L$25*(tr-1),0),IF($G$25="atx",IF($A$25=$N11,-$L$25,0),IF($N11<$A$25,0,IF($N11=MIN($A$25+$H$25,fy+sp),$L$25/100*OFFSET(Data!$A$6,$N11-$A$25,MATCH($G$25,Data!$A$4:$CG$4,0))+$L$25*$K$25%*(1-tr),IF($N11>MIN($A$25+$H$25,fy+sp),0,$L$25/100*OFFSET(Data!$A$6,$N11-$A$25,MATCH($G$25,Data!$A$4:$CG$4,0)-1))))))) -> 0 | AG11: =IF(OR($A$26<fy,$A$26>fy+sp),0,IF($G$26="exp",IF($A$26=$N11,$L$26*(tr-1),0),IF($G$26="atx",IF($A$26=$N11,-$L$26,0),IF($N11<$A$26,0,IF($N11=MIN($A$26+$H$26,fy+sp),$L$26/100*OFFSET(Data!$A$6,$N11-$A$26,MATCH($G$26,Data!$A$4:$CG$4,0))+$L$26*$K$26%*(1-tr),IF($N11>MIN($A$26+$H$26,fy+sp),0,$L$26/100*OFFSET(Data!$A$6,$N11-$A$26,MATCH($G$26,Data!$A$4:$CG$4,0)-1))))))) -> 0 | AH11: =IF(OR($A$27<fy,$A$27>fy+sp),0,IF($G$27="exp",IF($A$27=$N11,$L$27*(tr-1),0),IF($G$27="atx",IF($A$27=$N11,-$L$27,0),IF($N11<$A$27,0,IF($N11=MIN($A$27+$H$27,fy+sp),$L$27/100*OFFSET(Data!$A$6,$N11-$A$27,MATCH($G$27,Data!$A$4:$CG$4,0))+$L$27*$K$27%*(1-tr),IF($N11>MIN($A$27+$H$27,fy+sp),0,$L$27/100*OFFSET(Data!$A$6,$N11-$A$27,MATCH($G$27,Data!$A$4:$CG$4,0)-1))))))) -> 0 | AI11: =IF(OR($A$28<fy,$A$28>fy+sp),0,IF($G$28="exp",IF($A$28=$N11,$L$28*(tr-1),0),IF($G$28="atx",IF($A$28=$N11,-$L$28,0),IF($N11<$A$28,0,IF($N11=MIN($A$28+$H$28,fy+sp),$L$28/100*OFFSET(Data!$A$6,$N11-$A$28,MATCH($G$28,Data!$A$4:$CG$4,0))+$L$28*$K$28%*(1-tr),IF($N11>MIN($A$28+$H$28,fy+sp),0,$L$28/100*OFFSET(Data!$A$6,$N11-$A$28,MATCH($G$28,Data!$A$4:$CG$4,0)-1))))))) -> 0 | AJ11: =IF(OR($A$29<fy,$A$29>fy+sp),0,IF($G$29="exp",IF($A$29=$N11,$L$29*(tr-1),0),IF($G$29="atx",IF($A$29=$N11,-$L$29,0),IF($N11<$A$29,0,IF($N11=MIN($A$29+$H$29,fy+sp),$L$29/100*OFFSET(Data!$A$6,$N11-$A$29,MATCH($G$29,Data!$A$4:$CG$4,0))+$L$29*$K$29%*(1-tr),IF($N11>MIN($A$29+$H$29,fy+sp),0,$L$29/100*OFFSET(Data!$A$6,$N11-$A$29,MATCH($G$29,Data!$A$4:$CG$4,0)-1))))))) -> 0 | AK11: =IF(OR($A$30<fy,$A$30>fy+sp),0,IF($G$30="exp",IF($A$30=$N11,$L$30*(tr-1),0),IF($G$30="atx",IF($A$30=$N11,-$L$30,0),IF($N11<$A$30,0,IF($N11=MIN($A$30+$H$30,fy+sp),$L$30/100*OFFSET(Data!$A$6,$N11-$A$30,MATCH($G$30,Data!$A$4:$CG$4,0))+$L$30*$K$30%*(1-tr),IF($N11>MIN($A$30+$H$30,fy+sp),0,$L$30/100*OFFSET(Data!$A$6,$N11-$A$30,MATCH($G$30,Data!$A$4:$CG$4,0)-1))))))) -> 0 | AL11: =IF(OR($A$31<fy,$A$31>fy+sp),0,IF($G$31="exp",IF($A$31=$N11,$L$31*(tr-1),0),IF($G$31="atx",IF($A$31=$N11,-$L$31,0),IF($N11<$A$31,0,IF($N11=MIN($A$31+$H$31,fy+sp),$L$31/100*OFFSET(Data!$A$6,$N11-$A$31,MATCH($G$31,Data!$A$4:$CG$4,0))+$L$31*$K$31%*(1-tr),IF($N11>MIN($A$31+$H$31,fy+sp),0,$L$31/100*OFFSET(Data!$A$6,$N11-$A$31,MATCH($G$31,Data!$A$4:$CG$4,0)-1))))))) -> 0 | AM11: =IF(OR($A$32<fy,$A$32>fy+sp),0,IF($G$32="exp",IF($A$32=$N11,$L$32*(tr-1),0),IF($G$32="atx",IF($A$32=$N11,-$L$32,0),IF($N11<$A$32,0,IF($N11=MIN($A$32+$H$32,fy+sp),$L$32/100*OFFSET(Data!$A$6,$N11-$A$32,MATCH($G$32,Data!$A$4:$CG$4,0))+$L$32*$K$32%*(1-tr),IF($N11>MIN($A$32+$H$32,fy+sp),0,$L$32/100*OFFSET(Data!$A$6,$N11-$A$32,MATCH($G$32,Data!$A$4:$CG$4,0)-1))))))) -> 0 | AN11: =IF(OR($A$33<fy,$A$33>fy+sp),0,IF($G$33="exp",IF($A$33=$N11,$L$33*(tr-1),0),IF($G$33="atx",IF($A$33=$N11,-$L$33,0),IF($N11<$A$33,0,IF($N11=MIN($A$33+$H$33,fy+sp),$L$33/100*OFFSET(Data!$A$6,$N11-$A$33,MATCH($G$33,Data!$A$4:$CG$4,0))+$L$33*$K$33%*(1-tr),IF($N11>MIN($A$33+$H$33,fy+sp),0,$L$33/100*OFFSET(Data!$A$6,$N11-$A$33,MATCH($G$33,Data!$A$4:$CG$4,0)-1))))))) -> 0 | AO11: =IF(OR($A$34<fy,$A$34>fy+sp),0,IF($G$34="exp",IF($A$34=$N11,$L$34*(tr-1),0),IF($G$34="atx",IF($A$34=$N11,-$L$34,0),IF($N11<$A$34,0,IF($N11=MIN($A$34+$H$34,fy+sp),$L$34/100*OFFSET(Data!$A$6,$N11-$A$34,MATCH($G$34,Data!$A$4:$CG$4,0))+$L$34*$K$34%*(1-tr),IF($N11>MIN($A$34+$H$34,fy+sp),0,$L$34/100*OFFSET(Data!$A$6,$N11-$A$34,MATCH($G$34,Data!$A$4:$CG$4,0)-1))))))) -> 0 | AP11: =IF(OR($A$35<fy,$A$35>fy+sp),0,IF($G$35="exp",IF($A$35=$N11,$L$35*(tr-1),0),IF($G$35="atx",IF($A$35=$N11,-$L$35,0),IF($N11<$A$35,0,IF($N11=MIN($A$35+$H$35,fy+sp),$L$35/100*OFFSET(Data!$A$6,$N11-$A$35,MATCH($G$35,Data!$A$4:$CG$4,0))+$L$35*$K$35%*(1-tr),IF($N11>MIN($A$35+$H$35,fy+sp),0,$L$35/100*OFFSET(Data!$A$6,$N11-$A$35,MATCH($G$35,Data!$A$4:$CG$4,0)-1))))))) -> 0 | AQ11: =IF(OR($A$36<fy,$A$36>fy+sp),0,IF($G$36="exp",IF($A$36=$N11,$L$36*(tr-1),0),IF($G$36="atx",IF($A$36=$N11,-$L$36,0),IF($N11<$A$36,0,IF($N11=MIN($A$36+$H$36,fy+sp),$L$36/100*OFFSET(Data!$A$6,$N11-$A$36,MATCH($G$36,Data!$A$4:$CG$4,0))+$L$36*$K$36%*(1-tr),IF($N11>MIN($A$36+$H$36,fy+sp),0,$L$36/100*OFFSET(Data!$A$6,$N11-$A$36,MATCH($G$36,Data!$A$4:$CG$4,0)-1))))))) -> 0 | AR11: =IF(OR($A$37<fy,$A$37>fy+sp),0,IF($G$37="exp",IF($A$37=$N11,$L$37*(tr-1),0),IF($G$37="atx",IF($A$37=$N11,-$L$37,0),IF($N11<$A$37,0,IF($N11=MIN($A$37+$H$37,fy+sp),$L$37/100*OFFSET(Data!$A$6,$N11-$A$37,MATCH($G$37,Data!$A$4:$CG$4,0))+$L$37*$K$37%*(1-tr),IF($N11>MIN($A$37+$H$37,fy+sp),0,$L$37/100*OFFSET(Data!$A$6,$N11-$A$37,MATCH($G$37,Data!$A$4:$CG$4,0)-1))))))) -> 0 | AS11: =IF(OR($A$38<fy,$A$38>fy+sp),0,IF($G$38="exp",IF($A$38=$N11,$L$38*(tr-1),0),IF($G$38="atx",IF($A$38=$N11,-$L$38,0),IF($N11<$A$38,0,IF($N11=MIN($A$38+$H$38,fy+sp),$L$38/100*OFFSET(Data!$A$6,$N11-$A$38,MATCH($G$38,Data!$A$4:$CG$4,0))+$L$38*$K$38%*(1-tr),IF($N11>MIN($A$38+$H$38,fy+sp),0,$L$38/100*OFFSET(Data!$A$6,$N11-$A$38,MATCH($G$38,Data!$A$4:$CG$4,0)-1))))))) -> 0 | AT11: =IF(OR($A$39<fy,$A$39>fy+sp),0,IF($G$39="exp",IF($A$39=$N11,$L$39*(tr-1),0),IF($G$39="atx",IF($A$39=$N11,-$L$39,0),IF($N11<$A$39,0,IF($N11=MIN($A$39+$H$39,fy+sp),$L$39/100*OFFSET(Data!$A$6,$N11-$A$39,MATCH($G$39,Data!$A$4:$CG$4,0))+$L$39*$K$39%*(1-tr),IF($N11>MIN($A$39+$H$39,fy+sp),0,$L$39/100*OFFSET(Data!$A$6,$N11-$A$39,MATCH($G$39,Data!$A$4:$CG$4,0)-1))))))) -> 0 | AU11: =IF(OR($A$40<fy,$A$40>fy+sp),0,IF($G$40="exp",IF($A$40=$N11,$L$40*(tr-1),0),IF($G$40="atx",IF($A$40=$N11,-$L$40,0),IF($N11<$A$40,0,IF($N11=MIN($A$40+$H$40,fy+sp),$L$40/100*OFFSET(Data!$A$6,$N11-$A$40,MATCH($G$40,Data!$A$4:$CG$4,0))+$L$40*$K$40%*(1-tr),IF($N11>MIN($A$40+$H$40,fy+sp),0,$L$40/100*OFFSET(Data!$A$6,$N11-$A$40,MATCH($G$40,Data!$A$4:$CG$4,0)-1))))))) -> 0 | AV11: =IF(OR($A$41<fy,$A$41>fy+sp),0,IF($G$41="exp",IF($A$41=$N11,$L$41*(tr-1),0),IF($G$41="atx",IF($A$41=$N11,-$L$41,0),IF($N11<$A$41,0,IF($N11=MIN($A$41+$H$41,fy+sp),$L$41/100*OFFSET(Data!$A$6,$N11-$A$41,MATCH($G$41,Data!$A$4:$CG$4,0))+$L$41*$K$41%*(1-tr),IF($N11>MIN($A$41+$H$41,fy+sp),0,$L$41/100*OFFSET(Data!$A$6,$N11-$A$41,MATCH($G$41,Data!$A$4:$CG$4,0)-1))))))) -> 0 | AW11: =IF(OR($A$42<fy,$A$42>fy+sp),0,IF($G$42="exp",IF($A$42=$N11,$L$42*(tr-1),0),IF($G$42="atx",IF($A$42=$N11,-$L$42,0),IF($N11<$A$42,0,IF($N11=MIN($A$42+$H$42,fy+sp),$L$42/100*OFFSET(Data!$A$6,$N11-$A$42,MATCH($G$42,Data!$A$4:$CG$4,0))+$L$42*$K$42%*(1-tr),IF($N11>MIN($A$42+$H$42,fy+sp),0,$L$42/100*OFFSET(Data!$A$6,$N11-$A$42,MATCH($G$42,Data!$A$4:$CG$4,0)-1))))))) -> 0 | AX11: =IF(OR($A$43<fy,$A$43>fy+sp),0,IF($G$43="exp",IF($A$43=$N11,$L$43*(tr-1),0),IF($G$43="atx",IF($A$43=$N11,-$L$43,0),IF($N11<$A$43,0,IF($N11=MIN($A$43+$H$43,fy+sp),$L$43/100*OFFSET(Data!$A$6,$N11-$A$43,MATCH($G$43,Data!$A$4:$CG$4,0))+$L$43*$K$43%*(1-tr),IF($N11>MIN($A$43+$H$43,fy+sp),0,$L$43/100*OFFSET(Data!$A$6,$N11-$A$43,MATCH($G$43,Data!$A$4:$CG$4,0)-1))))))) -> 0 | AY11: =IF(OR($A$44<fy,$A$44>fy+sp),0,IF($G$44="exp",IF($A$44=$N11,$L$44*(tr-1),0),IF($G$44="atx",IF($A$44=$N11,-$L$44,0),IF($N11<$A$44,0,IF($N11=MIN($A$44+$H$44,fy+sp),$L$44/100*OFFSET(Data!$A$6,$N11-$A$44,MATCH($G$44,Data!$A$4:$CG$4,0))+$L$44*$K$44%*(1-tr),IF($N11>MIN($A$44+$H$44,fy+sp),0,$L$44/100*OFFSET(Data!$A$6,$N11-$A$44,MATCH($G$44,Data!$A$4:$CG$4,0)-1))))))) -> 0 | AZ11: =IF(OR($A$45<fy,$A$45>fy+sp),0,IF($G$45="exp",IF($A$45=$N11,$L$45*(tr-1),0),IF($G$45="atx",IF($A$45=$N11,-$L$45,0),IF($N11<$A$45,0,IF($N11=MIN($A$45+$H$45,fy+sp),$L$45/100*OFFSET(Data!$A$6,$N11-$A$45,MATCH($G$45,Data!$A$4:$CG$4,0))+$L$45*$K$45%*(1-tr),IF($N11>MIN($A$45+$H$45,fy+sp),0,$L$45/100*OFFSET(Data!$A$6,$N11-$A$45,MATCH($G$45,Data!$A$4:$CG$4,0)-1))))))) -> 0 | BA11: =IF(OR($A$46<fy,$A$46>fy+sp),0,IF($G$46="exp",IF($A$46=$N11,$L$46*(tr-1),0),IF($G$46="atx",IF($A$46=$N11,-$L$46,0),IF($N11<$A$46,0,IF($N11=MIN($A$46+$H$46,fy+sp),$L$46/100*OFFSET(Data!$A$6,$N11-$A$46,MATCH($G$46,Data!$A$4:$CG$4,0))+$L$46*$K$46%*(1-tr),IF($N11>MIN($A$46+$H$46,fy+sp),0,$L$46/100*OFFSET(Data!$A$6,$N11-$A$46,MATCH($G$46,Data!$A$4:$CG$4,0)-1))))))) -> 0 | BB11: =IF(OR($A$47<fy,$A$47>fy+sp),0,IF($G$47="exp",IF($A$47=$N11,$L$47*(tr-1),0),IF($G$47="atx",IF($A$47=$N11,-$L$47,0),IF($N11<$A$47,0,IF($N11=MIN($A$47+$H$47,fy+sp),$L$47/100*OFFSET(Data!$A$6,$N11-$A$47,MATCH($G$47,Data!$A$4:$CG$4,0))+$L$47*$K$47%*(1-tr),IF($N11>MIN($A$47+$H$47,fy+sp),0,$L$47/100*OFFSET(Data!$A$6,$N11-$A$47,MATCH($G$47,Data!$A$4:$CG$4,0)-1))))))) -> 0 | BC11: -7.445163457 | BD11: -2326.61358 | BE11: 0 | BF11: =IF($N10<fy+sp,IF(ISTEXT(E54),0,E54)*(tr-1)*(1+$L$55%)^($N11-date),0) -> -19.3884465 | BG11: -2447.688464 | BH11: 0 | BI11: 0 | BJ11: 0 | BK11: 0
A12: 2023 | B12: Capex, Atmospheric Corrosion | E12: =+'I. Own Operate Detail'!I$14 -> 712.2151 | F12: 2.5 | G12: gast | H12: 45 | I12: 0 | K12: 0 | L12: 786.1522083 | M12: =NPV(i,S9:S58)+S8 -> -504.472666 | N12: 2023 | O12: =IF(OR($A$8<fy,$A$8>fy+sp),0,IF($G$8="exp",IF($A$8=$N12,$L$8*(tr-1),0),IF($G$8="atx",IF($A$8=$N12,-$L$8,0),IF($N12<$A$8,0,IF($N12=MIN($A$8+$H$8,fy+sp),$L$8/100*OFFSET(Data!$A$6,$N12-$A$8,MATCH($G$8,Data!$A$4:$CG$4,0))+$L$8*$K$8%*(1-tr),IF($N12>MIN($A$8+$H$8,fy+sp),0,$L$8/100*OFFSET(Data!$A$6,$N12-$A$8,MATCH($G$8,Data!$A$4:$CG$4,0)-1))))))) -> 2.16121339 | P12: =IF(OR($A$9<fy,$A$9>fy+sp),0,IF($G$9="exp",IF($A$9=$N12,$L$9*(tr-1),0),IF($G$9="atx",IF($A$9=$N12,-$L$9,0),IF($N12<$A$9,0,IF($N12=MIN($A$9+$H$9,fy+sp),$L$9/100*OFFSET(Data!$A$6,$N12-$A$9,MATCH($G$9,Data!$A$4:$CG$4,0))+$L$9*$K$9%*(1-tr),IF($N12>MIN($A$9+$H$9,fy+sp),0,$L$9/100*OFFSET(Data!$A$6,$N12-$A$9,MATCH($G$9,Data!$A$4:$CG$4,0)-1))))))) -> 27.86389591 | Q12: =IF(OR($A$10<fy,$A$10>fy+sp),0,IF($G$10="exp",IF($A$10=$N12,$L$10*(tr-1),0),IF($G$10="atx",IF($A$10=$N12,-$L$10,0),IF($N12<$A$10,0,IF($N12=MIN($A$10+$H$10,fy+sp),$L$10/100*OFFSET(Data!$A$6,$N12-$A$10,MATCH($G$10,Data!$A$4:$CG$4,0))+$L$10*$K$10%*(1-tr),IF($N12>MIN($A$10+$H$10,fy+sp),0,$L$10/100*OFFSET(Data!$A$6,$N12-$A$10,MATCH($G$10,Data!$A$4:$CG$4,0)-1))))))) -> 3.035874998 | R12: =IF(OR($A$11<fy,$A$11>fy+sp),0,IF($G$11="exp",IF($A$11=$N12,$L$11*(tr-1),0),IF($G$11="atx",IF($A$11=$N12,-$L$11,0),IF($N12<$A$11,0,IF($N12=MIN($A$11+$H$11,fy+sp),$L$11/100*OFFSET(Data!$A$6,$N12-$A$11,MATCH($G$11,Data!$A$4:$CG$4,0))+$L$11*$K$11%*(1-tr),IF($N12>MIN($A$11+$H$11,fy+sp),0,$L$11/100*OFFSET(Data!$A$6,$N12-$A$11,MATCH($G$11,Data!$A$4:$CG$4,0)-1))))))) -> 0.7997327952 | S12: =IF(OR($A$12<fy,$A$12>fy+sp),0,IF($G$12="exp",IF($A$12=$N12,$L$12*(tr-1),0),IF($G$12="atx",IF($A$12=$N12,-$L$12,0),IF($N12<$A$12,0,IF($N12=MIN($A$12+$H$12,fy+sp),$L$12/100*OFFSET(Data!$A$6,$N12-$A$12,MATCH($G$12,Data!$A$4:$CG$4,0))+$L$12*$K$12%*(1-tr),IF($N12>MIN($A$12+$H$12,fy+sp),0,$L$12/100*OFFSET(Data!$A$6,$N12-$A$12,MATCH($G$12,Data!$A$4:$CG$4,0)-1))))))) -> -786.1522083 | T12: =IF(OR($A$13<fy,$A$13>fy+sp),0,IF($G$13="exp",IF($A$13=$N12,$L$13*(tr-1),0),IF($G$13="atx",IF($A$13=$N12,-$L$13,0),IF($N12<$A$13,0,IF($N12=MIN($A$13+$H$13,fy+sp),$L$13/100*OFFSET(Data!$A$6,$N12-$A$13,MATCH($G$13,Data!$A$4:$CG$4,0))+$L$13*$K$13%*(1-tr),IF($N12>MIN($A$13+$H$13,fy+sp),0,$L$13/100*OFFSET(Data!$A$6,$N12-$A$13,MATCH($G$13,Data!$A$4:$CG$4,0)-1))))))) -> 0 | U12: =IF(OR($A$14<fy,$A$14>fy+sp),0,IF($G$14="exp",IF($A$14=$N12,$L$14*(tr-1),0),IF($G$14="atx",IF($A$14=$N12,-$L$14,0),IF($N12<$A$14,0,IF($N12=MIN($A$14+$H$14,fy+sp),$L$14/100*OFFSET(Data!$A$6,$N12-$A$14,MATCH($G$14,Data!$A$4:$CG$4,0))+$L$14*$K$14%*(1-tr),IF($N12>MIN($A$14+$H$14,fy+sp),0,$L$14/100*OFFSET(Data!$A$6,$N12-$A$14,MATCH($G$14,Data!$A$4:$CG$4,0)-1))))))) -> 0 | V12: =IF(OR($A$15<fy,$A$15>fy+sp),0,IF($G$15="exp",IF($A$15=$N12,$L$15*(tr-1),0),IF($G$15="atx",IF($A$15=$N12,-$L$15,0),IF($N12<$A$15,0,IF($N12=MIN($A$15+$H$15,fy+sp),$L$15/100*OFFSET(Data!$A$6,$N12-$A$15,MATCH($G$15,Data!$A$4:$CG$4,0))+$L$15*$K$15%*(1-tr),IF($N12>MIN($A$15+$H$15,fy+sp),0,$L$15/100*OFFSET(Data!$A$6,$N12-$A$15,MATCH($G$15,Data!$A$4:$CG$4,0)-1))))))) -> 0 | W12: =IF(OR($A$16<fy,$A$16>fy+sp),0,IF($G$16="exp",IF($A$16=$N12,$L$16*(tr-1),0),IF($G$16="atx",IF($A$16=$N12,-$L$16,0),IF($N12<$A$16,0,IF($N12=MIN($A$16+$H$16,fy+sp),$L$16/100*OFFSET(Data!$A$6,$N12-$A$16,MATCH($G$16,Data!$A$4:$CG$4,0))+$L$16*$K$16%*(1-tr),IF($N12>MIN($A$16+$H$16,fy+sp),0,$L$16/100*OFFSET(Data!$A$6,$N12-$A$16,MATCH($G$16,Data!$A$4:$CG$4,0)-1))))))) -> 0 | X12: =IF(OR($A$17<fy,$A$17>fy+sp),0,IF($G$17="exp",IF($A$17=$N12,$L$17*(tr-1),0),IF($G$17="atx",IF($A$17=$N12,-$L$17,0),IF($N12<$A$17,0,IF($N12=MIN($A$17+$H$17,fy+sp),$L$17/100*OFFSET(Data!$A$6,$N12-$A$17,MATCH($G$17,Data!$A$4:$CG$4,0))+$L$17*$K$17%*(1-tr),IF($N12>MIN($A$17+$H$17,fy+sp),0,$L$17/100*OFFSET(Data!$A$6,$N12-$A$17,MATCH($G$17,Data!$A$4:$CG$4,0)-1))))))) -> 0 | Y12: =IF(OR($A$18<fy,$A$18>fy+sp),0,IF($G$18="exp",IF($A$18=$N12,$L$18*(tr-1),0),IF($G$18="atx",IF($A$18=$N12,-$L$18,0),IF($N12<$A$18,0,IF($N12=MIN($A$18+$H$18,fy+sp),$L$18/100*OFFSET(Data!$A$6,$N12-$A$18,MATCH($G$18,Data!$A$4:$CG$4,0))+$L$18*$K$18%*(1-tr),IF($N12>MIN($A$18+$H$18,fy+sp),0,$L$18/100*OFFSET(Data!$A$6,$N12-$A$18,MATCH($G$18,Data!$A$4:$CG$4,0)-1))))))) -> 48.23480038 | Z12: =IF(OR($A$19<fy,$A$19>fy+sp),0,IF($G$19="exp",IF($A$19=$N12,$L$19*(tr-1),0),IF($G$19="atx",IF($A$19=$N12,-$L$19,0),IF($N12<$A$19,0,IF($N12=MIN($A$19+$H$19,fy+sp),$L$19/100*OFFSET(Data!$A$6,$N12-$A$19,MATCH($G$19,Data!$A$4:$CG$4,0))+$L$19*$K$19%*(1-tr),IF($N12>MIN($A$19+$H$19,fy+sp),0,$L$19/100*OFFSET(Data!$A$6,$N12-$A$19,MATCH($G$19,Data!$A$4:$CG$4,0)-1))))))) -> -0.01683335261 | AA12: =IF(OR($A$20<fy,$A$20>fy+sp),0,IF($G$20="exp",IF($A$20=$N12,$L$20*(tr-1),0),IF($G$20="atx",IF($A$20=$N12,-$L$20,0),IF($N12<$A$20,0,IF($N12=MIN($A$20+$H$20,fy+sp),$L$20/100*OFFSET(Data!$A$6,$N12-$A$20,MATCH($G$20,Data!$A$4:$CG$4,0))+$L$20*$K$20%*(1-tr),IF($N12>MIN($A$20+$H$20,fy+sp),0,$L$20/100*OFFSET(Data!$A$6,$N12-$A$20,MATCH($G$20,Data!$A$4:$CG$4,0)-1))))))) -> 0 | AB12: =IF(OR($A$21<fy,$A$21>fy+sp),0,IF($G$21="exp",IF($A$21=$N12,$L$21*(tr-1),0),IF($G$21="atx",IF($A$21=$N12,-$L$21,0),IF($N12<$A$21,0,IF($N12=MIN($A$21+$H$21,fy+sp),$L$21/100*OFFSET(Data!$A$6,$N12-$A$21,MATCH($G$21,Data!$A$4:$CG$4,0))+$L$21*$K$21%*(1-tr),IF($N12>MIN($A$21+$H$21,fy+sp),0,$L$21/100*OFFSET(Data!$A$6,$N12-$A$21,MATCH($G$21,Data!$A$4:$CG$4,0)-1))))))) -> 0 | AC12: =IF(OR($A$22<fy,$A$22>fy+sp),0,IF($G$22="exp",IF($A$22=$N12,$L$22*(tr-1),0),IF($G$22="atx",IF($A$22=$N12,-$L$22,0),IF($N12<$A$22,0,IF($N12=MIN($A$22+$H$22,fy+sp),$L$22/100*OFFSET(Data!$A$6,$N12-$A$22,MATCH($G$22,Data!$A$4:$CG$4,0))+$L$22*$K$22%*(1-tr),IF($N12>MIN($A$22+$H$22,fy+sp),0,$L$22/100*OFFSET(Data!$A$6,$N12-$A$22,MATCH($G$22,Data!$A$4:$CG$4,0)-1))))))) -> 0 | AD12: =IF(OR($A$23<fy,$A$23>fy+sp),0,IF($G$23="exp",IF($A$23=$N12,$L$23*(tr-1),0),IF($G$23="atx",IF($A$23=$N12,-$L$23,0),IF($N12<$A$23,0,IF($N12=MIN($A$23+$H$23,fy+sp),$L$23/100*OFFSET(Data!$A$6,$N12-$A$23,MATCH($G$23,Data!$A$4:$CG$4,0))+$L$23*$K$23%*(1-tr),IF($N12>MIN($A$23+$H$23,fy+sp),0,$L$23/100*OFFSET(Data!$A$6,$N12-$A$23,MATCH($G$23,Data!$A$4:$CG$4,0)-1))))))) -> 0 | AE12: =IF(OR($A$24<fy,$A$24>fy+sp),0,IF($G$24="exp",IF($A$24=$N12,$L$24*(tr-1),0),IF($G$24="atx",IF($A$24=$N12,-$L$24,0),IF($N12<$A$24,0,IF($N12=MIN($A$24+$H$24,fy+sp),$L$24/100*OFFSET(Data!$A$6,$N12-$A$24,MATCH($G$24,Data!$A$4:$CG$4,0))+$L$24*$K$24%*(1-tr),IF($N12>MIN($A$24+$H$24,fy+sp),0,$L$24/100*OFFSET(Data!$A$6,$N12-$A$24,MATCH($G$24,Data!$A$4:$CG$4,0)-1))))))) -> 0 | AF12: =IF(OR($A$25<fy,$A$25>fy+sp),0,IF($G$25="exp",IF($A$25=$N12,$L$25*(tr-1),0),IF($G$25="atx",IF($A$25=$N12,-$L$25,0),IF($N12<$A$25,0,IF($N12=MIN($A$25+$H$25,fy+sp),$L$25/100*OFFSET(Data!$A$6,$N12-$A$25,MATCH($G$25,Data!$A$4:$CG$4,0))+$L$25*$K$25%*(1-tr),IF($N12>MIN($A$25+$H$25,fy+sp),0,$L$25/100*OFFSET(Data!$A$6,$N12-$A$25,MATCH($G$25,Data!$A$4:$CG$4,0)-1))))))) -> 0 | AG12: =IF(OR($A$26<fy,$A$26>fy+sp),0,IF($G$26="exp",IF($A$26=$N12,$L$26*(tr-1),0),IF($G$26="atx",IF($A$26=$N12,-$L$26,0),IF($N12<$A$26,0,IF($N12=MIN($A$26+$H$26,fy+sp),$L$26/100*OFFSET(Data!$A$6,$N12-$A$26,MATCH($G$26,Data!$A$4:$CG$4,0))+$L$26*$K$26%*(1-tr),IF($N12>MIN($A$26+$H$26,fy+sp),0,$L$26/100*OFFSET(Data!$A$6,$N12-$A$26,MATCH($G$26,Data!$A$4:$CG$4,0)-1))))))) -> 0 | AH12: =IF(OR($A$27<fy,$A$27>fy+sp),0,IF($G$27="exp",IF($A$27=$N12,$L$27*(tr-1),0),IF($G$27="atx",IF($A$27=$N12,-$L$27,0),IF($N12<$A$27,0,IF($N12=MIN($A$27+$H$27,fy+sp),$L$27/100*OFFSET(Data!$A$6,$N12-$A$27,MATCH($G$27,Data!$A$4:$CG$4,0))+$L$27*$K$27%*(1-tr),IF($N12>MIN($A$27+$H$27,fy+sp),0,$L$27/100*OFFSET(Data!$A$6,$N12-$A$27,MATCH($G$27,Data!$A$4:$CG$4,0)-1))))))) -> 0 | AI12: =IF(OR($A$28<fy,$A$28>fy+sp),0,IF($G$28="exp",IF($A$28=$N12,$L$28*(tr-1),0),IF($G$28="atx",IF($A$28=$N12,-$L$28,0),IF($N12<$A$28,0,IF($N12=MIN($A$28+$H$28,fy+sp),$L$28/100*OFFSET(Data!$A$6,$N12-$A$28,MATCH($G$28,Data!$A$4:$CG$4,0))+$L$28*$K$28%*(1-tr),IF($N12>MIN($A$28+$H$28,fy+sp),0,$L$28/100*OFFSET(Data!$A$6,$N12-$A$28,MATCH($G$28,Data!$A$4:$CG$4,0)-1))))))) -> 0 | AJ12: =IF(OR($A$29<fy,$A$29>fy+sp),0,IF($G$29="exp",IF($A$29=$N12,$L$29*(tr-1),0),IF($G$29="atx",IF($A$29=$N12,-$L$29,0),IF($N12<$A$29,0,IF($N12=MIN($A$29+$H$29,fy+sp),$L$29/100*OFFSET(Data!$A$6,$N12-$A$29,MATCH($G$29,Data!$A$4:$CG$4,0))+$L$29*$K$29%*(1-tr),IF($N12>MIN($A$29+$H$29,fy+sp),0,$L$29/100*OFFSET(Data!$A$6,$N12-$A$29,MATCH($G$29,Data!$A$4:$CG$4,0)-1))))))) -> 0 | AK12: =IF(OR($A$30<fy,$A$30>fy+sp),0,IF($G$30="exp",IF($A$30=$N12,$L$30*(tr-1),0),IF($G$30="atx",IF($A$30=$N12,-$L$30,0),IF($N12<$A$30,0,IF($N12=MIN($A$30+$H$30,fy+sp),$L$30/100*OFFSET(Data!$A$6,$N12-$A$30,MATCH($G$30,Data!$A$4:$CG$4,0))+$L$30*$K$30%*(1-tr),IF($N12>MIN($A$30+$H$30,fy+sp),0,$L$30/100*OFFSET(Data!$A$6,$N12-$A$30,MATCH($G$30,Data!$A$4:$CG$4,0)-1))))))) -> 0 | AL12: =IF(OR($A$31<fy,$A$31>fy+sp),0,IF($G$31="exp",IF($A$31=$N12,$L$31*(tr-1),0),IF($G$31="atx",IF($A$31=$N12,-$L$31,0),IF($N12<$A$31,0,IF($N12=MIN($A$31+$H$31,fy+sp),$L$31/100*OFFSET(Data!$A$6,$N12-$A$31,MATCH($G$31,Data!$A$4:$CG$4,0))+$L$31*$K$31%*(1-tr),IF($N12>MIN($A$31+$H$31,fy+sp),0,$L$31/100*OFFSET(Data!$A$6,$N12-$A$31,MATCH($G$31,Data!$A$4:$CG$4,0)-1))))))) -> 0 | AM12: =IF(OR($A$32<fy,$A$32>fy+sp),0,IF($G$32="exp",IF($A$32=$N12,$L$32*(tr-1),0),IF($G$32="atx",IF($A$32=$N12,-$L$32,0),IF($N12<$A$32,0,IF($N12=MIN($A$32+$H$32,fy+sp),$L$32/100*OFFSET(Data!$A$6,$N12-$A$32,MATCH($G$32,Data!$A$4:$CG$4,0))+$L$32*$K$32%*(1-tr),IF($N12>MIN($A$32+$H$32,fy+sp),0,$L$32/100*OFFSET(Data!$A$6,$N12-$A$32,MATCH($G$32,Data!$A$4:$CG$4,0)-1))))))) -> 0 | AN12: =IF(OR($A$33<fy,$A$33>fy+sp),0,IF($G$33="exp",IF($A$33=$N12,$L$33*(tr-1),0),IF($G$33="atx",IF($A$33=$N12,-$L$33,0),IF($N12<$A$33,0,IF($N12=MIN($A$33+$H$33,fy+sp),$L$33/100*OFFSET(Data!$A$6,$N12-$A$33,MATCH($G$33,Data!$A$4:$CG$4,0))+$L$33*$K$33%*(1-tr),IF($N12>MIN($A$33+$H$33,fy+sp),0,$L$33/100*OFFSET(Data!$A$6,$N12-$A$33,MATCH($G$33,Data!$A$4:$CG$4,0)-1))))))) -> 0 | AO12: =IF(OR($A$34<fy,$A$34>fy+sp),0,IF($G$34="exp",IF($A$34=$N12,$L$34*(tr-1),0),IF($G$34="atx",IF($A$34=$N12,-$L$34,0),IF($N12<$A$34,0,IF($N12=MIN($A$34+$H$34,fy+sp),$L$34/100*OFFSET(Data!$A$6,$N12-$A$34,MATCH($G$34,Data!$A$4:$CG$4,0))+$L$34*$K$34%*(1-tr),IF($N12>MIN($A$34+$H$34,fy+sp),0,$L$34/100*OFFSET(Data!$A$6,$N12-$A$34,MATCH($G$34,Data!$A$4:$CG$4,0)-1))))))) -> 0 | AP12: =IF(OR($A$35<fy,$A$35>fy+sp),0,IF($G$35="exp",IF($A$35=$N12,$L$35*(tr-1),0),IF($G$35="atx",IF($A$35=$N12,-$L$35,0),IF($N12<$A$35,0,IF($N12=MIN($A$35+$H$35,fy+sp),$L$35/100*OFFSET(Data!$A$6,$N12-$A$35,MATCH($G$35,Data!$A$4:$CG$4,0))+$L$35*$K$35%*(1-tr),IF($N12>MIN($A$35+$H$35,fy+sp),0,$L$35/100*OFFSET(Data!$A$6,$N12-$A$35,MATCH($G$35,Data!$A$4:$CG$4,0)-1))))))) -> 0 | AQ12: =IF(OR($A$36<fy,$A$36>fy+sp),0,IF($G$36="exp",IF($A$36=$N12,$L$36*(tr-1),0),IF($G$36="atx",IF($A$36=$N12,-$L$36,0),IF($N12<$A$36,0,IF($N12=MIN($A$36+$H$36,fy+sp),$L$36/100*OFFSET(Data!$A$6,$N12-$A$36,MATCH($G$36,Data!$A$4:$CG$4,0))+$L$36*$K$36%*(1-tr),IF($N12>MIN($A$36+$H$36,fy+sp),0,$L$36/100*OFFSET(Data!$A$6,$N12-$A$36,MATCH($G$36,Data!$A$4:$CG$4,0)-1))))))) -> 0 | AR12: =IF(OR($A$37<fy,$A$37>fy+sp),0,IF($G$37="exp",IF($A$37=$N12,$L$37*(tr-1),0),IF($G$37="atx",IF($A$37=$N12,-$L$37,0),IF($N12<$A$37,0,IF($N12=MIN($A$37+$H$37,fy+sp),$L$37/100*OFFSET(Data!$A$6,$N12-$A$37,MATCH($G$37,Data!$A$4:$CG$4,0))+$L$37*$K$37%*(1-tr),IF($N12>MIN($A$37+$H$37,fy+sp),0,$L$37/100*OFFSET(Data!$A$6,$N12-$A$37,MATCH($G$37,Data!$A$4:$CG$4,0)-1))))))) -> 0 | AS12: =IF(OR($A$38<fy,$A$38>fy+sp),0,IF($G$38="exp",IF($A$38=$N12,$L$38*(tr-1),0),IF($G$38="atx",IF($A$38=$N12,-$L$38,0),IF($N12<$A$38,0,IF($N12=MIN($A$38+$H$38,fy+sp),$L$38/100*OFFSET(Data!$A$6,$N12-$A$38,MATCH($G$38,Data!$A$4:$CG$4,0))+$L$38*$K$38%*(1-tr),IF($N12>MIN($A$38+$H$38,fy+sp),0,$L$38/100*OFFSET(Data!$A$6,$N12-$A$38,MATCH($G$38,Data!$A$4:$CG$4,0)-1))))))) -> 0 | AT12: =IF(OR($A$39<fy,$A$39>fy+sp),0,IF($G$39="exp",IF($A$39=$N12,$L$39*(tr-1),0),IF($G$39="atx",IF($A$39=$N12,-$L$39,0),IF($N12<$A$39,0,IF($N12=MIN($A$39+$H$39,fy+sp),$L$39/100*OFFSET(Data!$A$6,$N12-$A$39,MATCH($G$39,Data!$A$4:$CG$4,0))+$L$39*$K$39%*(1-tr),IF($N12>MIN($A$39+$H$39,fy+sp),0,$L$39/100*OFFSET(Data!$A$6,$N12-$A$39,MATCH($G$39,Data!$A$4:$CG$4,0)-1))))))) -> 0 | AU12: =IF(OR($A$40<fy,$A$40>fy+sp),0,IF($G$40="exp",IF($A$40=$N12,$L$40*(tr-1),0),IF($G$40="atx",IF($A$40=$N12,-$L$40,0),IF($N12<$A$40,0,IF($N12=MIN($A$40+$H$40,fy+sp),$L$40/100*OFFSET(Data!$A$6,$N12-$A$40,MATCH($G$40,Data!$A$4:$CG$4,0))+$L$40*$K$40%*(1-tr),IF($N12>MIN($A$40+$H$40,fy+sp),0,$L$40/100*OFFSET(Data!$A$6,$N12-$A$40,MATCH($G$40,Data!$A$4:$CG$4,0)-1))))))) -> 0 | AV12: =IF(OR($A$41<fy,$A$41>fy+sp),0,IF($G$41="exp",IF($A$41=$N12,$L$41*(tr-1),0),IF($G$41="atx",IF($A$41=$N12,-$L$41,0),IF($N12<$A$41,0,IF($N12=MIN($A$41+$H$41,fy+sp),$L$41/100*OFFSET(Data!$A$6,$N12-$A$41,MATCH($G$41,Data!$A$4:$CG$4,0))+$L$41*$K$41%*(1-tr),IF($N12>MIN($A$41+$H$41,fy+sp),0,$L$41/100*OFFSET(Data!$A$6,$N12-$A$41,MATCH($G$41,Data!$A$4:$CG$4,0)-1))))))) -> 0 | AW12: =IF(OR($A$42<fy,$A$42>fy+sp),0,IF($G$42="exp",IF($A$42=$N12,$L$42*(tr-1),0),IF($G$42="atx",IF($A$42=$N12,-$L$42,0),IF($N12<$A$42,0,IF($N12=MIN($A$42+$H$42,fy+sp),$L$42/100*OFFSET(Data!$A$6,$N12-$A$42,MATCH($G$42,Data!$A$4:$CG$4,0))+$L$42*$K$42%*(1-tr),IF($N12>MIN($A$42+$H$42,fy+sp),0,$L$42/100*OFFSET(Data!$A$6,$N12-$A$42,MATCH($G$42,Data!$A$4:$CG$4,0)-1))))))) -> 0 | AX12: =IF(OR($A$43<fy,$A$43>fy+sp),0,IF($G$43="exp",IF($A$43=$N12,$L$43*(tr-1),0),IF($G$43="atx",IF($A$43=$N12,-$L$43,0),IF($N12<$A$43,0,IF($N12=MIN($A$43+$H$43,fy+sp),$L$43/100*OFFSET(Data!$A$6,$N12-$A$43,MATCH($G$43,Data!$A$4:$CG$4,0))+$L$43*$K$43%*(1-tr),IF($N12>MIN($A$43+$H$43,fy+sp),0,$L$43/100*OFFSET(Data!$A$6,$N12-$A$43,MATCH($G$43,Data!$A$4:$CG$4,0)-1))))))) -> 0 | AY12: =IF(OR($A$44<fy,$A$44>fy+sp),0,IF($G$44="exp",IF($A$44=$N12,$L$44*(tr-1),0),IF($G$44="atx",IF($A$44=$N12,-$L$44,0),IF($N12<$A$44,0,IF($N12=MIN($A$44+$H$44,fy+sp),$L$44/100*OFFSET(Data!$A$6,$N12-$A$44,MATCH($G$44,Data!$A$4:$CG$4,0))+$L$44*$K$44%*(1-tr),IF($N12>MIN($A$44+$H$44,fy+sp),0,$L$44/100*OFFSET(Data!$A$6,$N12-$A$44,MATCH($G$44,Data!$A$4:$CG$4,0)-1))))))) -> 0 | AZ12: =IF(OR($A$45<fy,$A$45>fy+sp),0,IF($G$45="exp",IF($A$45=$N12,$L$45*(tr-1),0),IF($G$45="atx",IF($A$45=$N12,-$L$45,0),IF($N12<$A$45,0,IF($N12=MIN($A$45+$H$45,fy+sp),$L$45/100*OFFSET(Data!$A$6,$N12-$A$45,MATCH($G$45,Data!$A$4:$CG$4,0))+$L$45*$K$45%*(1-tr),IF($N12>MIN($A$45+$H$45,fy+sp),0,$L$45/100*OFFSET(Data!$A$6,$N12-$A$45,MATCH($G$45,Data!$A$4:$CG$4,0)-1))))))) -> 0 | BA12: =IF(OR($A$46<fy,$A$46>fy+sp),0,IF($G$46="exp",IF($A$46=$N12,$L$46*(tr-1),0),IF($G$46="atx",IF($A$46=$N12,-$L$46,0),IF($N12<$A$46,0,IF($N12=MIN($A$46+$H$46,fy+sp),$L$46/100*OFFSET(Data!$A$6,$N12-$A$46,MATCH($G$46,Data!$A$4:$CG$4,0))+$L$46*$K$46%*(1-tr),IF($N12>MIN($A$46+$H$46,fy+sp),0,$L$46/100*OFFSET(Data!$A$6,$N12-$A$46,MATCH($G$46,Data!$A$4:$CG$4,0)-1))))))) -> 0 | BB12: =IF(OR($A$47<fy,$A$47>fy+sp),0,IF($G$47="exp",IF($A$47=$N12,$L$47*(tr-1),0),IF($G$47="atx",IF($A$47=$N12,-$L$47,0),IF($N12<$A$47,0,IF($N12=MIN($A$47+$H$47,fy+sp),$L$47/100*OFFSET(Data!$A$6,$N12-$A$47,MATCH($G$47,Data!$A$4:$CG$4,0))+$L$47*$K$47%*(1-tr),IF($N12>MIN($A$47+$H$47,fy+sp),0,$L$47/100*OFFSET(Data!$A$6,$N12-$A$47,MATCH($G$47,Data!$A$4:$CG$4,0)-1))))))) -> 0 | BC12: -7.631292543 | BD12: 0 | BE12: 0 | BF12: -19.87315766 | BG12: -731.5779744 | BH12: 0 | BI12: 0 | BJ12: 0 | BK12: 0
A13: 2024 | B13: Capital Expenditures | E13: =+'I. Own Operate Detail'!J$14 -> 172.2151 | F13: 2.5 | G13: gast | H13: 45 | I13: 0 | K13: 0 | L13: 194.8455785 | M13: =NPV(i,T9:T58)+T8 -> -114.9097215 | N13: 2024 | O13: =IF(OR($A$8<fy,$A$8>fy+sp),0,IF($G$8="exp",IF($A$8=$N13,$L$8*(tr-1),0),IF($G$8="atx",IF($A$8=$N13,-$L$8,0),IF($N13<$A$8,0,IF($N13=MIN($A$8+$H$8,fy+sp),$L$8/100*OFFSET(Data!$A$6,$N13-$A$8,MATCH($G$8,Data!$A$4:$CG$4,0))+$L$8*$K$8%*(1-tr),IF($N13>MIN($A$8+$H$8,fy+sp),0,$L$8/100*OFFSET(Data!$A$6,$N13-$A$8,MATCH($G$8,Data!$A$4:$CG$4,0)-1))))))) -> 1.858141031 | P13: =IF(OR($A$9<fy,$A$9>fy+sp),0,IF($G$9="exp",IF($A$9=$N13,$L$9*(tr-1),0),IF($G$9="atx",IF($A$9=$N13,-$L$9,0),IF($N13<$A$9,0,IF($N13=MIN($A$9+$H$9,fy+sp),$L$9/100*OFFSET(Data!$A$6,$N13-$A$9,MATCH($G$9,Data!$A$4:$CG$4,0))+$L$9*$K$9%*(1-tr),IF($N13>MIN($A$9+$H$9,fy+sp),0,$L$9/100*OFFSET(Data!$A$6,$N13-$A$9,MATCH($G$9,Data!$A$4:$CG$4,0)-1))))))) -> 24.13420035 | Q13: =IF(OR($A$10<fy,$A$10>fy+sp),0,IF($G$10="exp",IF($A$10=$N13,$L$10*(tr-1),0),IF($G$10="atx",IF($A$10=$N13,-$L$10,0),IF($N13<$A$10,0,IF($N13=MIN($A$10+$H$10,fy+sp),$L$10/100*OFFSET(Data!$A$6,$N13-$A$10,MATCH($G$10,Data!$A$4:$CG$4,0))+$L$10*$K$10%*(1-tr),IF($N13>MIN($A$10+$H$10,fy+sp),0,$L$10/100*OFFSET(Data!$A$6,$N13-$A$10,MATCH($G$10,Data!$A$4:$CG$4,0)-1))))))) -> 2.621526824 | R13: =IF(OR($A$11<fy,$A$11>fy+sp),0,IF($G$11="exp",IF($A$11=$N13,$L$11*(tr-1),0),IF($G$11="atx",IF($A$11=$N13,-$L$11,0),IF($N13<$A$11,0,IF($N13=MIN($A$11+$H$11,fy+sp),$L$11/100*OFFSET(Data!$A$6,$N13-$A$11,MATCH($G$11,Data!$A$4:$CG$4,0))+$L$11*$K$11%*(1-tr),IF($N13>MIN($A$11+$H$11,fy+sp),0,$L$11/100*OFFSET(Data!$A$6,$N13-$A$11,MATCH($G$11,Data!$A$4:$CG$4,0)-1))))))) -> 3.111771873 | S13: =IF(OR($A$12<fy,$A$12>fy+sp),0,IF($G$12="exp",IF($A$12=$N13,$L$12*(tr-1),0),IF($G$12="atx",IF($A$12=$N13,-$L$12,0),IF($N13<$A$12,0,IF($N13=MIN($A$12+$H$12,fy+sp),$L$12/100*OFFSET(Data!$A$6,$N13-$A$12,MATCH($G$12,Data!$A$4:$CG$4,0))+$L$12*$K$12%*(1-tr),IF($N13>MIN($A$12+$H$12,fy+sp),0,$L$12/100*OFFSET(Data!$A$6,$N13-$A$12,MATCH($G$12,Data!$A$4:$CG$4,0)-1))))))) -> 3.390070424 | T13: =IF(OR($A$13<fy,$A$13>fy+sp),0,IF($G$13="exp",IF($A$13=$N13,$L$13*(tr-1),0),IF($G$13="atx",IF($A$13=$N13,-$L$13,0),IF($N13<$A$13,0,IF($N13=MIN($A$13+$H$13,fy+sp),$L$13/100*OFFSET(Data!$A$6,$N13-$A$13,MATCH($G$13,Data!$A$4:$CG$4,0))+$L$13*$K$13%*(1-tr),IF($N13>MIN($A$13+$H$13,fy+sp),0,$L$13/100*OFFSET(Data!$A$6,$N13-$A$13,MATCH($G$13,Data!$A$4:$CG$4,0)-1))))))) -> -194.8455785 | U13: =IF(OR($A$14<fy,$A$14>fy+sp),0,IF($G$14="exp",IF($A$14=$N13,$L$14*(tr-1),0),IF($G$14="atx",IF($A$14=$N13,-$L$14,0),IF($N13<$A$14,0,IF($N13=MIN($A$14+$H$14,fy+sp),$L$14/100*OFFSET(Data!$A$6,$N13-$A$14,MATCH($G$14,Data!$A$4:$CG$4,0))+$L$14*$K$14%*(1-tr),IF($N13>MIN($A$14+$H$14,fy+sp),0,$L$14/100*OFFSET(Data!$A$6,$N13-$A$14,MATCH($G$14,Data!$A$4:$CG$4,0)-1))))))) -> 0 | V13: =IF(OR($A$15<fy,$A$15>fy+sp),0,IF($G$15="exp",IF($A$15=$N13,$L$15*(tr-1),0),IF($G$15="atx",IF($A$15=$N13,-$L$15,0),IF($N13<$A$15,0,IF($N13=MIN($A$15+$H$15,fy+sp),$L$15/100*OFFSET(Data!$A$6,$N13-$A$15,MATCH($G$15,Data!$A$4:$CG$4,0))+$L$15*$K$15%*(1-tr),IF($N13>MIN($A$15+$H$15,fy+sp),0,$L$15/100*OFFSET(Data!$A$6,$N13-$A$15,MATCH($G$15,Data!$A$4:$CG$4,0)-1))))))) -> 0 | W13: =IF(OR($A$16<fy,$A$16>fy+sp),0,IF($G$16="exp",IF($A$16=$N13,$L$16*(tr-1),0),IF($G$16="atx",IF($A$16=$N13,-$L$16,0),IF($N13<$A$16,0,IF($N13=MIN($A$16+$H$16,fy+sp),$L$16/100*OFFSET(Data!$A$6,$N13-$A$16,MATCH($G$16,Data!$A$4:$CG$4,0))+$L$16*$K$16%*(1-tr),IF($N13>MIN($A$16+$H$16,fy+sp),0,$L$16/100*OFFSET(Data!$A$6,$N13-$A$16,MATCH($G$16,Data!$A$4:$CG$4,0)-1))))))) -> 0 | X13: =IF(OR($A$17<fy,$A$17>fy+sp),0,IF($G$17="exp",IF($A$17=$N13,$L$17*(tr-1),0),IF($G$17="atx",IF($A$17=$N13,-$L$17,0),IF($N13<$A$17,0,IF($N13=MIN($A$17+$H$17,fy+sp),$L$17/100*OFFSET(Data!$A$6,$N13-$A$17,MATCH($G$17,Data!$A$4:$CG$4,0))+$L$17*$K$17%*(1-tr),IF($N13>MIN($A$17+$H$17,fy+sp),0,$L$17/100*OFFSET(Data!$A$6,$N13-$A$17,MATCH($G$17,Data!$A$4:$CG$4,0)-1))))))) -> 0 | Y13: =IF(OR($A$18<fy,$A$18>fy+sp),0,IF($G$18="exp",IF($A$18=$N13,$L$18*(tr-1),0),IF($G$18="atx",IF($A$18=$N13,-$L$18,0),IF($N13<$A$18,0,IF($N13=MIN($A$18+$H$18,fy+sp),$L$18/100*OFFSET(Data!$A$6,$N13-$A$18,MATCH($G$18,Data!$A$4:$CG$4,0))+$L$18*$K$18%*(1-tr),IF($N13>MIN($A$18+$H$18,fy+sp),0,$L$18/100*OFFSET(Data!$A$6,$N13-$A$18,MATCH($G$18,Data!$A$4:$CG$4,0)-1))))))) -> 41.47071367 | Z13: =IF(OR($A$19<fy,$A$19>fy+sp),0,IF($G$19="exp",IF($A$19=$N13,$L$19*(tr-1),0),IF($G$19="atx",IF($A$19=$N13,-$L$19,0),IF($N13<$A$19,0,IF($N13=MIN($A$19+$H$19,fy+sp),$L$19/100*OFFSET(Data!$A$6,$N13-$A$19,MATCH($G$19,Data!$A$4:$CG$4,0))+$L$19*$K$19%*(1-tr),IF($N13>MIN($A$19+$H$19,fy+sp),0,$L$19/100*OFFSET(Data!$A$6,$N13-$A$19,MATCH($G$19,Data!$A$4:$CG$4,0)-1))))))) -> -0.01683335261 | AA13: =IF(OR($A$20<fy,$A$20>fy+sp),0,IF($G$20="exp",IF($A$20=$N13,$L$20*(tr-1),0),IF($G$20="atx",IF($A$20=$N13,-$L$20,0),IF($N13<$A$20,0,IF($N13=MIN($A$20+$H$20,fy+sp),$L$20/100*OFFSET(Data!$A$6,$N13-$A$20,MATCH($G$20,Data!$A$4:$CG$4,0))+$L$20*$K$20%*(1-tr),IF($N13>MIN($A$20+$H$20,fy+sp),0,$L$20/100*OFFSET(Data!$A$6,$N13-$A$20,MATCH($G$20,Data!$A$4:$CG$4,0)-1))))))) -> 0 | AB13: =IF(OR($A$21<fy,$A$21>fy+sp),0,IF($G$21="exp",IF($A$21=$N13,$L$21*(tr-1),0),IF($G$21="atx",IF($A$21=$N13,-$L$21,0),IF($N13<$A$21,0,IF($N13=MIN($A$21+$H$21,fy+sp),$L$21/100*OFFSET(Data!$A$6,$N13-$A$21,MATCH($G$21,Data!$A$4:$CG$4,0))+$L$21*$K$21%*(1-tr),IF($N13>MIN($A$21+$H$21,fy+sp),0,$L$21/100*OFFSET(Data!$A$6,$N13-$A$21,MATCH($G$21,Data!$A$4:$CG$4,0)-1))))))) -> 0 | AC13: =IF(OR($A$22<fy,$A$22>fy+sp),0,IF($G$22="exp",IF($A$22=$N13,$L$22*(tr-1),0),IF($G$22="atx",IF($A$22=$N13,-$L$22,0),IF($N13<$A$22,0,IF($N13=MIN($A$22+$H$22,fy+sp),$L$22/100*OFFSET(Data!$A$6,$N13-$A$22,MATCH($G$22,Data!$A$4:$CG$4,0))+$L$22*$K$22%*(1-tr),IF($N13>MIN($A$22+$H$22,fy+sp),0,$L$22/100*OFFSET(Data!$A$6,$N13-$A$22,MATCH($G$22,Data!$A$4:$CG$4,0)-1))))))) -> 0 | AD13: =IF(OR($A$23<fy,$A$23>fy+sp),0,IF($G$23="exp",IF($A$23=$N13,$L$23*(tr-1),0),IF($G$23="atx",IF($A$23=$N13,-$L$23,0),IF($N13<$A$23,0,IF($N13=MIN($A$23+$H$23,fy+sp),$L$23/100*OFFSET(Data!$A$6,$N13-$A$23,MATCH($G$23,Data!$A$4:$CG$4,0))+$L$23*$K$23%*(1-tr),IF($N13>MIN($A$23+$H$23,fy+sp),0,$L$23/100*OFFSET(Data!$A$6,$N13-$A$23,MATCH($G$23,Data!$A$4:$CG$4,0)-1))))))) -> 0 | AE13: =IF(OR($A$24<fy,$A$24>fy+sp),0,IF($G$24="exp",IF($A$24=$N13,$L$24*(tr-1),0),IF($G$24="atx",IF($A$24=$N13,-$L$24,0),IF($N13<$A$24,0,IF($N13=MIN($A$24+$H$24,fy+sp),$L$24/100*OFFSET(Data!$A$6,$N13-$A$24,MATCH($G$24,Data!$A$4:$CG$4,0))+$L$24*$K$24%*(1-tr),IF($N13>MIN($A$24+$H$24,fy+sp),0,$L$24/100*OFFSET(Data!$A$6,$N13-$A$24,MATCH($G$24,Data!$A$4:$CG$4,0)-1))))))) -> 0 | AF13: =IF(OR($A$25<fy,$A$25>fy+sp),0,IF($G$25="exp",IF($A$25=$N13,$L$25*(tr-1),0),IF($G$25="atx",IF($A$25=$N13,-$L$25,0),IF($N13<$A$25,0,IF($N13=MIN($A$25+$H$25,fy+sp),$L$25/100*OFFSET(Data!$A$6,$N13-$A$25,MATCH($G$25,Data!$A$4:$CG$4,0))+$L$25*$K$25%*(1-tr),IF($N13>MIN($A$25+$H$25,fy+sp),0,$L$25/100*OFFSET(Data!$A$6,$N13-$A$25,MATCH($G$25,Data!$A$4:$CG$4,0)-1))))))) -> 0 | AG13: =IF(OR($A$26<fy,$A$26>fy+sp),0,IF($G$26="exp",IF($A$26=$N13,$L$26*(tr-1),0),IF($G$26="atx",IF($A$26=$N13,-$L$26,0),IF($N13<$A$26,0,IF($N13=MIN($A$26+$H$26,fy+sp),$L$26/100*OFFSET(Data!$A$6,$N13-$A$26,MATCH($G$26,Data!$A$4:$CG$4,0))+$L$26*$K$26%*(1-tr),IF($N13>MIN($A$26+$H$26,fy+sp),0,$L$26/100*OFFSET(Data!$A$6,$N13-$A$26,MATCH($G$26,Data!$A$4:$CG$4,0)-1))))))) -> 0 | AH13: =IF(OR($A$27<fy,$A$27>fy+sp),0,IF($G$27="exp",IF($A$27=$N13,$L$27*(tr-1),0),IF($G$27="atx",IF($A$27=$N13,-$L$27,0),IF($N13<$A$27,0,IF($N13=MIN($A$27+$H$27,fy+sp),$L$27/100*OFFSET(Data!$A$6,$N13-$A$27,MATCH($G$27,Data!$A$4:$CG$4,0))+$L$27*$K$27%*(1-tr),IF($N13>MIN($A$27+$H$27,fy+sp),0,$L$27/100*OFFSET(Data!$A$6,$N13-$A$27,MATCH($G$27,Data!$A$4:$CG$4,0)-1))))))) -> 0 | AI13: =IF(OR($A$28<fy,$A$28>fy+sp),0,IF($G$28="exp",IF($A$28=$N13,$L$28*(tr-1),0),IF($G$28="atx",IF($A$28=$N13,-$L$28,0),IF($N13<$A$28,0,IF($N13=MIN($A$28+$H$28,fy+sp),$L$28/100*OFFSET(Data!$A$6,$N13-$A$28,MATCH($G$28,Data!$A$4:$CG$4,0))+$L$28*$K$28%*(1-tr),IF($N13>MIN($A$28+$H$28,fy+sp),0,$L$28/100*OFFSET(Data!$A$6,$N13-$A$28,MATCH($G$28,Data!$A$4:$CG$4,0)-1))))))) -> 0 | AJ13: =IF(OR($A$29<fy,$A$29>fy+sp),0,IF($G$29="exp",IF($A$29=$N13,$L$29*(tr-1),0),IF($G$29="atx",IF($A$29=$N13,-$L$29,0),IF($N13<$A$29,0,IF($N13=MIN($A$29+$H$29,fy+sp),$L$29/100*OFFSET(Data!$A$6,$N13-$A$29,MATCH($G$29,Data!$A$4:$CG$4,0))+$L$29*$K$29%*(1-tr),IF($N13>MIN($A$29+$H$29,fy+sp),0,$L$29/100*OFFSET(Data!$A$6,$N13-$A$29,MATCH($G$29,Data!$A$4:$CG$4,0)-1))))))) -> 0 | AK13: =IF(OR($A$30<fy,$A$30>fy+sp),0,IF($G$30="exp",IF($A$30=$N13,$L$30*(tr-1),0),IF($G$30="atx",IF($A$30=$N13,-$L$30,0),IF($N13<$A$30,0,IF($N13=MIN($A$30+$H$30,fy+sp),$L$30/100*OFFSET(Data!$A$6,$N13-$A$30,MATCH($G$30,Data!$A$4:$CG$4,0))+$L$30*$K$30%*(1-tr),IF($N13>MIN($A$30+$H$30,fy+sp),0,$L$30/100*OFFSET(Data!$A$6,$N13-$A$30,MATCH($G$30,Data!$A$4:$CG$4,0)-1))))))) -> 0 | AL13: =IF(OR($A$31<fy,$A$31>fy+sp),0,IF($G$31="exp",IF($A$31=$N13,$L$31*(tr-1),0),IF($G$31="atx",IF($A$31=$N13,-$L$31,0),IF($N13<$A$31,0,IF($N13=MIN($A$31+$H$31,fy+sp),$L$31/100*OFFSET(Data!$A$6,$N13-$A$31,MATCH($G$31,Data!$A$4:$CG$4,0))+$L$31*$K$31%*(1-tr),IF($N13>MIN($A$31+$H$31,fy+sp),0,$L$31/100*OFFSET(Data!$A$6,$N13-$A$31,MATCH($G$31,Data!$A$4:$CG$4,0)-1))))))) -> 0 | AM13: =IF(OR($A$32<fy,$A$32>fy+sp),0,IF($G$32="exp",IF($A$32=$N13,$L$32*(tr-1),0),IF($G$32="atx",IF($A$32=$N13,-$L$32,0),IF($N13<$A$32,0,IF($N13=MIN($A$32+$H$32,fy+sp),$L$32/100*OFFSET(Data!$A$6,$N13-$A$32,MATCH($G$32,Data!$A$4:$CG$4,0))+$L$32*$K$32%*(1-tr),IF($N13>MIN($A$32+$H$32,fy+sp),0,$L$32/100*OFFSET(Data!$A$6,$N13-$A$32,MATCH($G$32,Data!$A$4:$CG$4,0)-1))))))) -> 0 | AN13: =IF(OR($A$33<fy,$A$33>fy+sp),0,IF($G$33="exp",IF($A$33=$N13,$L$33*(tr-1),0),IF($G$33="atx",IF($A$33=$N13,-$L$33,0),IF($N13<$A$33,0,IF($N13=MIN($A$33+$H$33,fy+sp),$L$33/100*OFFSET(Data!$A$6,$N13-$A$33,MATCH($G$33,Data!$A$4:$CG$4,0))+$L$33*$K$33%*(1-tr),IF($N13>MIN($A$33+$H$33,fy+sp),0,$L$33/100*OFFSET(Data!$A$6,$N13-$A$33,MATCH($G$33,Data!$A$4:$CG$4,0)-1))))))) -> 0 | AO13: =IF(OR($A$34<fy,$A$34>fy+sp),0,IF($G$34="exp",IF($A$34=$N13,$L$34*(tr-1),0),IF($G$34="atx",IF($A$34=$N13,-$L$34,0),IF($N13<$A$34,0,IF($N13=MIN($A$34+$H$34,fy+sp),$L$34/100*OFFSET(Data!$A$6,$N13-$A$34,MATCH($G$34,Data!$A$4:$CG$4,0))+$L$34*$K$34%*(1-tr),IF($N13>MIN($A$34+$H$34,fy+sp),0,$L$34/100*OFFSET(Data!$A$6,$N13-$A$34,MATCH($G$34,Data!$A$4:$CG$4,0)-1))))))) -> 0 | AP13: =IF(OR($A$35<fy,$A$35>fy+sp),0,IF($G$35="exp",IF($A$35=$N13,$L$35*(tr-1),0),IF($G$35="atx",IF($A$35=$N13,-$L$35,0),IF($N13<$A$35,0,IF($N13=MIN($A$35+$H$35,fy+sp),$L$35/100*OFFSET(Data!$A$6,$N13-$A$35,MATCH($G$35,Data!$A$4:$CG$4,0))+$L$35*$K$35%*(1-tr),IF($N13>MIN($A$35+$H$35,fy+sp),0,$L$35/100*OFFSET(Data!$A$6,$N13-$A$35,MATCH($G$35,Data!$A$4:$CG$4,0)-1))))))) -> 0 | AQ13: =IF(OR($A$36<fy,$A$36>fy+sp),0,IF($G$36="exp",IF($A$36=$N13,$L$36*(tr-1),0),IF($G$36="atx",IF($A$36=$N13,-$L$36,0),IF($N13<$A$36,0,IF($N13=MIN($A$36+$H$36,fy+sp),$L$36/100*OFFSET(Data!$A$6,$N13-$A$36,MATCH($G$36,Data!$A$4:$CG$4,0))+$L$36*$K$36%*(1-tr),IF($N13>MIN($A$36+$H$36,fy+sp),0,$L$36/100*OFFSET(Data!$A$6,$N13-$A$36,MATCH($G$36,Data!$A$4:$CG$4,0)-1))))))) -> 0 | AR13: =IF(OR($A$37<fy,$A$37>fy+sp),0,IF($G$37="exp",IF($A$37=$N13,$L$37*(tr-1),0),IF($G$37="atx",IF($A$37=$N13,-$L$37,0),IF($N13<$A$37,0,IF($N13=MIN($A$37+$H$37,fy+sp),$L$37/100*OFFSET(Data!$A$6,$N13-$A$37,MATCH($G$37,Data!$A$4:$CG$4,0))+$L$37*$K$37%*(1-tr),IF($N13>MIN($A$37+$H$37,fy+sp),0,$L$37/100*OFFSET(Data!$A$6,$N13-$A$37,MATCH($G$37,Data!$A$4:$CG$4,0)-1))))))) -> 0 | AS13: =IF(OR($A$38<fy,$A$38>fy+sp),0,IF($G$38="exp",IF($A$38=$N13,$L$38*(tr-1),0),IF($G$38="atx",IF($A$38=$N13,-$L$38,0),IF($N13<$A$38,0,IF($N13=MIN($A$38+$H$38,fy+sp),$L$38/100*OFFSET(Data!$A$6,$N13-$A$38,MATCH($G$38,Data!$A$4:$CG$4,0))+$L$38*$K$38%*(1-tr),IF($N13>MIN($A$38+$H$38,fy+sp),0,$L$38/100*OFFSET(Data!$A$6,$N13-$A$38,MATCH($G$38,Data!$A$4:$CG$4,0)-1))))))) -> 0 | AT13: =IF(OR($A$39<fy,$A$39>fy+sp),0,IF($G$39="exp",IF($A$39=$N13,$L$39*(tr-1),0),IF($G$39="atx",IF($A$39=$N13,-$L$39,0),IF($N13<$A$39,0,IF($N13=MIN($A$39+$H$39,fy+sp),$L$39/100*OFFSET(Data!$A$6,$N13-$A$39,MATCH($G$39,Data!$A$4:$CG$4,0))+$L$39*$K$39%*(1-tr),IF($N13>MIN($A$39+$H$39,fy+sp),0,$L$39/100*OFFSET(Data!$A$6,$N13-$A$39,MATCH($G$39,Data!$A$4:$CG$4,0)-1))))))) -> 0 | AU13: =IF(OR($A$40<fy,$A$40>fy+sp),0,IF($G$40="exp",IF($A$40=$N13,$L$40*(tr-1),0),IF($G$40="atx",IF($A$40=$N13,-$L$40,0),IF($N13<$A$40,0,IF($N13=MIN($A$40+$H$40,fy+sp),$L$40/100*OFFSET(Data!$A$6,$N13-$A$40,MATCH($G$40,Data!$A$4:$CG$4,0))+$L$40*$K$40%*(1-tr),IF($N13>MIN($A$40+$H$40,fy+sp),0,$L$40/100*OFFSET(Data!$A$6,$N13-$A$40,MATCH($G$40,Data!$A$4:$CG$4,0)-1))))))) -> 0 | AV13: =IF(OR($A$41<fy,$A$41>fy+sp),0,IF($G$41="exp",IF($A$41=$N13,$L$41*(tr-1),0),IF($G$41="atx",IF($A$41=$N13,-$L$41,0),IF($N13<$A$41,0,IF($N13=MIN($A$41+$H$41,fy+sp),$L$41/100*OFFSET(Data!$A$6,$N13-$A$41,MATCH($G$41,Data!$A$4:$CG$4,0))+$L$41*$K$41%*(1-tr),IF($N13>MIN($A$41+$H$41,fy+sp),0,$L$41/100*OFFSET(Data!$A$6,$N13-$A$41,MATCH($G$41,Data!$A$4:$CG$4,0)-1))))))) -> 0 | AW13: =IF(OR($A$42<fy,$A$42>fy+sp),0,IF($G$42="exp",IF($A$42=$N13,$L$42*(tr-1),0),IF($G$42="atx",IF($A$42=$N13,-$L$42,0),IF($N13<$A$42,0,IF($N13=MIN($A$42+$H$42,fy+sp),$L$42/100*OFFSET(Data!$A$6,$N13-$A$42,MATCH($G$42,Data!$A$4:$CG$4,0))+$L$42*$K$42%*(1-tr),IF($N13>MIN($A$42+$H$42,fy+sp),0,$L$42/100*OFFSET(Data!$A$6,$N13-$A$42,MATCH($G$42,Data!$A$4:$CG$4,0)-1))))))) -> 0 | AX13: =IF(OR($A$43<fy,$A$43>fy+sp),0,IF($G$43="exp",IF($A$43=$N13,$L$43*(tr-1),0),IF($G$43="atx",IF($A$43=$N13,-$L$43,0),IF($N13<$A$43,0,IF($N13=MIN($A$43+$H$43,fy+sp),$L$43/100*OFFSET(Data!$A$6,$N13-$A$43,MATCH($G$43,Data!$A$4:$CG$4,0))+$L$43*$K$43%*(1-tr),IF($N13>MIN($A$43+$H$43,fy+sp),0,$L$43/100*OFFSET(Data!$A$6,$N13-$A$43,MATCH($G$43,Data!$A$4:$CG$4,0)-1))))))) -> 0 | AY13: =IF(OR($A$44<fy,$A$44>fy+sp),0,IF($G$44="exp",IF($A$44=$N13,$L$44*(tr-1),0),IF($G$44="atx",IF($A$44=$N13,-$L$44,0),IF($N13<$A$44,0,IF($N13=MIN($A$44+$H$44,fy+sp),$L$44/100*OFFSET(Data!$A$6,$N13-$A$44,MATCH($G$44,Data!$A$4:$CG$4,0))+$L$44*$K$44%*(1-tr),IF($N13>MIN($A$44+$H$44,fy+sp),0,$L$44/100*OFFSET(Data!$A$6,$N13-$A$44,MATCH($G$44,Data!$A$4:$CG$4,0)-1))))))) -> 0 | AZ13: =IF(OR($A$45<fy,$A$45>fy+sp),0,IF($G$45="exp",IF($A$45=$N13,$L$45*(tr-1),0),IF($G$45="atx",IF($A$45=$N13,-$L$45,0),IF($N13<$A$45,0,IF($N13=MIN($A$45+$H$45,fy+sp),$L$45/100*OFFSET(Data!$A$6,$N13-$A$45,MATCH($G$45,Data!$A$4:$CG$4,0))+$L$45*$K$45%*(1-tr),IF($N13>MIN($A$45+$H$45,fy+sp),0,$L$45/100*OFFSET(Data!$A$6,$N13-$A$45,MATCH($G$45,Data!$A$4:$CG$4,0)-1))))))) -> 0 | BA13: =IF(OR($A$46<fy,$A$46>fy+sp),0,IF($G$46="exp",IF($A$46=$N13,$L$46*(tr-1),0),IF($G$46="atx",IF($A$46=$N13,-$L$46,0),IF($N13<$A$46,0,IF($N13=MIN($A$46+$H$46,fy+sp),$L$46/100*OFFSET(Data!$A$6,$N13-$A$46,MATCH($G$46,Data!$A$4:$CG$4,0))+$L$46*$K$46%*(1-tr),IF($N13>MIN($A$46+$H$46,fy+sp),0,$L$46/100*OFFSET(Data!$A$6,$N13-$A$46,MATCH($G$46,Data!$A$4:$CG$4,0)-1))))))) -> 0 | BB13: =IF(OR($A$47<fy,$A$47>fy+sp),0,IF($G$47="exp",IF($A$47=$N13,$L$47*(tr-1),0),IF($G$47="atx",IF($A$47=$N13,-$L$47,0),IF($N13<$A$47,0,IF($N13=MIN($A$47+$H$47,fy+sp),$L$47/100*OFFSET(Data!$A$6,$N13-$A$47,MATCH($G$47,Data!$A$4:$CG$4,0))+$L$47*$K$47%*(1-tr),IF($N13>MIN($A$47+$H$47,fy+sp),0,$L$47/100*OFFSET(Data!$A$6,$N13-$A$47,MATCH($G$47,Data!$A$4:$CG$4,0)-1))))))) -> 0 | BC13: -7.822074857 | BD13: 0 | BE13: -81.47994642 | BF13: -20.36998661 | BG13: -227.9479956 | BH13: 0 | BI13: 0 | BJ13: 0 | BK13: 0
A14: 2025 | B14: Capital Expenditures | E14: =+'I. Own Operate Detail'!K$14 -> 172.2151 | F14: 2.5 | G14: gast | H14: 45 | I14: 0 | K14: 0 | L14: 199.716718 | M14: =NPV(i,U$9:U$58)+U$8 -> -107.9429941 | N14: 2025 | O14: =IF(OR($A$8<fy,$A$8>fy+sp),0,IF($G$8="exp",IF($A$8=$N14,$L$8*(tr-1),0),IF($G$8="atx",IF($A$8=$N14,-$L$8,0),IF($N14<$A$8,0,IF($N14=MIN($A$8+$H$8,fy+sp),$L$8/100*OFFSET(Data!$A$6,$N14-$A$8,MATCH($G$8,Data!$A$4:$CG$4,0))+$L$8*$K$8%*(1-tr),IF($N14>MIN($A$8+$H$8,fy+sp),0,$L$8/100*OFFSET(Data!$A$6,$N14-$A$8,MATCH($G$8,Data!$A$4:$CG$4,0)-1))))))) -> 1.58289777 | P14: =IF(OR($A$9<fy,$A$9>fy+sp),0,IF($G$9="exp",IF($A$9=$N14,$L$9*(tr-1),0),IF($G$9="atx",IF($A$9=$N14,-$L$9,0),IF($N14<$A$9,0,IF($N14=MIN($A$9+$H$9,fy+sp),$L$9/100*OFFSET(Data!$A$6,$N14-$A$9,MATCH($G$9,Data!$A$4:$CG$4,0))+$L$9*$K$9%*(1-tr),IF($N14>MIN($A$9+$H$9,fy+sp),0,$L$9/100*OFFSET(Data!$A$6,$N14-$A$9,MATCH($G$9,Data!$A$4:$CG$4,0)-1))))))) -> 20.74980107 | Q14: =IF(OR($A$10<fy,$A$10>fy+sp),0,IF($G$10="exp",IF($A$10=$N14,$L$10*(tr-1),0),IF($G$10="atx",IF($A$10=$N14,-$L$10,0),IF($N14<$A$10,0,IF($N14=MIN($A$10+$H$10,fy+sp),$L$10/100*OFFSET(Data!$A$6,$N14-$A$10,MATCH($G$10,Data!$A$4:$CG$4,0))+$L$10*$K$10%*(1-tr),IF($N14>MIN($A$10+$H$10,fy+sp),0,$L$10/100*OFFSET(Data!$A$6,$N14-$A$10,MATCH($G$10,Data!$A$4:$CG$4,0)-1))))))) -> 2.270624818 | R14: =IF(OR($A$11<fy,$A$11>fy+sp),0,IF($G$11="exp",IF($A$11=$N14,$L$11*(tr-1),0),IF($G$11="atx",IF($A$11=$N14,-$L$11,0),IF($N14<$A$11,0,IF($N14=MIN($A$11+$H$11,fy+sp),$L$11/100*OFFSET(Data!$A$6,$N14-$A$11,MATCH($G$11,Data!$A$4:$CG$4,0))+$L$11*$K$11%*(1-tr),IF($N14>MIN($A$11+$H$11,fy+sp),0,$L$11/100*OFFSET(Data!$A$6,$N14-$A$11,MATCH($G$11,Data!$A$4:$CG$4,0)-1))))))) -> 2.687064994 | S14: =IF(OR($A$12<fy,$A$12>fy+sp),0,IF($G$12="exp",IF($A$12=$N14,$L$12*(tr-1),0),IF($G$12="atx",IF($A$12=$N14,-$L$12,0),IF($N14<$A$12,0,IF($N14=MIN($A$12+$H$12,fy+sp),$L$12/100*OFFSET(Data!$A$6,$N14-$A$12,MATCH($G$12,Data!$A$4:$CG$4,0))+$L$12*$K$12%*(1-tr),IF($N14>MIN($A$12+$H$12,fy+sp),0,$L$12/100*OFFSET(Data!$A$6,$N14-$A$12,MATCH($G$12,Data!$A$4:$CG$4,0)-1))))))) -> 13.19081305 | T14: =IF(OR($A$13<fy,$A$13>fy+sp),0,IF($G$13="exp",IF($A$13=$N14,$L$13*(tr-1),0),IF($G$13="atx",IF($A$13=$N14,-$L$13,0),IF($N14<$A$13,0,IF($N14=MIN($A$13+$H$13,fy+sp),$L$13/100*OFFSET(Data!$A$6,$N14-$A$13,MATCH($G$13,Data!$A$4:$CG$4,0))+$L$13*$K$13%*(1-tr),IF($N14>MIN($A$13+$H$13,fy+sp),0,$L$13/100*OFFSET(Data!$A$6,$N14-$A$13,MATCH($G$13,Data!$A$4:$CG$4,0)-1))))))) -> 0.8402192679 | U14: =IF(OR($A$14<fy,$A$14>fy+sp),0,IF($G$14="exp",IF($A$14=$N14,$L$14*(tr-1),0),IF($G$14="atx",IF($A$14=$N14,-$L$14,0),IF($N14<$A$14,0,IF($N14=MIN($A$14+$H$14,fy+sp),$L$14/100*OFFSET(Data!$A$6,$N14-$A$14,MATCH($G$14,Data!$A$4:$CG$4,0))+$L$14*$K$14%*(1-tr),IF($N14>MIN($A$14+$H$14,fy+sp),0,$L$14/100*OFFSET(Data!$A$6,$N14-$A$14,MATCH($G$14,Data!$A$4:$CG$4,0)-1))))))) -> -199.716718 | V14: =IF(OR($A$15<fy,$A$15>fy+sp),0,IF($G$15="exp",IF($A$15=$N14,$L$15*(tr-1),0),IF($G$15="atx",IF($A$15=$N14,-$L$15,0),IF($N14<$A$15,0,IF($N14=MIN($A$15+$H$15,fy+sp),$L$15/100*OFFSET(Data!$A$6,$N14-$A$15,MATCH($G$15,Data!$A$4:$CG$4,0))+$L$15*$K$15%*(1-tr),IF($N14>MIN($A$15+$H$15,fy+sp),0,$L$15/100*OFFSET(Data!$A$6,$N14-$A$15,MATCH($G$15,Data!$A$4:$CG$4,0)-1))))))) -> 0 | W14: =IF(OR($A$16<fy,$A$16>fy+sp),0,IF($G$16="exp",IF($A$16=$N14,$L$16*(tr-1),0),IF($G$16="atx",IF($A$16=$N14,-$L$16,0),IF($N14<$A$16,0,IF($N14=MIN($A$16+$H$16,fy+sp),$L$16/100*OFFSET(Data!$A$6,$N14-$A$16,MATCH($G$16,Data!$A$4:$CG$4,0))+$L$16*$K$16%*(1-tr),IF($N14>MIN($A$16+$H$16,fy+sp),0,$L$16/100*OFFSET(Data!$A$6,$N14-$A$16,MATCH($G$16,Data!$A$4:$CG$4,0)-1))))))) -> 0 | X14: =IF(OR($A$17<fy,$A$17>fy+sp),0,IF($G$17="exp",IF($A$17=$N14,$L$17*(tr-1),0),IF($G$17="atx",IF($A$17=$N14,-$L$17,0),IF($N14<$A$17,0,IF($N14=MIN($A$17+$H$17,fy+sp),$L$17/100*OFFSET(Data!$A$6,$N14-$A$17,MATCH($G$17,Data!$A$4:$CG$4,0))+$L$17*$K$17%*(1-tr),IF($N14>MIN($A$17+$H$17,fy+sp),0,$L$17/100*OFFSET(Data!$A$6,$N14-$A$17,MATCH($G$17,Data!$A$4:$CG$4,0)-1))))))) -> 0 | Y14: =IF(OR($A$18<fy,$A$18>fy+sp),0,IF($G$18="exp",IF($A$18=$N14,$L$18*(tr-1),0),IF($G$18="atx",IF($A$18=$N14,-$L$18,0),IF($N14<$A$18,0,IF($N14=MIN($A$18+$H$18,fy+sp),$L$18/100*OFFSET(Data!$A$6,$N14-$A$18,MATCH($G$18,Data!$A$4:$CG$4,0))+$L$18*$K$18%*(1-tr),IF($N14>MIN($A$18+$H$18,fy+sp),0,$L$18/100*OFFSET(Data!$A$6,$N14-$A$18,MATCH($G$18,Data!$A$4:$CG$4,0)-1))))))) -> 35.32772761 | Z14: =IF(OR($A$19<fy,$A$19>fy+sp),0,IF($G$19="exp",IF($A$19=$N14,$L$19*(tr-1),0),IF($G$19="atx",IF($A$19=$N14,-$L$19,0),IF($N14<$A$19,0,IF($N14=MIN($A$19+$H$19,fy+sp),$L$19/100*OFFSET(Data!$A$6,$N14-$A$19,MATCH($G$19,Data!$A$4:$CG$4,0))+$L$19*$K$19%*(1-tr),IF($N14>MIN($A$19+$H$19,fy+sp),0,$L$19/100*OFFSET(Data!$A$6,$N14-$A$19,MATCH($G$19,Data!$A$4:$CG$4,0)-1))))))) -> -0.01683335261 | AA14: =IF(OR($A$20<fy,$A$20>fy+sp),0,IF($G$20="exp",IF($A$20=$N14,$L$20*(tr-1),0),IF($G$20="atx",IF($A$20=$N14,-$L$20,0),IF($N14<$A$20,0,IF($N14=MIN($A$20+$H$20,fy+sp),$L$20/100*OFFSET(Data!$A$6,$N14-$A$20,MATCH($G$20,Data!$A$4:$CG$4,0))+$L$20*$K$20%*(1-tr),IF($N14>MIN($A$20+$H$20,fy+sp),0,$L$20/100*OFFSET(Data!$A$6,$N14-$A$20,MATCH($G$20,Data!$A$4:$CG$4,0)-1))))))) -> 0 | AB14: =IF(OR($A$21<fy,$A$21>fy+sp),0,IF($G$21="exp",IF($A$21=$N14,$L$21*(tr-1),0),IF($G$21="atx",IF($A$21=$N14,-$L$21,0),IF($N14<$A$21,0,IF($N14=MIN($A$21+$H$21,fy+sp),$L$21/100*OFFSET(Data!$A$6,$N14-$A$21,MATCH($G$21,Data!$A$4:$CG$4,0))+$L$21*$K$21%*(1-tr),IF($N14>MIN($A$21+$H$21,fy+sp),0,$L$21/100*OFFSET(Data!$A$6,$N14-$A$21,MATCH($G$21,Data!$A$4:$CG$4,0)-1))))))) -> 0 | AC14: =IF(OR($A$22<fy,$A$22>fy+sp),0,IF($G$22="exp",IF($A$22=$N14,$L$22*(tr-1),0),IF($G$22="atx",IF($A$22=$N14,-$L$22,0),IF($N14<$A$22,0,IF($N14=MIN($A$22+$H$22,fy+sp),$L$22/100*OFFSET(Data!$A$6,$N14-$A$22,MATCH($G$22,Data!$A$4:$CG$4,0))+$L$22*$K$22%*(1-tr),IF($N14>MIN($A$22+$H$22,fy+sp),0,$L$22/100*OFFSET(Data!$A$6,$N14-$A$22,MATCH($G$22,Data!$A$4:$CG$4,0)-1))))))) -> 0 | AD14: =IF(OR($A$23<fy,$A$23>fy+sp),0,IF($G$23="exp",IF($A$23=$N14,$L$23*(tr-1),0),IF($G$23="atx",IF($A$23=$N14,-$L$23,0),IF($N14<$A$23,0,IF($N14=MIN($A$23+$H$23,fy+sp),$L$23/100*OFFSET(Data!$A$6,$N14-$A$23,MATCH($G$23,Data!$A$4:$CG$4,0))+$L$23*$K$23%*(1-tr),IF($N14>MIN($A$23+$H$23,fy+sp),0,$L$23/100*OFFSET(Data!$A$6,$N14-$A$23,MATCH($G$23,Data!$A$4:$CG$4,0)-1))))))) -> 0 | AE14: =IF(OR($A$24<fy,$A$24>fy+sp),0,IF($G$24="exp",IF($A$24=$N14,$L$24*(tr-1),0),IF($G$24="atx",IF($A$24=$N14,-$L$24,0),IF($N14<$A$24,0,IF($N14=MIN($A$24+$H$24,fy+sp),$L$24/100*OFFSET(Data!$A$6,$N14-$A$24,MATCH($G$24,Data!$A$4:$CG$4,0))+$L$24*$K$24%*(1-tr),IF($N14>MIN($A$24+$H$24,fy+sp),0,$L$24/100*OFFSET(Data!$A$6,$N14-$A$24,MATCH($G$24,Data!$A$4:$CG$4,0)-1))))))) -> 0 | AF14: =IF(OR($A$25<fy,$A$25>fy+sp),0,IF($G$25="exp",IF($A$25=$N14,$L$25*(tr-1),0),IF($G$25="atx",IF($A$25=$N14,-$L$25,0),IF($N14<$A$25,0,IF($N14=MIN($A$25+$H$25,fy+sp),$L$25/100*OFFSET(Data!$A$6,$N14-$A$25,MATCH($G$25,Data!$A$4:$CG$4,0))+$L$25*$K$25%*(1-tr),IF($N14>MIN($A$25+$H$25,fy+sp),0,$L$25/100*OFFSET(Data!$A$6,$N14-$A$25,MATCH($G$25,Data!$A$4:$CG$4,0)-1))))))) -> 0 | AG14: =IF(OR($A$26<fy,$A$26>fy+sp),0,IF($G$26="exp",IF($A$26=$N14,$L$26*(tr-1),0),IF($G$26="atx",IF($A$26=$N14,-$L$26,0),IF($N14<$A$26,0,IF($N14=MIN($A$26+$H$26,fy+sp),$L$26/100*OFFSET(Data!$A$6,$N14-$A$26,MATCH($G$26,Data!$A$4:$CG$4,0))+$L$26*$K$26%*(1-tr),IF($N14>MIN($A$26+$H$26,fy+sp),0,$L$26/100*OFFSET(Data!$A$6,$N14-$A$26,MATCH($G$26,Data!$A$4:$CG$4,0)-1))))))) -> 0 | AH14: =IF(OR($A$27<fy,$A$27>fy+sp),0,IF($G$27="exp",IF($A$27=$N14,$L$27*(tr-1),0),IF($G$27="atx",IF($A$27=$N14,-$L$27,0),IF($N14<$A$27,0,IF($N14=MIN($A$27+$H$27,fy+sp),$L$27/100*OFFSET(Data!$A$6,$N14-$A$27,MATCH($G$27,Data!$A$4:$CG$4,0))+$L$27*$K$27%*(1-tr),IF($N14>MIN($A$27+$H$27,fy+sp),0,$L$27/100*OFFSET(Data!$A$6,$N14-$A$27,MATCH($G$27,Data!$A$4:$CG$4,0)-1))))))) -> 0 | AI14: =IF(OR($A$28<fy,$A$28>fy+sp),0,IF($G$28="exp",IF($A$28=$N14,$L$28*(tr-1),0),IF($G$28="atx",IF($A$28=$N14,-$L$28,0),IF($N14<$A$28,0,IF($N14=MIN($A$28+$H$28,fy+sp),$L$28/100*OFFSET(Data!$A$6,$N14-$A$28,MATCH($G$28,Data!$A$4:$CG$4,0))+$L$28*$K$28%*(1-tr),IF($N14>MIN($A$28+$H$28,fy+sp),0,$L$28/100*OFFSET(Data!$A$6,$N14-$A$28,MATCH($G$28,Data!$A$4:$CG$4,0)-1))))))) -> 0 | AJ14: =IF(OR($A$29<fy,$A$29>fy+sp),0,IF($G$29="exp",IF($A$29=$N14,$L$29*(tr-1),0),IF($G$29="atx",IF($A$29=$N14,-$L$29,0),IF($N14<$A$29,0,IF($N14=MIN($A$29+$H$29,fy+sp),$L$29/100*OFFSET(Data!$A$6,$N14-$A$29,MATCH($G$29,Data!$A$4:$CG$4,0))+$L$29*$K$29%*(1-tr),IF($N14>MIN($A$29+$H$29,fy+sp),0,$L$29/100*OFFSET(Data!$A$6,$N14-$A$29,MATCH($G$29,Data!$A$4:$CG$4,0)-1))))))) -> 0 | AK14: =IF(OR($A$30<fy,$A$30>fy+sp),0,IF($G$30="exp",IF($A$30=$N14,$L$30*(tr-1),0),IF($G$30="atx",IF($A$30=$N14,-$L$30,0),IF($N14<$A$30,0,IF($N14=MIN($A$30+$H$30,fy+sp),$L$30/100*OFFSET(Data!$A$6,$N14-$A$30,MATCH($G$30,Data!$A$4:$CG$4,0))+$L$30*$K$30%*(1-tr),IF($N14>MIN($A$30+$H$30,fy+sp),0,$L$30/100*OFFSET(Data!$A$6,$N14-$A$30,MATCH($G$30,Data!$A$4:$CG$4,0)-1))))))) -> 0 | AL14: =IF(OR($A$31<fy,$A$31>fy+sp),0,IF($G$31="exp",IF($A$31=$N14,$L$31*(tr-1),0),IF($G$31="atx",IF($A$31=$N14,-$L$31,0),IF($N14<$A$31,0,IF($N14=MIN($A$31+$H$31,fy+sp),$L$31/100*OFFSET(Data!$A$6,$N14-$A$31,MATCH($G$31,Data!$A$4:$CG$4,0))+$L$31*$K$31%*(1-tr),IF($N14>MIN($A$31+$H$31,fy+sp),0,$L$31/100*OFFSET(Data!$A$6,$N14-$A$31,MATCH($G$31,Data!$A$4:$CG$4,0)-1))))))) -> 0 | AM14: =IF(OR($A$32<fy,$A$32>fy+sp),0,IF($G$32="exp",IF($A$32=$N14,$L$32*(tr-1),0),IF($G$32="atx",IF($A$32=$N14,-$L$32,0),IF($N14<$A$32,0,IF($N14=MIN($A$32+$H$32,fy+sp),$L$32/100*OFFSET(Data!$A$6,$N14-$A$32,MATCH($G$32,Data!$A$4:$CG$4,0))+$L$32*$K$32%*(1-tr),IF($N14>MIN($A$32+$H$32,fy+sp),0,$L$32/100*OFFSET(Data!$A$6,$N14-$A$32,MATCH($G$32,Data!$A$4:$CG$4,0)-1))))))) -> 0 | AN14: =IF(OR($A$33<fy,$A$33>fy+sp),0,IF($G$33="exp",IF($A$33=$N14,$L$33*(tr-1),0),IF($G$33="atx",IF($A$33=$N14,-$L$33,0),IF($N14<$A$33,0,IF($N14=MIN($A$33+$H$33,fy+sp),$L$33/100*OFFSET(Data!$A$6,$N14-$A$33,MATCH($G$33,Data!$A$4:$CG$4,0))+$L$33*$K$33%*(1-tr),IF($N14>MIN($A$33+$H$33,fy+sp),0,$L$33/100*OFFSET(Data!$A$6,$N14-$A$33,MATCH($G$33,Data!$A$4:$CG$4,0)-1))))))) -> 0 | AO14: =IF(OR($A$34<fy,$A$34>fy+sp),0,IF($G$34="exp",IF($A$34=$N14,$L$34*(tr-1),0),IF($G$34="atx",IF($A$34=$N14,-$L$34,0),IF($N14<$A$34,0,IF($N14=MIN($A$34+$H$34,fy+sp),$L$34/100*OFFSET(Data!$A$6,$N14-$A$34,MATCH($G$34,Data!$A$4:$CG$4,0))+$L$34*$K$34%*(1-tr),IF($N14>MIN($A$34+$H$34,fy+sp),0,$L$34/100*OFFSET(Data!$A$6,$N14-$A$34,MATCH($G$34,Data!$A$4:$CG$4,0)-1))))))) -> 0 | AP14: =IF(OR($A$35<fy,$A$35>fy+sp),0,IF($G$35="exp",IF($A$35=$N14,$L$35*(tr-1),0),IF($G$35="atx",IF($A$35=$N14,-$L$35,0),IF($N14<$A$35,0,IF($N14=MIN($A$35+$H$35,fy+sp),$L$35/100*OFFSET(Data!$A$6,$N14-$A$35,MATCH($G$35,Data!$A$4:$CG$4,0))+$L$35*$K$35%*(1-tr),IF($N14>MIN($A$35+$H$35,fy+sp),0,$L$35/100*OFFSET(Data!$A$6,$N14-$A$35,MATCH($G$35,Data!$A$4:$CG$4,0)-1))))))) -> 0 | AQ14: =IF(OR($A$36<fy,$A$36>fy+sp),0,IF($G$36="exp",IF($A$36=$N14,$L$36*(tr-1),0),IF($G$36="atx",IF($A$36=$N14,-$L$36,0),IF($N14<$A$36,0,IF($N14=MIN($A$36+$H$36,fy+sp),$L$36/100*OFFSET(Data!$A$6,$N14-$A$36,MATCH($G$36,Data!$A$4:$CG$4,0))+$L$36*$K$36%*(1-tr),IF($N14>MIN($A$36+$H$36,fy+sp),0,$L$36/100*OFFSET(Data!$A$6,$N14-$A$36,MATCH($G$36,Data!$A$4:$CG$4,0)-1))))))) -> 0 | AR14: =IF(OR($A$37<fy,$A$37>fy+sp),0,IF($G$37="exp",IF($A$37=$N14,$L$37*(tr-1),0),IF($G$37="atx",IF($A$37=$N14,-$L$37,0),IF($N14<$A$37,0,IF($N14=MIN($A$37+$H$37,fy+sp),$L$37/100*OFFSET(Data!$A$6,$N14-$A$37,MATCH($G$37,Data!$A$4:$CG$4,0))+$L$37*$K$37%*(1-tr),IF($N14>MIN($A$37+$H$37,fy+sp),0,$L$37/100*OFFSET(Data!$A$6,$N14-$A$37,MATCH($G$37,Data!$A$4:$CG$4,0)-1))))))) -> 0 | AS14: =IF(OR($A$38<fy,$A$38>fy+sp),0,IF($G$38="exp",IF($A$38=$N14,$L$38*(tr-1),0),IF($G$38="atx",IF($A$38=$N14,-$L$38,0),IF($N14<$A$38,0,IF($N14=MIN($A$38+$H$38,fy+sp),$L$38/100*OFFSET(Data!$A$6,$N14-$A$38,MATCH($G$38,Data!$A$4:$CG$4,0))+$L$38*$K$38%*(1-tr),IF($N14>MIN($A$38+$H$38,fy+sp),0,$L$38/100*OFFSET(Data!$A$6,$N14-$A$38,MATCH($G$38,Data!$A$4:$CG$4,0)-1))))))) -> 0 | AT14: =IF(OR($A$39<fy,$A$39>fy+sp),0,IF($G$39="exp",IF($A$39=$N14,$L$39*(tr-1),0),IF($G$39="atx",IF($A$39=$N14,-$L$39,0),IF($N14<$A$39,0,IF($N14=MIN($A$39+$H$39,fy+sp),$L$39/100*OFFSET(Data!$A$6,$N14-$A$39,MATCH($G$39,Data!$A$4:$CG$4,0))+$L$39*$K$39%*(1-tr),IF($N14>MIN($A$39+$H$39,fy+sp),0,$L$39/100*OFFSET(Data!$A$6,$N14-$A$39,MATCH($G$39,Data!$A$4:$CG$4,0)-1))))))) -> 0 | AU14: =IF(OR($A$40<fy,$A$40>fy+sp),0,IF($G$40="exp",IF($A$40=$N14,$L$40*(tr-1),0),IF($G$40="atx",IF($A$40=$N14,-$L$40,0),IF($N14<$A$40,0,IF($N14=MIN($A$40+$H$40,fy+sp),$L$40/100*OFFSET(Data!$A$6,$N14-$A$40,MATCH($G$40,Data!$A$4:$CG$4,0))+$L$40*$K$40%*(1-tr),IF($N14>MIN($A$40+$H$40,fy+sp),0,$L$40/100*OFFSET(Data!$A$6,$N14-$A$40,MATCH($G$40,Data!$A$4:$CG$4,0)-1))))))) -> 0 | AV14: =IF(OR($A$41<fy,$A$41>fy+sp),0,IF($G$41="exp",IF($A$41=$N14,$L$41*(tr-1),0),IF($G$41="atx",IF($A$41=$N14,-$L$41,0),IF($N14<$A$41,0,IF($N14=MIN($A$41+$H$41,fy+sp),$L$41/100*OFFSET(Data!$A$6,$N14-$A$41,MATCH($G$41,Data!$A$4:$CG$4,0))+$L$41*$K$41%*(1-tr),IF($N14>MIN($A$41+$H$41,fy+sp),0,$L$41/100*OFFSET(Data!$A$6,$N14-$A$41,MATCH($G$41,Data!$A$4:$CG$4,0)-1))))))) -> 0 | AW14: =IF(OR($A$42<fy,$A$42>fy+sp),0,IF($G$42="exp",IF($A$42=$N14,$L$42*(tr-1),0),IF($G$42="atx",IF($A$42=$N14,-$L$42,0),IF($N14<$A$42,0,IF($N14=MIN($A$42+$H$42,fy+sp),$L$42/100*OFFSET(Data!$A$6,$N14-$A$42,MATCH($G$42,Data!$A$4:$CG$4,0))+$L$42*$K$42%*(1-tr),IF($N14>MIN($A$42+$H$42,fy+sp),0,$L$42/100*OFFSET(Data!$A$6,$N14-$A$42,MATCH($G$42,Data!$A$4:$CG$4,0)-1))))))) -> 0 | AX14: =IF(OR($A$43<fy,$A$43>fy+sp),0,IF($G$43="exp",IF($A$43=$N14,$L$43*(tr-1),0),IF($G$43="atx",IF($A$43=$N14,-$L$43,0),IF($N14<$A$43,0,IF($N14=MIN($A$43+$H$43,fy+sp),$L$43/100*OFFSET(Data!$A$6,$N14-$A$43,MATCH($G$43,Data!$A$4:$CG$4,0))+$L$43*$K$43%*(1-tr),IF($N14>MIN($A$43+$H$43,fy+sp),0,$L$43/100*OFFSET(Data!$A$6,$N14-$A$43,MATCH($G$43,Data!$A$4:$CG$4,0)-1))))))) -> 0 | AY14: =IF(OR($A$44<fy,$A$44>fy+sp),0,IF($G$44="exp",IF($A$44=$N14,$L$44*(tr-1),0),IF($G$44="atx",IF($A$44=$N14,-$L$44,0),IF($N14<$A$44,0,IF($N14=MIN($A$44+$H$44,fy+sp),$L$44/100*OFFSET(Data!$A$6,$N14-$A$44,MATCH($G$44,Data!$A$4:$CG$4,0))+$L$44*$K$44%*(1-tr),IF($N14>MIN($A$44+$H$44,fy+sp),0,$L$44/100*OFFSET(Data!$A$6,$N14-$A$44,MATCH($G$44,Data!$A$4:$CG$4,0)-1))))))) -> 0 | AZ14: =IF(OR($A$45<fy,$A$45>fy+sp),0,IF($G$45="exp",IF($A$45=$N14,$L$45*(tr-1),0),IF($G$45="atx",IF($A$45=$N14,-$L$45,0),IF($N14<$A$45,0,IF($N14=MIN($A$45+$H$45,fy+sp),$L$45/100*OFFSET(Data!$A$6,$N14-$A$45,MATCH($G$45,Data!$A$4:$CG$4,0))+$L$45*$K$45%*(1-tr),IF($N14>MIN($A$45+$H$45,fy+sp),0,$L$45/100*OFFSET(Data!$A$6,$N14-$A$45,MATCH($G$45,Data!$A$4:$CG$4,0)-1))))))) -> 0 | BA14: =IF(OR($A$46<fy,$A$46>fy+sp),0,IF($G$46="exp",IF($A$46=$N14,$L$46*(tr-1),0),IF($G$46="atx",IF($A$46=$N14,-$L$46,0),IF($N14<$A$46,0,IF($N14=MIN($A$46+$H$46,fy+sp),$L$46/100*OFFSET(Data!$A$6,$N14-$A$46,MATCH($G$46,Data!$A$4:$CG$4,0))+$L$46*$K$46%*(1-tr),IF($N14>MIN($A$46+$H$46,fy+sp),0,$L$46/100*OFFSET(Data!$A$6,$N14-$A$46,MATCH($G$46,Data!$A$4:$CG$4,0)-1))))))) -> 0 | BB14: =IF(OR($A$47<fy,$A$47>fy+sp),0,IF($G$47="exp",IF($A$47=$N14,$L$47*(tr-1),0),IF($G$47="atx",IF($A$47=$N14,-$L$47,0),IF($N14<$A$47,0,IF($N14=MIN($A$47+$H$47,fy+sp),$L$47/100*OFFSET(Data!$A$6,$N14-$A$47,MATCH($G$47,Data!$A$4:$CG$4,0))+$L$47*$K$47%*(1-tr),IF($N14>MIN($A$47+$H$47,fy+sp),0,$L$47/100*OFFSET(Data!$A$6,$N14-$A$47,MATCH($G$47,Data!$A$4:$CG$4,0)-1))))))) -> 0 | BC14: -8.017626728 | BD14: 0 | BE14: 0 | BF14: -20.87923627 | BG14: -151.9812658 | BH14: 0 | BI14: 0 | BJ14: 0 | BK14: 0
A15: 2026 | B15: Capital Expenditures | E15: =+'I. Own Operate Detail'!L$14 -> 172.2151 | F15: 2.5 | G15: gast | H15: 45 | I15: 0 | K15: 0 | L15: 204.7096359 | M15: =NPV(i,V$9:V$58)+V$8 -> -101.0566749 | N15: 2026 | O15: =IF(OR($A$8<fy,$A$8>fy+sp),0,IF($G$8="exp",IF($A$8=$N15,$L$8*(tr-1),0),IF($G$8="atx",IF($A$8=$N15,-$L$8,0),IF($N15<$A$8,0,IF($N15=MIN($A$8+$H$8,fy+sp),$L$8/100*OFFSET(Data!$A$6,$N15-$A$8,MATCH($G$8,Data!$A$4:$CG$4,0))+$L$8*$K$8%*(1-tr),IF($N15>MIN($A$8+$H$8,fy+sp),0,$L$8/100*OFFSET(Data!$A$6,$N15-$A$8,MATCH($G$8,Data!$A$4:$CG$4,0)-1))))))) -> 1.439476558 | P15: =IF(OR($A$9<fy,$A$9>fy+sp),0,IF($G$9="exp",IF($A$9=$N15,$L$9*(tr-1),0),IF($G$9="atx",IF($A$9=$N15,-$L$9,0),IF($N15<$A$9,0,IF($N15=MIN($A$9+$H$9,fy+sp),$L$9/100*OFFSET(Data!$A$6,$N15-$A$9,MATCH($G$9,Data!$A$4:$CG$4,0))+$L$9*$K$9%*(1-tr),IF($N15>MIN($A$9+$H$9,fy+sp),0,$L$9/100*OFFSET(Data!$A$6,$N15-$A$9,MATCH($G$9,Data!$A$4:$CG$4,0)-1))))))) -> 17.67616844 | Q15: =IF(OR($A$10<fy,$A$10>fy+sp),0,IF($G$10="exp",IF($A$10=$N15,$L$10*(tr-1),0),IF($G$10="atx",IF($A$10=$N15,-$L$10,0),IF($N15<$A$10,0,IF($N15=MIN($A$10+$H$10,fy+sp),$L$10/100*OFFSET(Data!$A$6,$N15-$A$10,MATCH($G$10,Data!$A$4:$CG$4,0))+$L$10*$K$10%*(1-tr),IF($N15>MIN($A$10+$H$10,fy+sp),0,$L$10/100*OFFSET(Data!$A$6,$N15-$A$10,MATCH($G$10,Data!$A$4:$CG$4,0)-1))))))) -> 1.95220942 | R15: =IF(OR($A$11<fy,$A$11>fy+sp),0,IF($G$11="exp",IF($A$11=$N15,$L$11*(tr-1),0),IF($G$11="atx",IF($A$11=$N15,-$L$11,0),IF($N15<$A$11,0,IF($N15=MIN($A$11+$H$11,fy+sp),$L$11/100*OFFSET(Data!$A$6,$N15-$A$11,MATCH($G$11,Data!$A$4:$CG$4,0))+$L$11*$K$11%*(1-tr),IF($N15>MIN($A$11+$H$11,fy+sp),0,$L$11/100*OFFSET(Data!$A$6,$N15-$A$11,MATCH($G$11,Data!$A$4:$CG$4,0)-1))))))) -> 2.327390438 | S15: =IF(OR($A$12<fy,$A$12>fy+sp),0,IF($G$12="exp",IF($A$12=$N15,$L$12*(tr-1),0),IF($G$12="atx",IF($A$12=$N15,-$L$12,0),IF($N15<$A$12,0,IF($N15=MIN($A$12+$H$12,fy+sp),$L$12/100*OFFSET(Data!$A$6,$N15-$A$12,MATCH($G$12,Data!$A$4:$CG$4,0))+$L$12*$K$12%*(1-tr),IF($N15>MIN($A$12+$H$12,fy+sp),0,$L$12/100*OFFSET(Data!$A$6,$N15-$A$12,MATCH($G$12,Data!$A$4:$CG$4,0)-1))))))) -> 11.39047894 | T15: =IF(OR($A$13<fy,$A$13>fy+sp),0,IF($G$13="exp",IF($A$13=$N15,$L$13*(tr-1),0),IF($G$13="atx",IF($A$13=$N15,-$L$13,0),IF($N15<$A$13,0,IF($N15=MIN($A$13+$H$13,fy+sp),$L$13/100*OFFSET(Data!$A$6,$N15-$A$13,MATCH($G$13,Data!$A$4:$CG$4,0))+$L$13*$K$13%*(1-tr),IF($N15>MIN($A$13+$H$13,fy+sp),0,$L$13/100*OFFSET(Data!$A$6,$N15-$A$13,MATCH($G$13,Data!$A$4:$CG$4,0)-1))))))) -> 3.269305324 | U15: =IF(OR($A$14<fy,$A$14>fy+sp),0,IF($G$14="exp",IF($A$14=$N15,$L$14*(tr-1),0),IF($G$14="atx",IF($A$14=$N15,-$L$14,0),IF($N15<$A$14,0,IF($N15=MIN($A$14+$H$14,fy+sp),$L$14/100*OFFSET(Data!$A$6,$N15-$A$14,MATCH($G$14,Data!$A$4:$CG$4,0))+$L$14*$K$14%*(1-tr),IF($N15>MIN($A$14+$H$14,fy+sp),0,$L$14/100*OFFSET(Data!$A$6,$N15-$A$14,MATCH($G$14,Data!$A$4:$CG$4,0)-1))))))) -> 0.8612247496 | V15: =IF(OR($A$15<fy,$A$15>fy+sp),0,IF($G$15="exp",IF($A$15=$N15,$L$15*(tr-1),0),IF($G$15="atx",IF($A$15=$N15,-$L$15,0),IF($N15<$A$15,0,IF($N15=MIN($A$15+$H$15,fy+sp),$L$15/100*OFFSET(Data!$A$6,$N15-$A$15,MATCH($G$15,Data!$A$4:$CG$4,0))+$L$15*$K$15%*(1-tr),IF($N15>MIN($A$15+$H$15,fy+sp),0,$L$15/100*OFFSET(Data!$A$6,$N15-$A$15,MATCH($G$15,Data!$A$4:$CG$4,0)-1))))))) -> -204.7096359 | W15: =IF(OR($A$16<fy,$A$16>fy+sp),0,IF($G$16="exp",IF($A$16=$N15,$L$16*(tr-1),0),IF($G$16="atx",IF($A$16=$N15,-$L$16,0),IF($N15<$A$16,0,IF($N15=MIN($A$16+$H$16,fy+sp),$L$16/100*OFFSET(Data!$A$6,$N15-$A$16,MATCH($G$16,Data!$A$4:$CG$4,0))+$L$16*$K$16%*(1-tr),IF($N15>MIN($A$16+$H$16,fy+sp),0,$L$16/100*OFFSET(Data!$A$6,$N15-$A$16,MATCH($G$16,Data!$A$4:$CG$4,0)-1))))))) -> 0 | X15: =IF(OR($A$17<fy,$A$17>fy+sp),0,IF($G$17="exp",IF($A$17=$N15,$L$17*(tr-1),0),IF($G$17="atx",IF($A$17=$N15,-$L$17,0),IF($N15<$A$17,0,IF($N15=MIN($A$17+$H$17,fy+sp),$L$17/100*OFFSET(Data!$A$6,$N15-$A$17,MATCH($G$17,Data!$A$4:$CG$4,0))+$L$17*$K$17%*(1-tr),IF($N15>MIN($A$17+$H$17,fy+sp),0,$L$17/100*OFFSET(Data!$A$6,$N15-$A$17,MATCH($G$17,Data!$A$4:$CG$4,0)-1))))))) -> 0 | Y15: =IF(OR($A$18<fy,$A$18>fy+sp),0,IF($G$18="exp",IF($A$18=$N15,$L$18*(tr-1),0),IF($G$18="atx",IF($A$18=$N15,-$L$18,0),IF($N15<$A$18,0,IF($N15=MIN($A$18+$H$18,fy+sp),$L$18/100*OFFSET(Data!$A$6,$N15-$A$18,MATCH($G$18,Data!$A$4:$CG$4,0))+$L$18*$K$18%*(1-tr),IF($N15>MIN($A$18+$H$18,fy+sp),0,$L$18/100*OFFSET(Data!$A$6,$N15-$A$18,MATCH($G$18,Data!$A$4:$CG$4,0)-1))))))) -> 32.12679726 | Z15: =IF(OR($A$19<fy,$A$19>fy+sp),0,IF($G$19="exp",IF($A$19=$N15,$L$19*(tr-1),0),IF($G$19="atx",IF($A$19=$N15,-$L$19,0),IF($N15<$A$19,0,IF($N15=MIN($A$19+$H$19,fy+sp),$L$19/100*OFFSET(Data!$A$6,$N15-$A$19,MATCH($G$19,Data!$A$4:$CG$4,0))+$L$19*$K$19%*(1-tr),IF($N15>MIN($A$19+$H$19,fy+sp),0,$L$19/100*OFFSET(Data!$A$6,$N15-$A$19,MATCH($G$19,Data!$A$4:$CG$4,0)-1))))))) -> -0.01683335261 | AA15: =IF(OR($A$20<fy,$A$20>fy+sp),0,IF($G$20="exp",IF($A$20=$N15,$L$20*(tr-1),0),IF($G$20="atx",IF($A$20=$N15,-$L$20,0),IF($N15<$A$20,0,IF($N15=MIN($A$20+$H$20,fy+sp),$L$20/100*OFFSET(Data!$A$6,$N15-$A$20,MATCH($G$20,Data!$A$4:$CG$4,0))+$L$20*$K$20%*(1-tr),IF($N15>MIN($A$20+$H$20,fy+sp),0,$L$20/100*OFFSET(Data!$A$6,$N15-$A$20,MATCH($G$20,Data!$A$4:$CG$4,0)-1))))))) -> 0 | AB15: =IF(OR($A$21<fy,$A$21>fy+sp),0,IF($G$21="exp",IF($A$21=$N15,$L$21*(tr-1),0),IF($G$21="atx",IF($A$21=$N15,-$L$21,0),IF($N15<$A$21,0,IF($N15=MIN($A$21+$H$21,fy+sp),$L$21/100*OFFSET(Data!$A$6,$N15-$A$21,MATCH($G$21,Data!$A$4:$CG$4,0))+$L$21*$K$21%*(1-tr),IF($N15>MIN($A$21+$H$21,fy+sp),0,$L$21/100*OFFSET(Data!$A$6,$N15-$A$21,MATCH($G$21,Data!$A$4:$CG$4,0)-1))))))) -> 0 | AC15: =IF(OR($A$22<fy,$A$22>fy+sp),0,IF($G$22="exp",IF($A$22=$N15,$L$22*(tr-1),0),IF($G$22="atx",IF($A$22=$N15,-$L$22,0),IF($N15<$A$22,0,IF($N15=MIN($A$22+$H$22,fy+sp),$L$22/100*OFFSET(Data!$A$6,$N15-$A$22,MATCH($G$22,Data!$A$4:$CG$4,0))+$L$22*$K$22%*(1-tr),IF($N15>MIN($A$22+$H$22,fy+sp),0,$L$22/100*OFFSET(Data!$A$6,$N15-$A$22,MATCH($G$22,Data!$A$4:$CG$4,0)-1))))))) -> 0 | AD15: =IF(OR($A$23<fy,$A$23>fy+sp),0,IF($G$23="exp",IF($A$23=$N15,$L$23*(tr-1),0),IF($G$23="atx",IF($A$23=$N15,-$L$23,0),IF($N15<$A$23,0,IF($N15=MIN($A$23+$H$23,fy+sp),$L$23/100*OFFSET(Data!$A$6,$N15-$A$23,MATCH($G$23,Data!$A$4:$CG$4,0))+$L$23*$K$23%*(1-tr),IF($N15>MIN($A$23+$H$23,fy+sp),0,$L$23/100*OFFSET(Data!$A$6,$N15-$A$23,MATCH($G$23,Data!$A$4:$CG$4,0)-1))))))) -> 0 | AE15: =IF(OR($A$24<fy,$A$24>fy+sp),0,IF($G$24="exp",IF($A$24=$N15,$L$24*(tr-1),0),IF($G$24="atx",IF($A$24=$N15,-$L$24,0),IF($N15<$A$24,0,IF($N15=MIN($A$24+$H$24,fy+sp),$L$24/100*OFFSET(Data!$A$6,$N15-$A$24,MATCH($G$24,Data!$A$4:$CG$4,0))+$L$24*$K$24%*(1-tr),IF($N15>MIN($A$24+$H$24,fy+sp),0,$L$24/100*OFFSET(Data!$A$6,$N15-$A$24,MATCH($G$24,Data!$A$4:$CG$4,0)-1))))))) -> 0 | AF15: =IF(OR($A$25<fy,$A$25>fy+sp),0,IF($G$25="exp",IF($A$25=$N15,$L$25*(tr-1),0),IF($G$25="atx",IF($A$25=$N15,-$L$25,0),IF($N15<$A$25,0,IF($N15=MIN($A$25+$H$25,fy+sp),$L$25/100*OFFSET(Data!$A$6,$N15-$A$25,MATCH($G$25,Data!$A$4:$CG$4,0))+$L$25*$K$25%*(1-tr),IF($N15>MIN($A$25+$H$25,fy+sp),0,$L$25/100*OFFSET(Data!$A$6,$N15-$A$25,MATCH($G$25,Data!$A$4:$CG$4,0)-1))))))) -> 0 | AG15: =IF(OR($A$26<fy,$A$26>fy+sp),0,IF($G$26="exp",IF($A$26=$N15,$L$26*(tr-1),0),IF($G$26="atx",IF($A$26=$N15,-$L$26,0),IF($N15<$A$26,0,IF($N15=MIN($A$26+$H$26,fy+sp),$L$26/100*OFFSET(Data!$A$6,$N15-$A$26,MATCH($G$26,Data!$A$4:$CG$4,0))+$L$26*$K$26%*(1-tr),IF($N15>MIN($A$26+$H$26,fy+sp),0,$L$26/100*OFFSET(Data!$A$6,$N15-$A$26,MATCH($G$26,Data!$A$4:$CG$4,0)-1))))))) -> 0 | AH15: =IF(OR($A$27<fy,$A$27>fy+sp),0,IF($G$27="exp",IF($A$27=$N15,$L$27*(tr-1),0),IF($G$27="atx",IF($A$27=$N15,-$L$27,0),IF($N15<$A$27,0,IF($N15=MIN($A$27+$H$27,fy+sp),$L$27/100*OFFSET(Data!$A$6,$N15-$A$27,MATCH($G$27,Data!$A$4:$CG$4,0))+$L$27*$K$27%*(1-tr),IF($N15>MIN($A$27+$H$27,fy+sp),0,$L$27/100*OFFSET(Data!$A$6,$N15-$A$27,MATCH($G$27,Data!$A$4:$CG$4,0)-1))))))) -> 0 | AI15: =IF(OR($A$28<fy,$A$28>fy+sp),0,IF($G$28="exp",IF($A$28=$N15,$L$28*(tr-1),0),IF($G$28="atx",IF($A$28=$N15,-$L$28,0),IF($N15<$A$28,0,IF($N15=MIN($A$28+$H$28,fy+sp),$L$28/100*OFFSET(Data!$A$6,$N15-$A$28,MATCH($G$28,Data!$A$4:$CG$4,0))+$L$28*$K$28%*(1-tr),IF($N15>MIN($A$28+$H$28,fy+sp),0,$L$28/100*OFFSET(Data!$A$6,$N15-$A$28,MATCH($G$28,Data!$A$4:$CG$4,0)-1))))))) -> 0 | AJ15: =IF(OR($A$29<fy,$A$29>fy+sp),0,IF($G$29="exp",IF($A$29=$N15,$L$29*(tr-1),0),IF($G$29="atx",IF($A$29=$N15,-$L$29,0),IF($N15<$A$29,0,IF($N15=MIN($A$29+$H$29,fy+sp),$L$29/100*OFFSET(Data!$A$6,$N15-$A$29,MATCH($G$29,Data!$A$4:$CG$4,0))+$L$29*$K$29%*(1-tr),IF($N15>MIN($A$29+$H$29,fy+sp),0,$L$29/100*OFFSET(Data!$A$6,$N15-$A$29,MATCH($G$29,Data!$A$4:$CG$4,0)-1))))))) -> 0 | AK15: =IF(OR($A$30<fy,$A$30>fy+sp),0,IF($G$30="exp",IF($A$30=$N15,$L$30*(tr-1),0),IF($G$30="atx",IF($A$30=$N15,-$L$30,0),IF($N15<$A$30,0,IF($N15=MIN($A$30+$H$30,fy+sp),$L$30/100*OFFSET(Data!$A$6,$N15-$A$30,MATCH($G$30,Data!$A$4:$CG$4,0))+$L$30*$K$30%*(1-tr),IF($N15>MIN($A$30+$H$30,fy+sp),0,$L$30/100*OFFSET(Data!$A$6,$N15-$A$30,MATCH($G$30,Data!$A$4:$CG$4,0)-1))))))) -> 0 | AL15: =IF(OR($A$31<fy,$A$31>fy+sp),0,IF($G$31="exp",IF($A$31=$N15,$L$31*(tr-1),0),IF($G$31="atx",IF($A$31=$N15,-$L$31,0),IF($N15<$A$31,0,IF($N15=MIN($A$31+$H$31,fy+sp),$L$31/100*OFFSET(Data!$A$6,$N15-$A$31,MATCH($G$31,Data!$A$4:$CG$4,0))+$L$31*$K$31%*(1-tr),IF($N15>MIN($A$31+$H$31,fy+sp),0,$L$31/100*OFFSET(Data!$A$6,$N15-$A$31,MATCH($G$31,Data!$A$4:$CG$4,0)-1))))))) -> 0 | AM15: =IF(OR($A$32<fy,$A$32>fy+sp),0,IF($G$32="exp",IF($A$32=$N15,$L$32*(tr-1),0),IF($G$32="atx",IF($A$32=$N15,-$L$32,0),IF($N15<$A$32,0,IF($N15=MIN($A$32+$H$32,fy+sp),$L$32/100*OFFSET(Data!$A$6,$N15-$A$32,MATCH($G$32,Data!$A$4:$CG$4,0))+$L$32*$K$32%*(1-tr),IF($N15>MIN($A$32+$H$32,fy+sp),0,$L$32/100*OFFSET(Data!$A$6,$N15-$A$32,MATCH($G$32,Data!$A$4:$CG$4,0)-1))))))) -> 0 | AN15: =IF(OR($A$33<fy,$A$33>fy+sp),0,IF($G$33="exp",IF($A$33=$N15,$L$33*(tr-1),0),IF($G$33="atx",IF($A$33=$N15,-$L$33,0),IF($N15<$A$33,0,IF($N15=MIN($A$33+$H$33,fy+sp),$L$33/100*OFFSET(Data!$A$6,$N15-$A$33,MATCH($G$33,Data!$A$4:$CG$4,0))+$L$33*$K$33%*(1-tr),IF($N15>MIN($A$33+$H$33,fy+sp),0,$L$33/100*OFFSET(Data!$A$6,$N15-$A$33,MATCH($G$33,Data!$A$4:$CG$4,0)-1))))))) -> 0 | AO15: =IF(OR($A$34<fy,$A$34>fy+sp),0,IF($G$34="exp",IF($A$34=$N15,$L$34*(tr-1),0),IF($G$34="atx",IF($A$34=$N15,-$L$34,0),IF($N15<$A$34,0,IF($N15=MIN($A$34+$H$34,fy+sp),$L$34/100*OFFSET(Data!$A$6,$N15-$A$34,MATCH($G$34,Data!$A$4:$CG$4,0))+$L$34*$K$34%*(1-tr),IF($N15>MIN($A$34+$H$34,fy+sp),0,$L$34/100*OFFSET(Data!$A$6,$N15-$A$34,MATCH($G$34,Data!$A$4:$CG$4,0)-1))))))) -> 0 | AP15: =IF(OR($A$35<fy,$A$35>fy+sp),0,IF($G$35="exp",IF($A$35=$N15,$L$35*(tr-1),0),IF($G$35="atx",IF($A$35=$N15,-$L$35,0),IF($N15<$A$35,0,IF($N15=MIN($A$35+$H$35,fy+sp),$L$35/100*OFFSET(Data!$A$6,$N15-$A$35,MATCH($G$35,Data!$A$4:$CG$4,0))+$L$35*$K$35%*(1-tr),IF($N15>MIN($A$35+$H$35,fy+sp),0,$L$35/100*OFFSET(Data!$A$6,$N15-$A$35,MATCH($G$35,Data!$A$4:$CG$4,0)-1))))))) -> 0 | AQ15: =IF(OR($A$36<fy,$A$36>fy+sp),0,IF($G$36="exp",IF($A$36=$N15,$L$36*(tr-1),0),IF($G$36="atx",IF($A$36=$N15,-$L$36,0),IF($N15<$A$36,0,IF($N15=MIN($A$36+$H$36,fy+sp),$L$36/100*OFFSET(Data!$A$6,$N15-$A$36,MATCH($G$36,Data!$A$4:$CG$4,0))+$L$36*$K$36%*(1-tr),IF($N15>MIN($A$36+$H$36,fy+sp),0,$L$36/100*OFFSET(Data!$A$6,$N15-$A$36,MATCH($G$36,Data!$A$4:$CG$4,0)-1))))))) -> 0 | AR15: =IF(OR($A$37<fy,$A$37>fy+sp),0,IF($G$37="exp",IF($A$37=$N15,$L$37*(tr-1),0),IF($G$37="atx",IF($A$37=$N15,-$L$37,0),IF($N15<$A$37,0,IF($N15=MIN($A$37+$H$37,fy+sp),$L$37/100*OFFSET(Data!$A$6,$N15-$A$37,MATCH($G$37,Data!$A$4:$CG$4,0))+$L$37*$K$37%*(1-tr),IF($N15>MIN($A$37+$H$37,fy+sp),0,$L$37/100*OFFSET(Data!$A$6,$N15-$A$37,MATCH($G$37,Data!$A$4:$CG$4,0)-1))))))) -> 0 | AS15: =IF(OR($A$38<fy,$A$38>fy+sp),0,IF($G$38="exp",IF($A$38=$N15,$L$38*(tr-1),0),IF($G$38="atx",IF($A$38=$N15,-$L$38,0),IF($N15<$A$38,0,IF($N15=MIN($A$38+$H$38,fy+sp),$L$38/100*OFFSET(Data!$A$6,$N15-$A$38,MATCH($G$38,Data!$A$4:$CG$4,0))+$L$38*$K$38%*(1-tr),IF($N15>MIN($A$38+$H$38,fy+sp),0,$L$38/100*OFFSET(Data!$A$6,$N15-$A$38,MATCH($G$38,Data!$A$4:$CG$4,0)-1))))))) -> 0 | AT15: =IF(OR($A$39<fy,$A$39>fy+sp),0,IF($G$39="exp",IF($A$39=$N15,$L$39*(tr-1),0),IF($G$39="atx",IF($A$39=$N15,-$L$39,0),IF($N15<$A$39,0,IF($N15=MIN($A$39+$H$39,fy+sp),$L$39/100*OFFSET(Data!$A$6,$N15-$A$39,MATCH($G$39,Data!$A$4:$CG$4,0))+$L$39*$K$39%*(1-tr),IF($N15>MIN($A$39+$H$39,fy+sp),0,$L$39/100*OFFSET(Data!$A$6,$N15-$A$39,MATCH($G$39,Data!$A$4:$CG$4,0)-1))))))) -> 0 | AU15: =IF(OR($A$40<fy,$A$40>fy+sp),0,IF($G$40="exp",IF($A$40=$N15,$L$40*(tr-1),0),IF($G$40="atx",IF($A$40=$N15,-$L$40,0),IF($N15<$A$40,0,IF($N15=MIN($A$40+$H$40,fy+sp),$L$40/100*OFFSET(Data!$A$6,$N15-$A$40,MATCH($G$40,Data!$A$4:$CG$4,0))+$L$40*$K$40%*(1-tr),IF($N15>MIN($A$40+$H$40,fy+sp),0,$L$40/100*OFFSET(Data!$A$6,$N15-$A$40,MATCH($G$40,Data!$A$4:$CG$4,0)-1))))))) -> 0 | AV15: =IF(OR($A$41<fy,$A$41>fy+sp),0,IF($G$41="exp",IF($A$41=$N15,$L$41*(tr-1),0),IF($G$41="atx",IF($A$41=$N15,-$L$41,0),IF($N15<$A$41,0,IF($N15=MIN($A$41+$H$41,fy+sp),$L$41/100*OFFSET(Data!$A$6,$N15-$A$41,MATCH($G$41,Data!$A$4:$CG$4,0))+$L$41*$K$41%*(1-tr),IF($N15>MIN($A$41+$H$41,fy+sp),0,$L$41/100*OFFSET(Data!$A$6,$N15-$A$41,MATCH($G$41,Data!$A$4:$CG$4,0)-1))))))) -> 0 | AW15: =IF(OR($A$42<fy,$A$42>fy+sp),0,IF($G$42="exp",IF($A$42=$N15,$L$42*(tr-1),0),IF($G$42="atx",IF($A$42=$N15,-$L$42,0),IF($N15<$A$42,0,IF($N15=MIN($A$42+$H$42,fy+sp),$L$42/100*OFFSET(Data!$A$6,$N15-$A$42,MATCH($G$42,Data!$A$4:$CG$4,0))+$L$42*$K$42%*(1-tr),IF($N15>MIN($A$42+$H$42,fy+sp),0,$L$42/100*OFFSET(Data!$A$6,$N15-$A$42,MATCH($G$42,Data!$A$4:$CG$4,0)-1))))))) -> 0 | AX15: =IF(OR($A$43<fy,$A$43>fy+sp),0,IF($G$43="exp",IF($A$43=$N15,$L$43*(tr-1),0),IF($G$43="atx",IF($A$43=$N15,-$L$43,0),IF($N15<$A$43,0,IF($N15=MIN($A$43+$H$43,fy+sp),$L$43/100*OFFSET(Data!$A$6,$N15-$A$43,MATCH($G$43,Data!$A$4:$CG$4,0))+$L$43*$K$43%*(1-tr),IF($N15>MIN($A$43+$H$43,fy+sp),0,$L$43/100*OFFSET(Data!$A$6,$N15-$A$43,MATCH($G$43,Data!$A$4:$CG$4,0)-1))))))) -> 0 | AY15: =IF(OR($A$44<fy,$A$44>fy+sp),0,IF($G$44="exp",IF($A$44=$N15,$L$44*(tr-1),0),IF($G$44="atx",IF($A$44=$N15,-$L$44,0),IF($N15<$A$44,0,IF($N15=MIN($A$44+$H$44,fy+sp),$L$44/100*OFFSET(Data!$A$6,$N15-$A$44,MATCH($G$44,Data!$A$4:$CG$4,0))+$L$44*$K$44%*(1-tr),IF($N15>MIN($A$44+$H$44,fy+sp),0,$L$44/100*OFFSET(Data!$A$6,$N15-$A$44,MATCH($G$44,Data!$A$4:$CG$4,0)-1))))))) -> 0 | AZ15: =IF(OR($A$45<fy,$A$45>fy+sp),0,IF($G$45="exp",IF($A$45=$N15,$L$45*(tr-1),0),IF($G$45="atx",IF($A$45=$N15,-$L$45,0),IF($N15<$A$45,0,IF($N15=MIN($A$45+$H$45,fy+sp),$L$45/100*OFFSET(Data!$A$6,$N15-$A$45,MATCH($G$45,Data!$A$4:$CG$4,0))+$L$45*$K$45%*(1-tr),IF($N15>MIN($A$45+$H$45,fy+sp),0,$L$45/100*OFFSET(Data!$A$6,$N15-$A$45,MATCH($G$45,Data!$A$4:$CG$4,0)-1))))))) -> 0 | BA15: =IF(OR($A$46<fy,$A$46>fy+sp),0,IF($G$46="exp",IF($A$46=$N15,$L$46*(tr-1),0),IF($G$46="atx",IF($A$46=$N15,-$L$46,0),IF($N15<$A$46,0,IF($N15=MIN($A$46+$H$46,fy+sp),$L$46/100*OFFSET(Data!$A$6,$N15-$A$46,MATCH($G$46,Data!$A$4:$CG$4,0))+$L$46*$K$46%*(1-tr),IF($N15>MIN($A$46+$H$46,fy+sp),0,$L$46/100*OFFSET(Data!$A$6,$N15-$A$46,MATCH($G$46,Data!$A$4:$CG$4,0)-1))))))) -> 0 | BB15: =IF(OR($A$47<fy,$A$47>fy+sp),0,IF($G$47="exp",IF($A$47=$N15,$L$47*(tr-1),0),IF($G$47="atx",IF($A$47=$N15,-$L$47,0),IF($N15<$A$47,0,IF($N15=MIN($A$47+$H$47,fy+sp),$L$47/100*OFFSET(Data!$A$6,$N15-$A$47,MATCH($G$47,Data!$A$4:$CG$4,0))+$L$47*$K$47%*(1-tr),IF($N15>MIN($A$47+$H$47,fy+sp),0,$L$47/100*OFFSET(Data!$A$6,$N15-$A$47,MATCH($G$47,Data!$A$4:$CG$4,0)-1))))))) -> 0 | BC15: -8.218067396 | BD15: 0 | BE15: 0 | BF15: -21.40121718 | BG15: -163.3027027 | BH15: 0 | BI15: 0 | BJ15: 0 | BK15: 0
A16: 2027 | B16: Capital Expenditures | E16: =+'I. Own Operate Detail'!M$14 -> 172.2151 | F16: 2.5 | G16: gast | H16: 45 | I16: 0 | K16: 0 | L16: 209.8273768 | M16: =NPV(i,W$9:W$58)+W$8 -> -94.22363976 | N16: 2027 | O16: =IF(OR($A$8<fy,$A$8>fy+sp),0,IF($G$8="exp",IF($A$8=$N16,$L$8*(tr-1),0),IF($G$8="atx",IF($A$8=$N16,-$L$8,0),IF($N16<$A$8,0,IF($N16=MIN($A$8+$H$8,fy+sp),$L$8/100*OFFSET(Data!$A$6,$N16-$A$8,MATCH($G$8,Data!$A$4:$CG$4,0))+$L$8*$K$8%*(1-tr),IF($N16>MIN($A$8+$H$8,fy+sp),0,$L$8/100*OFFSET(Data!$A$6,$N16-$A$8,MATCH($G$8,Data!$A$4:$CG$4,0)-1))))))) -> 1.414695189 | P16: =IF(OR($A$9<fy,$A$9>fy+sp),0,IF($G$9="exp",IF($A$9=$N16,$L$9*(tr-1),0),IF($G$9="atx",IF($A$9=$N16,-$L$9,0),IF($N16<$A$9,0,IF($N16=MIN($A$9+$H$9,fy+sp),$L$9/100*OFFSET(Data!$A$6,$N16-$A$9,MATCH($G$9,Data!$A$4:$CG$4,0))+$L$9*$K$9%*(1-tr),IF($N16>MIN($A$9+$H$9,fy+sp),0,$L$9/100*OFFSET(Data!$A$6,$N16-$A$9,MATCH($G$9,Data!$A$4:$CG$4,0)-1))))))) -> 16.07458838 | Q16: =IF(OR($A$10<fy,$A$10>fy+sp),0,IF($G$10="exp",IF($A$10=$N16,$L$10*(tr-1),0),IF($G$10="atx",IF($A$10=$N16,-$L$10,0),IF($N16<$A$10,0,IF($N16=MIN($A$10+$H$10,fy+sp),$L$10/100*OFFSET(Data!$A$6,$N16-$A$10,MATCH($G$10,Data!$A$4:$CG$4,0))+$L$10*$K$10%*(1-tr),IF($N16>MIN($A$10+$H$10,fy+sp),0,$L$10/100*OFFSET(Data!$A$6,$N16-$A$10,MATCH($G$10,Data!$A$4:$CG$4,0)-1))))))) -> 1.66303197 | R16: =IF(OR($A$11<fy,$A$11>fy+sp),0,IF($G$11="exp",IF($A$11=$N16,$L$11*(tr-1),0),IF($G$11="atx",IF($A$11=$N16,-$L$11,0),IF($N16<$A$11,0,IF($N16=MIN($A$11+$H$11,fy+sp),$L$11/100*OFFSET(Data!$A$6,$N16-$A$11,MATCH($G$11,Data!$A$4:$CG$4,0))+$L$11*$K$11%*(1-tr),IF($N16>MIN($A$11+$H$11,fy+sp),0,$L$11/100*OFFSET(Data!$A$6,$N16-$A$11,MATCH($G$11,Data!$A$4:$CG$4,0)-1))))))) -> 2.001014656 | S16: =IF(OR($A$12<fy,$A$12>fy+sp),0,IF($G$12="exp",IF($A$12=$N16,$L$12*(tr-1),0),IF($G$12="atx",IF($A$12=$N16,-$L$12,0),IF($N16<$A$12,0,IF($N16=MIN($A$12+$H$12,fy+sp),$L$12/100*OFFSET(Data!$A$6,$N16-$A$12,MATCH($G$12,Data!$A$4:$CG$4,0))+$L$12*$K$12%*(1-tr),IF($N16>MIN($A$12+$H$12,fy+sp),0,$L$12/100*OFFSET(Data!$A$6,$N16-$A$12,MATCH($G$12,Data!$A$4:$CG$4,0)-1))))))) -> 9.865817104 | T16: =IF(OR($A$13<fy,$A$13>fy+sp),0,IF($G$13="exp",IF($A$13=$N16,$L$13*(tr-1),0),IF($G$13="atx",IF($A$13=$N16,-$L$13,0),IF($N16<$A$13,0,IF($N16=MIN($A$13+$H$13,fy+sp),$L$13/100*OFFSET(Data!$A$6,$N16-$A$13,MATCH($G$13,Data!$A$4:$CG$4,0))+$L$13*$K$13%*(1-tr),IF($N16>MIN($A$13+$H$13,fy+sp),0,$L$13/100*OFFSET(Data!$A$6,$N16-$A$13,MATCH($G$13,Data!$A$4:$CG$4,0)-1))))))) -> 2.82309766 | U16: =IF(OR($A$14<fy,$A$14>fy+sp),0,IF($G$14="exp",IF($A$14=$N16,$L$14*(tr-1),0),IF($G$14="atx",IF($A$14=$N16,-$L$14,0),IF($N16<$A$14,0,IF($N16=MIN($A$14+$H$14,fy+sp),$L$14/100*OFFSET(Data!$A$6,$N16-$A$14,MATCH($G$14,Data!$A$4:$CG$4,0))+$L$14*$K$14%*(1-tr),IF($N16>MIN($A$14+$H$14,fy+sp),0,$L$14/100*OFFSET(Data!$A$6,$N16-$A$14,MATCH($G$14,Data!$A$4:$CG$4,0)-1))))))) -> 3.351037958 | V16: =IF(OR($A$15<fy,$A$15>fy+sp),0,IF($G$15="exp",IF($A$15=$N16,$L$15*(tr-1),0),IF($G$15="atx",IF($A$15=$N16,-$L$15,0),IF($N16<$A$15,0,IF($N16=MIN($A$15+$H$15,fy+sp),$L$15/100*OFFSET(Data!$A$6,$N16-$A$15,MATCH($G$15,Data!$A$4:$CG$4,0))+$L$15*$K$15%*(1-tr),IF($N16>MIN($A$15+$H$15,fy+sp),0,$L$15/100*OFFSET(Data!$A$6,$N16-$A$15,MATCH($G$15,Data!$A$4:$CG$4,0)-1))))))) -> 0.8827553684 | W16: =IF(OR($A$16<fy,$A$16>fy+sp),0,IF($G$16="exp",IF($A$16=$N16,$L$16*(tr-1),0),IF($G$16="atx",IF($A$16=$N16,-$L$16,0),IF($N16<$A$16,0,IF($N16=MIN($A$16+$H$16,fy+sp),$L$16/100*OFFSET(Data!$A$6,$N16-$A$16,MATCH($G$16,Data!$A$4:$CG$4,0))+$L$16*$K$16%*(1-tr),IF($N16>MIN($A$16+$H$16,fy+sp),0,$L$16/100*OFFSET(Data!$A$6,$N16-$A$16,MATCH($G$16,Data!$A$4:$CG$4,0)-1))))))) -> -209.8273768 | X16: =IF(OR($A$17<fy,$A$17>fy+sp),0,IF($G$17="exp",IF($A$17=$N16,$L$17*(tr-1),0),IF($G$17="atx",IF($A$17=$N16,-$L$17,0),IF($N16<$A$17,0,IF($N16=MIN($A$17+$H$17,fy+sp),$L$17/100*OFFSET(Data!$A$6,$N16-$A$17,MATCH($G$17,Data!$A$4:$CG$4,0))+$L$17*$K$17%*(1-tr),IF($N16>MIN($A$17+$H$17,fy+sp),0,$L$17/100*OFFSET(Data!$A$6,$N16-$A$17,MATCH($G$17,Data!$A$4:$CG$4,0)-1))))))) -> 0 | Y16: =IF(OR($A$18<fy,$A$18>fy+sp),0,IF($G$18="exp",IF($A$18=$N16,$L$18*(tr-1),0),IF($G$18="atx",IF($A$18=$N16,-$L$18,0),IF($N16<$A$18,0,IF($N16=MIN($A$18+$H$18,fy+sp),$L$18/100*OFFSET(Data!$A$6,$N16-$A$18,MATCH($G$18,Data!$A$4:$CG$4,0))+$L$18*$K$18%*(1-tr),IF($N16>MIN($A$18+$H$18,fy+sp),0,$L$18/100*OFFSET(Data!$A$6,$N16-$A$18,MATCH($G$18,Data!$A$4:$CG$4,0)-1))))))) -> 31.57371704 | Z16: =IF(OR($A$19<fy,$A$19>fy+sp),0,IF($G$19="exp",IF($A$19=$N16,$L$19*(tr-1),0),IF($G$19="atx",IF($A$19=$N16,-$L$19,0),IF($N16<$A$19,0,IF($N16=MIN($A$19+$H$19,fy+sp),$L$19/100*OFFSET(Data!$A$6,$N16-$A$19,MATCH($G$19,Data!$A$4:$CG$4,0))+$L$19*$K$19%*(1-tr),IF($N16>MIN($A$19+$H$19,fy+sp),0,$L$19/100*OFFSET(Data!$A$6,$N16-$A$19,MATCH($G$19,Data!$A$4:$CG$4,0)-1))))))) -> -0.01683335261 | AA16: =IF(OR($A$20<fy,$A$20>fy+sp),0,IF($G$20="exp",IF($A$20=$N16,$L$20*(tr-1),0),IF($G$20="atx",IF($A$20=$N16,-$L$20,0),IF($N16<$A$20,0,IF($N16=MIN($A$20+$H$20,fy+sp),$L$20/100*OFFSET(Data!$A$6,$N16-$A$20,MATCH($G$20,Data!$A$4:$CG$4,0))+$L$20*$K$20%*(1-tr),IF($N16>MIN($A$20+$H$20,fy+sp),0,$L$20/100*OFFSET(Data!$A$6,$N16-$A$20,MATCH($G$20,Data!$A$4:$CG$4,0)-1))))))) -> 0 | AB16: =IF(OR($A$21<fy,$A$21>fy+sp),0,IF($G$21="exp",IF($A$21=$N16,$L$21*(tr-1),0),IF($G$21="atx",IF($A$21=$N16,-$L$21,0),IF($N16<$A$21,0,IF($N16=MIN($A$21+$H$21,fy+sp),$L$21/100*OFFSET(Data!$A$6,$N16-$A$21,MATCH($G$21,Data!$A$4:$CG$4,0))+$L$21*$K$21%*(1-tr),IF($N16>MIN($A$21+$H$21,fy+sp),0,$L$21/100*OFFSET(Data!$A$6,$N16-$A$21,MATCH($G$21,Data!$A$4:$CG$4,0)-1))))))) -> 0 | AC16: =IF(OR($A$22<fy,$A$22>fy+sp),0,IF($G$22="exp",IF($A$22=$N16,$L$22*(tr-1),0),IF($G$22="atx",IF($A$22=$N16,-$L$22,0),IF($N16<$A$22,0,IF($N16=MIN($A$22+$H$22,fy+sp),$L$22/100*OFFSET(Data!$A$6,$N16-$A$22,MATCH($G$22,Data!$A$4:$CG$4,0))+$L$22*$K$22%*(1-tr),IF($N16>MIN($A$22+$H$22,fy+sp),0,$L$22/100*OFFSET(Data!$A$6,$N16-$A$22,MATCH($G$22,Data!$A$4:$CG$4,0)-1))))))) -> 0 | AD16: =IF(OR($A$23<fy,$A$23>fy+sp),0,IF($G$23="exp",IF($A$23=$N16,$L$23*(tr-1),0),IF($G$23="atx",IF($A$23=$N16,-$L$23,0),IF($N16<$A$23,0,IF($N16=MIN($A$23+$H$23,fy+sp),$L$23/100*OFFSET(Data!$A$6,$N16-$A$23,MATCH($G$23,Data!$A$4:$CG$4,0))+$L$23*$K$23%*(1-tr),IF($N16>MIN($A$23+$H$23,fy+sp),0,$L$23/100*OFFSET(Data!$A$6,$N16-$A$23,MATCH($G$23,Data!$A$4:$CG$4,0)-1))))))) -> 0 | AE16: =IF(OR($A$24<fy,$A$24>fy+sp),0,IF($G$24="exp",IF($A$24=$N16,$L$24*(tr-1),0),IF($G$24="atx",IF($A$24=$N16,-$L$24,0),IF($N16<$A$24,0,IF($N16=MIN($A$24+$H$24,fy+sp),$L$24/100*OFFSET(Data!$A$6,$N16-$A$24,MATCH($G$24,Data!$A$4:$CG$4,0))+$L$24*$K$24%*(1-tr),IF($N16>MIN($A$24+$H$24,fy+sp),0,$L$24/100*OFFSET(Data!$A$6,$N16-$A$24,MATCH($G$24,Data!$A$4:$CG$4,0)-1))))))) -> 0 | AF16: =IF(OR($A$25<fy,$A$25>fy+sp),0,IF($G$25="exp",IF($A$25=$N16,$L$25*(tr-1),0),IF($G$25="atx",IF($A$25=$N16,-$L$25,0),IF($N16<$A$25,0,IF($N16=MIN($A$25+$H$25,fy+sp),$L$25/100*OFFSET(Data!$A$6,$N16-$A$25,MATCH($G$25,Data!$A$4:$CG$4,0))+$L$25*$K$25%*(1-tr),IF($N16>MIN($A$25+$H$25,fy+sp),0,$L$25/100*OFFSET(Data!$A$6,$N16-$A$25,MATCH($G$25,Data!$A$4:$CG$4,0)-1))))))) -> 0 | AG16: =IF(OR($A$26<fy,$A$26>fy+sp),0,IF($G$26="exp",IF($A$26=$N16,$L$26*(tr-1),0),IF($G$26="atx",IF($A$26=$N16,-$L$26,0),IF($N16<$A$26,0,IF($N16=MIN($A$26+$H$26,fy+sp),$L$26/100*OFFSET(Data!$A$6,$N16-$A$26,MATCH($G$26,Data!$A$4:$CG$4,0))+$L$26*$K$26%*(1-tr),IF($N16>MIN($A$26+$H$26,fy+sp),0,$L$26/100*OFFSET(Data!$A$6,$N16-$A$26,MATCH($G$26,Data!$A$4:$CG$4,0)-1))))))) -> 0 | AH16: =IF(OR($A$27<fy,$A$27>fy+sp),0,IF($G$27="exp",IF($A$27=$N16,$L$27*(tr-1),0),IF($G$27="atx",IF($A$27=$N16,-$L$27,0),IF($N16<$A$27,0,IF($N16=MIN($A$27+$H$27,fy+sp),$L$27/100*OFFSET(Data!$A$6,$N16-$A$27,MATCH($G$27,Data!$A$4:$CG$4,0))+$L$27*$K$27%*(1-tr),IF($N16>MIN($A$27+$H$27,fy+sp),0,$L$27/100*OFFSET(Data!$A$6,$N16-$A$27,MATCH($G$27,Data!$A$4:$CG$4,0)-1))))))) -> 0 | AI16: =IF(OR($A$28<fy,$A$28>fy+sp),0,IF($G$28="exp",IF($A$28=$N16,$L$28*(tr-1),0),IF($G$28="atx",IF($A$28=$N16,-$L$28,0),IF($N16<$A$28,0,IF($N16=MIN($A$28+$H$28,fy+sp),$L$28/100*OFFSET(Data!$A$6,$N16-$A$28,MATCH($G$28,Data!$A$4:$CG$4,0))+$L$28*$K$28%*(1-tr),IF($N16>MIN($A$28+$H$28,fy+sp),0,$L$28/100*OFFSET(Data!$A$6,$N16-$A$28,MATCH($G$28,Data!$A$4:$CG$4,0)-1))))))) -> 0 | AJ16: =IF(OR($A$29<fy,$A$29>fy+sp),0,IF($G$29="exp",IF($A$29=$N16,$L$29*(tr-1),0),IF($G$29="atx",IF($A$29=$N16,-$L$29,0),IF($N16<$A$29,0,IF($N16=MIN($A$29+$H$29,fy+sp),$L$29/100*OFFSET(Data!$A$6,$N16-$A$29,MATCH($G$29,Data!$A$4:$CG$4,0))+$L$29*$K$29%*(1-tr),IF($N16>MIN($A$29+$H$29,fy+sp),0,$L$29/100*OFFSET(Data!$A$6,$N16-$A$29,MATCH($G$29,Data!$A$4:$CG$4,0)-1))))))) -> 0 | AK16: =IF(OR($A$30<fy,$A$30>fy+sp),0,IF($G$30="exp",IF($A$30=$N16,$L$30*(tr-1),0),IF($G$30="atx",IF($A$30=$N16,-$L$30,0),IF($N16<$A$30,0,IF($N16=MIN($A$30+$H$30,fy+sp),$L$30/100*OFFSET(Data!$A$6,$N16-$A$30,MATCH($G$30,Data!$A$4:$CG$4,0))+$L$30*$K$30%*(1-tr),IF($N16>MIN($A$30+$H$30,fy+sp),0,$L$30/100*OFFSET(Data!$A$6,$N16-$A$30,MATCH($G$30,Data!$A$4:$CG$4,0)-1))))))) -> 0 | AL16: =IF(OR($A$31<fy,$A$31>fy+sp),0,IF($G$31="exp",IF($A$31=$N16,$L$31*(tr-1),0),IF($G$31="atx",IF($A$31=$N16,-$L$31,0),IF($N16<$A$31,0,IF($N16=MIN($A$31+$H$31,fy+sp),$L$31/100*OFFSET(Data!$A$6,$N16-$A$31,MATCH($G$31,Data!$A$4:$CG$4,0))+$L$31*$K$31%*(1-tr),IF($N16>MIN($A$31+$H$31,fy+sp),0,$L$31/100*OFFSET(Data!$A$6,$N16-$A$31,MATCH($G$31,Data!$A$4:$CG$4,0)-1))))))) -> 0 | AM16: =IF(OR($A$32<fy,$A$32>fy+sp),0,IF($G$32="exp",IF($A$32=$N16,$L$32*(tr-1),0),IF($G$32="atx",IF($A$32=$N16,-$L$32,0),IF($N16<$A$32,0,IF($N16=MIN($A$32+$H$32,fy+sp),$L$32/100*OFFSET(Data!$A$6,$N16-$A$32,MATCH($G$32,Data!$A$4:$CG$4,0))+$L$32*$K$32%*(1-tr),IF($N16>MIN($A$32+$H$32,fy+sp),0,$L$32/100*OFFSET(Data!$A$6,$N16-$A$32,MATCH($G$32,Data!$A$4:$CG$4,0)-1))))))) -> 0 | AN16: =IF(OR($A$33<fy,$A$33>fy+sp),0,IF($G$33="exp",IF($A$33=$N16,$L$33*(tr-1),0),IF($G$33="atx",IF($A$33=$N16,-$L$33,0),IF($N16<$A$33,0,IF($N16=MIN($A$33+$H$33,fy+sp),$L$33/100*OFFSET(Data!$A$6,$N16-$A$33,MATCH($G$33,Data!$A$4:$CG$4,0))+$L$33*$K$33%*(1-tr),IF($N16>MIN($A$33+$H$33,fy+sp),0,$L$33/100*OFFSET(Data!$A$6,$N16-$A$33,MATCH($G$33,Data!$A$4:$CG$4,0)-1))))))) -> 0 | AO16: =IF(OR($A$34<fy,$A$34>fy+sp),0,IF($G$34="exp",IF($A$34=$N16,$L$34*(tr-1),0),IF($G$34="atx",IF($A$34=$N16,-$L$34,0),IF($N16<$A$34,0,IF($N16=MIN($A$34+$H$34,fy+sp),$L$34/100*OFFSET(Data!$A$6,$N16-$A$34,MATCH($G$34,Data!$A$4:$CG$4,0))+$L$34*$K$34%*(1-tr),IF($N16>MIN($A$34+$H$34,fy+sp),0,$L$34/100*OFFSET(Data!$A$6,$N16-$A$34,MATCH($G$34,Data!$A$4:$CG$4,0)-1))))))) -> 0 | AP16: =IF(OR($A$35<fy,$A$35>fy+sp),0,IF($G$35="exp",IF($A$35=$N16,$L$35*(tr-1),0),IF($G$35="atx",IF($A$35=$N16,-$L$35,0),IF($N16<$A$35,0,IF($N16=MIN($A$35+$H$35,fy+sp),$L$35/100*OFFSET(Data!$A$6,$N16-$A$35,MATCH($G$35,Data!$A$4:$CG$4,0))+$L$35*$K$35%*(1-tr),IF($N16>MIN($A$35+$H$35,fy+sp),0,$L$35/100*OFFSET(Data!$A$6,$N16-$A$35,MATCH($G$35,Data!$A$4:$CG$4,0)-1))))))) -> 0 | AQ16: =IF(OR($A$36<fy,$A$36>fy+sp),0,IF($G$36="exp",IF($A$36=$N16,$L$36*(tr-1),0),IF($G$36="atx",IF($A$36=$N16,-$L$36,0),IF($N16<$A$36,0,IF($N16=MIN($A$36+$H$36,fy+sp),$L$36/100*OFFSET(Data!$A$6,$N16-$A$36,MATCH($G$36,Data!$A$4:$CG$4,0))+$L$36*$K$36%*(1-tr),IF($N16>MIN($A$36+$H$36,fy+sp),0,$L$36/100*OFFSET(Data!$A$6,$N16-$A$36,MATCH($G$36,Data!$A$4:$CG$4,0)-1))))))) -> 0 | AR16: =IF(OR($A$37<fy,$A$37>fy+sp),0,IF($G$37="exp",IF($A$37=$N16,$L$37*(tr-1),0),IF($G$37="atx",IF($A$37=$N16,-$L$37,0),IF($N16<$A$37,0,IF($N16=MIN($A$37+$H$37,fy+sp),$L$37/100*OFFSET(Data!$A$6,$N16-$A$37,MATCH($G$37,Data!$A$4:$CG$4,0))+$L$37*$K$37%*(1-tr),IF($N16>MIN($A$37+$H$37,fy+sp),0,$L$37/100*OFFSET(Data!$A$6,$N16-$A$37,MATCH($G$37,Data!$A$4:$CG$4,0)-1))))))) -> 0 | AS16: =IF(OR($A$38<fy,$A$38>fy+sp),0,IF($G$38="exp",IF($A$38=$N16,$L$38*(tr-1),0),IF($G$38="atx",IF($A$38=$N16,-$L$38,0),IF($N16<$A$38,0,IF($N16=MIN($A$38+$H$38,fy+sp),$L$38/100*OFFSET(Data!$A$6,$N16-$A$38,MATCH($G$38,Data!$A$4:$CG$4,0))+$L$38*$K$38%*(1-tr),IF($N16>MIN($A$38+$H$38,fy+sp),0,$L$38/100*OFFSET(Data!$A$6,$N16-$A$38,MATCH($G$38,Data!$A$4:$CG$4,0)-1))))))) -> 0 | AT16: =IF(OR($A$39<fy,$A$39>fy+sp),0,IF($G$39="exp",IF($A$39=$N16,$L$39*(tr-1),0),IF($G$39="atx",IF($A$39=$N16,-$L$39,0),IF($N16<$A$39,0,IF($N16=MIN($A$39+$H$39,fy+sp),$L$39/100*OFFSET(Data!$A$6,$N16-$A$39,MATCH($G$39,Data!$A$4:$CG$4,0))+$L$39*$K$39%*(1-tr),IF($N16>MIN($A$39+$H$39,fy+sp),0,$L$39/100*OFFSET(Data!$A$6,$N16-$A$39,MATCH($G$39,Data!$A$4:$CG$4,0)-1))))))) -> 0 | AU16: =IF(OR($A$40<fy,$A$40>fy+sp),0,IF($G$40="exp",IF($A$40=$N16,$L$40*(tr-1),0),IF($G$40="atx",IF($A$40=$N16,-$L$40,0),IF($N16<$A$40,0,IF($N16=MIN($A$40+$H$40,fy+sp),$L$40/100*OFFSET(Data!$A$6,$N16-$A$40,MATCH($G$40,Data!$A$4:$CG$4,0))+$L$40*$K$40%*(1-tr),IF($N16>MIN($A$40+$H$40,fy+sp),0,$L$40/100*OFFSET(Data!$A$6,$N16-$A$40,MATCH($G$40,Data!$A$4:$CG$4,0)-1))))))) -> 0 | AV16: =IF(OR($A$41<fy,$A$41>fy+sp),0,IF($G$41="exp",IF($A$41=$N16,$L$41*(tr-1),0),IF($G$41="atx",IF($A$41=$N16,-$L$41,0),IF($N16<$A$41,0,IF($N16=MIN($A$41+$H$41,fy+sp),$L$41/100*OFFSET(Data!$A$6,$N16-$A$41,MATCH($G$41,Data!$A$4:$CG$4,0))+$L$41*$K$41%*(1-tr),IF($N16>MIN($A$41+$H$41,fy+sp),0,$L$41/100*OFFSET(Data!$A$6,$N16-$A$41,MATCH($G$41,Data!$A$4:$CG$4,0)-1))))))) -> 0 | AW16: =IF(OR($A$42<fy,$A$42>fy+sp),0,IF($G$42="exp",IF($A$42=$N16,$L$42*(tr-1),0),IF($G$42="atx",IF($A$42=$N16,-$L$42,0),IF($N16<$A$42,0,IF($N16=MIN($A$42+$H$42,fy+sp),$L$42/100*OFFSET(Data!$A$6,$N16-$A$42,MATCH($G$42,Data!$A$4:$CG$4,0))+$L$42*$K$42%*(1-tr),IF($N16>MIN($A$42+$H$42,fy+sp),0,$L$42/100*OFFSET(Data!$A$6,$N16-$A$42,MATCH($G$42,Data!$A$4:$CG$4,0)-1))))))) -> 0 | AX16: =IF(OR($A$43<fy,$A$43>fy+sp),0,IF($G$43="exp",IF($A$43=$N16,$L$43*(tr-1),0),IF($G$43="atx",IF($A$43=$N16,-$L$43,0),IF($N16<$A$43,0,IF($N16=MIN($A$43+$H$43,fy+sp),$L$43/100*OFFSET(Data!$A$6,$N16-$A$43,MATCH($G$43,Data!$A$4:$CG$4,0))+$L$43*$K$43%*(1-tr),IF($N16>MIN($A$43+$H$43,fy+sp),0,$L$43/100*OFFSET(Data!$A$6,$N16-$A$43,MATCH($G$43,Data!$A$4:$CG$4,0)-1))))))) -> 0 | AY16: =IF(OR($A$44<fy,$A$44>fy+sp),0,IF($G$44="exp",IF($A$44=$N16,$L$44*(tr-1),0),IF($G$44="atx",IF($A$44=$N16,-$L$44,0),IF($N16<$A$44,0,IF($N16=MIN($A$44+$H$44,fy+sp),$L$44/100*OFFSET(Data!$A$6,$N16-$A$44,MATCH($G$44,Data!$A$4:$CG$4,0))+$L$44*$K$44%*(1-tr),IF($N16>MIN($A$44+$H$44,fy+sp),0,$L$44/100*OFFSET(Data!$A$6,$N16-$A$44,MATCH($G$44,Data!$A$4:$CG$4,0)-1))))))) -> 0 | AZ16: =IF(OR($A$45<fy,$A$45>fy+sp),0,IF($G$45="exp",IF($A$45=$N16,$L$45*(tr-1),0),IF($G$45="atx",IF($A$45=$N16,-$L$45,0),IF($N16<$A$45,0,IF($N16=MIN($A$45+$H$45,fy+sp),$L$45/100*OFFSET(Data!$A$6,$N16-$A$45,MATCH($G$45,Data!$A$4:$CG$4,0))+$L$45*$K$45%*(1-tr),IF($N16>MIN($A$45+$H$45,fy+sp),0,$L$45/100*OFFSET(Data!$A$6,$N16-$A$45,MATCH($G$45,Data!$A$4:$CG$4,0)-1))))))) -> 0 | BA16: =IF(OR($A$46<fy,$A$46>fy+sp),0,IF($G$46="exp",IF($A$46=$N16,$L$46*(tr-1),0),IF($G$46="atx",IF($A$46=$N16,-$L$46,0),IF($N16<$A$46,0,IF($N16=MIN($A$46+$H$46,fy+sp),$L$46/100*OFFSET(Data!$A$6,$N16-$A$46,MATCH($G$46,Data!$A$4:$CG$4,0))+$L$46*$K$46%*(1-tr),IF($N16>MIN($A$46+$H$46,fy+sp),0,$L$46/100*OFFSET(Data!$A$6,$N16-$A$46,MATCH($G$46,Data!$A$4:$CG$4,0)-1))))))) -> 0 | BB16: =IF(OR($A$47<fy,$A$47>fy+sp),0,IF($G$47="exp",IF($A$47=$N16,$L$47*(tr-1),0),IF($G$47="atx",IF($A$47=$N16,-$L$47,0),IF($N16<$A$47,0,IF($N16=MIN($A$47+$H$47,fy+sp),$L$47/100*OFFSET(Data!$A$6,$N16-$A$47,MATCH($G$47,Data!$A$4:$CG$4,0))+$L$47*$K$47%*(1-tr),IF($N16>MIN($A$47+$H$47,fy+sp),0,$L$47/100*OFFSET(Data!$A$6,$N16-$A$47,MATCH($G$47,Data!$A$4:$CG$4,0)-1))))))) -> 0 | BC16: -8.423519081 | BD16: -12424.69064 | BE16: 0 | BF16: -21.93624761 | BG16: -12595.24487 | BH16: 0 | BI16: 0 | BJ16: 0 | BK16: 0
A17: 2028 | B17: Capital Expenditures | E17: =+'I. Own Operate Detail'!N$14 -> 172.2151 | F17: 2.5 | G17: gast | H17: 45 | I17: 0 | K17: 0 | L17: 215.0730613 | M17: =NPV(i,X$9:X$58)+X$8 -> -87.41398171 | N17: 2028 | O17: =IF(OR($A$8<fy,$A$8>fy+sp),0,IF($G$8="exp",IF($A$8=$N17,$L$8*(tr-1),0),IF($G$8="atx",IF($A$8=$N17,-$L$8,0),IF($N17<$A$8,0,IF($N17=MIN($A$8+$H$8,fy+sp),$L$8/100*OFFSET(Data!$A$6,$N17-$A$8,MATCH($G$8,Data!$A$4:$CG$4,0))+$L$8*$K$8%*(1-tr),IF($N17>MIN($A$8+$H$8,fy+sp),0,$L$8/100*OFFSET(Data!$A$6,$N17-$A$8,MATCH($G$8,Data!$A$4:$CG$4,0)-1))))))) -> 1.38991382 | P17: =IF(OR($A$9<fy,$A$9>fy+sp),0,IF($G$9="exp",IF($A$9=$N17,$L$9*(tr-1),0),IF($G$9="atx",IF($A$9=$N17,-$L$9,0),IF($N17<$A$9,0,IF($N17=MIN($A$9+$H$9,fy+sp),$L$9/100*OFFSET(Data!$A$6,$N17-$A$9,MATCH($G$9,Data!$A$4:$CG$4,0))+$L$9*$K$9%*(1-tr),IF($N17>MIN($A$9+$H$9,fy+sp),0,$L$9/100*OFFSET(Data!$A$6,$N17-$A$9,MATCH($G$9,Data!$A$4:$CG$4,0)-1))))))) -> 15.79785563 | Q17: =IF(OR($A$10<fy,$A$10>fy+sp),0,IF($G$10="exp",IF($A$10=$N17,$L$10*(tr-1),0),IF($G$10="atx",IF($A$10=$N17,-$L$10,0),IF($N17<$A$10,0,IF($N17=MIN($A$10+$H$10,fy+sp),$L$10/100*OFFSET(Data!$A$6,$N17-$A$10,MATCH($G$10,Data!$A$4:$CG$4,0))+$L$10*$K$10%*(1-tr),IF($N17>MIN($A$10+$H$10,fy+sp),0,$L$10/100*OFFSET(Data!$A$6,$N17-$A$10,MATCH($G$10,Data!$A$4:$CG$4,0)-1))))))) -> 1.512350059 | R17: =IF(OR($A$11<fy,$A$11>fy+sp),0,IF($G$11="exp",IF($A$11=$N17,$L$11*(tr-1),0),IF($G$11="atx",IF($A$11=$N17,-$L$11,0),IF($N17<$A$11,0,IF($N17=MIN($A$11+$H$11,fy+sp),$L$11/100*OFFSET(Data!$A$6,$N17-$A$11,MATCH($G$11,Data!$A$4:$CG$4,0))+$L$11*$K$11%*(1-tr),IF($N17>MIN($A$11+$H$11,fy+sp),0,$L$11/100*OFFSET(Data!$A$6,$N17-$A$11,MATCH($G$11,Data!$A$4:$CG$4,0)-1))))))) -> 1.704607769 | S17: =IF(OR($A$12<fy,$A$12>fy+sp),0,IF($G$12="exp",IF($A$12=$N17,$L$12*(tr-1),0),IF($G$12="atx",IF($A$12=$N17,-$L$12,0),IF($N17<$A$12,0,IF($N17=MIN($A$12+$H$12,fy+sp),$L$12/100*OFFSET(Data!$A$6,$N17-$A$12,MATCH($G$12,Data!$A$4:$CG$4,0))+$L$12*$K$12%*(1-tr),IF($N17>MIN($A$12+$H$12,fy+sp),0,$L$12/100*OFFSET(Data!$A$6,$N17-$A$12,MATCH($G$12,Data!$A$4:$CG$4,0)-1))))))) -> 8.482308894 | T17: =IF(OR($A$13<fy,$A$13>fy+sp),0,IF($G$13="exp",IF($A$13=$N17,$L$13*(tr-1),0),IF($G$13="atx",IF($A$13=$N17,-$L$13,0),IF($N17<$A$13,0,IF($N17=MIN($A$13+$H$13,fy+sp),$L$13/100*OFFSET(Data!$A$6,$N17-$A$13,MATCH($G$13,Data!$A$4:$CG$4,0))+$L$13*$K$13%*(1-tr),IF($N17>MIN($A$13+$H$13,fy+sp),0,$L$13/100*OFFSET(Data!$A$6,$N17-$A$13,MATCH($G$13,Data!$A$4:$CG$4,0)-1))))))) -> 2.445214579 | U17: =IF(OR($A$14<fy,$A$14>fy+sp),0,IF($G$14="exp",IF($A$14=$N17,$L$14*(tr-1),0),IF($G$14="atx",IF($A$14=$N17,-$L$14,0),IF($N17<$A$14,0,IF($N17=MIN($A$14+$H$14,fy+sp),$L$14/100*OFFSET(Data!$A$6,$N17-$A$14,MATCH($G$14,Data!$A$4:$CG$4,0))+$L$14*$K$14%*(1-tr),IF($N17>MIN($A$14+$H$14,fy+sp),0,$L$14/100*OFFSET(Data!$A$6,$N17-$A$14,MATCH($G$14,Data!$A$4:$CG$4,0)-1))))))) -> 2.893675101 | V17: =IF(OR($A$15<fy,$A$15>fy+sp),0,IF($G$15="exp",IF($A$15=$N17,$L$15*(tr-1),0),IF($G$15="atx",IF($A$15=$N17,-$L$15,0),IF($N17<$A$15,0,IF($N17=MIN($A$15+$H$15,fy+sp),$L$15/100*OFFSET(Data!$A$6,$N17-$A$15,MATCH($G$15,Data!$A$4:$CG$4,0))+$L$15*$K$15%*(1-tr),IF($N17>MIN($A$15+$H$15,fy+sp),0,$L$15/100*OFFSET(Data!$A$6,$N17-$A$15,MATCH($G$15,Data!$A$4:$CG$4,0)-1))))))) -> 3.434813906 | W17: =IF(OR($A$16<fy,$A$16>fy+sp),0,IF($G$16="exp",IF($A$16=$N17,$L$16*(tr-1),0),IF($G$16="atx",IF($A$16=$N17,-$L$16,0),IF($N17<$A$16,0,IF($N17=MIN($A$16+$H$16,fy+sp),$L$16/100*OFFSET(Data!$A$6,$N17-$A$16,MATCH($G$16,Data!$A$4:$CG$4,0))+$L$16*$K$16%*(1-tr),IF($N17>MIN($A$16+$H$16,fy+sp),0,$L$16/100*OFFSET(Data!$A$6,$N17-$A$16,MATCH($G$16,Data!$A$4:$CG$4,0)-1))))))) -> 0.9048242526 | X17: =IF(OR($A$17<fy,$A$17>fy+sp),0,IF($G$17="exp",IF($A$17=$N17,$L$17*(tr-1),0),IF($G$17="atx",IF($A$17=$N17,-$L$17,0),IF($N17<$A$17,0,IF($N17=MIN($A$17+$H$17,fy+sp),$L$17/100*OFFSET(Data!$A$6,$N17-$A$17,MATCH($G$17,Data!$A$4:$CG$4,0))+$L$17*$K$17%*(1-tr),IF($N17>MIN($A$17+$H$17,fy+sp),0,$L$17/100*OFFSET(Data!$A$6,$N17-$A$17,MATCH($G$17,Data!$A$4:$CG$4,0)-1))))))) -> -215.0730613 | Y17: =IF(OR($A$18<fy,$A$18>fy+sp),0,IF($G$18="exp",IF($A$18=$N17,$L$18*(tr-1),0),IF($G$18="atx",IF($A$18=$N17,-$L$18,0),IF($N17<$A$18,0,IF($N17=MIN($A$18+$H$18,fy+sp),$L$18/100*OFFSET(Data!$A$6,$N17-$A$18,MATCH($G$18,Data!$A$4:$CG$4,0))+$L$18*$K$18%*(1-tr),IF($N17>MIN($A$18+$H$18,fy+sp),0,$L$18/100*OFFSET(Data!$A$6,$N17-$A$18,MATCH($G$18,Data!$A$4:$CG$4,0)-1))))))) -> 31.02063682 | Z17: =IF(OR($A$19<fy,$A$19>fy+sp),0,IF($G$19="exp",IF($A$19=$N17,$L$19*(tr-1),0),IF($G$19="atx",IF($A$19=$N17,-$L$19,0),IF($N17<$A$19,0,IF($N17=MIN($A$19+$H$19,fy+sp),$L$19/100*OFFSET(Data!$A$6,$N17-$A$19,MATCH($G$19,Data!$A$4:$CG$4,0))+$L$19*$K$19%*(1-tr),IF($N17>MIN($A$19+$H$19,fy+sp),0,$L$19/100*OFFSET(Data!$A$6,$N17-$A$19,MATCH($G$19,Data!$A$4:$CG$4,0)-1))))))) -> -0.01683335261 | AA17: =IF(OR($A$20<fy,$A$20>fy+sp),0,IF($G$20="exp",IF($A$20=$N17,$L$20*(tr-1),0),IF($G$20="atx",IF($A$20=$N17,-$L$20,0),IF($N17<$A$20,0,IF($N17=MIN($A$20+$H$20,fy+sp),$L$20/100*OFFSET(Data!$A$6,$N17-$A$20,MATCH($G$20,Data!$A$4:$CG$4,0))+$L$20*$K$20%*(1-tr),IF($N17>MIN($A$20+$H$20,fy+sp),0,$L$20/100*OFFSET(Data!$A$6,$N17-$A$20,MATCH($G$20,Data!$A$4:$CG$4,0)-1))))))) -> 0 | AB17: =IF(OR($A$21<fy,$A$21>fy+sp),0,IF($G$21="exp",IF($A$21=$N17,$L$21*(tr-1),0),IF($G$21="atx",IF($A$21=$N17,-$L$21,0),IF($N17<$A$21,0,IF($N17=MIN($A$21+$H$21,fy+sp),$L$21/100*OFFSET(Data!$A$6,$N17-$A$21,MATCH($G$21,Data!$A$4:$CG$4,0))+$L$21*$K$21%*(1-tr),IF($N17>MIN($A$21+$H$21,fy+sp),0,$L$21/100*OFFSET(Data!$A$6,$N17-$A$21,MATCH($G$21,Data!$A$4:$CG$4,0)-1))))))) -> 0 | AC17: =IF(OR($A$22<fy,$A$22>fy+sp),0,IF($G$22="exp",IF($A$22=$N17,$L$22*(tr-1),0),IF($G$22="atx",IF($A$22=$N17,-$L$22,0),IF($N17<$A$22,0,IF($N17=MIN($A$22+$H$22,fy+sp),$L$22/100*OFFSET(Data!$A$6,$N17-$A$22,MATCH($G$22,Data!$A$4:$CG$4,0))+$L$22*$K$22%*(1-tr),IF($N17>MIN($A$22+$H$22,fy+sp),0,$L$22/100*OFFSET(Data!$A$6,$N17-$A$22,MATCH($G$22,Data!$A$4:$CG$4,0)-1))))))) -> 0 | AD17: =IF(OR($A$23<fy,$A$23>fy+sp),0,IF($G$23="exp",IF($A$23=$N17,$L$23*(tr-1),0),IF($G$23="atx",IF($A$23=$N17,-$L$23,0),IF($N17<$A$23,0,IF($N17=MIN($A$23+$H$23,fy+sp),$L$23/100*OFFSET(Data!$A$6,$N17-$A$23,MATCH($G$23,Data!$A$4:$CG$4,0))+$L$23*$K$23%*(1-tr),IF($N17>MIN($A$23+$H$23,fy+sp),0,$L$23/100*OFFSET(Data!$A$6,$N17-$A$23,MATCH($G$23,Data!$A$4:$CG$4,0)-1))))))) -> 0 | AE17: =IF(OR($A$24<fy,$A$24>fy+sp),0,IF($G$24="exp",IF($A$24=$N17,$L$24*(tr-1),0),IF($G$24="atx",IF($A$24=$N17,-$L$24,0),IF($N17<$A$24,0,IF($N17=MIN($A$24+$H$24,fy+sp),$L$24/100*OFFSET(Data!$A$6,$N17-$A$24,MATCH($G$24,Data!$A$4:$CG$4,0))+$L$24*$K$24%*(1-tr),IF($N17>MIN($A$24+$H$24,fy+sp),0,$L$24/100*OFFSET(Data!$A$6,$N17-$A$24,MATCH($G$24,Data!$A$4:$CG$4,0)-1))))))) -> 0 | AF17: =IF(OR($A$25<fy,$A$25>fy+sp),0,IF($G$25="exp",IF($A$25=$N17,$L$25*(tr-1),0),IF($G$25="atx",IF($A$25=$N17,-$L$25,0),IF($N17<$A$25,0,IF($N17=MIN($A$25+$H$25,fy+sp),$L$25/100*OFFSET(Data!$A$6,$N17-$A$25,MATCH($G$25,Data!$A$4:$CG$4,0))+$L$25*$K$25%*(1-tr),IF($N17>MIN($A$25+$H$25,fy+sp),0,$L$25/100*OFFSET(Data!$A$6,$N17-$A$25,MATCH($G$25,Data!$A$4:$CG$4,0)-1))))))) -> 0 | AG17: =IF(OR($A$26<fy,$A$26>fy+sp),0,IF($G$26="exp",IF($A$26=$N17,$L$26*(tr-1),0),IF($G$26="atx",IF($A$26=$N17,-$L$26,0),IF($N17<$A$26,0,IF($N17=MIN($A$26+$H$26,fy+sp),$L$26/100*OFFSET(Data!$A$6,$N17-$A$26,MATCH($G$26,Data!$A$4:$CG$4,0))+$L$26*$K$26%*(1-tr),IF($N17>MIN($A$26+$H$26,fy+sp),0,$L$26/100*OFFSET(Data!$A$6,$N17-$A$26,MATCH($G$26,Data!$A$4:$CG$4,0)-1))))))) -> 0 | AH17: =IF(OR($A$27<fy,$A$27>fy+sp),0,IF($G$27="exp",IF($A$27=$N17,$L$27*(tr-1),0),IF($G$27="atx",IF($A$27=$N17,-$L$27,0),IF($N17<$A$27,0,IF($N17=MIN($A$27+$H$27,fy+sp),$L$27/100*OFFSET(Data!$A$6,$N17-$A$27,MATCH($G$27,Data!$A$4:$CG$4,0))+$L$27*$K$27%*(1-tr),IF($N17>MIN($A$27+$H$27,fy+sp),0,$L$27/100*OFFSET(Data!$A$6,$N17-$A$27,MATCH($G$27,Data!$A$4:$CG$4,0)-1))))))) -> 0 | AI17: =IF(OR($A$28<fy,$A$28>fy+sp),0,IF($G$28="exp",IF($A$28=$N17,$L$28*(tr-1),0),IF($G$28="atx",IF($A$28=$N17,-$L$28,0),IF($N17<$A$28,0,IF($N17=MIN($A$28+$H$28,fy+sp),$L$28/100*OFFSET(Data!$A$6,$N17-$A$28,MATCH($G$28,Data!$A$4:$CG$4,0))+$L$28*$K$28%*(1-tr),IF($N17>MIN($A$28+$H$28,fy+sp),0,$L$28/100*OFFSET(Data!$A$6,$N17-$A$28,MATCH($G$28,Data!$A$4:$CG$4,0)-1))))))) -> 0 | AJ17: =IF(OR($A$29<fy,$A$29>fy+sp),0,IF($G$29="exp",IF($A$29=$N17,$L$29*(tr-1),0),IF($G$29="atx",IF($A$29=$N17,-$L$29,0),IF($N17<$A$29,0,IF($N17=MIN($A$29+$H$29,fy+sp),$L$29/100*OFFSET(Data!$A$6,$N17-$A$29,MATCH($G$29,Data!$A$4:$CG$4,0))+$L$29*$K$29%*(1-tr),IF($N17>MIN($A$29+$H$29,fy+sp),0,$L$29/100*OFFSET(Data!$A$6,$N17-$A$29,MATCH($G$29,Data!$A$4:$CG$4,0)-1))))))) -> 0 | AK17: =IF(OR($A$30<fy,$A$30>fy+sp),0,IF($G$30="exp",IF($A$30=$N17,$L$30*(tr-1),0),IF($G$30="atx",IF($A$30=$N17,-$L$30,0),IF($N17<$A$30,0,IF($N17=MIN($A$30+$H$30,fy+sp),$L$30/100*OFFSET(Data!$A$6,$N17-$A$30,MATCH($G$30,Data!$A$4:$CG$4,0))+$L$30*$K$30%*(1-tr),IF($N17>MIN($A$30+$H$30,fy+sp),0,$L$30/100*OFFSET(Data!$A$6,$N17-$A$30,MATCH($G$30,Data!$A$4:$CG$4,0)-1))))))) -> 0 | AL17: =IF(OR($A$31<fy,$A$31>fy+sp),0,IF($G$31="exp",IF($A$31=$N17,$L$31*(tr-1),0),IF($G$31="atx",IF($A$31=$N17,-$L$31,0),IF($N17<$A$31,0,IF($N17=MIN($A$31+$H$31,fy+sp),$L$31/100*OFFSET(Data!$A$6,$N17-$A$31,MATCH($G$31,Data!$A$4:$CG$4,0))+$L$31*$K$31%*(1-tr),IF($N17>MIN($A$31+$H$31,fy+sp),0,$L$31/100*OFFSET(Data!$A$6,$N17-$A$31,MATCH($G$31,Data!$A$4:$CG$4,0)-1))))))) -> 0 | AM17: =IF(OR($A$32<fy,$A$32>fy+sp),0,IF($G$32="exp",IF($A$32=$N17,$L$32*(tr-1),0),IF($G$32="atx",IF($A$32=$N17,-$L$32,0),IF($N17<$A$32,0,IF($N17=MIN($A$32+$H$32,fy+sp),$L$32/100*OFFSET(Data!$A$6,$N17-$A$32,MATCH($G$32,Data!$A$4:$CG$4,0))+$L$32*$K$32%*(1-tr),IF($N17>MIN($A$32+$H$32,fy+sp),0,$L$32/100*OFFSET(Data!$A$6,$N17-$A$32,MATCH($G$32,Data!$A$4:$CG$4,0)-1))))))) -> 0 | AN17: =IF(OR($A$33<fy,$A$33>fy+sp),0,IF($G$33="exp",IF($A$33=$N17,$L$33*(tr-1),0),IF($G$33="atx",IF($A$33=$N17,-$L$33,0),IF($N17<$A$33,0,IF($N17=MIN($A$33+$H$33,fy+sp),$L$33/100*OFFSET(Data!$A$6,$N17-$A$33,MATCH($G$33,Data!$A$4:$CG$4,0))+$L$33*$K$33%*(1-tr),IF($N17>MIN($A$33+$H$33,fy+sp),0,$L$33/100*OFFSET(Data!$A$6,$N17-$A$33,MATCH($G$33,Data!$A$4:$CG$4,0)-1))))))) -> 0 | AO17: =IF(OR($A$34<fy,$A$34>fy+sp),0,IF($G$34="exp",IF($A$34=$N17,$L$34*(tr-1),0),IF($G$34="atx",IF($A$34=$N17,-$L$34,0),IF($N17<$A$34,0,IF($N17=MIN($A$34+$H$34,fy+sp),$L$34/100*OFFSET(Data!$A$6,$N17-$A$34,MATCH($G$34,Data!$A$4:$CG$4,0))+$L$34*$K$34%*(1-tr),IF($N17>MIN($A$34+$H$34,fy+sp),0,$L$34/100*OFFSET(Data!$A$6,$N17-$A$34,MATCH($G$34,Data!$A$4:$CG$4,0)-1))))))) -> 0 | AP17: =IF(OR($A$35<fy,$A$35>fy+sp),0,IF($G$35="exp",IF($A$35=$N17,$L$35*(tr-1),0),IF($G$35="atx",IF($A$35=$N17,-$L$35,0),IF($N17<$A$35,0,IF($N17=MIN($A$35+$H$35,fy+sp),$L$35/100*OFFSET(Data!$A$6,$N17-$A$35,MATCH($G$35,Data!$A$4:$CG$4,0))+$L$35*$K$35%*(1-tr),IF($N17>MIN($A$35+$H$35,fy+sp),0,$L$35/100*OFFSET(Data!$A$6,$N17-$A$35,MATCH($G$35,Data!$A$4:$CG$4,0)-1))))))) -> 0 | AQ17: =IF(OR($A$36<fy,$A$36>fy+sp),0,IF($G$36="exp",IF($A$36=$N17,$L$36*(tr-1),0),IF($G$36="atx",IF($A$36=$N17,-$L$36,0),IF($N17<$A$36,0,IF($N17=MIN($A$36+$H$36,fy+sp),$L$36/100*OFFSET(Data!$A$6,$N17-$A$36,MATCH($G$36,Data!$A$4:$CG$4,0))+$L$36*$K$36%*(1-tr),IF($N17>MIN($A$36+$H$36,fy+sp),0,$L$36/100*OFFSET(Data!$A$6,$N17-$A$36,MATCH($G$36,Data!$A$4:$CG$4,0)-1))))))) -> 0 | AR17: =IF(OR($A$37<fy,$A$37>fy+sp),0,IF($G$37="exp",IF($A$37=$N17,$L$37*(tr-1),0),IF($G$37="atx",IF($A$37=$N17,-$L$37,0),IF($N17<$A$37,0,IF($N17=MIN($A$37+$H$37,fy+sp),$L$37/100*OFFSET(Data!$A$6,$N17-$A$37,MATCH($G$37,Data!$A$4:$CG$4,0))+$L$37*$K$37%*(1-tr),IF($N17>MIN($A$37+$H$37,fy+sp),0,$L$37/100*OFFSET(Data!$A$6,$N17-$A$37,MATCH($G$37,Data!$A$4:$CG$4,0)-1))))))) -> 0 | AS17: =IF(OR($A$38<fy,$A$38>fy+sp),0,IF($G$38="exp",IF($A$38=$N17,$L$38*(tr-1),0),IF($G$38="atx",IF($A$38=$N17,-$L$38,0),IF($N17<$A$38,0,IF($N17=MIN($A$38+$H$38,fy+sp),$L$38/100*OFFSET(Data!$A$6,$N17-$A$38,MATCH($G$38,Data!$A$4:$CG$4,0))+$L$38*$K$38%*(1-tr),IF($N17>MIN($A$38+$H$38,fy+sp),0,$L$38/100*OFFSET(Data!$A$6,$N17-$A$38,MATCH($G$38,Data!$A$4:$CG$4,0)-1))))))) -> 0 | AT17: =IF(OR($A$39<fy,$A$39>fy+sp),0,IF($G$39="exp",IF($A$39=$N17,$L$39*(tr-1),0),IF($G$39="atx",IF($A$39=$N17,-$L$39,0),IF($N17<$A$39,0,IF($N17=MIN($A$39+$H$39,fy+sp),$L$39/100*OFFSET(Data!$A$6,$N17-$A$39,MATCH($G$39,Data!$A$4:$CG$4,0))+$L$39*$K$39%*(1-tr),IF($N17>MIN($A$39+$H$39,fy+sp),0,$L$39/100*OFFSET(Data!$A$6,$N17-$A$39,MATCH($G$39,Data!$A$4:$CG$4,0)-1))))))) -> 0 | AU17: =IF(OR($A$40<fy,$A$40>fy+sp),0,IF($G$40="exp",IF($A$40=$N17,$L$40*(tr-1),0),IF($G$40="atx",IF($A$40=$N17,-$L$40,0),IF($N17<$A$40,0,IF($N17=MIN($A$40+$H$40,fy+sp),$L$40/100*OFFSET(Data!$A$6,$N17-$A$40,MATCH($G$40,Data!$A$4:$CG$4,0))+$L$40*$K$40%*(1-tr),IF($N17>MIN($A$40+$H$40,fy+sp),0,$L$40/100*OFFSET(Data!$A$6,$N17-$A$40,MATCH($G$40,Data!$A$4:$CG$4,0)-1))))))) -> 0 | AV17: =IF(OR($A$41<fy,$A$41>fy+sp),0,IF($G$41="exp",IF($A$41=$N17,$L$41*(tr-1),0),IF($G$41="atx",IF($A$41=$N17,-$L$41,0),IF($N17<$A$41,0,IF($N17=MIN($A$41+$H$41,fy+sp),$L$41/100*OFFSET(Data!$A$6,$N17-$A$41,MATCH($G$41,Data!$A$4:$CG$4,0))+$L$41*$K$41%*(1-tr),IF($N17>MIN($A$41+$H$41,fy+sp),0,$L$41/100*OFFSET(Data!$A$6,$N17-$A$41,MATCH($G$41,Data!$A$4:$CG$4,0)-1))))))) -> 0 | AW17: =IF(OR($A$42<fy,$A$42>fy+sp),0,IF($G$42="exp",IF($A$42=$N17,$L$42*(tr-1),0),IF($G$42="atx",IF($A$42=$N17,-$L$42,0),IF($N17<$A$42,0,IF($N17=MIN($A$42+$H$42,fy+sp),$L$42/100*OFFSET(Data!$A$6,$N17-$A$42,MATCH($G$42,Data!$A$4:$CG$4,0))+$L$42*$K$42%*(1-tr),IF($N17>MIN($A$42+$H$42,fy+sp),0,$L$42/100*OFFSET(Data!$A$6,$N17-$A$42,MATCH($G$42,Data!$A$4:$CG$4,0)-1))))))) -> 0 | AX17: =IF(OR($A$43<fy,$A$43>fy+sp),0,IF($G$43="exp",IF($A$43=$N17,$L$43*(tr-1),0),IF($G$43="atx",IF($A$43=$N17,-$L$43,0),IF($N17<$A$43,0,IF($N17=MIN($A$43+$H$43,fy+sp),$L$43/100*OFFSET(Data!$A$6,$N17-$A$43,MATCH($G$43,Data!$A$4:$CG$4,0))+$L$43*$K$43%*(1-tr),IF($N17>MIN($A$43+$H$43,fy+sp),0,$L$43/100*OFFSET(Data!$A$6,$N17-$A$43,MATCH($G$43,Data!$A$4:$CG$4,0)-1))))))) -> 0 | AY17: =IF(OR($A$44<fy,$A$44>fy+sp),0,IF($G$44="exp",IF($A$44=$N17,$L$44*(tr-1),0),IF($G$44="atx",IF($A$44=$N17,-$L$44,0),IF($N17<$A$44,0,IF($N17=MIN($A$44+$H$44,fy+sp),$L$44/100*OFFSET(Data!$A$6,$N17-$A$44,MATCH($G$44,Data!$A$4:$CG$4,0))+$L$44*$K$44%*(1-tr),IF($N17>MIN($A$44+$H$44,fy+sp),0,$L$44/100*OFFSET(Data!$A$6,$N17-$A$44,MATCH($G$44,Data!$A$4:$CG$4,0)-1))))))) -> 0 | AZ17: =IF(OR($A$45<fy,$A$45>fy+sp),0,IF($G$45="exp",IF($A$45=$N17,$L$45*(tr-1),0),IF($G$45="atx",IF($A$45=$N17,-$L$45,0),IF($N17<$A$45,0,IF($N17=MIN($A$45+$H$45,fy+sp),$L$45/100*OFFSET(Data!$A$6,$N17-$A$45,MATCH($G$45,Data!$A$4:$CG$4,0))+$L$45*$K$45%*(1-tr),IF($N17>MIN($A$45+$H$45,fy+sp),0,$L$45/100*OFFSET(Data!$A$6,$N17-$A$45,MATCH($G$45,Data!$A$4:$CG$4,0)-1))))))) -> 0 | BA17: =IF(OR($A$46<fy,$A$46>fy+sp),0,IF($G$46="exp",IF($A$46=$N17,$L$46*(tr-1),0),IF($G$46="atx",IF($A$46=$N17,-$L$46,0),IF($N17<$A$46,0,IF($N17=MIN($A$46+$H$46,fy+sp),$L$46/100*OFFSET(Data!$A$6,$N17-$A$46,MATCH($G$46,Data!$A$4:$CG$4,0))+$L$46*$K$46%*(1-tr),IF($N17>MIN($A$46+$H$46,fy+sp),0,$L$46/100*OFFSET(Data!$A$6,$N17-$A$46,MATCH($G$46,Data!$A$4:$CG$4,0)-1))))))) -> 0 | BB17: =IF(OR($A$47<fy,$A$47>fy+sp),0,IF($G$47="exp",IF($A$47=$N17,$L$47*(tr-1),0),IF($G$47="atx",IF($A$47=$N17,-$L$47,0),IF($N17<$A$47,0,IF($N17=MIN($A$47+$H$47,fy+sp),$L$47/100*OFFSET(Data!$A$6,$N17-$A$47,MATCH($G$47,Data!$A$4:$CG$4,0))+$L$47*$K$47%*(1-tr),IF($N17>MIN($A$47+$H$47,fy+sp),0,$L$47/100*OFFSET(Data!$A$6,$N17-$A$47,MATCH($G$47,Data!$A$4:$CG$4,0)-1))))))) -> 0 | BC17: -8.634107058 | BD17: 0 | BE17: 0 | BF17: -22.4846538 | BG17: -176.6224546 | BH17: 0 | BI17: 0 | BJ17: 0 | BK17: 0
A18: 2019 | B18: Existing plant net book, 27.33 yrs life | E18: =+'I. Operate Detail Summary'!E9 -> 3843.563532 | F18: 0 | G18: gast | H18: 27 | I18: 0 | K18: 0 | L18: 3843.563532 | M18: =NPV(i,Y$9:Y$58)+Y$8 -> -3387.001391 | N18: 2029 | O18: =IF(OR($A$8<fy,$A$8>fy+sp),0,IF($G$8="exp",IF($A$8=$N18,$L$8*(tr-1),0),IF($G$8="atx",IF($A$8=$N18,-$L$8,0),IF($N18<$A$8,0,IF($N18=MIN($A$8+$H$8,fy+sp),$L$8/100*OFFSET(Data!$A$6,$N18-$A$8,MATCH($G$8,Data!$A$4:$CG$4,0))+$L$8*$K$8%*(1-tr),IF($N18>MIN($A$8+$H$8,fy+sp),0,$L$8/100*OFFSET(Data!$A$6,$N18-$A$8,MATCH($G$8,Data!$A$4:$CG$4,0)-1))))))) -> 17.10994866 | P18: =IF(OR($A$9<fy,$A$9>fy+sp),0,IF($G$9="exp",IF($A$9=$N18,$L$9*(tr-1),0),IF($G$9="atx",IF($A$9=$N18,-$L$9,0),IF($N18<$A$9,0,IF($N18=MIN($A$9+$H$9,fy+sp),$L$9/100*OFFSET(Data!$A$6,$N18-$A$9,MATCH($G$9,Data!$A$4:$CG$4,0))+$L$9*$K$9%*(1-tr),IF($N18>MIN($A$9+$H$9,fy+sp),0,$L$9/100*OFFSET(Data!$A$6,$N18-$A$9,MATCH($G$9,Data!$A$4:$CG$4,0)-1))))))) -> 222.3255748 | Q18: =IF(OR($A$10<fy,$A$10>fy+sp),0,IF($G$10="exp",IF($A$10=$N18,$L$10*(tr-1),0),IF($G$10="atx",IF($A$10=$N18,-$L$10,0),IF($N18<$A$10,0,IF($N18=MIN($A$10+$H$10,fy+sp),$L$10/100*OFFSET(Data!$A$6,$N18-$A$10,MATCH($G$10,Data!$A$4:$CG$4,0))+$L$10*$K$10%*(1-tr),IF($N18>MIN($A$10+$H$10,fy+sp),0,$L$10/100*OFFSET(Data!$A$6,$N18-$A$10,MATCH($G$10,Data!$A$4:$CG$4,0)-1))))))) -> 23.9078276 | R18: =IF(OR($A$11<fy,$A$11>fy+sp),0,IF($G$11="exp",IF($A$11=$N18,$L$11*(tr-1),0),IF($G$11="atx",IF($A$11=$N18,-$L$11,0),IF($N18<$A$11,0,IF($N18=MIN($A$11+$H$11,fy+sp),$L$11/100*OFFSET(Data!$A$6,$N18-$A$11,MATCH($G$11,Data!$A$4:$CG$4,0))+$L$11*$K$11%*(1-tr),IF($N18>MIN($A$11+$H$11,fy+sp),0,$L$11/100*OFFSET(Data!$A$6,$N18-$A$11,MATCH($G$11,Data!$A$4:$CG$4,0)-1))))))) -> 27.62196879 | S18: =IF(OR($A$12<fy,$A$12>fy+sp),0,IF($G$12="exp",IF($A$12=$N18,$L$12*(tr-1),0),IF($G$12="atx",IF($A$12=$N18,-$L$12,0),IF($N18<$A$12,0,IF($N18=MIN($A$12+$H$12,fy+sp),$L$12/100*OFFSET(Data!$A$6,$N18-$A$12,MATCH($G$12,Data!$A$4:$CG$4,0))+$L$12*$K$12%*(1-tr),IF($N18>MIN($A$12+$H$12,fy+sp),0,$L$12/100*OFFSET(Data!$A$6,$N18-$A$12,MATCH($G$12,Data!$A$4:$CG$4,0)-1))))))) -> 131.0579051 | T18: =IF(OR($A$13<fy,$A$13>fy+sp),0,IF($G$13="exp",IF($A$13=$N18,$L$13*(tr-1),0),IF($G$13="atx",IF($A$13=$N18,-$L$13,0),IF($N18<$A$13,0,IF($N18=MIN($A$13+$H$13,fy+sp),$L$13/100*OFFSET(Data!$A$6,$N18-$A$13,MATCH($G$13,Data!$A$4:$CG$4,0))+$L$13*$K$13%*(1-tr),IF($N18>MIN($A$13+$H$13,fy+sp),0,$L$13/100*OFFSET(Data!$A$6,$N18-$A$13,MATCH($G$13,Data!$A$4:$CG$4,0)-1))))))) -> 36.28124903 | U18: =IF(OR($A$14<fy,$A$14>fy+sp),0,IF($G$14="exp",IF($A$14=$N18,$L$14*(tr-1),0),IF($G$14="atx",IF($A$14=$N18,-$L$14,0),IF($N18<$A$14,0,IF($N18=MIN($A$14+$H$14,fy+sp),$L$14/100*OFFSET(Data!$A$6,$N18-$A$14,MATCH($G$14,Data!$A$4:$CG$4,0))+$L$14*$K$14%*(1-tr),IF($N18>MIN($A$14+$H$14,fy+sp),0,$L$14/100*OFFSET(Data!$A$6,$N18-$A$14,MATCH($G$14,Data!$A$4:$CG$4,0)-1))))))) -> 41.45979672 | V18: =IF(OR($A$15<fy,$A$15>fy+sp),0,IF($G$15="exp",IF($A$15=$N18,$L$15*(tr-1),0),IF($G$15="atx",IF($A$15=$N18,-$L$15,0),IF($N18<$A$15,0,IF($N18=MIN($A$15+$H$15,fy+sp),$L$15/100*OFFSET(Data!$A$6,$N18-$A$15,MATCH($G$15,Data!$A$4:$CG$4,0))+$L$15*$K$15%*(1-tr),IF($N18>MIN($A$15+$H$15,fy+sp),0,$L$15/100*OFFSET(Data!$A$6,$N18-$A$15,MATCH($G$15,Data!$A$4:$CG$4,0)-1))))))) -> 47.29841388 | W18: =IF(OR($A$16<fy,$A$16>fy+sp),0,IF($G$16="exp",IF($A$16=$N18,$L$16*(tr-1),0),IF($G$16="atx",IF($A$16=$N18,-$L$16,0),IF($N18<$A$16,0,IF($N18=MIN($A$16+$H$16,fy+sp),$L$16/100*OFFSET(Data!$A$6,$N18-$A$16,MATCH($G$16,Data!$A$4:$CG$4,0))+$L$16*$K$16%*(1-tr),IF($N18>MIN($A$16+$H$16,fy+sp),0,$L$16/100*OFFSET(Data!$A$6,$N18-$A$16,MATCH($G$16,Data!$A$4:$CG$4,0)-1))))))) -> 53.91104094 | X18: =IF(OR($A$17<fy,$A$17>fy+sp),0,IF($G$17="exp",IF($A$17=$N18,$L$17*(tr-1),0),IF($G$17="atx",IF($A$17=$N18,-$L$17,0),IF($N18<$A$17,0,IF($N18=MIN($A$17+$H$17,fy+sp),$L$17/100*OFFSET(Data!$A$6,$N18-$A$17,MATCH($G$17,Data!$A$4:$CG$4,0))+$L$17*$K$17%*(1-tr),IF($N18>MIN($A$17+$H$17,fy+sp),0,$L$17/100*OFFSET(Data!$A$6,$N18-$A$17,MATCH($G$17,Data!$A$4:$CG$4,0)-1))))))) -> 58.17164278 | Y18: =IF(OR($A$18<fy,$A$18>fy+sp),0,IF($G$18="exp",IF($A$18=$N18,$L$18*(tr-1),0),IF($G$18="atx",IF($A$18=$N18,-$L$18,0),IF($N18<$A$18,0,IF($N18=MIN($A$18+$H$18,fy+sp),$L$18/100*OFFSET(Data!$A$6,$N18-$A$18,MATCH($G$18,Data!$A$4:$CG$4,0))+$L$18*$K$18%*(1-tr),IF($N18>MIN($A$18+$H$18,fy+sp),0,$L$18/100*OFFSET(Data!$A$6,$N18-$A$18,MATCH($G$18,Data!$A$4:$CG$4,0)-1))))))) -> 381.8664838 | Z18: =IF(OR($A$19<fy,$A$19>fy+sp),0,IF($G$19="exp",IF($A$19=$N18,$L$19*(tr-1),0),IF($G$19="atx",IF($A$19=$N18,-$L$19,0),IF($N18<$A$19,0,IF($N18=MIN($A$19+$H$19,fy+sp),$L$19/100*OFFSET(Data!$A$6,$N18-$A$19,MATCH($G$19,Data!$A$4:$CG$4,0))+$L$19*$K$19%*(1-tr),IF($N18>MIN($A$19+$H$19,fy+sp),0,$L$19/100*OFFSET(Data!$A$6,$N18-$A$19,MATCH($G$19,Data!$A$4:$CG$4,0)-1))))))) -> 0.4863189272 | AA18: =IF(OR($A$20<fy,$A$20>fy+sp),0,IF($G$20="exp",IF($A$20=$N18,$L$20*(tr-1),0),IF($G$20="atx",IF($A$20=$N18,-$L$20,0),IF($N18<$A$20,0,IF($N18=MIN($A$20+$H$20,fy+sp),$L$20/100*OFFSET(Data!$A$6,$N18-$A$20,MATCH($G$20,Data!$A$4:$CG$4,0))+$L$20*$K$20%*(1-tr),IF($N18>MIN($A$20+$H$20,fy+sp),0,$L$20/100*OFFSET(Data!$A$6,$N18-$A$20,MATCH($G$20,Data!$A$4:$CG$4,0)-1))))))) -> 0 | AB18: =IF(OR($A$21<fy,$A$21>fy+sp),0,IF($G$21="exp",IF($A$21=$N18,$L$21*(tr-1),0),IF($G$21="atx",IF($A$21=$N18,-$L$21,0),IF($N18<$A$21,0,IF($N18=MIN($A$21+$H$21,fy+sp),$L$21/100*OFFSET(Data!$A$6,$N18-$A$21,MATCH($G$21,Data!$A$4:$CG$4,0))+$L$21*$K$21%*(1-tr),IF($N18>MIN($A$21+$H$21,fy+sp),0,$L$21/100*OFFSET(Data!$A$6,$N18-$A$21,MATCH($G$21,Data!$A$4:$CG$4,0)-1))))))) -> 0 | AC18: =IF(OR($A$22<fy,$A$22>fy+sp),0,IF($G$22="exp",IF($A$22=$N18,$L$22*(tr-1),0),IF($G$22="atx",IF($A$22=$N18,-$L$22,0),IF($N18<$A$22,0,IF($N18=MIN($A$22+$H$22,fy+sp),$L$22/100*OFFSET(Data!$A$6,$N18-$A$22,MATCH($G$22,Data!$A$4:$CG$4,0))+$L$22*$K$22%*(1-tr),IF($N18>MIN($A$22+$H$22,fy+sp),0,$L$22/100*OFFSET(Data!$A$6,$N18-$A$22,MATCH($G$22,Data!$A$4:$CG$4,0)-1))))))) -> 0 | AD18: =IF(OR($A$23<fy,$A$23>fy+sp),0,IF($G$23="exp",IF($A$23=$N18,$L$23*(tr-1),0),IF($G$23="atx",IF($A$23=$N18,-$L$23,0),IF($N18<$A$23,0,IF($N18=MIN($A$23+$H$23,fy+sp),$L$23/100*OFFSET(Data!$A$6,$N18-$A$23,MATCH($G$23,Data!$A$4:$CG$4,0))+$L$23*$K$23%*(1-tr),IF($N18>MIN($A$23+$H$23,fy+sp),0,$L$23/100*OFFSET(Data!$A$6,$N18-$A$23,MATCH($G$23,Data!$A$4:$CG$4,0)-1))))))) -> 0 | AE18: =IF(OR($A$24<fy,$A$24>fy+sp),0,IF($G$24="exp",IF($A$24=$N18,$L$24*(tr-1),0),IF($G$24="atx",IF($A$24=$N18,-$L$24,0),IF($N18<$A$24,0,IF($N18=MIN($A$24+$H$24,fy+sp),$L$24/100*OFFSET(Data!$A$6,$N18-$A$24,MATCH($G$24,Data!$A$4:$CG$4,0))+$L$24*$K$24%*(1-tr),IF($N18>MIN($A$24+$H$24,fy+sp),0,$L$24/100*OFFSET(Data!$A$6,$N18-$A$24,MATCH($G$24,Data!$A$4:$CG$4,0)-1))))))) -> 0 | AF18: =IF(OR($A$25<fy,$A$25>fy+sp),0,IF($G$25="exp",IF($A$25=$N18,$L$25*(tr-1),0),IF($G$25="atx",IF($A$25=$N18,-$L$25,0),IF($N18<$A$25,0,IF($N18=MIN($A$25+$H$25,fy+sp),$L$25/100*OFFSET(Data!$A$6,$N18-$A$25,MATCH($G$25,Data!$A$4:$CG$4,0))+$L$25*$K$25%*(1-tr),IF($N18>MIN($A$25+$H$25,fy+sp),0,$L$25/100*OFFSET(Data!$A$6,$N18-$A$25,MATCH($G$25,Data!$A$4:$CG$4,0)-1))))))) -> 0 | AG18: =IF(OR($A$26<fy,$A$26>fy+sp),0,IF($G$26="exp",IF($A$26=$N18,$L$26*(tr-1),0),IF($G$26="atx",IF($A$26=$N18,-$L$26,0),IF($N18<$A$26,0,IF($N18=MIN($A$26+$H$26,fy+sp),$L$26/100*OFFSET(Data!$A$6,$N18-$A$26,MATCH($G$26,Data!$A$4:$CG$4,0))+$L$26*$K$26%*(1-tr),IF($N18>MIN($A$26+$H$26,fy+sp),0,$L$26/100*OFFSET(Data!$A$6,$N18-$A$26,MATCH($G$26,Data!$A$4:$CG$4,0)-1))))))) -> 0 | AH18: =IF(OR($A$27<fy,$A$27>fy+sp),0,IF($G$27="exp",IF($A$27=$N18,$L$27*(tr-1),0),IF($G$27="atx",IF($A$27=$N18,-$L$27,0),IF($N18<$A$27,0,IF($N18=MIN($A$27+$H$27,fy+sp),$L$27/100*OFFSET(Data!$A$6,$N18-$A$27,MATCH($G$27,Data!$A$4:$CG$4,0))+$L$27*$K$27%*(1-tr),IF($N18>MIN($A$27+$H$27,fy+sp),0,$L$27/100*OFFSET(Data!$A$6,$N18-$A$27,MATCH($G$27,Data!$A$4:$CG$4,0)-1))))))) -> 0 | AI18: =IF(OR($A$28<fy,$A$28>fy+sp),0,IF($G$28="exp",IF($A$28=$N18,$L$28*(tr-1),0),IF($G$28="atx",IF($A$28=$N18,-$L$28,0),IF($N18<$A$28,0,IF($N18=MIN($A$28+$H$28,fy+sp),$L$28/100*OFFSET(Data!$A$6,$N18-$A$28,MATCH($G$28,Data!$A$4:$CG$4,0))+$L$28*$K$28%*(1-tr),IF($N18>MIN($A$28+$H$28,fy+sp),0,$L$28/100*OFFSET(Data!$A$6,$N18-$A$28,MATCH($G$28,Data!$A$4:$CG$4,0)-1))))))) -> 0 | AJ18: =IF(OR($A$29<fy,$A$29>fy+sp),0,IF($G$29="exp",IF($A$29=$N18,$L$29*(tr-1),0),IF($G$29="atx",IF($A$29=$N18,-$L$29,0),IF($N18<$A$29,0,IF($N18=MIN($A$29+$H$29,fy+sp),$L$29/100*OFFSET(Data!$A$6,$N18-$A$29,MATCH($G$29,Data!$A$4:$CG$4,0))+$L$29*$K$29%*(1-tr),IF($N18>MIN($A$29+$H$29,fy+sp),0,$L$29/100*OFFSET(Data!$A$6,$N18-$A$29,MATCH($G$29,Data!$A$4:$CG$4,0)-1))))))) -> 0 | AK18: =IF(OR($A$30<fy,$A$30>fy+sp),0,IF($G$30="exp",IF($A$30=$N18,$L$30*(tr-1),0),IF($G$30="atx",IF($A$30=$N18,-$L$30,0),IF($N18<$A$30,0,IF($N18=MIN($A$30+$H$30,fy+sp),$L$30/100*OFFSET(Data!$A$6,$N18-$A$30,MATCH($G$30,Data!$A$4:$CG$4,0))+$L$30*$K$30%*(1-tr),IF($N18>MIN($A$30+$H$30,fy+sp),0,$L$30/100*OFFSET(Data!$A$6,$N18-$A$30,MATCH($G$30,Data!$A$4:$CG$4,0)-1))))))) -> 0 | AL18: =IF(OR($A$31<fy,$A$31>fy+sp),0,IF($G$31="exp",IF($A$31=$N18,$L$31*(tr-1),0),IF($G$31="atx",IF($A$31=$N18,-$L$31,0),IF($N18<$A$31,0,IF($N18=MIN($A$31+$H$31,fy+sp),$L$31/100*OFFSET(Data!$A$6,$N18-$A$31,MATCH($G$31,Data!$A$4:$CG$4,0))+$L$31*$K$31%*(1-tr),IF($N18>MIN($A$31+$H$31,fy+sp),0,$L$31/100*OFFSET(Data!$A$6,$N18-$A$31,MATCH($G$31,Data!$A$4:$CG$4,0)-1))))))) -> 0 | AM18: =IF(OR($A$32<fy,$A$32>fy+sp),0,IF($G$32="exp",IF($A$32=$N18,$L$32*(tr-1),0),IF($G$32="atx",IF($A$32=$N18,-$L$32,0),IF($N18<$A$32,0,IF($N18=MIN($A$32+$H$32,fy+sp),$L$32/100*OFFSET(Data!$A$6,$N18-$A$32,MATCH($G$32,Data!$A$4:$CG$4,0))+$L$32*$K$32%*(1-tr),IF($N18>MIN($A$32+$H$32,fy+sp),0,$L$32/100*OFFSET(Data!$A$6,$N18-$A$32,MATCH($G$32,Data!$A$4:$CG$4,0)-1))))))) -> 0 | AN18: =IF(OR($A$33<fy,$A$33>fy+sp),0,IF($G$33="exp",IF($A$33=$N18,$L$33*(tr-1),0),IF($G$33="atx",IF($A$33=$N18,-$L$33,0),IF($N18<$A$33,0,IF($N18=MIN($A$33+$H$33,fy+sp),$L$33/100*OFFSET(Data!$A$6,$N18-$A$33,MATCH($G$33,Data!$A$4:$CG$4,0))+$L$33*$K$33%*(1-tr),IF($N18>MIN($A$33+$H$33,fy+sp),0,$L$33/100*OFFSET(Data!$A$6,$N18-$A$33,MATCH($G$33,Data!$A$4:$CG$4,0)-1))))))) -> 0 | AO18: =IF(OR($A$34<fy,$A$34>fy+sp),0,IF($G$34="exp",IF($A$34=$N18,$L$34*(tr-1),0),IF($G$34="atx",IF($A$34=$N18,-$L$34,0),IF($N18<$A$34,0,IF($N18=MIN($A$34+$H$34,fy+sp),$L$34/100*OFFSET(Data!$A$6,$N18-$A$34,MATCH($G$34,Data!$A$4:$CG$4,0))+$L$34*$K$34%*(1-tr),IF($N18>MIN($A$34+$H$34,fy+sp),0,$L$34/100*OFFSET(Data!$A$6,$N18-$A$34,MATCH($G$34,Data!$A$4:$CG$4,0)-1))))))) -> 0 | AP18: =IF(OR($A$35<fy,$A$35>fy+sp),0,IF($G$35="exp",IF($A$35=$N18,$L$35*(tr-1),0),IF($G$35="atx",IF($A$35=$N18,-$L$35,0),IF($N18<$A$35,0,IF($N18=MIN($A$35+$H$35,fy+sp),$L$35/100*OFFSET(Data!$A$6,$N18-$A$35,MATCH($G$35,Data!$A$4:$CG$4,0))+$L$35*$K$35%*(1-tr),IF($N18>MIN($A$35+$H$35,fy+sp),0,$L$35/100*OFFSET(Data!$A$6,$N18-$A$35,MATCH($G$35,Data!$A$4:$CG$4,0)-1))))))) -> 0 | AQ18: =IF(OR($A$36<fy,$A$36>fy+sp),0,IF($G$36="exp",IF($A$36=$N18,$L$36*(tr-1),0),IF($G$36="atx",IF($A$36=$N18,-$L$36,0),IF($N18<$A$36,0,IF($N18=MIN($A$36+$H$36,fy+sp),$L$36/100*OFFSET(Data!$A$6,$N18-$A$36,MATCH($G$36,Data!$A$4:$CG$4,0))+$L$36*$K$36%*(1-tr),IF($N18>MIN($A$36+$H$36,fy+sp),0,$L$36/100*OFFSET(Data!$A$6,$N18-$A$36,MATCH($G$36,Data!$A$4:$CG$4,0)-1))))))) -> 0 | AR18: =IF(OR($A$37<fy,$A$37>fy+sp),0,IF($G$37="exp",IF($A$37=$N18,$L$37*(tr-1),0),IF($G$37="atx",IF($A$37=$N18,-$L$37,0),IF($N18<$A$37,0,IF($N18=MIN($A$37+$H$37,fy+sp),$L$37/100*OFFSET(Data!$A$6,$N18-$A$37,MATCH($G$37,Data!$A$4:$CG$4,0))+$L$37*$K$37%*(1-tr),IF($N18>MIN($A$37+$H$37,fy+sp),0,$L$37/100*OFFSET(Data!$A$6,$N18-$A$37,MATCH($G$37,Data!$A$4:$CG$4,0)-1))))))) -> 0 | AS18: =IF(OR($A$38<fy,$A$38>fy+sp),0,IF($G$38="exp",IF($A$38=$N18,$L$38*(tr-1),0),IF($G$38="atx",IF($A$38=$N18,-$L$38,0),IF($N18<$A$38,0,IF($N18=MIN($A$38+$H$38,fy+sp),$L$38/100*OFFSET(Data!$A$6,$N18-$A$38,MATCH($G$38,Data!$A$4:$CG$4,0))+$L$38*$K$38%*(1-tr),IF($N18>MIN($A$38+$H$38,fy+sp),0,$L$38/100*OFFSET(Data!$A$6,$N18-$A$38,MATCH($G$38,Data!$A$4:$CG$4,0)-1))))))) -> 0 | AT18: =IF(OR($A$39<fy,$A$39>fy+sp),0,IF($G$39="exp",IF($A$39=$N18,$L$39*(tr-1),0),IF($G$39="atx",IF($A$39=$N18,-$L$39,0),IF($N18<$A$39,0,IF($N18=MIN($A$39+$H$39,fy+sp),$L$39/100*OFFSET(Data!$A$6,$N18-$A$39,MATCH($G$39,Data!$A$4:$CG$4,0))+$L$39*$K$39%*(1-tr),IF($N18>MIN($A$39+$H$39,fy+sp),0,$L$39/100*OFFSET(Data!$A$6,$N18-$A$39,MATCH($G$39,Data!$A$4:$CG$4,0)-1))))))) -> 0 | AU18: =IF(OR($A$40<fy,$A$40>fy+sp),0,IF($G$40="exp",IF($A$40=$N18,$L$40*(tr-1),0),IF($G$40="atx",IF($A$40=$N18,-$L$40,0),IF($N18<$A$40,0,IF($N18=MIN($A$40+$H$40,fy+sp),$L$40/100*OFFSET(Data!$A$6,$N18-$A$40,MATCH($G$40,Data!$A$4:$CG$4,0))+$L$40*$K$40%*(1-tr),IF($N18>MIN($A$40+$H$40,fy+sp),0,$L$40/100*OFFSET(Data!$A$6,$N18-$A$40,MATCH($G$40,Data!$A$4:$CG$4,0)-1))))))) -> 0 | AV18: =IF(OR($A$41<fy,$A$41>fy+sp),0,IF($G$41="exp",IF($A$41=$N18,$L$41*(tr-1),0),IF($G$41="atx",IF($A$41=$N18,-$L$41,0),IF($N18<$A$41,0,IF($N18=MIN($A$41+$H$41,fy+sp),$L$41/100*OFFSET(Data!$A$6,$N18-$A$41,MATCH($G$41,Data!$A$4:$CG$4,0))+$L$41*$K$41%*(1-tr),IF($N18>MIN($A$41+$H$41,fy+sp),0,$L$41/100*OFFSET(Data!$A$6,$N18-$A$41,MATCH($G$41,Data!$A$4:$CG$4,0)-1))))))) -> 0 | AW18: =IF(OR($A$42<fy,$A$42>fy+sp),0,IF($G$42="exp",IF($A$42=$N18,$L$42*(tr-1),0),IF($G$42="atx",IF($A$42=$N18,-$L$42,0),IF($N18<$A$42,0,IF($N18=MIN($A$42+$H$42,fy+sp),$L$42/100*OFFSET(Data!$A$6,$N18-$A$42,MATCH($G$42,Data!$A$4:$CG$4,0))+$L$42*$K$42%*(1-tr),IF($N18>MIN($A$42+$H$42,fy+sp),0,$L$42/100*OFFSET(Data!$A$6,$N18-$A$42,MATCH($G$42,Data!$A$4:$CG$4,0)-1))))))) -> 0 | AX18: =IF(OR($A$43<fy,$A$43>fy+sp),0,IF($G$43="exp",IF($A$43=$N18,$L$43*(tr-1),0),IF($G$43="atx",IF($A$43=$N18,-$L$43,0),IF($N18<$A$43,0,IF($N18=MIN($A$43+$H$43,fy+sp),$L$43/100*OFFSET(Data!$A$6,$N18-$A$43,MATCH($G$43,Data!$A$4:$CG$4,0))+$L$43*$K$43%*(1-tr),IF($N18>MIN($A$43+$H$43,fy+sp),0,$L$43/100*OFFSET(Data!$A$6,$N18-$A$43,MATCH($G$43,Data!$A$4:$CG$4,0)-1))))))) -> 0 | AY18: =IF(OR($A$44<fy,$A$44>fy+sp),0,IF($G$44="exp",IF($A$44=$N18,$L$44*(tr-1),0),IF($G$44="atx",IF($A$44=$N18,-$L$44,0),IF($N18<$A$44,0,IF($N18=MIN($A$44+$H$44,fy+sp),$L$44/100*OFFSET(Data!$A$6,$N18-$A$44,MATCH($G$44,Data!$A$4:$CG$4,0))+$L$44*$K$44%*(1-tr),IF($N18>MIN($A$44+$H$44,fy+sp),0,$L$44/100*OFFSET(Data!$A$6,$N18-$A$44,MATCH($G$44,Data!$A$4:$CG$4,0)-1))))))) -> 0 | AZ18: =IF(OR($A$45<fy,$A$45>fy+sp),0,IF($G$45="exp",IF($A$45=$N18,$L$45*(tr-1),0),IF($G$45="atx",IF($A$45=$N18,-$L$45,0),IF($N18<$A$45,0,IF($N18=MIN($A$45+$H$45,fy+sp),$L$45/100*OFFSET(Data!$A$6,$N18-$A$45,MATCH($G$45,Data!$A$4:$CG$4,0))+$L$45*$K$45%*(1-tr),IF($N18>MIN($A$45+$H$45,fy+sp),0,$L$45/100*OFFSET(Data!$A$6,$N18-$A$45,MATCH($G$45,Data!$A$4:$CG$4,0)-1))))))) -> 0 | BA18: =IF(OR($A$46<fy,$A$46>fy+sp),0,IF($G$46="exp",IF($A$46=$N18,$L$46*(tr-1),0),IF($G$46="atx",IF($A$46=$N18,-$L$46,0),IF($N18<$A$46,0,IF($N18=MIN($A$46+$H$46,fy+sp),$L$46/100*OFFSET(Data!$A$6,$N18-$A$46,MATCH($G$46,Data!$A$4:$CG$4,0))+$L$46*$K$46%*(1-tr),IF($N18>MIN($A$46+$H$46,fy+sp),0,$L$46/100*OFFSET(Data!$A$6,$N18-$A$46,MATCH($G$46,Data!$A$4:$CG$4,0)-1))))))) -> 0 | BB18: =IF(OR($A$47<fy,$A$47>fy+sp),0,IF($G$47="exp",IF($A$47=$N18,$L$47*(tr-1),0),IF($G$47="atx",IF($A$47=$N18,-$L$47,0),IF($N18<$A$47,0,IF($N18=MIN($A$47+$H$47,fy+sp),$L$47/100*OFFSET(Data!$A$6,$N18-$A$47,MATCH($G$47,Data!$A$4:$CG$4,0))+$L$47*$K$47%*(1-tr),IF($N18>MIN($A$47+$H$47,fy+sp),0,$L$47/100*OFFSET(Data!$A$6,$N18-$A$47,MATCH($G$47,Data!$A$4:$CG$4,0)-1))))))) -> 0 | BC18: -8.849959735 | BD18: -2765.612417 | BE18: 0 | BF18: -23.04677014 | BG18: -1756.010976 | BH18: 0 | BI18: 0 | BJ18: 0 | BK18: 0
A19: 2019 | B19: Land book value | E19: =+'I. Operate Detail Summary'!E10 -> 1.798025557 | F19: 0 | G19: land | H19: 99 | I19: 0 | K19: 0 | L19: 1.798025557 | M19: =NPV(i,Z$9:Z$58)+Z$8 -> -1.660478877 | N19: 2030 | O19: =IF(OR($A$8<fy,$A$8>fy+sp),0,IF($G$8="exp",IF($A$8=$N19,$L$8*(tr-1),0),IF($G$8="atx",IF($A$8=$N19,-$L$8,0),IF($N19<$A$8,0,IF($N19=MIN($A$8+$H$8,fy+sp),$L$8/100*OFFSET(Data!$A$6,$N19-$A$8,MATCH($G$8,Data!$A$4:$CG$4,0))+$L$8*$K$8%*(1-tr),IF($N19>MIN($A$8+$H$8,fy+sp),0,$L$8/100*OFFSET(Data!$A$6,$N19-$A$8,MATCH($G$8,Data!$A$4:$CG$4,0)-1))))))) -> 0 | P19: =IF(OR($A$9<fy,$A$9>fy+sp),0,IF($G$9="exp",IF($A$9=$N19,$L$9*(tr-1),0),IF($G$9="atx",IF($A$9=$N19,-$L$9,0),IF($N19<$A$9,0,IF($N19=MIN($A$9+$H$9,fy+sp),$L$9/100*OFFSET(Data!$A$6,$N19-$A$9,MATCH($G$9,Data!$A$4:$CG$4,0))+$L$9*$K$9%*(1-tr),IF($N19>MIN($A$9+$H$9,fy+sp),0,$L$9/100*OFFSET(Data!$A$6,$N19-$A$9,MATCH($G$9,Data!$A$4:$CG$4,0)-1))))))) -> 0 | Q19: =IF(OR($A$10<fy,$A$10>fy+sp),0,IF($G$10="exp",IF($A$10=$N19,$L$10*(tr-1),0),IF($G$10="atx",IF($A$10=$N19,-$L$10,0),IF($N19<$A$10,0,IF($N19=MIN($A$10+$H$10,fy+sp),$L$10/100*OFFSET(Data!$A$6,$N19-$A$10,MATCH($G$10,Data!$A$4:$CG$4,0))+$L$10*$K$10%*(1-tr),IF($N19>MIN($A$10+$H$10,fy+sp),0,$L$10/100*OFFSET(Data!$A$6,$N19-$A$10,MATCH($G$10,Data!$A$4:$CG$4,0)-1))))))) -> 0 | R19: =IF(OR($A$11<fy,$A$11>fy+sp),0,IF($G$11="exp",IF($A$11=$N19,$L$11*(tr-1),0),IF($G$11="atx",IF($A$11=$N19,-$L$11,0),IF($N19<$A$11,0,IF($N19=MIN($A$11+$H$11,fy+sp),$L$11/100*OFFSET(Data!$A$6,$N19-$A$11,MATCH($G$11,Data!$A$4:$CG$4,0))+$L$11*$K$11%*(1-tr),IF($N19>MIN($A$11+$H$11,fy+sp),0,$L$11/100*OFFSET(Data!$A$6,$N19-$A$11,MATCH($G$11,Data!$A$4:$CG$4,0)-1))))))) -> 0 | S19: =IF(OR($A$12<fy,$A$12>fy+sp),0,IF($G$12="exp",IF($A$12=$N19,$L$12*(tr-1),0),IF($G$12="atx",IF($A$12=$N19,-$L$12,0),IF($N19<$A$12,0,IF($N19=MIN($A$12+$H$12,fy+sp),$L$12/100*OFFSET(Data!$A$6,$N19-$A$12,MATCH($G$12,Data!$A$4:$CG$4,0))+$L$12*$K$12%*(1-tr),IF($N19>MIN($A$12+$H$12,fy+sp),0,$L$12/100*OFFSET(Data!$A$6,$N19-$A$12,MATCH($G$12,Data!$A$4:$CG$4,0)-1))))))) -> 0 | T19: =IF(OR($A$13<fy,$A$13>fy+sp),0,IF($G$13="exp",IF($A$13=$N19,$L$13*(tr-1),0),IF($G$13="atx",IF($A$13=$N19,-$L$13,0),IF($N19<$A$13,0,IF($N19=MIN($A$13+$H$13,fy+sp),$L$13/100*OFFSET(Data!$A$6,$N19-$A$13,MATCH($G$13,Data!$A$4:$CG$4,0))+$L$13*$K$13%*(1-tr),IF($N19>MIN($A$13+$H$13,fy+sp),0,$L$13/100*OFFSET(Data!$A$6,$N19-$A$13,MATCH($G$13,Data!$A$4:$CG$4,0)-1))))))) -> 0 | U19: =IF(OR($A$14<fy,$A$14>fy+sp),0,IF($G$14="exp",IF($A$14=$N19,$L$14*(tr-1),0),IF($G$14="atx",IF($A$14=$N19,-$L$14,0),IF($N19<$A$14,0,IF($N19=MIN($A$14+$H$14,fy+sp),$L$14/100*OFFSET(Data!$A$6,$N19-$A$14,MATCH($G$14,Data!$A$4:$CG$4,0))+$L$14*$K$14%*(1-tr),IF($N19>MIN($A$14+$H$14,fy+sp),0,$L$14/100*OFFSET(Data!$A$6,$N19-$A$14,MATCH($G$14,Data!$A$4:$CG$4,0)-1))))))) -> 0 | V19: =IF(OR($A$15<fy,$A$15>fy+sp),0,IF($G$15="exp",IF($A$15=$N19,$L$15*(tr-1),0),IF($G$15="atx",IF($A$15=$N19,-$L$15,0),IF($N19<$A$15,0,IF($N19=MIN($A$15+$H$15,fy+sp),$L$15/100*OFFSET(Data!$A$6,$N19-$A$15,MATCH($G$15,Data!$A$4:$CG$4,0))+$L$15*$K$15%*(1-tr),IF($N19>MIN($A$15+$H$15,fy+sp),0,$L$15/100*OFFSET(Data!$A$6,$N19-$A$15,MATCH($G$15,Data!$A$4:$CG$4,0)-1))))))) -> 0 | W19: =IF(OR($A$16<fy,$A$16>fy+sp),0,IF($G$16="exp",IF($A$16=$N19,$L$16*(tr-1),0),IF($G$16="atx",IF($A$16=$N19,-$L$16,0),IF($N19<$A$16,0,IF($N19=MIN($A$16+$H$16,fy+sp),$L$16/100*OFFSET(Data!$A$6,$N19-$A$16,MATCH($G$16,Data!$A$4:$CG$4,0))+$L$16*$K$16%*(1-tr),IF($N19>MIN($A$16+$H$16,fy+sp),0,$L$16/100*OFFSET(Data!$A$6,$N19-$A$16,MATCH($G$16,Data!$A$4:$CG$4,0)-1))))))) -> 0 | X19: =IF(OR($A$17<fy,$A$17>fy+sp),0,IF($G$17="exp",IF($A$17=$N19,$L$17*(tr-1),0),IF($G$17="atx",IF($A$17=$N19,-$L$17,0),IF($N19<$A$17,0,IF($N19=MIN($A$17+$H$17,fy+sp),$L$17/100*OFFSET(Data!$A$6,$N19-$A$17,MATCH($G$17,Data!$A$4:$CG$4,0))+$L$17*$K$17%*(1-tr),IF($N19>MIN($A$17+$H$17,fy+sp),0,$L$17/100*OFFSET(Data!$A$6,$N19-$A$17,MATCH($G$17,Data!$A$4:$CG$4,0)-1))))))) -> 0 | Y19: =IF(OR($A$18<fy,$A$18>fy+sp),0,IF($G$18="exp",IF($A$18=$N19,$L$18*(tr-1),0),IF($G$18="atx",IF($A$18=$N19,-$L$18,0),IF($N19<$A$18,0,IF($N19=MIN($A$18+$H$18,fy+sp),$L$18/100*OFFSET(Data!$A$6,$N19-$A$18,MATCH($G$18,Data!$A$4:$CG$4,0))+$L$18*$K$18%*(1-tr),IF($N19>MIN($A$18+$H$18,fy+sp),0,$L$18/100*OFFSET(Data!$A$6,$N19-$A$18,MATCH($G$18,Data!$A$4:$CG$4,0)-1))))))) -> 0 | Z19: =IF(OR($A$19<fy,$A$19>fy+sp),0,IF($G$19="exp",IF($A$19=$N19,$L$19*(tr-1),0),IF($G$19="atx",IF($A$19=$N19,-$L$19,0),IF($N19<$A$19,0,IF($N19=MIN($A$19+$H$19,fy+sp),$L$19/100*OFFSET(Data!$A$6,$N19-$A$19,MATCH($G$19,Data!$A$4:$CG$4,0))+$L$19*$K$19%*(1-tr),IF($N19>MIN($A$19+$H$19,fy+sp),0,$L$19/100*OFFSET(Data!$A$6,$N19-$A$19,MATCH($G$19,Data!$A$4:$CG$4,0)-1))))))) -> 0 | AA19: =IF(OR($A$20<fy,$A$20>fy+sp),0,IF($G$20="exp",IF($A$20=$N19,$L$20*(tr-1),0),IF($G$20="atx",IF($A$20=$N19,-$L$20,0),IF($N19<$A$20,0,IF($N19=MIN($A$20+$H$20,fy+sp),$L$20/100*OFFSET(Data!$A$6,$N19-$A$20,MATCH($G$20,Data!$A$4:$CG$4,0))+$L$20*$K$20%*(1-tr),IF($N19>MIN($A$20+$H$20,fy+sp),0,$L$20/100*OFFSET(Data!$A$6,$N19-$A$20,MATCH($G$20,Data!$A$4:$CG$4,0)-1))))))) -> 0 | AB19: =IF(OR($A$21<fy,$A$21>fy+sp),0,IF($G$21="exp",IF($A$21=$N19,$L$21*(tr-1),0),IF($G$21="atx",IF($A$21=$N19,-$L$21,0),IF($N19<$A$21,0,IF($N19=MIN($A$21+$H$21,fy+sp),$L$21/100*OFFSET(Data!$A$6,$N19-$A$21,MATCH($G$21,Data!$A$4:$CG$4,0))+$L$21*$K$21%*(1-tr),IF($N19>MIN($A$21+$H$21,fy+sp),0,$L$21/100*OFFSET(Data!$A$6,$N19-$A$21,MATCH($G$21,Data!$A$4:$CG$4,0)-1))))))) -> 0 | AC19: =IF(OR($A$22<fy,$A$22>fy+sp),0,IF($G$22="exp",IF($A$22=$N19,$L$22*(tr-1),0),IF($G$22="atx",IF($A$22=$N19,-$L$22,0),IF($N19<$A$22,0,IF($N19=MIN($A$22+$H$22,fy+sp),$L$22/100*OFFSET(Data!$A$6,$N19-$A$22,MATCH($G$22,Data!$A$4:$CG$4,0))+$L$22*$K$22%*(1-tr),IF($N19>MIN($A$22+$H$22,fy+sp),0,$L$22/100*OFFSET(Data!$A$6,$N19-$A$22,MATCH($G$22,Data!$A$4:$CG$4,0)-1))))))) -> 0 | AD19: =IF(OR($A$23<fy,$A$23>fy+sp),0,IF($G$23="exp",IF($A$23=$N19,$L$23*(tr-1),0),IF($G$23="atx",IF($A$23=$N19,-$L$23,0),IF($N19<$A$23,0,IF($N19=MIN($A$23+$H$23,fy+sp),$L$23/100*OFFSET(Data!$A$6,$N19-$A$23,MATCH($G$23,Data!$A$4:$CG$4,0))+$L$23*$K$23%*(1-tr),IF($N19>MIN($A$23+$H$23,fy+sp),0,$L$23/100*OFFSET(Data!$A$6,$N19-$A$23,MATCH($G$23,Data!$A$4:$CG$4,0)-1))))))) -> 0 | AE19: =IF(OR($A$24<fy,$A$24>fy+sp),0,IF($G$24="exp",IF($A$24=$N19,$L$24*(tr-1),0),IF($G$24="atx",IF($A$24=$N19,-$L$24,0),IF($N19<$A$24,0,IF($N19=MIN($A$24+$H$24,fy+sp),$L$24/100*OFFSET(Data!$A$6,$N19-$A$24,MATCH($G$24,Data!$A$4:$CG$4,0))+$L$24*$K$24%*(1-tr),IF($N19>MIN($A$24+$H$24,fy+sp),0,$L$24/100*OFFSET(Data!$A$6,$N19-$A$24,MATCH($G$24,Data!$A$4:$CG$4,0)-1))))))) -> 0 | AF19: =IF(OR($A$25<fy,$A$25>fy+sp),0,IF($G$25="exp",IF($A$25=$N19,$L$25*(tr-1),0),IF($G$25="atx",IF($A$25=$N19,-$L$25,0),IF($N19<$A$25,0,IF($N19=MIN($A$25+$H$25,fy+sp),$L$25/100*OFFSET(Data!$A$6,$N19-$A$25,MATCH($G$25,Data!$A$4:$CG$4,0))+$L$25*$K$25%*(1-tr),IF($N19>MIN($A$25+$H$25,fy+sp),0,$L$25/100*OFFSET(Data!$A$6,$N19-$A$25,MATCH($G$25,Data!$A$4:$CG$4,0)-1))))))) -> 0 | AG19: =IF(OR($A$26<fy,$A$26>fy+sp),0,IF($G$26="exp",IF($A$26=$N19,$L$26*(tr-1),0),IF($G$26="atx",IF($A$26=$N19,-$L$26,0),IF($N19<$A$26,0,IF($N19=MIN($A$26+$H$26,fy+sp),$L$26/100*OFFSET(Data!$A$6,$N19-$A$26,MATCH($G$26,Data!$A$4:$CG$4,0))+$L$26*$K$26%*(1-tr),IF($N19>MIN($A$26+$H$26,fy+sp),0,$L$26/100*OFFSET(Data!$A$6,$N19-$A$26,MATCH($G$26,Data!$A$4:$CG$4,0)-1))))))) -> 0 | AH19: =IF(OR($A$27<fy,$A$27>fy+sp),0,IF($G$27="exp",IF($A$27=$N19,$L$27*(tr-1),0),IF($G$27="atx",IF($A$27=$N19,-$L$27,0),IF($N19<$A$27,0,IF($N19=MIN($A$27+$H$27,fy+sp),$L$27/100*OFFSET(Data!$A$6,$N19-$A$27,MATCH($G$27,Data!$A$4:$CG$4,0))+$L$27*$K$27%*(1-tr),IF($N19>MIN($A$27+$H$27,fy+sp),0,$L$27/100*OFFSET(Data!$A$6,$N19-$A$27,MATCH($G$27,Data!$A$4:$CG$4,0)-1))))))) -> 0 | AI19: =IF(OR($A$28<fy,$A$28>fy+sp),0,IF($G$28="exp",IF($A$28=$N19,$L$28*(tr-1),0),IF($G$28="atx",IF($A$28=$N19,-$L$28,0),IF($N19<$A$28,0,IF($N19=MIN($A$28+$H$28,fy+sp),$L$28/100*OFFSET(Data!$A$6,$N19-$A$28,MATCH($G$28,Data!$A$4:$CG$4,0))+$L$28*$K$28%*(1-tr),IF($N19>MIN($A$28+$H$28,fy+sp),0,$L$28/100*OFFSET(Data!$A$6,$N19-$A$28,MATCH($G$28,Data!$A$4:$CG$4,0)-1))))))) -> 0 | AJ19: =IF(OR($A$29<fy,$A$29>fy+sp),0,IF($G$29="exp",IF($A$29=$N19,$L$29*(tr-1),0),IF($G$29="atx",IF($A$29=$N19,-$L$29,0),IF($N19<$A$29,0,IF($N19=MIN($A$29+$H$29,fy+sp),$L$29/100*OFFSET(Data!$A$6,$N19-$A$29,MATCH($G$29,Data!$A$4:$CG$4,0))+$L$29*$K$29%*(1-tr),IF($N19>MIN($A$29+$H$29,fy+sp),0,$L$29/100*OFFSET(Data!$A$6,$N19-$A$29,MATCH($G$29,Data!$A$4:$CG$4,0)-1))))))) -> 0 | AK19: =IF(OR($A$30<fy,$A$30>fy+sp),0,IF($G$30="exp",IF($A$30=$N19,$L$30*(tr-1),0),IF($G$30="atx",IF($A$30=$N19,-$L$30,0),IF($N19<$A$30,0,IF($N19=MIN($A$30+$H$30,fy+sp),$L$30/100*OFFSET(Data!$A$6,$N19-$A$30,MATCH($G$30,Data!$A$4:$CG$4,0))+$L$30*$K$30%*(1-tr),IF($N19>MIN($A$30+$H$30,fy+sp),0,$L$30/100*OFFSET(Data!$A$6,$N19-$A$30,MATCH($G$30,Data!$A$4:$CG$4,0)-1))))))) -> 0 | AL19: =IF(OR($A$31<fy,$A$31>fy+sp),0,IF($G$31="exp",IF($A$31=$N19,$L$31*(tr-1),0),IF($G$31="atx",IF($A$31=$N19,-$L$31,0),IF($N19<$A$31,0,IF($N19=MIN($A$31+$H$31,fy+sp),$L$31/100*OFFSET(Data!$A$6,$N19-$A$31,MATCH($G$31,Data!$A$4:$CG$4,0))+$L$31*$K$31%*(1-tr),IF($N19>MIN($A$31+$H$31,fy+sp),0,$L$31/100*OFFSET(Data!$A$6,$N19-$A$31,MATCH($G$31,Data!$A$4:$CG$4,0)-1))))))) -> 0 | AM19: =IF(OR($A$32<fy,$A$32>fy+sp),0,IF($G$32="exp",IF($A$32=$N19,$L$32*(tr-1),0),IF($G$32="atx",IF($A$32=$N19,-$L$32,0),IF($N19<$A$32,0,IF($N19=MIN($A$32+$H$32,fy+sp),$L$32/100*OFFSET(Data!$A$6,$N19-$A$32,MATCH($G$32,Data!$A$4:$CG$4,0))+$L$32*$K$32%*(1-tr),IF($N19>MIN($A$32+$H$32,fy+sp),0,$L$32/100*OFFSET(Data!$A$6,$N19-$A$32,MATCH($G$32,Data!$A$4:$CG$4,0)-1))))))) -> 0 | AN19: =IF(OR($A$33<fy,$A$33>fy+sp),0,IF($G$33="exp",IF($A$33=$N19,$L$33*(tr-1),0),IF($G$33="atx",IF($A$33=$N19,-$L$33,0),IF($N19<$A$33,0,IF($N19=MIN($A$33+$H$33,fy+sp),$L$33/100*OFFSET(Data!$A$6,$N19-$A$33,MATCH($G$33,Data!$A$4:$CG$4,0))+$L$33*$K$33%*(1-tr),IF($N19>MIN($A$33+$H$33,fy+sp),0,$L$33/100*OFFSET(Data!$A$6,$N19-$A$33,MATCH($G$33,Data!$A$4:$CG$4,0)-1))))))) -> 0 | AO19: =IF(OR($A$34<fy,$A$34>fy+sp),0,IF($G$34="exp",IF($A$34=$N19,$L$34*(tr-1),0),IF($G$34="atx",IF($A$34=$N19,-$L$34,0),IF($N19<$A$34,0,IF($N19=MIN($A$34+$H$34,fy+sp),$L$34/100*OFFSET(Data!$A$6,$N19-$A$34,MATCH($G$34,Data!$A$4:$CG$4,0))+$L$34*$K$34%*(1-tr),IF($N19>MIN($A$34+$H$34,fy+sp),0,$L$34/100*OFFSET(Data!$A$6,$N19-$A$34,MATCH($G$34,Data!$A$4:$CG$4,0)-1))))))) -> 0 | AP19: =IF(OR($A$35<fy,$A$35>fy+sp),0,IF($G$35="exp",IF($A$35=$N19,$L$35*(tr-1),0),IF($G$35="atx",IF($A$35=$N19,-$L$35,0),IF($N19<$A$35,0,IF($N19=MIN($A$35+$H$35,fy+sp),$L$35/100*OFFSET(Data!$A$6,$N19-$A$35,MATCH($G$35,Data!$A$4:$CG$4,0))+$L$35*$K$35%*(1-tr),IF($N19>MIN($A$35+$H$35,fy+sp),0,$L$35/100*OFFSET(Data!$A$6,$N19-$A$35,MATCH($G$35,Data!$A$4:$CG$4,0)-1))))))) -> 0 | AQ19: =IF(OR($A$36<fy,$A$36>fy+sp),0,IF($G$36="exp",IF($A$36=$N19,$L$36*(tr-1),0),IF($G$36="atx",IF($A$36=$N19,-$L$36,0),IF($N19<$A$36,0,IF($N19=MIN($A$36+$H$36,fy+sp),$L$36/100*OFFSET(Data!$A$6,$N19-$A$36,MATCH($G$36,Data!$A$4:$CG$4,0))+$L$36*$K$36%*(1-tr),IF($N19>MIN($A$36+$H$36,fy+sp),0,$L$36/100*OFFSET(Data!$A$6,$N19-$A$36,MATCH($G$36,Data!$A$4:$CG$4,0)-1))))))) -> 0 | AR19: =IF(OR($A$37<fy,$A$37>fy+sp),0,IF($G$37="exp",IF($A$37=$N19,$L$37*(tr-1),0),IF($G$37="atx",IF($A$37=$N19,-$L$37,0),IF($N19<$A$37,0,IF($N19=MIN($A$37+$H$37,fy+sp),$L$37/100*OFFSET(Data!$A$6,$N19-$A$37,MATCH($G$37,Data!$A$4:$CG$4,0))+$L$37*$K$37%*(1-tr),IF($N19>MIN($A$37+$H$37,fy+sp),0,$L$37/100*OFFSET(Data!$A$6,$N19-$A$37,MATCH($G$37,Data!$A$4:$CG$4,0)-1))))))) -> 0 | AS19: =IF(OR($A$38<fy,$A$38>fy+sp),0,IF($G$38="exp",IF($A$38=$N19,$L$38*(tr-1),0),IF($G$38="atx",IF($A$38=$N19,-$L$38,0),IF($N19<$A$38,0,IF($N19=MIN($A$38+$H$38,fy+sp),$L$38/100*OFFSET(Data!$A$6,$N19-$A$38,MATCH($G$38,Data!$A$4:$CG$4,0))+$L$38*$K$38%*(1-tr),IF($N19>MIN($A$38+$H$38,fy+sp),0,$L$38/100*OFFSET(Data!$A$6,$N19-$A$38,MATCH($G$38,Data!$A$4:$CG$4,0)-1))))))) -> 0 | AT19: =IF(OR($A$39<fy,$A$39>fy+sp),0,IF($G$39="exp",IF($A$39=$N19,$L$39*(tr-1),0),IF($G$39="atx",IF($A$39=$N19,-$L$39,0),IF($N19<$A$39,0,IF($N19=MIN($A$39+$H$39,fy+sp),$L$39/100*OFFSET(Data!$A$6,$N19-$A$39,MATCH($G$39,Data!$A$4:$CG$4,0))+$L$39*$K$39%*(1-tr),IF($N19>MIN($A$39+$H$39,fy+sp),0,$L$39/100*OFFSET(Data!$A$6,$N19-$A$39,MATCH($G$39,Data!$A$4:$CG$4,0)-1))))))) -> 0 | AU19: =IF(OR($A$40<fy,$A$40>fy+sp),0,IF($G$40="exp",IF($A$40=$N19,$L$40*(tr-1),0),IF($G$40="atx",IF($A$40=$N19,-$L$40,0),IF($N19<$A$40,0,IF($N19=MIN($A$40+$H$40,fy+sp),$L$40/100*OFFSET(Data!$A$6,$N19-$A$40,MATCH($G$40,Data!$A$4:$CG$4,0))+$L$40*$K$40%*(1-tr),IF($N19>MIN($A$40+$H$40,fy+sp),0,$L$40/100*OFFSET(Data!$A$6,$N19-$A$40,MATCH($G$40,Data!$A$4:$CG$4,0)-1))))))) -> 0 | AV19: =IF(OR($A$41<fy,$A$41>fy+sp),0,IF($G$41="exp",IF($A$41=$N19,$L$41*(tr-1),0),IF($G$41="atx",IF($A$41=$N19,-$L$41,0),IF($N19<$A$41,0,IF($N19=MIN($A$41+$H$41,fy+sp),$L$41/100*OFFSET(Data!$A$6,$N19-$A$41,MATCH($G$41,Data!$A$4:$CG$4,0))+$L$41*$K$41%*(1-tr),IF($N19>MIN($A$41+$H$41,fy+sp),0,$L$41/100*OFFSET(Data!$A$6,$N19-$A$41,MATCH($G$41,Data!$A$4:$CG$4,0)-1))))))) -> 0 | AW19: =IF(OR($A$42<fy,$A$42>fy+sp),0,IF($G$42="exp",IF($A$42=$N19,$L$42*(tr-1),0),IF($G$42="atx",IF($A$42=$N19,-$L$42,0),IF($N19<$A$42,0,IF($N19=MIN($A$42+$H$42,fy+sp),$L$42/100*OFFSET(Data!$A$6,$N19-$A$42,MATCH($G$42,Data!$A$4:$CG$4,0))+$L$42*$K$42%*(1-tr),IF($N19>MIN($A$42+$H$42,fy+sp),0,$L$42/100*OFFSET(Data!$A$6,$N19-$A$42,MATCH($G$42,Data!$A$4:$CG$4,0)-1))))))) -> 0 | AX19: =IF(OR($A$43<fy,$A$43>fy+sp),0,IF($G$43="exp",IF($A$43=$N19,$L$43*(tr-1),0),IF($G$43="atx",IF($A$43=$N19,-$L$43,0),IF($N19<$A$43,0,IF($N19=MIN($A$43+$H$43,fy+sp),$L$43/100*OFFSET(Data!$A$6,$N19-$A$43,MATCH($G$43,Data!$A$4:$CG$4,0))+$L$43*$K$43%*(1-tr),IF($N19>MIN($A$43+$H$43,fy+sp),0,$L$43/100*OFFSET(Data!$A$6,$N19-$A$43,MATCH($G$43,Data!$A$4:$CG$4,0)-1))))))) -> 0 | AY19: =IF(OR($A$44<fy,$A$44>fy+sp),0,IF($G$44="exp",IF($A$44=$N19,$L$44*(tr-1),0),IF($G$44="atx",IF($A$44=$N19,-$L$44,0),IF($N19<$A$44,0,IF($N19=MIN($A$44+$H$44,fy+sp),$L$44/100*OFFSET(Data!$A$6,$N19-$A$44,MATCH($G$44,Data!$A$4:$CG$4,0))+$L$44*$K$44%*(1-tr),IF($N19>MIN($A$44+$H$44,fy+sp),0,$L$44/100*OFFSET(Data!$A$6,$N19-$A$44,MATCH($G$44,Data!$A$4:$CG$4,0)-1))))))) -> 0 | AZ19: =IF(OR($A$45<fy,$A$45>fy+sp),0,IF($G$45="exp",IF($A$45=$N19,$L$45*(tr-1),0),IF($G$45="atx",IF($A$45=$N19,-$L$45,0),IF($N19<$A$45,0,IF($N19=MIN($A$45+$H$45,fy+sp),$L$45/100*OFFSET(Data!$A$6,$N19-$A$45,MATCH($G$45,Data!$A$4:$CG$4,0))+$L$45*$K$45%*(1-tr),IF($N19>MIN($A$45+$H$45,fy+sp),0,$L$45/100*OFFSET(Data!$A$6,$N19-$A$45,MATCH($G$45,Data!$A$4:$CG$4,0)-1))))))) -> 0 | BA19: =IF(OR($A$46<fy,$A$46>fy+sp),0,IF($G$46="exp",IF($A$46=$N19,$L$46*(tr-1),0),IF($G$46="atx",IF($A$46=$N19,-$L$46,0),IF($N19<$A$46,0,IF($N19=MIN($A$46+$H$46,fy+sp),$L$46/100*OFFSET(Data!$A$6,$N19-$A$46,MATCH($G$46,Data!$A$4:$CG$4,0))+$L$46*$K$46%*(1-tr),IF($N19>MIN($A$46+$H$46,fy+sp),0,$L$46/100*OFFSET(Data!$A$6,$N19-$A$46,MATCH($G$46,Data!$A$4:$CG$4,0)-1))))))) -> 0 | BB19: =IF(OR($A$47<fy,$A$47>fy+sp),0,IF($G$47="exp",IF($A$47=$N19,$L$47*(tr-1),0),IF($G$47="atx",IF($A$47=$N19,-$L$47,0),IF($N19<$A$47,0,IF($N19=MIN($A$47+$H$47,fy+sp),$L$47/100*OFFSET(Data!$A$6,$N19-$A$47,MATCH($G$47,Data!$A$4:$CG$4,0))+$L$47*$K$47%*(1-tr),IF($N19>MIN($A$47+$H$47,fy+sp),0,$L$47/100*OFFSET(Data!$A$6,$N19-$A$47,MATCH($G$47,Data!$A$4:$CG$4,0)-1))))))) -> 0 | BC19: 0 | BD19: 0 | BE19: 0 | BF19: 0 | BG19: 0 | BH19: 0 | BI19: 0 | BJ19: 0 | BK19: 0
